Workbook

Sheet MANUÁL
B1: !!! NEUPRAVUJTE TO, NECHTE FORMÁTY JAK JSOU !!!
B2: POVOLIT MAKRA
B3: Výsledková listina používá "bodování RAK"
A4: BODOVÁNÍ
A5: - | B5: v listu "typ turnaje" označit typ turnaje
A6: - | B6: v listu "Absolutní-BODY" vyplňovat pouze kolonku "reg" (registrační číslo - všechny aktuální data jsou doplněny z listu "seznam" podle vepsaného registračního čísla)
B7: pokud jméno nesouhlasí s Protokolem, je špatně na Protokolu vypsané reg.číslo
A8: - | B8: v listu "Absolutní-BODY" pak už jen dopisovat jednotlivá kola
A9: - | B9: během turnaje si lze seřazovat hráče dle, Start.čísla, Absolutního pořadí, nebo Kategorií
A10: - | B10: po skončení turnaje a dle potřeby použít pro "4 kola", nebo "8 kol"
A11: - | B11: v případě potřeby změnit skutečné pořadí v kategoriích (rozstřely) v listu "Výsledková listina"
A12: - | B12: rozstřely a tresty se zapisují zvlášť do listu "Rozstřely a tresty"
A13: - | B13: v listu "Titul" doplnit Název turnaje, místo, povrch, datum, pořadatele, vedení turnaje, rozhodčí, jury.
A14: - | B14: v případě cizích hráčů v listu "seznam" doplnit hráče na konec seznamu a napsat mu jakékoliv 5místné číslo, které se pak používá místo reg.čísla
A15: LIGA
A16: - | B16: v listech "Liga-kolo-X" doplnit název klubu a pouze kolonku "reg" (jméno a odehrátá kola se doplňují z listu "seznam" a "bodování")
A17: - | B17: v listech "Liga-kolo-X" okruhy náhradníků, nebo případné střídání nutno vymazat či opravit ručně
A18: - | B18: po dohrátí okruhů, vše v listech "Liga-kolo-X" označit, kopírovat a následně vložit jako hodnoty. Vymažou se vzorce a již napsané se nezmění.
A19: - | B19: v listu "Liga-celkem" doplnit jednotlivé a celkové výsledky družstev
A20: STARTOVNÉ
A21: - | B21: v listu "startovné" pouze vyplnit částku u kategorií (zelené pole)
A22: - | B22: svůj klub jen vymazat název a napsat ho dolů do zeleného pole (musí být napsaný stejně). Bude to počítat počet hráčů, ale nebude se to plést do vybraného startovného

Sheet Titul
A11: Výsledková listina
A15: 3. Open Chomutov + 2.liga smíš.družstev
A19: 2013-05-05
A21: SKDG Chomutov
A29: Ředitel turnaje: | B29: Zdeněk Drozda
A31: Hlavní rozhodčí: | B31: Milan Bláha
A33: Rozhodčí: | B33: Vladimír Fiedler, Miroslav Lisa st.
A35: Jury: | B35: Zdeněk Drozda, Milan Bláha, Lumír Benda, Jan Hála, František Nečekal st.

Sheet Výsledková listina
C1: Absolutní pořadí - Muži | Y1: Absolutní pořadí - Ženy
A2: poř. | B2: st.č. | C2: příjmení | D2: oddíl | E2: reg | F2: vt | G2: kat. | H2: 1 | I2: 2 | J2: 3 | K2: 4 | L2: 5 | M2: 6 | N2: 7 | O2: 8 | P2: Sum | Q2: prům. | R2: r1 | S2: r2 | T2: kol | U2: BODY | W2: poř. | X2: st.č. | Y2: příjmení | Z2: oddíl | AA2: reg | AB2: vt | AC2: kat. | AD2: 1 | AE2: 2 | AF2: 3 | AG2: 4 | AH2: 5 | AI2: 6 | AJ2: 7 | AK2: 8 | AL2: Sum | AM2: prům. | AN2: r1 | AO2: r2 | AP2: kol | AQ2: BODY
A3: 1 | B3: 27 | C3: Souček Milan | D3: GC 85 Rakovník | E3: 1101 | F3: 1 | G3: S | H3: 24 | I3: 26 | J3: 21 | K3: 24 | P3: 95 | Q3: 23.75 | R3: 5 | S3: 0 | T3: 4 | U3: 67 | W3: 1 | X3: 2 | Y3: Dočkalová Jana | Z3: SKGC Frant. Lázně | AA3: 1689 | AB3: 1 | AC3: Z | AD3: 25 | AE3: 28 | AF3: 24 | AG3: 23 | AL3: 100 | AM3: 25 | AN3: 5 | AO3: 1 | AP3: 4 | AQ3: 62
A4: 2 | B4: 14 | C4: Moutvička Ondřej | D4: MGC Plzeň | E4: 2503 | F4: 2 | G4: M | H4: 23 | I4: 23 | J4: 23 | K4: 28 | P4: 97 | Q4: 24.25 | R4: 5 | S4: 0 | T4: 4 | U4: 65 | V4: r | W4: 2 | X4: 7 | Y4: Dočkalová Dana | Z4: SKGC Frant. Lázně | AA4: 1388 | AB4: M | AC4: Se | AD4: 27 | AE4: 27 | AF4: 26 | AG4: 26 | AL4: 106 | AM4: 26.5 | AN4: 1 | AO4: 1 | AP4: 4 | AQ4: 56
A5: 3 | B5: 20 | C5: Dočkal Lubomír ml. | D5: SKGC Frant. Lázně | E5: 1791 | F5: bez | G5: M | H5: 27 | I5: 22 | J5: 24 | K5: 24 | P5: 97 | Q5: 24.25 | R5: 5 | S5: 0 | T5: 4 | U5: 65 | V5: r | W5: 3 | X5: 22 | Y5: Fiedlerová Jaroslava | Z5: SKGC Frant. Lázně | AA5: 1478 | AB5: M | AC5: Se | AD5: 29 | AE5: 26 | AF5: 25 | AG5: 27 | AL5: 107 | AM5: 26.75 | AN5: 4 | AO5: 1 | AP5: 4 | AQ5: 55
A6: 4 | B6: 15 | C6: Malárik Michal | D6: SKGC Frant. Lázně | E6: 3475 | F6: 1 | G6: J | H6: 26 | I6: 28 | J6: 20 | K6: 24 | P6: 98 | Q6: 24.5 | R6: 8 | S6: 2 | T6: 4 | U6: 64 | W6: 4 | X6: 42 | Y6: Vosmíková Petra | Z6: GC 85 Rakovník | AA6: 986 | AB6: 1 | AC6: Z | AD6: 27 | AE6: 28 | AF6: 29 | AG6: 25 | AL6: 109 | AM6: 27.25 | AN6: 4 | AO6: 1 | AP6: 4 | AQ6: 53
A7: 5 | B7: 12 | C7: Hála Jan | D7: SKGC Frant. Lázně | E7: 230 | F7: M | G7: S2 | H7: 25 | I7: 23 | J7: 27 | K7: 24 | P7: 99 | Q7: 24.75 | R7: 4 | S7: 1 | T7: 4 | U7: 63 | W7: 5 | X7: 11 | Y7: Brettlová Jana | Z7: SKDG Jesenice | AA7: 2570 | AB7: 2 | AC7: Z | AD7: 30 | AE7: 26 | AF7: 29 | AG7: 26 | AL7: 111 | AM7: 27.75 | AN7: 4 | AO7: 3 | AP7: 4 | AQ7: 51
A8: 6 | B8: 4 | C8: Míka Jiří | D8: MGC Plzeň | E8: 2164 | F8: 2 | G8: M | H8: 24 | I8: 26 | J8: 25 | K8: 26 | P8: 101 | Q8: 25.25 | R8: 2 | S8: 1 | T8: 4 | U8: 61 | W8: 6 | X8: 36 | Y8: Kadlecová Eva | Z8: TJ MG Cheb | AA8: 3535 | AB8: 4 | AC8: Z | AD8: 33 | AE8: 29 | AF8: 32 | AG8: 31 | AL8: 125 | AM8: 31.25 | AN8: 4 | AO8: 1 | AP8: 4 | AQ8: 37
A9: 7 | B9: 3 | C9: Mráz Josef | D9: SK DG Chomutov | E9: 408 | F9: 3 | G9: S | H9: 26 | I9: 24 | J9: 28 | K9: 24 | P9: 102 | Q9: 25.5 | R9: 4 | S9: 2 | T9: 4 | U9: 60 | W9: 7 | X9: 24 | Y9: Birešová Vlasta | Z9: SKGC Frant. Lázně | AA9: 526 | AB9: 2 | AC9: Se | AD9: 31 | AE9: 34 | AF9: 31 | AG9: 30 | AL9: 126 | AM9: 31.5 | AN9: 4 | AO9: 0 | AP9: 4 | AQ9: 36
A10: 8 | B10: 35 | C10: Vitner Václav | D10: GC 85 Rakovník | E10: 1134 | F10: 2 | G10: S | H10: 29 | I10: 24 | J10: 24 | K10: 26 | P10: 103 | Q10: 25.75 | R10: 5 | S10: 2 | T10: 4 | U10: 59 | W10: 8 | X10: 23 | Y10: Kubantová Lucie | Z10: SK DG Chomutov | AA10: 3011 | AB10: 5 | AC10: Z | AD10: 36 | AE10: 34 | AF10: 31 | AG10: 29 | AL10: 130 | AM10: 32.5 | AN10: 7 | AO10: 3 | AP10: 4 | AQ10: 32
A11: 9 | B11: 18 | C11: Mandák Josef | D11: SK DG Chomutov | E11: 809 | F11: 2 | G11: S | H11: 24 | I11: 28 | J11: 26 | K11: 26 | P11: 104 | Q11: 26 | R11: 4 | S11: 0 | T11: 4 | U11: 58 | W11: 9 | X11: 33 | Y11: Fiedlerová Jana | Z11: SKGC Frant. Lázně | AA11: 3521 | AB11: 2 | AC11: Z | AD11: 31 | AE11: 37 | AF11: 33 | AG11: 35 | AL11: 136 | AM11: 34 | AN11: 6 | AO11: 2 | AP11: 4 | AQ11: 26
A12: 10 | B12: 19 | C12: Benda Lumír | D12: MGC Plzeň | E12: 746 | F12: 1 | G12: S | H12: 27 | I12: 22 | J12: 28 | K12: 28 | P12: 105 | Q12: 26.25 | R12: 6 | S12: 1 | T12: 4 | U12: 57 | W12: 10 | X12: 29 | Y12: Zachová Marcela | Z12: SK DG Chomutov | AA12: 2918 | AB12: 3 | AC12: Se | AD12: 43 | AE12: 37 | AF12: 28 | AG12: 35 | AL12: 143 | AM12: 35.75 | AN12: 15 | AO12: 2 | AP12: 4 | AQ12: 19
A13: 11 | B13: 17 | C13: Bireš Jan | D13: SKGC Frant. Lázně | E13: 652 | F13: M | G13: S2 | H13: 28 | I13: 27 | J13: 24 | K13: 27 | P13: 106 | Q13: 26.5 | R13: 4 | S13: 0 | T13: 4 | U13: 56 | Y13: Ženy
A14: 12 | B14: 16 | C14: Lisa Miroslav st. | D14: SKDG Jesenice | E14: 433 | F14: 1 | G14: S2 | H14: 27 | I14: 28 | J14: 27 | K14: 26 | P14: 108 | Q14: 27 | R14: 2 | S14: 0 | T14: 4 | U14: 54 | W14: poř. | X14: st.č. | Y14: příjmení | Z14: oddíl | AA14: reg | AB14: vt | AC14: kat. | AD14: 1 | AE14: 2 | AF14: 3 | AG14: 4 | AH14: 5 | AI14: 6 | AJ14: 7 | AK14: 8 | AL14: Sum | AM14: prům. | AN14: r1 | AO14: r2 | AP14: kol | AQ14: BODY
A15: 13 | B15: 5 | C15: Horáček Vlastislav | D15: SKGC Frant. Lázně | E15: 233 | F15: 4 | G15: S | H15: 27 | I15: 28 | J15: 26 | K15: 27 | P15: 108 | Q15: 27 | R15: 2 | S15: 0 | T15: 4 | U15: 54 | W15: 1 | X15: 2 | Y15: Dočkalová Jana | Z15: SKGC Frant. Lázně | AA15: 1689 | AB15: 1 | AC15: Z | AD15: 25 | AE15: 28 | AF15: 24 | AG15: 23 | AL15: 100 | AM15: 25 | AN15: 5 | AO15: 1 | AP15: 4 | AQ15: 62
A16: 14 | B16: 8 | C16: Drozda Zdeněk | D16: SK DG Chomutov | E16: 1324 | F16: 3 | G16: M | H16: 25 | I16: 26 | J16: 30 | K16: 28 | P16: 109 | Q16: 27.25 | R16: 5 | S16: 2 | T16: 4 | U16: 53 | W16: 2 | X16: 42 | Y16: Vosmíková Petra | Z16: GC 85 Rakovník | AA16: 986 | AB16: 1 | AC16: Z | AD16: 27 | AE16: 28 | AF16: 29 | AG16: 25 | AL16: 109 | AM16: 27.25 | AN16: 4 | AO16: 1 | AP16: 4 | AQ16: 53
A17: 15 | B17: 10 | C17: Beran Robert | D17: SKGC Frant. Lázně | E17: 1150 | F17: 3 | G17: S | H17: 31 | I17: 31 | J17: 24 | K17: 26 | P17: 112 | Q17: 28 | R17: 7 | S17: 5 | T17: 4 | U17: 50 | W17: 3 | X17: 11 | Y17: Brettlová Jana | Z17: SKDG Jesenice | AA17: 2570 | AB17: 2 | AC17: Z | AD17: 30 | AE17: 26 | AF17: 29 | AG17: 26 | AL17: 111 | AM17: 27.75 | AN17: 4 | AO17: 3 | AP17: 4 | AQ17: 51
A18: 16 | B18: 13 | C18: Pajkov Mitko | D18: SK DG Chomutov | E18: 2318 | F18: 3 | G18: M | H18: 30 | I18: 26 | J18: 27 | K18: 32 | P18: 115 | Q18: 28.75 | R18: 6 | S18: 3 | T18: 4 | U18: 47 | W18: 4 | X18: 36 | Y18: Kadlecová Eva | Z18: TJ MG Cheb | AA18: 3535 | AB18: 4 | AC18: Z | AD18: 33 | AE18: 29 | AF18: 32 | AG18: 31 | AL18: 125 | AM18: 31.25 | AN18: 4 | AO18: 1 | AP18: 4 | AQ18: 37
A19: 17 | B19: 25 | C19: Wolf Jan | D19: TJ MG Cheb | E19: 3051 | F19: 1 | G19: M | H19: 32 | I19: 30 | J19: 28 | K19: 26 | P19: 116 | Q19: 29 | R19: 6 | S19: 2 | T19: 4 | U19: 46 | W19: 5 | X19: 23 | Y19: Kubantová Lucie | Z19: SK DG Chomutov | AA19: 3011 | AB19: 5 | AC19: Z | AD19: 36 | AE19: 34 | AF19: 31 | AG19: 29 | AL19: 130 | AM19: 32.5 | AN19: 7 | AO19: 3 | AP19: 4 | AQ19: 32
A20: 18 | B20: 41 | C20: Mansfeld Martin | D20: TJ MG Cheb | E20: 2403 | F20: 4 | G20: M | H20: 31 | I20: 34 | J20: 27 | K20: 24 | P20: 116 | Q20: 29 | R20: 10 | S20: 4 | T20: 4 | U20: 46 | W20: 6 | X20: 33 | Y20: Fiedlerová Jana | Z20: SKGC Frant. Lázně | AA20: 3521 | AB20: 2 | AC20: Z | AD20: 31 | AE20: 37 | AF20: 33 | AG20: 35 | AL20: 136 | AM20: 34 | AN20: 6 | AO20: 2 | AP20: 4 | AQ20: 26
A21: 19 | B21: 40 | C21: Luxa Radek | D21: GC 85 Rakovník | E21: 3066 | F21: 2 | G21: M | H21: 31 | I21: 29 | J21: 29 | K21: 28 | P21: 117 | Q21: 29.25 | R21: 3 | S21: 0 | T21: 4 | U21: 45 | Y21: Seniorky
A22: 20 | B22: 9 | C22: Moutvička Jaroslav | D22: MGC Plzeň | E22: 2502 | F22: 2 | G22: S | H22: 28 | I22: 32 | J22: 30 | K22: 27 | P22: 117 | Q22: 29.25 | R22: 5 | S22: 2 | T22: 4 | U22: 45 | W22: poř. | X22: st.č. | Y22: příjmení | Z22: oddíl | AA22: reg | AB22: vt | AC22: kat. | AD22: 1 | AE22: 2 | AF22: 3 | AG22: 4 | AH22: 5 | AI22: 6 | AJ22: 7 | AK22: 8 | AL22: Sum | AM22: prům. | AN22: r1 | AO22: r2 | AP22: kol | AQ22: BODY
A23: 21 | B23: 38 | C23: Kropáček Václav | D23: GC 85 Rakovník | E23: 202 | F23: 2 | G23: S | H23: 28 | I23: 30 | J23: 28 | K23: 33 | P23: 119 | Q23: 29.75 | R23: 5 | S23: 2 | T23: 4 | U23: 43 | W23: 1 | X23: 7 | Y23: Dočkalová Dana | Z23: SKGC Frant. Lázně | AA23: 1388 | AB23: M | AC23: Se | AD23: 27 | AE23: 27 | AF23: 26 | AG23: 26 | AL23: 106 | AM23: 26.5 | AN23: 1 | AO23: 1 | AP23: 4 | AQ23: 56
A24: 22 | B24: 1 | C24: Gruncl Josef | D24: SKDG Jesenice | E24: 1278 | F24: 3 | G24: S | H24: 29 | I24: 30 | J24: 32 | K24: 31 | P24: 122 | Q24: 30.5 | R24: 3 | S24: 1 | T24: 4 | U24: 40 | W24: 2 | X24: 22 | Y24: Fiedlerová Jaroslava | Z24: SKGC Frant. Lázně | AA24: 1478 | AB24: M | AC24: Se | AD24: 29 | AE24: 26 | AF24: 25 | AG24: 27 | AL24: 107 | AM24: 26.75 | AN24: 4 | AO24: 1 | AP24: 4 | AQ24: 55
A25: 23 | B25: 30 | C25: Fiedler Vladimír | D25: SKGC Frant. Lázně | E25: 1416 | F25: 2 | G25: M | H25: 31 | I25: 29 | J25: 33 | K25: 31 | P25: 124 | Q25: 31 | R25: 4 | S25: 0 | T25: 4 | U25: 38 | W25: 3 | X25: 24 | Y25: Birešová Vlasta | Z25: SKGC Frant. Lázně | AA25: 526 | AB25: 2 | AC25: Se | AD25: 31 | AE25: 34 | AF25: 31 | AG25: 30 | AL25: 126 | AM25: 31.5 | AN25: 4 | AO25: 0 | AP25: 4 | AQ25: 36
A26: 24 | B26: 6 | C26: Wenzl Daniel | D26: SKDG Jesenice | E26: 712 | F26: 3 | G26: S | H26: 28 | I26: 33 | J26: 34 | K26: 29 | P26: 124 | Q26: 31 | R26: 6 | S26: 4 | T26: 4 | U26: 38 | W26: 4 | X26: 29 | Y26: Zachová Marcela | Z26: SK DG Chomutov | AA26: 2918 | AB26: 3 | AC26: Se | AD26: 43 | AE26: 37 | AF26: 28 | AG26: 35 | AL26: 143 | AM26: 35.75 | AN26: 15 | AO26: 2 | AP26: 4 | AQ26: 19
A27: 25 | B27: 28 | C27: Kocum Ondřej | D27: TJ MG Cheb | E27: 3552 | F27: 3 | G27: M | H27: 28 | I27: 26 | J27: 37 | K27: 34 | P27: 125 | Q27: 31.25 | R27: 11 | S27: 6 | T27: 4 | U27: 37 | Y27: Juniorky
A28: 26 | B28: 31 | C28: Bláha Milan | D28: GC 85 Rakovník | E28: 1099 | F28: 2 | G28: S | H28: 33 | I28: 28 | J28: 28 | K28: 39 | P28: 128 | Q28: 32 | R28: 11 | S28: 5 | T28: 4 | U28: 34 | W28: poř. | X28: st.č. | Y28: příjmení | Z28: oddíl | AA28: reg | AB28: vt | AC28: kat. | AD28: 1 | AE28: 2 | AF28: 3 | AG28: 4 | AH28: 5 | AI28: 6 | AJ28: 7 | AK28: 8 | AL28: Sum | AM28: prům. | AN28: r1 | AO28: r2 | AP28: kol | AQ28: BODY
A29: 27 | B29: 39 | C29: Hubinger Miroslav | D29: MG České údolí Plzeň 3 | E29: 442 | F29: 5 | G29: S | H29: 30 | I29: 32 | J29: 33 | K29: 34 | P29: 129 | Q29: 32.25 | R29: 4 | S29: 1 | T29: 4 | U29: 33 | Y29: Žákyně
A30: 28 | B30: 32 | C30: Kadlec Jan | D30: TJ MG Cheb | E30: 3536 | F30: 2 | G30: Jz | H30: 34 | I30: 32 | J30: 34 | K30: 31 | P30: 131 | Q30: 32.75 | R30: 3 | S30: 2 | T30: 4 | U30: 31 | W30: poř. | X30: st.č. | Y30: příjmení | Z30: oddíl | AA30: reg | AB30: vt | AC30: kat. | AD30: 1 | AE30: 2 | AF30: 3 | AG30: 4 | AH30: 5 | AI30: 6 | AJ30: 7 | AK30: 8 | AL30: Sum | AM30: prům. | AN30: r1 | AO30: r2 | AP30: kol | AQ30: BODY
A31: 29 | B31: 37 | C31: Nečekal František st. | D31: TJ MG Cheb | E31: 238 | F31: 1 | G31: S2 | H31: 34 | I31: 28 | J31: 34 | K31: 38 | P31: 134 | Q31: 33.5 | R31: 10 | S31: 0 | T31: 4 | U31: 28
A32: 30 | B32: 34 | C32: Kratochvíl Jaroslav | D32: SKDG Jesenice | E32: 235 | F32: 2 | G32: S2 | H32: 33 | I32: 37 | J32: 34 | K32: 33 | P32: 137 | Q32: 34.25 | R32: 4 | S32: 1 | T32: 4 | U32: 25
A33: 31 | B33: 21 | C33: Cimerman Jan | D33: SKDG Jesenice | E33: 2396 | F33: 4 | G33: M | H33: 30 | I33: 42 | J33: 35 | K33: 31 | P33: 138 | Q33: 34.5 | R33: 12 | S33: 4 | T33: 4 | U33: 24
A34: 32 | B34: 26 | C34: Cimerman Jaroslav | D34: SKDG Jesenice | E34: 2395 | F34: 4 | G34: S2 | H34: 39 | I34: 38 | J34: 32 | K34: 39 | P34: 148 | Q34: 37 | R34: 7 | S34: 1 | T34: 4 | U34: 14
C35: Muži
A36: poř. | B36: st.č. | C36: příjmení | D36: oddíl | E36: reg | F36: vt | G36: kat. | H36: 1 | I36: 2 | J36: 3 | K36: 4 | L36: 5 | M36: 6 | N36: 7 | O36: 8 | P36: Sum | Q36: prům. | R36: r1 | S36: r2 | T36: kol | U36: BODY
A37: 1 | B37: 14 | C37: Moutvička Ondřej | D37: MGC Plzeň | E37: 2503 | F37: 2 | G37: M | H37: 23 | I37: 23 | J37: 23 | K37: 28 | P37: 97 | Q37: 24.25 | R37: 5 | S37: 0 | T37: 4 | U37: 65 | V37: r
A38: 2 | B38: 20 | C38: Dočkal Lubomír ml. | D38: SKGC Frant. Lázně | E38: 1791 | F38: bez | G38: M | H38: 27 | I38: 22 | J38: 24 | K38: 24 | P38: 97 | Q38: 24.25 | R38: 5 | S38: 0 | T38: 4 | U38: 65 | V38: r
A39: 3 | B39: 4 | C39: Míka Jiří | D39: MGC Plzeň | E39: 2164 | F39: 2 | G39: M | H39: 24 | I39: 26 | J39: 25 | K39: 26 | P39: 101 | Q39: 25.25 | R39: 2 | S39: 1 | T39: 4 | U39: 61
A40: 4 | B40: 8 | C40: Drozda Zdeněk | D40: SK DG Chomutov | E40: 1324 | F40: 3 | G40: M | H40: 25 | I40: 26 | J40: 30 | K40: 28 | P40: 109 | Q40: 27.25 | R40: 5 | S40: 2 | T40: 4 | U40: 53
A41: 5 | B41: 13 | C41: Pajkov Mitko | D41: SK DG Chomutov | E41: 2318 | F41: 3 | G41: M | H41: 30 | I41: 26 | J41: 27 | K41: 32 | P41: 115 | Q41: 28.75 | R41: 6 | S41: 3 | T41: 4 | U41: 47
A42: 6 | B42: 25 | C42: Wolf Jan | D42: TJ MG Cheb | E42: 3051 | F42: 1 | G42: M | H42: 32 | I42: 30 | J42: 28 | K42: 26 | P42: 116 | Q42: 29 | R42: 6 | S42: 2 | T42: 4 | U42: 46
A43: 7 | B43: 41 | C43: Mansfeld Martin | D43: TJ MG Cheb | E43: 2403 | F43: 4 | G43: M | H43: 31 | I43: 34 | J43: 27 | K43: 24 | P43: 116 | Q43: 29 | R43: 10 | S43: 4 | T43: 4 | U43: 46
A44: 8 | B44: 40 | C44: Luxa Radek | D44: GC 85 Rakovník | E44: 3066 | F44: 2 | G44: M | H44: 31 | I44: 29 | J44: 29 | K44: 28 | P44: 117 | Q44: 29.25 | R44: 3 | S44: 0 | T44: 4 | U44: 45
A45: 9 | B45: 30 | C45: Fiedler Vladimír | D45: SKGC Frant. Lázně | E45: 1416 | F45: 2 | G45: M | H45: 31 | I45: 29 | J45: 33 | K45: 31 | P45: 124 | Q45: 31 | R45: 4 | S45: 0 | T45: 4 | U45: 38
A46: 10 | B46: 28 | C46: Kocum Ondřej | D46: TJ MG Cheb | E46: 3552 | F46: 3 | G46: M | H46: 28 | I46: 26 | J46: 37 | K46: 34 | P46: 125 | Q46: 31.25 | R46: 11 | S46: 6 | T46: 4 | U46: 37
A47: 11 | B47: 21 | C47: Cimerman Jan | D47: SKDG Jesenice | E47: 2396 | F47: 4 | G47: M | H47: 30 | I47: 42 | J47: 35 | K47: 31 | P47: 138 | Q47: 34.5 | R47: 12 | S47: 4 | T47: 4 | U47: 24
C48: Senioři
A49: poř. | B49: st.č. | C49: příjmení | D49: oddíl | E49: reg | F49: vt | G49: kat. | H49: 1 | I49: 2 | J49: 3 | K49: 4 | L49: 5 | M49: 6 | N49: 7 | O49: 8 | P49: Sum | Q49: prům. | R49: r1 | S49: r2 | T49: kol | U49: BODY
A50: 1 | B50: 27 | C50: Souček Milan | D50: GC 85 Rakovník | E50: 1101 | F50: 1 | G50: S | H50: 24 | I50: 26 | J50: 21 | K50: 24 | P50: 95 | Q50: 23.75 | R50: 5 | S50: 0 | T50: 4 | U50: 67
A51: 2 | B51: 3 | C51: Mráz Josef | D51: SK DG Chomutov | E51: 408 | F51: 3 | G51: S | H51: 26 | I51: 24 | J51: 28 | K51: 24 | P51: 102 | Q51: 25.5 | R51: 4 | S51: 2 | T51: 4 | U51: 60
A52: 3 | B52: 35 | C52: Vitner Václav | D52: GC 85 Rakovník | E52: 1134 | F52: 2 | G52: S | H52: 29 | I52: 24 | J52: 24 | K52: 26 | P52: 103 | Q52: 25.75 | R52: 5 | S52: 2 | T52: 4 | U52: 59
A53: 4 | B53: 18 | C53: Mandák Josef | D53: SK DG Chomutov | E53: 809 | F53: 2 | G53: S | H53: 24 | I53: 28 | J53: 26 | K53: 26 | P53: 104 | Q53: 26 | R53: 4 | S53: 0 | T53: 4 | U53: 58
A54: 5 | B54: 19 | C54: Benda Lumír | D54: MGC Plzeň | E54: 746 | F54: 1 | G54: S | H54: 27 | I54: 22 | J54: 28 | K54: 28 | P54: 105 | Q54: 26.25 | R54: 6 | S54: 1 | T54: 4 | U54: 57
A55: 6 | B55: 5 | C55: Horáček Vlastislav | D55: SKGC Frant. Lázně | E55: 233 | F55: 4 | G55: S | H55: 27 | I55: 28 | J55: 26 | K55: 27 | P55: 108 | Q55: 27 | R55: 2 | S55: 0 | T55: 4 | U55: 54
A56: 7 | B56: 10 | C56: Beran Robert | D56: SKGC Frant. Lázně | E56: 1150 | F56: 3 | G56: S | H56: 31 | I56: 31 | J56: 24 | K56: 26 | P56: 112 | Q56: 28 | R56: 7 | S56: 5 | T56: 4 | U56: 50
A57: 8 | B57: 9 | C57: Moutvička Jaroslav | D57: MGC Plzeň | E57: 2502 | F57: 2 | G57: S | H57: 28 | I57: 32 | J57: 30 | K57: 27 | P57: 117 | Q57: 29.25 | R57: 5 | S57: 2 | T57: 4 | U57: 45
A58: 9 | B58: 38 | C58: Kropáček Václav | D58: GC 85 Rakovník | E58: 202 | F58: 2 | G58: S | H58: 28 | I58: 30 | J58: 28 | K58: 33 | P58: 119 | Q58: 29.75 | R58: 5 | S58: 2 | T58: 4 | U58: 43
A59: 10 | B59: 1 | C59: Gruncl Josef | D59: SKDG Jesenice | E59: 1278 | F59: 3 | G59: S | H59: 29 | I59: 30 | J59: 32 | K59: 31 | P59: 122 | Q59: 30.5 | R59: 3 | S59: 1 | T59: 4 | U59: 40
A60: 11 | B60: 6 | C60: Wenzl Daniel | D60: SKDG Jesenice | E60: 712 | F60: 3 | G60: S | H60: 28 | I60: 33 | J60: 34 | K60: 29 | P60: 124 | Q60: 31 | R60: 6 | S60: 4 | T60: 4 | U60: 38
A61: 12 | B61: 31 | C61: Bláha Milan | D61: GC 85 Rakovník | E61: 1099 | F61: 2 | G61: S | H61: 33 | I61: 28 | J61: 28 | K61: 39 | P61: 128 | Q61: 32 | R61: 11 | S61: 5 | T61: 4 | U61: 34
A62: 13 | B62: 39 | C62: Hubinger Miroslav | D62: MG České údolí Plzeň 3 | E62: 442 | F62: 5 | G62: S | H62: 30 | I62: 32 | J62: 33 | K62: 34 | P62: 129 | Q62: 32.25 | R62: 4 | S62: 1 | T62: 4 | U62: 33
C63: Senioři2
A64: poř. | B64: st.č. | C64: příjmení | D64: oddíl | E64: reg | F64: vt | G64: kat. | H64: 1 | I64: 2 | J64: 3 | K64: 4 | L64: 5 | M64: 6 | N64: 7 | O64: 8 | P64: Sum | Q64: prům. | R64: r1 | S64: r2 | T64: kol | U64: BODY
A65: 1 | B65: 12 | C65: Hála Jan | D65: SKGC Frant. Lázně | E65: 230 | F65: M | G65: S2 | H65: 25 | I65: 23 | J65: 27 | K65: 24 | P65: 99 | Q65: 24.75 | R65: 4 | S65: 1 | T65: 4 | U65: 63
A66: 2 | B66: 17 | C66: Bireš Jan | D66: SKGC Frant. Lázně | E66: 652 | F66: M | G66: S2 | H66: 28 | I66: 27 | J66: 24 | K66: 27 | P66: 106 | Q66: 26.5 | R66: 4 | S66: 0 | T66: 4 | U66: 56
A67: 3 | B67: 16 | C67: Lisa Miroslav st. | D67: SKDG Jesenice | E67: 433 | F67: 1 | G67: S2 | H67: 27 | I67: 28 | J67: 27 | K67: 26 | P67: 108 | Q67: 27 | R67: 2 | S67: 0 | T67: 4 | U67: 54
A68: 4 | B68: 37 | C68: Nečekal František st. | D68: TJ MG Cheb | E68: 238 | F68: 1 | G68: S2 | H68: 34 | I68: 28 | J68: 34 | K68: 38 | P68: 134 | Q68: 33.5 | R68: 10 | S68: 0 | T68: 4 | U68: 28
A69: 5 | B69: 34 | C69: Kratochvíl Jaroslav | D69: SKDG Jesenice | E69: 235 | F69: 2 | G69: S2 | H69: 33 | I69: 37 | J69: 34 | K69: 33 | P69: 137 | Q69: 34.25 | R69: 4 | S69: 1 | T69: 4 | U69: 25
A70: 6 | B70: 26 | C70: Cimerman Jaroslav | D70: SKDG Jesenice | E70: 2395 | F70: 4 | G70: S2 | H70: 39 | I70: 38 | J70: 32 | K70: 39 | P70: 148 | Q70: 37 | R70: 7 | S70: 1 | T70: 4 | U70: 14
C71: Junioři
A72: poř. | B72: st.č. | C72: příjmení | D72: oddíl | E72: reg | F72: vt | G72: kat. | H72: 1 | I72: 2 | J72: 3 | K72: 4 | L72: 5 | M72: 6 | N72: 7 | O72: 8 | P72: Sum | Q72: prům. | R72: r1 | S72: r2 | T72: kol | U72: BODY
A73: 1 | B73: 15 | C73: Malárik Michal | D73: SKGC Frant. Lázně | E73: 3475 | F73: 1 | G73: J | H73: 26 | I73: 28 | J73: 20 | K73: 24 | P73: 98 | Q73: 24.5 | R73: 8 | S73: 2 | T73: 4 | U73: 64
C74: Žáci
A75: poř. | B75: st.č. | C75: příjmení | D75: oddíl | E75: reg | F75: vt | G75: kat. | H75: 1 | I75: 2 | J75: 3 | K75: 4 | L75: 5 | M75: 6 | N75: 7 | O75: 8 | P75: Sum | Q75: prům. | R75: r1 | S75: r2 | T75: kol | U75: BODY
A76: 1 | B76: 32 | C76: Kadlec Jan | D76: TJ MG Cheb | E76: 3536 | F76: 2 | G76: Jz | H76: 34 | I76: 32 | J76: 34 | K76: 31 | P76: 131 | Q76: 32.75 | R76: 3 | S76: 2 | T76: 4 | U76: 31

Sheet Rozstřely a tresty
B1: Muži
A2: poř. | B2: příjmení | C2: oddíl | D2: reg | E2: kat. | F2: údery na drahách
A3: 1 | B3: =IF(D3=0,"",VLOOKUP($D3,seznam!$A$2:$F$5009,2,FALSE)) -> Moutvička Ondřej | C3: =IF(D3=0,"",VLOOKUP($D3,seznam!$A$2:$F$5009,3,FALSE)) -> MGC Plzeň | D3: 2503 | E3: =IF(D3=0,"",VLOOKUP($D3,seznam!$A$2:$F$5009,5,FALSE)) -> M | F3: 1
A4: 2 | B4: =IF(D4=0,"",VLOOKUP($D4,seznam!$A$2:$F$5009,2,FALSE)) -> Dočkal Lubomír ml. | C4: =IF(D4=0,"",VLOOKUP($D4,seznam!$A$2:$F$5009,3,FALSE)) -> SKGC Frant. Lázně | D4: 1791 | E4: =IF(D4=0,"",VLOOKUP($D4,seznam!$A$2:$F$5009,5,FALSE)) -> M | F4: 2

Sheet Absolutní-BODY
A1: poř. | B1: st.č. | C1: příjmení | D1: oddíl | E1: reg | F1: vt | G1: kat. | H1: 1 | I1: 2 | J1: 3 | K1: 4 | L1: 5 | M1: 6 | N1: 7 | O1: 8 | P1: Sum | Q1: prům. | R1: r1 | S1: r2 | T1: kol | U1: BODY | V1: =VLOOKUP(1,'typ turnaje'!$B$3:$D$23,2,FALSE) -> Open | X1: SEŘAZENÍ DLE:
A2: =IF(E2=0,"",1) -> 1 | B2: 27 | C2: =IF(E2=0,"",VLOOKUP($E2,seznam!$A$2:$F$5009,2,FALSE)) -> Souček Milan | D2: =IF(E2=0,"",VLOOKUP($E2,seznam!$A$2:$F$5009,3,FALSE)) -> GC 85 Rakovník | E2: 1101 | F2: =IF(E2=0,"",VLOOKUP($E2,seznam!$A$2:$F$5009,4,FALSE)) -> 1 | G2: =IF(E2=0,"",VLOOKUP($E2,seznam!$A$2:$F$5009,5,FALSE)) -> S | H2: 24 | I2: 26 | J2: 21 | K2: 24 | P2: =IF(E2=0,"",SUM(H2:O2)) -> 95 | Q2: =IF(E2=0,"",+P2/COUNT(H2:O2)) -> 23.75 | R2: =IF(E2=0,"",MAX($H2:$O2)-MIN($H2:$O2)) -> 5 | S2: =IF(E2=0,"",LARGE($H2:$O2,2)-SMALL($H2:$O2,2)) -> 0 | T2: =IF(E2=0,"",+COUNT(H2:O2)) -> 4 | U2: =IF(E2=0,"",IF(ROUND('typ turnaje'!$G$24+(+$V$3-$Q2)/'typ turnaje'!$H$24,0)>0,ROUND('typ turnaje'!$G$24+(+$V$3-$Q2)/'typ turnaje'!$H$24,0),0)) -> 67 | V2: =VLOOKUP(1,'typ turnaje'!$B$3:$D$23,3,FALSE) -> mtg
A3: =IF(E3=0,"",A2+1) -> 2 | B3: 14 | C3: =IF(E3=0,"",VLOOKUP($E3,seznam!$A$2:$F$5009,2,FALSE)) -> Moutvička Ondřej | D3: =IF(E3=0,"",VLOOKUP($E3,seznam!$A$2:$F$5009,3,FALSE)) -> MGC Plzeň | E3: 2503 | F3: =IF(E3=0,"",VLOOKUP($E3,seznam!$A$2:$F$5009,4,FALSE)) -> 2 | G3: =IF(E3=0,"",VLOOKUP($E3,seznam!$A$2:$F$5009,5,FALSE)) -> M | H3: 23 | I3: 23 | J3: 23 | K3: 28 | P3: 97 | Q3: 24.25 | R3: 5 | S3: 0 | T3: 4 | U3: =IF(E3=0,"",IF(ROUND('typ turnaje'!$G$24+(+$V$3-$Q3)/'typ turnaje'!$H$24,0)>0,ROUND('typ turnaje'!$G$24+(+$V$3-$Q3)/'typ turnaje'!$H$24,0),0)) -> 65 | V3: =SUM(INDEX(Q2:Q21,MATCH(A2,A2:A21),1):INDEX(Q2:Q21,MATCH('typ turnaje'!F24,A2:A21),1))/'typ turnaje'!F24 -> 24.41666667
A4: 3 | B4: 20 | C4: =IF(E4=0,"",VLOOKUP($E4,seznam!$A$2:$F$5009,2,FALSE)) -> Dočkal Lubomír ml. | D4: =IF(E4=0,"",VLOOKUP($E4,seznam!$A$2:$F$5009,3,FALSE)) -> SKGC Frant. Lázně | E4: 1791 | F4: =IF(E4=0,"",VLOOKUP($E4,seznam!$A$2:$F$5009,4,FALSE)) -> bez | G4: =IF(E4=0,"",VLOOKUP($E4,seznam!$A$2:$F$5009,5,FALSE)) -> M | H4: 27 | I4: 22 | J4: 24 | K4: 24 | P4: 97 | Q4: 24.25 | R4: 5 | S4: 0 | T4: 4 | U4: =IF(E4=0,"",IF(ROUND('typ turnaje'!$G$24+(+$V$3-$Q4)/'typ turnaje'!$H$24,0)>0,ROUND('typ turnaje'!$G$24+(+$V$3-$Q4)/'typ turnaje'!$H$24,0),0)) -> 65
A5: 4 | B5: 15 | C5: =IF(E5=0,"",VLOOKUP($E5,seznam!$A$2:$F$5009,2,FALSE)) -> Malárik Michal | D5: =IF(E5=0,"",VLOOKUP($E5,seznam!$A$2:$F$5009,3,FALSE)) -> SKGC Frant. Lázně | E5: 3475 | F5: =IF(E5=0,"",VLOOKUP($E5,seznam!$A$2:$F$5009,4,FALSE)) -> 1 | G5: =IF(E5=0,"",VLOOKUP($E5,seznam!$A$2:$F$5009,5,FALSE)) -> J | H5: 26 | I5: 28 | J5: 20 | K5: 24 | P5: 98 | Q5: 24.5 | R5: 8 | S5: 2 | T5: 4 | U5: =IF(E5=0,"",IF(ROUND('typ turnaje'!$G$24+(+$V$3-$Q5)/'typ turnaje'!$H$24,0)>0,ROUND('typ turnaje'!$G$24+(+$V$3-$Q5)/'typ turnaje'!$H$24,0),0)) -> 64
A6: 5 | B6: 12 | C6: =IF(E6=0,"",VLOOKUP($E6,seznam!$A$2:$F$5009,2,FALSE)) -> Hála Jan | D6: =IF(E6=0,"",VLOOKUP($E6,seznam!$A$2:$F$5009,3,FALSE)) -> SKGC Frant. Lázně | E6: 230 | F6: =IF(E6=0,"",VLOOKUP($E6,seznam!$A$2:$F$5009,4,FALSE)) -> M | G6: =IF(E6=0,"",VLOOKUP($E6,seznam!$A$2:$F$5009,5,FALSE)) -> S2 | H6: 25 | I6: 23 | J6: 27 | K6: 24 | P6: 99 | Q6: 24.75 | R6: 4 | S6: 1 | T6: 4 | U6: =IF(E6=0,"",IF(ROUND('typ turnaje'!$G$24+(+$V$3-$Q6)/'typ turnaje'!$H$24,0)>0,ROUND('typ turnaje'!$G$24+(+$V$3-$Q6)/'typ turnaje'!$H$24,0),0)) -> 63
A7: 6 | B7: 2 | C7: =IF(E7=0,"",VLOOKUP($E7,seznam!$A$2:$F$5009,2,FALSE)) -> Dočkalová Jana | D7: =IF(E7=0,"",VLOOKUP($E7,seznam!$A$2:$F$5009,3,FALSE)) -> SKGC Frant. Lázně | E7: 1689 | F7: =IF(E7=0,"",VLOOKUP($E7,seznam!$A$2:$F$5009,4,FALSE)) -> 1 | G7: =IF(E7=0,"",VLOOKUP($E7,seznam!$A$2:$F$5009,5,FALSE)) -> Z | H7: 25 | I7: 28 | J7: 24 | K7: 23 | P7: 100 | Q7: 25 | R7: 5 | S7: 1 | T7: 4 | U7: =IF(E7=0,"",IF(ROUND('typ turnaje'!$G$24+(+$V$3-$Q7)/'typ turnaje'!$H$24,0)>0,ROUND('typ turnaje'!$G$24+(+$V$3-$Q7)/'typ turnaje'!$H$24,0),0)) -> 62
A8: 7 | B8: 4 | C8: =IF(E8=0,"",VLOOKUP($E8,seznam!$A$2:$F$5009,2,FALSE)) -> Míka Jiří | D8: =IF(E8=0,"",VLOOKUP($E8,seznam!$A$2:$F$5009,3,FALSE)) -> MGC Plzeň | E8: 2164 | F8: =IF(E8=0,"",VLOOKUP($E8,seznam!$A$2:$F$5009,4,FALSE)) -> 2 | G8: =IF(E8=0,"",VLOOKUP($E8,seznam!$A$2:$F$5009,5,FALSE)) -> M | H8: 24 | I8: 26 | J8: 25 | K8: 26 | P8: 101 | Q8: 25.25 | R8: 2 | S8: 1 | T8: 4 | U8: =IF(E8=0,"",IF(ROUND('typ turnaje'!$G$24+(+$V$3-$Q8)/'typ turnaje'!$H$24,0)>0,ROUND('typ turnaje'!$G$24+(+$V$3-$Q8)/'typ turnaje'!$H$24,0),0)) -> 61
A9: 8 | B9: 3 | C9: =IF(E9=0,"",VLOOKUP($E9,seznam!$A$2:$F$5009,2,FALSE)) -> Mráz Josef | D9: =IF(E9=0,"",VLOOKUP($E9,seznam!$A$2:$F$5009,3,FALSE)) -> SK DG Chomutov | E9: 408 | F9: =IF(E9=0,"",VLOOKUP($E9,seznam!$A$2:$F$5009,4,FALSE)) -> 3 | G9: =IF(E9=0,"",VLOOKUP($E9,seznam!$A$2:$F$5009,5,FALSE)) -> S | H9: 26 | I9: 24 | J9: 28 | K9: 24 | P9: 102 | Q9: 25.5 | R9: 4 | S9: 2 | T9: 4 | U9: =IF(E9=0,"",IF(ROUND('typ turnaje'!$G$24+(+$V$3-$Q9)/'typ turnaje'!$H$24,0)>0,ROUND('typ turnaje'!$G$24+(+$V$3-$Q9)/'typ turnaje'!$H$24,0),0)) -> 60
A10: 9 | B10: 35 | C10: =IF(E10=0,"",VLOOKUP($E10,seznam!$A$2:$F$5009,2,FALSE)) -> Vitner Václav | D10: =IF(E10=0,"",VLOOKUP($E10,seznam!$A$2:$F$5009,3,FALSE)) -> GC 85 Rakovník | E10: 1134 | F10: =IF(E10=0,"",VLOOKUP($E10,seznam!$A$2:$F$5009,4,FALSE)) -> 2 | G10: =IF(E10=0,"",VLOOKUP($E10,seznam!$A$2:$F$5009,5,FALSE)) -> S | H10: 29 | I10: 24 | J10: 24 | K10: 26 | P10: 103 | Q10: 25.75 | R10: 5 | S10: 2 | T10: 4 | U10: =IF(E10=0,"",IF(ROUND('typ turnaje'!$G$24+(+$V$3-$Q10)/'typ turnaje'!$H$24,0)>0,ROUND('typ turnaje'!$G$24+(+$V$3-$Q10)/'typ turnaje'!$H$24,0),0)) -> 59
A11: 10 | B11: 18 | C11: =IF(E11=0,"",VLOOKUP($E11,seznam!$A$2:$F$5009,2,FALSE)) -> Mandák Josef | D11: =IF(E11=0,"",VLOOKUP($E11,seznam!$A$2:$F$5009,3,FALSE)) -> SK DG Chomutov | E11: 809 | F11: =IF(E11=0,"",VLOOKUP($E11,seznam!$A$2:$F$5009,4,FALSE)) -> 2 | G11: =IF(E11=0,"",VLOOKUP($E11,seznam!$A$2:$F$5009,5,FALSE)) -> S | H11: 24 | I11: 28 | J11: 26 | K11: 26 | P11: 104 | Q11: 26 | R11: 4 | S11: 0 | T11: 4 | U11: =IF(E11=0,"",IF(ROUND('typ turnaje'!$G$24+(+$V$3-$Q11)/'typ turnaje'!$H$24,0)>0,ROUND('typ turnaje'!$G$24+(+$V$3-$Q11)/'typ turnaje'!$H$24,0),0)) -> 58
A12: 11 | B12: 19 | C12: =IF(E12=0,"",VLOOKUP($E12,seznam!$A$2:$F$5009,2,FALSE)) -> Benda Lumír | D12: =IF(E12=0,"",VLOOKUP($E12,seznam!$A$2:$F$5009,3,FALSE)) -> MGC Plzeň | E12: 746 | F12: =IF(E12=0,"",VLOOKUP($E12,seznam!$A$2:$F$5009,4,FALSE)) -> 1 | G12: =IF(E12=0,"",VLOOKUP($E12,seznam!$A$2:$F$5009,5,FALSE)) -> S | H12: 27 | I12: 22 | J12: 28 | K12: 28 | P12: 105 | Q12: 26.25 | R12: 6 | S12: 1 | T12: 4 | U12: =IF(E12=0,"",IF(ROUND('typ turnaje'!$G$24+(+$V$3-$Q12)/'typ turnaje'!$H$24,0)>0,ROUND('typ turnaje'!$G$24+(+$V$3-$Q12)/'typ turnaje'!$H$24,0),0)) -> 57
A13: 12 | B13: 7 | C13: =IF(E13=0,"",VLOOKUP($E13,seznam!$A$2:$F$5009,2,FALSE)) -> Dočkalová Dana | D13: =IF(E13=0,"",VLOOKUP($E13,seznam!$A$2:$F$5009,3,FALSE)) -> SKGC Frant. Lázně | E13: 1388 | F13: =IF(E13=0,"",VLOOKUP($E13,seznam!$A$2:$F$5009,4,FALSE)) -> M | G13: =IF(E13=0,"",VLOOKUP($E13,seznam!$A$2:$F$5009,5,FALSE)) -> Se | H13: 27 | I13: 27 | J13: 26 | K13: 26 | P13: 106 | Q13: 26.5 | R13: 1 | S13: 1 | T13: 4 | U13: =IF(E13=0,"",IF(ROUND('typ turnaje'!$G$24+(+$V$3-$Q13)/'typ turnaje'!$H$24,0)>0,ROUND('typ turnaje'!$G$24+(+$V$3-$Q13)/'typ turnaje'!$H$24,0),0)) -> 56
A14: 13 | B14: 17 | C14: =IF(E14=0,"",VLOOKUP($E14,seznam!$A$2:$F$5009,2,FALSE)) -> Bireš Jan | D14: =IF(E14=0,"",VLOOKUP($E14,seznam!$A$2:$F$5009,3,FALSE)) -> SKGC Frant. Lázně | E14: 652 | F14: =IF(E14=0,"",VLOOKUP($E14,seznam!$A$2:$F$5009,4,FALSE)) -> M | G14: =IF(E14=0,"",VLOOKUP($E14,seznam!$A$2:$F$5009,5,FALSE)) -> S2 | H14: 28 | I14: 27 | J14: 24 | K14: 27 | P14: 106 | Q14: 26.5 | R14: 4 | S14: 0 | T14: 4 | U14: =IF(E14=0,"",IF(ROUND('typ turnaje'!$G$24+(+$V$3-$Q14)/'typ turnaje'!$H$24,0)>0,ROUND('typ turnaje'!$G$24+(+$V$3-$Q14)/'typ turnaje'!$H$24,0),0)) -> 56
A15: 14 | B15: 22 | C15: =IF(E15=0,"",VLOOKUP($E15,seznam!$A$2:$F$5009,2,FALSE)) -> Fiedlerová Jaroslava | D15: =IF(E15=0,"",VLOOKUP($E15,seznam!$A$2:$F$5009,3,FALSE)) -> SKGC Frant. Lázně | E15: 1478 | F15: =IF(E15=0,"",VLOOKUP($E15,seznam!$A$2:$F$5009,4,FALSE)) -> M | G15: =IF(E15=0,"",VLOOKUP($E15,seznam!$A$2:$F$5009,5,FALSE)) -> Se | H15: 29 | I15: 26 | J15: 25 | K15: 27 | P15: 107 | Q15: 26.75 | R15: 4 | S15: 1 | T15: 4 | U15: =IF(E15=0,"",IF(ROUND('typ turnaje'!$G$24+(+$V$3-$Q15)/'typ turnaje'!$H$24,0)>0,ROUND('typ turnaje'!$G$24+(+$V$3-$Q15)/'typ turnaje'!$H$24,0),0)) -> 55
A16: 15 | B16: 16 | C16: =IF(E16=0,"",VLOOKUP($E16,seznam!$A$2:$F$5009,2,FALSE)) -> Lisa Miroslav st. | D16: =IF(E16=0,"",VLOOKUP($E16,seznam!$A$2:$F$5009,3,FALSE)) -> SKDG Jesenice | E16: 433 | F16: =IF(E16=0,"",VLOOKUP($E16,seznam!$A$2:$F$5009,4,FALSE)) -> 1 | G16: =IF(E16=0,"",VLOOKUP($E16,seznam!$A$2:$F$5009,5,FALSE)) -> S2 | H16: 27 | I16: 28 | J16: 27 | K16: 26 | P16: 108 | Q16: 27 | R16: 2 | S16: 0 | T16: 4 | U16: =IF(E16=0,"",IF(ROUND('typ turnaje'!$G$24+(+$V$3-$Q16)/'typ turnaje'!$H$24,0)>0,ROUND('typ turnaje'!$G$24+(+$V$3-$Q16)/'typ turnaje'!$H$24,0),0)) -> 54
A17: 16 | B17: 5 | C17: =IF(E17=0,"",VLOOKUP($E17,seznam!$A$2:$F$5009,2,FALSE)) -> Horáček Vlastislav | D17: =IF(E17=0,"",VLOOKUP($E17,seznam!$A$2:$F$5009,3,FALSE)) -> SKGC Frant. Lázně | E17: 233 | F17: =IF(E17=0,"",VLOOKUP($E17,seznam!$A$2:$F$5009,4,FALSE)) -> 4 | G17: =IF(E17=0,"",VLOOKUP($E17,seznam!$A$2:$F$5009,5,FALSE)) -> S | H17: 27 | I17: 28 | J17: 26 | K17: 27 | P17: 108 | Q17: 27 | R17: 2 | S17: 0 | T17: 4 | U17: =IF(E17=0,"",IF(ROUND('typ turnaje'!$G$24+(+$V$3-$Q17)/'typ turnaje'!$H$24,0)>0,ROUND('typ turnaje'!$G$24+(+$V$3-$Q17)/'typ turnaje'!$H$24,0),0)) -> 54
A18: 17 | B18: 42 | C18: =IF(E18=0,"",VLOOKUP($E18,seznam!$A$2:$F$5009,2,FALSE)) -> Vosmíková Petra | D18: =IF(E18=0,"",VLOOKUP($E18,seznam!$A$2:$F$5009,3,FALSE)) -> GC 85 Rakovník | E18: 986 | F18: =IF(E18=0,"",VLOOKUP($E18,seznam!$A$2:$F$5009,4,FALSE)) -> 1 | G18: =IF(E18=0,"",VLOOKUP($E18,seznam!$A$2:$F$5009,5,FALSE)) -> Z | H18: 27 | I18: 28 | J18: 29 | K18: 25 | P18: 109 | Q18: 27.25 | R18: 4 | S18: 1 | T18: 4 | U18: =IF(E18=0,"",IF(ROUND('typ turnaje'!$G$24+(+$V$3-$Q18)/'typ turnaje'!$H$24,0)>0,ROUND('typ turnaje'!$G$24+(+$V$3-$Q18)/'typ turnaje'!$H$24,0),0)) -> 53
A19: 18 | B19: 8 | C19: =IF(E19=0,"",VLOOKUP($E19,seznam!$A$2:$F$5009,2,FALSE)) -> Drozda Zdeněk | D19: =IF(E19=0,"",VLOOKUP($E19,seznam!$A$2:$F$5009,3,FALSE)) -> SK DG Chomutov | E19: 1324 | F19: =IF(E19=0,"",VLOOKUP($E19,seznam!$A$2:$F$5009,4,FALSE)) -> 3 | G19: =IF(E19=0,"",VLOOKUP($E19,seznam!$A$2:$F$5009,5,FALSE)) -> M | H19: 25 | I19: 26 | J19: 30 | K19: 28 | P19: 109 | Q19: 27.25 | R19: 5 | S19: 2 | T19: 4 | U19: =IF(E19=0,"",IF(ROUND('typ turnaje'!$G$24+(+$V$3-$Q19)/'typ turnaje'!$H$24,0)>0,ROUND('typ turnaje'!$G$24+(+$V$3-$Q19)/'typ turnaje'!$H$24,0),0)) -> 53
A20: 19 | B20: 11 | C20: =IF(E20=0,"",VLOOKUP($E20,seznam!$A$2:$F$5009,2,FALSE)) -> Brettlová Jana | D20: =IF(E20=0,"",VLOOKUP($E20,seznam!$A$2:$F$5009,3,FALSE)) -> SKDG Jesenice | E20: 2570 | F20: =IF(E20=0,"",VLOOKUP($E20,seznam!$A$2:$F$5009,4,FALSE)) -> 2 | G20: =IF(E20=0,"",VLOOKUP($E20,seznam!$A$2:$F$5009,5,FALSE)) -> Z | H20: 30 | I20: 26 | J20: 29 | K20: 26 | P20: 111 | Q20: 27.75 | R20: 4 | S20: 3 | T20: 4 | U20: =IF(E20=0,"",IF(ROUND('typ turnaje'!$G$24+(+$V$3-$Q20)/'typ turnaje'!$H$24,0)>0,ROUND('typ turnaje'!$G$24+(+$V$3-$Q20)/'typ turnaje'!$H$24,0),0)) -> 51
A21: 20 | B21: 10 | C21: =IF(E21=0,"",VLOOKUP($E21,seznam!$A$2:$F$5009,2,FALSE)) -> Beran Robert | D21: =IF(E21=0,"",VLOOKUP($E21,seznam!$A$2:$F$5009,3,FALSE)) -> SKGC Frant. Lázně | E21: 1150 | F21: =IF(E21=0,"",VLOOKUP($E21,seznam!$A$2:$F$5009,4,FALSE)) -> 3 | G21: =IF(E21=0,"",VLOOKUP($E21,seznam!$A$2:$F$5009,5,FALSE)) -> S | H21: 31 | I21: 31 | J21: 24 | K21: 26 | P21: 112 | Q21: 28 | R21: 7 | S21: 5 | T21: 4 | U21: =IF(E21=0,"",IF(ROUND('typ turnaje'!$G$24+(+$V$3-$Q21)/'typ turnaje'!$H$24,0)>0,ROUND('typ turnaje'!$G$24+(+$V$3-$Q21)/'typ turnaje'!$H$24,0),0)) -> 50
A22: 21 | B22: 13 | C22: =IF(E22=0,"",VLOOKUP($E22,seznam!$A$2:$F$5009,2,FALSE)) -> Pajkov Mitko | D22: =IF(E22=0,"",VLOOKUP($E22,seznam!$A$2:$F$5009,3,FALSE)) -> SK DG Chomutov | E22: 2318 | F22: =IF(E22=0,"",VLOOKUP($E22,seznam!$A$2:$F$5009,4,FALSE)) -> 3 | G22: =IF(E22=0,"",VLOOKUP($E22,seznam!$A$2:$F$5009,5,FALSE)) -> M | H22: 30 | I22: 26 | J22: 27 | K22: 32 | P22: 115 | Q22: 28.75 | R22: 6 | S22: 3 | T22: 4 | U22: =IF(E22=0,"",IF(ROUND('typ turnaje'!$G$24+(+$V$3-$Q22)/'typ turnaje'!$H$24,0)>0,ROUND('typ turnaje'!$G$24+(+$V$3-$Q22)/'typ turnaje'!$H$24,0),0)) -> 47
A23: 22 | B23: 25 | C23: =IF(E23=0,"",VLOOKUP($E23,seznam!$A$2:$F$5009,2,FALSE)) -> Wolf Jan | D23: =IF(E23=0,"",VLOOKUP($E23,seznam!$A$2:$F$5009,3,FALSE)) -> TJ MG Cheb | E23: 3051 | F23: =IF(E23=0,"",VLOOKUP($E23,seznam!$A$2:$F$5009,4,FALSE)) -> 1 | G23: =IF(E23=0,"",VLOOKUP($E23,seznam!$A$2:$F$5009,5,FALSE)) -> M | H23: 32 | I23: 30 | J23: 28 | K23: 26 | P23: 116 | Q23: 29 | R23: 6 | S23: 2 | T23: 4 | U23: =IF(E23=0,"",IF(ROUND('typ turnaje'!$G$24+(+$V$3-$Q23)/'typ turnaje'!$H$24,0)>0,ROUND('typ turnaje'!$G$24+(+$V$3-$Q23)/'typ turnaje'!$H$24,0),0)) -> 46
A24: 23 | B24: 41 | C24: =IF(E24=0,"",VLOOKUP($E24,seznam!$A$2:$F$5009,2,FALSE)) -> Mansfeld Martin | D24: =IF(E24=0,"",VLOOKUP($E24,seznam!$A$2:$F$5009,3,FALSE)) -> TJ MG Cheb | E24: 2403 | F24: =IF(E24=0,"",VLOOKUP($E24,seznam!$A$2:$F$5009,4,FALSE)) -> 4 | G24: =IF(E24=0,"",VLOOKUP($E24,seznam!$A$2:$F$5009,5,FALSE)) -> M | H24: 31 | I24: 34 | J24: 27 | K24: 24 | P24: 116 | Q24: 29 | R24: 10 | S24: 4 | T24: 4 | U24: =IF(E24=0,"",IF(ROUND('typ turnaje'!$G$24+(+$V$3-$Q24)/'typ turnaje'!$H$24,0)>0,ROUND('typ turnaje'!$G$24+(+$V$3-$Q24)/'typ turnaje'!$H$24,0),0)) -> 46
A25: 24 | B25: 40 | C25: =IF(E25=0,"",VLOOKUP($E25,seznam!$A$2:$F$5009,2,FALSE)) -> Luxa Radek | D25: =IF(E25=0,"",VLOOKUP($E25,seznam!$A$2:$F$5009,3,FALSE)) -> GC 85 Rakovník | E25: 3066 | F25: =IF(E25=0,"",VLOOKUP($E25,seznam!$A$2:$F$5009,4,FALSE)) -> 2 | G25: =IF(E25=0,"",VLOOKUP($E25,seznam!$A$2:$F$5009,5,FALSE)) -> M | H25: 31 | I25: 29 | J25: 29 | K25: 28 | P25: 117 | Q25: 29.25 | R25: 3 | S25: 0 | T25: 4 | U25: =IF(E25=0,"",IF(ROUND('typ turnaje'!$G$24+(+$V$3-$Q25)/'typ turnaje'!$H$24,0)>0,ROUND('typ turnaje'!$G$24+(+$V$3-$Q25)/'typ turnaje'!$H$24,0),0)) -> 45
A26: 25 | B26: 9 | C26: =IF(E26=0,"",VLOOKUP($E26,seznam!$A$2:$F$5009,2,FALSE)) -> Moutvička Jaroslav | D26: =IF(E26=0,"",VLOOKUP($E26,seznam!$A$2:$F$5009,3,FALSE)) -> MGC Plzeň | E26: 2502 | F26: =IF(E26=0,"",VLOOKUP($E26,seznam!$A$2:$F$5009,4,FALSE)) -> 2 | G26: =IF(E26=0,"",VLOOKUP($E26,seznam!$A$2:$F$5009,5,FALSE)) -> S | H26: 28 | I26: 32 | J26: 30 | K26: 27 | P26: 117 | Q26: 29.25 | R26: 5 | S26: 2 | T26: 4 | U26: =IF(E26=0,"",IF(ROUND('typ turnaje'!$G$24+(+$V$3-$Q26)/'typ turnaje'!$H$24,0)>0,ROUND('typ turnaje'!$G$24+(+$V$3-$Q26)/'typ turnaje'!$H$24,0),0)) -> 45
A27: =IF(E27=0,"",A26+1) -> 26 | B27: 38 | C27: =IF(E27=0,"",VLOOKUP($E27,seznam!$A$2:$F$5009,2,FALSE)) -> Kropáček Václav | D27: =IF(E27=0,"",VLOOKUP($E27,seznam!$A$2:$F$5009,3,FALSE)) -> GC 85 Rakovník | E27: 202 | F27: =IF(E27=0,"",VLOOKUP($E27,seznam!$A$2:$F$5009,4,FALSE)) -> 2 | G27: =IF(E27=0,"",VLOOKUP($E27,seznam!$A$2:$F$5009,5,FALSE)) -> S | H27: 28 | I27: 30 | J27: 28 | K27: 33 | P27: 119 | Q27: 29.75 | R27: 5 | S27: 2 | T27: 4 | U27: =IF(E27=0,"",IF(ROUND('typ turnaje'!$G$24+(+$V$3-$Q27)/'typ turnaje'!$H$24,0)>0,ROUND('typ turnaje'!$G$24+(+$V$3-$Q27)/'typ turnaje'!$H$24,0),0)) -> 43
A28: 27 | B28: 1 | C28: =IF(E28=0,"",VLOOKUP($E28,seznam!$A$2:$F$5009,2,FALSE)) -> Gruncl Josef | D28: =IF(E28=0,"",VLOOKUP($E28,seznam!$A$2:$F$5009,3,FALSE)) -> SKDG Jesenice | E28: 1278 | F28: =IF(E28=0,"",VLOOKUP($E28,seznam!$A$2:$F$5009,4,FALSE)) -> 3 | G28: =IF(E28=0,"",VLOOKUP($E28,seznam!$A$2:$F$5009,5,FALSE)) -> S | H28: 29 | I28: 30 | J28: 32 | K28: 31 | P28: 122 | Q28: 30.5 | R28: 3 | S28: 1 | T28: 4 | U28: =IF(E28=0,"",IF(ROUND('typ turnaje'!$G$24+(+$V$3-$Q28)/'typ turnaje'!$H$24,0)>0,ROUND('typ turnaje'!$G$24+(+$V$3-$Q28)/'typ turnaje'!$H$24,0),0)) -> 40
A29: 28 | B29: 30 | C29: =IF(E29=0,"",VLOOKUP($E29,seznam!$A$2:$F$5009,2,FALSE)) -> Fiedler Vladimír | D29: =IF(E29=0,"",VLOOKUP($E29,seznam!$A$2:$F$5009,3,FALSE)) -> SKGC Frant. Lázně | E29: 1416 | F29: =IF(E29=0,"",VLOOKUP($E29,seznam!$A$2:$F$5009,4,FALSE)) -> 2 | G29: =IF(E29=0,"",VLOOKUP($E29,seznam!$A$2:$F$5009,5,FALSE)) -> M | H29: 31 | I29: 29 | J29: 33 | K29: 31 | P29: 124 | Q29: 31 | R29: 4 | S29: 0 | T29: 4 | U29: =IF(E29=0,"",IF(ROUND('typ turnaje'!$G$24+(+$V$3-$Q29)/'typ turnaje'!$H$24,0)>0,ROUND('typ turnaje'!$G$24+(+$V$3-$Q29)/'typ turnaje'!$H$24,0),0)) -> 38
A30: 29 | B30: 6 | C30: =IF(E30=0,"",VLOOKUP($E30,seznam!$A$2:$F$5009,2,FALSE)) -> Wenzl Daniel | D30: =IF(E30=0,"",VLOOKUP($E30,seznam!$A$2:$F$5009,3,FALSE)) -> SKDG Jesenice | E30: 712 | F30: =IF(E30=0,"",VLOOKUP($E30,seznam!$A$2:$F$5009,4,FALSE)) -> 3 | G30: =IF(E30=0,"",VLOOKUP($E30,seznam!$A$2:$F$5009,5,FALSE)) -> S | H30: 28 | I30: 33 | J30: 34 | K30: 29 | P30: 124 | Q30: 31 | R30: 6 | S30: 4 | T30: 4 | U30: =IF(E30=0,"",IF(ROUND('typ turnaje'!$G$24+(+$V$3-$Q30)/'typ turnaje'!$H$24,0)>0,ROUND('typ turnaje'!$G$24+(+$V$3-$Q30)/'typ turnaje'!$H$24,0),0)) -> 38
A31: 30 | B31: 36 | C31: =IF(E31=0,"",VLOOKUP($E31,seznam!$A$2:$F$5009,2,FALSE)) -> Kadlecová Eva | D31: =IF(E31=0,"",VLOOKUP($E31,seznam!$A$2:$F$5009,3,FALSE)) -> TJ MG Cheb | E31: 3535 | F31: =IF(E31=0,"",VLOOKUP($E31,seznam!$A$2:$F$5009,4,FALSE)) -> 4 | G31: =IF(E31=0,"",VLOOKUP($E31,seznam!$A$2:$F$5009,5,FALSE)) -> Z | H31: 33 | I31: 29 | J31: 32 | K31: 31 | P31: 125 | Q31: 31.25 | R31: 4 | S31: 1 | T31: 4 | U31: =IF(E31=0,"",IF(ROUND('typ turnaje'!$G$24+(+$V$3-$Q31)/'typ turnaje'!$H$24,0)>0,ROUND('typ turnaje'!$G$24+(+$V$3-$Q31)/'typ turnaje'!$H$24,0),0)) -> 37
A32: 31 | B32: 28 | C32: =IF(E32=0,"",VLOOKUP($E32,seznam!$A$2:$F$5009,2,FALSE)) -> Kocum Ondřej | D32: =IF(E32=0,"",VLOOKUP($E32,seznam!$A$2:$F$5009,3,FALSE)) -> TJ MG Cheb | E32: 3552 | F32: =IF(E32=0,"",VLOOKUP($E32,seznam!$A$2:$F$5009,4,FALSE)) -> 3 | G32: =IF(E32=0,"",VLOOKUP($E32,seznam!$A$2:$F$5009,5,FALSE)) -> M | H32: 28 | I32: 26 | J32: 37 | K32: 34 | P32: 125 | Q32: 31.25 | R32: 11 | S32: 6 | T32: 4 | U32: =IF(E32=0,"",IF(ROUND('typ turnaje'!$G$24+(+$V$3-$Q32)/'typ turnaje'!$H$24,0)>0,ROUND('typ turnaje'!$G$24+(+$V$3-$Q32)/'typ turnaje'!$H$24,0),0)) -> 37
A33: 32 | B33: 24 | C33: =IF(E33=0,"",VLOOKUP($E33,seznam!$A$2:$F$5009,2,FALSE)) -> Birešová Vlasta | D33: =IF(E33=0,"",VLOOKUP($E33,seznam!$A$2:$F$5009,3,FALSE)) -> SKGC Frant. Lázně | E33: 526 | F33: =IF(E33=0,"",VLOOKUP($E33,seznam!$A$2:$F$5009,4,FALSE)) -> 2 | G33: =IF(E33=0,"",VLOOKUP($E33,seznam!$A$2:$F$5009,5,FALSE)) -> Se | H33: 31 | I33: 34 | J33: 31 | K33: 30 | P33: 126 | Q33: 31.5 | R33: 4 | S33: 0 | T33: 4 | U33: =IF(E33=0,"",IF(ROUND('typ turnaje'!$G$24+(+$V$3-$Q33)/'typ turnaje'!$H$24,0)>0,ROUND('typ turnaje'!$G$24+(+$V$3-$Q33)/'typ turnaje'!$H$24,0),0)) -> 36
A34: 33 | B34: 31 | C34: =IF(E34=0,"",VLOOKUP($E34,seznam!$A$2:$F$5009,2,FALSE)) -> Bláha Milan | D34: =IF(E34=0,"",VLOOKUP($E34,seznam!$A$2:$F$5009,3,FALSE)) -> GC 85 Rakovník | E34: 1099 | F34: =IF(E34=0,"",VLOOKUP($E34,seznam!$A$2:$F$5009,4,FALSE)) -> 2 | G34: =IF(E34=0,"",VLOOKUP($E34,seznam!$A$2:$F$5009,5,FALSE)) -> S | H34: 33 | I34: 28 | J34: 28 | K34: 39 | P34: =IF(E34=0,"",SUM(H34:O34)) -> 128 | Q34: =IF(E34=0,"",+P34/COUNT(H34:O34)) -> 32 | R34: =IF(E34=0,"",MAX($H34:$O34)-MIN($H34:$O34)) -> 11 | S34: =IF(E34=0,"",LARGE($H34:$O34,2)-SMALL($H34:$O34,2)) -> 5 | T34: =IF(E34=0,"",+COUNT(H34:O34)) -> 4 | U34: =IF(E34=0,"",IF(ROUND('typ turnaje'!$G$24+(+$V$3-$Q34)/'typ turnaje'!$H$24,0)>0,ROUND('typ turnaje'!$G$24+(+$V$3-$Q34)/'typ turnaje'!$H$24,0),0)) -> 34
A35: =IF(E35=0,"",A34+1) -> 34 | B35: 39 | C35: =IF(E35=0,"",VLOOKUP($E35,seznam!$A$2:$F$5009,2,FALSE)) -> Hubinger Miroslav | D35: =IF(E35=0,"",VLOOKUP($E35,seznam!$A$2:$F$5009,3,FALSE)) -> MG České údolí Plzeň 3 | E35: 442 | F35: =IF(E35=0,"",VLOOKUP($E35,seznam!$A$2:$F$5009,4,FALSE)) -> 5 | G35: =IF(E35=0,"",VLOOKUP($E35,seznam!$A$2:$F$5009,5,FALSE)) -> S | H35: 30 | I35: 32 | J35: 33 | K35: 34 | P35: 129 | Q35: 32.25 | R35: 4 | S35: 1 | T35: 4 | U35: =IF(E35=0,"",IF(ROUND('typ turnaje'!$G$24+(+$V$3-$Q35)/'typ turnaje'!$H$24,0)>0,ROUND('typ turnaje'!$G$24+(+$V$3-$Q35)/'typ turnaje'!$H$24,0),0)) -> 33
A36: 35 | B36: 23 | C36: =IF(E36=0,"",VLOOKUP($E36,seznam!$A$2:$F$5009,2,FALSE)) -> Kubantová Lucie | D36: =IF(E36=0,"",VLOOKUP($E36,seznam!$A$2:$F$5009,3,FALSE)) -> SK DG Chomutov | E36: 3011 | F36: =IF(E36=0,"",VLOOKUP($E36,seznam!$A$2:$F$5009,4,FALSE)) -> 5 | G36: =IF(E36=0,"",VLOOKUP($E36,seznam!$A$2:$F$5009,5,FALSE)) -> Z | H36: 36 | I36: 34 | J36: 31 | K36: 29 | P36: 130 | Q36: 32.5 | R36: 7 | S36: 3 | T36: 4 | U36: =IF(E36=0,"",IF(ROUND('typ turnaje'!$G$24+(+$V$3-$Q36)/'typ turnaje'!$H$24,0)>0,ROUND('typ turnaje'!$G$24+(+$V$3-$Q36)/'typ turnaje'!$H$24,0),0)) -> 32
A37: 36 | B37: 32 | C37: =IF(E37=0,"",VLOOKUP($E37,seznam!$A$2:$F$5009,2,FALSE)) -> Kadlec Jan | D37: =IF(E37=0,"",VLOOKUP($E37,seznam!$A$2:$F$5009,3,FALSE)) -> TJ MG Cheb | E37: 3536 | F37: =IF(E37=0,"",VLOOKUP($E37,seznam!$A$2:$F$5009,4,FALSE)) -> 2 | G37: =IF(E37=0,"",VLOOKUP($E37,seznam!$A$2:$F$5009,5,FALSE)) -> Jz | H37: 34 | I37: 32 | J37: 34 | K37: 31 | P37: 131 | Q37: 32.75 | R37: 3 | S37: 2 | T37: 4 | U37: =IF(E37=0,"",IF(ROUND('typ turnaje'!$G$24+(+$V$3-$Q37)/'typ turnaje'!$H$24,0)>0,ROUND('typ turnaje'!$G$24+(+$V$3-$Q37)/'typ turnaje'!$H$24,0),0)) -> 31
A38: 37 | B38: 37 | C38: =IF(E38=0,"",VLOOKUP($E38,seznam!$A$2:$F$5009,2,FALSE)) -> Nečekal František st. | D38: =IF(E38=0,"",VLOOKUP($E38,seznam!$A$2:$F$5009,3,FALSE)) -> TJ MG Cheb | E38: 238 | F38: =IF(E38=0,"",VLOOKUP($E38,seznam!$A$2:$F$5009,4,FALSE)) -> 1 | G38: =IF(E38=0,"",VLOOKUP($E38,seznam!$A$2:$F$5009,5,FALSE)) -> S2 | H38: 34 | I38: 28 | J38: 34 | K38: 38 | P38: 134 | Q38: 33.5 | R38: 10 | S38: 0 | T38: 4 | U38: =IF(E38=0,"",IF(ROUND('typ turnaje'!$G$24+(+$V$3-$Q38)/'typ turnaje'!$H$24,0)>0,ROUND('typ turnaje'!$G$24+(+$V$3-$Q38)/'typ turnaje'!$H$24,0),0)) -> 28
A39: 38 | B39: 33 | C39: =IF(E39=0,"",VLOOKUP($E39,seznam!$A$2:$F$5009,2,FALSE)) -> Fiedlerová Jana | D39: =IF(E39=0,"",VLOOKUP($E39,seznam!$A$2:$F$5009,3,FALSE)) -> SKGC Frant. Lázně | E39: 3521 | F39: =IF(E39=0,"",VLOOKUP($E39,seznam!$A$2:$F$5009,4,FALSE)) -> 2 | G39: =IF(E39=0,"",VLOOKUP($E39,seznam!$A$2:$F$5009,5,FALSE)) -> Z | H39: 31 | I39: 37 | J39: 33 | K39: 35 | P39: 136 | Q39: 34 | R39: 6 | S39: 2 | T39: 4 | U39: =IF(E39=0,"",IF(ROUND('typ turnaje'!$G$24+(+$V$3-$Q39)/'typ turnaje'!$H$24,0)>0,ROUND('typ turnaje'!$G$24+(+$V$3-$Q39)/'typ turnaje'!$H$24,0),0)) -> 26
A40: 39 | B40: 34 | C40: =IF(E40=0,"",VLOOKUP($E40,seznam!$A$2:$F$5009,2,FALSE)) -> Kratochvíl Jaroslav | D40: =IF(E40=0,"",VLOOKUP($E40,seznam!$A$2:$F$5009,3,FALSE)) -> SKDG Jesenice | E40: 235 | F40: =IF(E40=0,"",VLOOKUP($E40,seznam!$A$2:$F$5009,4,FALSE)) -> 2 | G40: =IF(E40=0,"",VLOOKUP($E40,seznam!$A$2:$F$5009,5,FALSE)) -> S2 | H40: 33 | I40: 37 | J40: 34 | K40: 33 | P40: 137 | Q40: 34.25 | R40: 4 | S40: 1 | T40: 4 | U40: =IF(E40=0,"",IF(ROUND('typ turnaje'!$G$24+(+$V$3-$Q40)/'typ turnaje'!$H$24,0)>0,ROUND('typ turnaje'!$G$24+(+$V$3-$Q40)/'typ turnaje'!$H$24,0),0)) -> 25
A41: 40 | B41: 21 | C41: =IF(E41=0,"",VLOOKUP($E41,seznam!$A$2:$F$5009,2,FALSE)) -> Cimerman Jan | D41: =IF(E41=0,"",VLOOKUP($E41,seznam!$A$2:$F$5009,3,FALSE)) -> SKDG Jesenice | E41: 2396 | F41: =IF(E41=0,"",VLOOKUP($E41,seznam!$A$2:$F$5009,4,FALSE)) -> 4 | G41: =IF(E41=0,"",VLOOKUP($E41,seznam!$A$2:$F$5009,5,FALSE)) -> M | H41: 30 | I41: 42 | J41: 35 | K41: 31 | P41: 138 | Q41: 34.5 | R41: 12 | S41: 4 | T41: 4 | U41: =IF(E41=0,"",IF(ROUND('typ turnaje'!$G$24+(+$V$3-$Q41)/'typ turnaje'!$H$24,0)>0,ROUND('typ turnaje'!$G$24+(+$V$3-$Q41)/'typ turnaje'!$H$24,0),0)) -> 24
A42: 41 | B42: 29 | C42: =IF(E42=0,"",VLOOKUP($E42,seznam!$A$2:$F$5009,2,FALSE)) -> Zachová Marcela | D42: =IF(E42=0,"",VLOOKUP($E42,seznam!$A$2:$F$5009,3,FALSE)) -> SK DG Chomutov | E42: 2918 | F42: =IF(E42=0,"",VLOOKUP($E42,seznam!$A$2:$F$5009,4,FALSE)) -> 3 | G42: =IF(E42=0,"",VLOOKUP($E42,seznam!$A$2:$F$5009,5,FALSE)) -> Se | H42: 43 | I42: 37 | J42: 28 | K42: 35 | P42: 143 | Q42: 35.75 | R42: 15 | S42: 2 | T42: 4 | U42: =IF(E42=0,"",IF(ROUND('typ turnaje'!$G$24+(+$V$3-$Q42)/'typ turnaje'!$H$24,0)>0,ROUND('typ turnaje'!$G$24+(+$V$3-$Q42)/'typ turnaje'!$H$24,0),0)) -> 19
A43: 42 | B43: 26 | C43: =IF(E43=0,"",VLOOKUP($E43,seznam!$A$2:$F$5009,2,FALSE)) -> Cimerman Jaroslav | D43: =IF(E43=0,"",VLOOKUP($E43,seznam!$A$2:$F$5009,3,FALSE)) -> SKDG Jesenice | E43: 2395 | F43: =IF(E43=0,"",VLOOKUP($E43,seznam!$A$2:$F$5009,4,FALSE)) -> 4 | G43: =IF(E43=0,"",VLOOKUP($E43,seznam!$A$2:$F$5009,5,FALSE)) -> S2 | H43: 39 | I43: 38 | J43: 32 | K43: 39 | P43: 148 | Q43: 37 | R43: 7 | S43: 1 | T43: 4 | U43: =IF(E43=0,"",IF(ROUND('typ turnaje'!$G$24+(+$V$3-$Q43)/'typ turnaje'!$H$24,0)>0,ROUND('typ turnaje'!$G$24+(+$V$3-$Q43)/'typ turnaje'!$H$24,0),0)) -> 14
B44: 43 | C44: =IF(E44=0,"",VLOOKUP($E44,seznam!$A$2:$F$5009,2,FALSE)) ->  | D44: =IF(E44=0,"",VLOOKUP($E44,seznam!$A$2:$F$5009,3,FALSE)) ->  | F44: =IF(E44=0,"",VLOOKUP($E44,seznam!$A$2:$F$5009,4,FALSE)) ->  | G44: =IF(E44=0,"",VLOOKUP($E44,seznam!$A$2:$F$5009,5,FALSE)) ->  | U44: =IF(E44=0,"",IF(ROUND('typ turnaje'!$G$24+(+$V$3-$Q44)/'typ turnaje'!$H$24,0)>0,ROUND('typ turnaje'!$G$24+(+$V$3-$Q44)/'typ turnaje'!$H$24,0),0)) -> 
B45: 44 | C45: =IF(E45=0,"",VLOOKUP($E45,seznam!$A$2:$F$5009,2,FALSE)) ->  | D45: =IF(E45=0,"",VLOOKUP($E45,seznam!$A$2:$F$5009,3,FALSE)) ->  | F45: =IF(E45=0,"",VLOOKUP($E45,seznam!$A$2:$F$5009,4,FALSE)) ->  | G45: =IF(E45=0,"",VLOOKUP($E45,seznam!$A$2:$F$5009,5,FALSE)) ->  | U45: =IF(E45=0,"",IF(ROUND('typ turnaje'!$G$24+(+$V$3-$Q45)/'typ turnaje'!$H$24,0)>0,ROUND('typ turnaje'!$G$24+(+$V$3-$Q45)/'typ turnaje'!$H$24,0),0)) -> 
B46: 45 | C46: =IF(E46=0,"",VLOOKUP($E46,seznam!$A$2:$F$5009,2,FALSE)) ->  | D46: =IF(E46=0,"",VLOOKUP($E46,seznam!$A$2:$F$5009,3,FALSE)) ->  | F46: =IF(E46=0,"",VLOOKUP($E46,seznam!$A$2:$F$5009,4,FALSE)) ->  | G46: =IF(E46=0,"",VLOOKUP($E46,seznam!$A$2:$F$5009,5,FALSE)) ->  | U46: =IF(E46=0,"",IF(ROUND('typ turnaje'!$G$24+(+$V$3-$Q46)/'typ turnaje'!$H$24,0)>0,ROUND('typ turnaje'!$G$24+(+$V$3-$Q46)/'typ turnaje'!$H$24,0),0)) -> 
B47: 46 | C47: =IF(E47=0,"",VLOOKUP($E47,seznam!$A$2:$F$5009,2,FALSE)) ->  | D47: =IF(E47=0,"",VLOOKUP($E47,seznam!$A$2:$F$5009,3,FALSE)) ->  | F47: =IF(E47=0,"",VLOOKUP($E47,seznam!$A$2:$F$5009,4,FALSE)) ->  | G47: =IF(E47=0,"",VLOOKUP($E47,seznam!$A$2:$F$5009,5,FALSE)) ->  | U47: =IF(E47=0,"",IF(ROUND('typ turnaje'!$G$24+(+$V$3-$Q47)/'typ turnaje'!$H$24,0)>0,ROUND('typ turnaje'!$G$24+(+$V$3-$Q47)/'typ turnaje'!$H$24,0),0)) -> 
B48: 47 | C48: =IF(E48=0,"",VLOOKUP($E48,seznam!$A$2:$F$5009,2,FALSE)) ->  | D48: =IF(E48=0,"",VLOOKUP($E48,seznam!$A$2:$F$5009,3,FALSE)) ->  | F48: =IF(E48=0,"",VLOOKUP($E48,seznam!$A$2:$F$5009,4,FALSE)) ->  | G48: =IF(E48=0,"",VLOOKUP($E48,seznam!$A$2:$F$5009,5,FALSE)) ->  | U48: =IF(E48=0,"",IF(ROUND('typ turnaje'!$G$24+(+$V$3-$Q48)/'typ turnaje'!$H$24,0)>0,ROUND('typ turnaje'!$G$24+(+$V$3-$Q48)/'typ turnaje'!$H$24,0),0)) -> 
B49: 48 | C49: =IF(E49=0,"",VLOOKUP($E49,seznam!$A$2:$F$5009,2,FALSE)) ->  | D49: =IF(E49=0,"",VLOOKUP($E49,seznam!$A$2:$F$5009,3,FALSE)) ->  | F49: =IF(E49=0,"",VLOOKUP($E49,seznam!$A$2:$F$5009,4,FALSE)) ->  | G49: =IF(E49=0,"",VLOOKUP($E49,seznam!$A$2:$F$5009,5,FALSE)) ->  | U49: =IF(E49=0,"",IF(ROUND('typ turnaje'!$G$24+(+$V$3-$Q49)/'typ turnaje'!$H$24,0)>0,ROUND('typ turnaje'!$G$24+(+$V$3-$Q49)/'typ turnaje'!$H$24,0),0)) -> 
B50: 49 | C50: =IF(E50=0,"",VLOOKUP($E50,seznam!$A$2:$F$5009,2,FALSE)) ->  | D50: =IF(E50=0,"",VLOOKUP($E50,seznam!$A$2:$F$5009,3,FALSE)) ->  | F50: =IF(E50=0,"",VLOOKUP($E50,seznam!$A$2:$F$5009,4,FALSE)) ->  | G50: =IF(E50=0,"",VLOOKUP($E50,seznam!$A$2:$F$5009,5,FALSE)) ->  | U50: =IF(E50=0,"",IF(ROUND('typ turnaje'!$G$24+(+$V$3-$Q50)/'typ turnaje'!$H$24,0)>0,ROUND('typ turnaje'!$G$24+(+$V$3-$Q50)/'typ turnaje'!$H$24,0),0)) -> 
B51: 50 | C51: =IF(E51=0,"",VLOOKUP($E51,seznam!$A$2:$F$5009,2,FALSE)) ->  | D51: =IF(E51=0,"",VLOOKUP($E51,seznam!$A$2:$F$5009,3,FALSE)) ->  | F51: =IF(E51=0,"",VLOOKUP($E51,seznam!$A$2:$F$5009,4,FALSE)) ->  | G51: =IF(E51=0,"",VLOOKUP($E51,seznam!$A$2:$F$5009,5,FALSE)) ->  | U51: =IF(E51=0,"",IF(ROUND('typ turnaje'!$G$24+(+$V$3-$Q51)/'typ turnaje'!$H$24,0)>0,ROUND('typ turnaje'!$G$24+(+$V$3-$Q51)/'typ turnaje'!$H$24,0),0)) -> 
B52: 51 | C52: =IF(E52=0,"",VLOOKUP($E52,seznam!$A$2:$F$5009,2,FALSE)) ->  | D52: =IF(E52=0,"",VLOOKUP($E52,seznam!$A$2:$F$5009,3,FALSE)) ->  | F52: =IF(E52=0,"",VLOOKUP($E52,seznam!$A$2:$F$5009,4,FALSE)) ->  | G52: =IF(E52=0,"",VLOOKUP($E52,seznam!$A$2:$F$5009,5,FALSE)) ->  | U52: =IF(E52=0,"",IF(ROUND('typ turnaje'!$G$24+(+$V$3-$Q52)/'typ turnaje'!$H$24,0)>0,ROUND('typ turnaje'!$G$24+(+$V$3-$Q52)/'typ turnaje'!$H$24,0),0)) -> 
B53: 52 | C53: =IF(E53=0,"",VLOOKUP($E53,seznam!$A$2:$F$5009,2,FALSE)) ->  | D53: =IF(E53=0,"",VLOOKUP($E53,seznam!$A$2:$F$5009,3,FALSE)) ->  | F53: =IF(E53=0,"",VLOOKUP($E53,seznam!$A$2:$F$5009,4,FALSE)) ->  | G53: =IF(E53=0,"",VLOOKUP($E53,seznam!$A$2:$F$5009,5,FALSE)) ->  | U53: =IF(E53=0,"",IF(ROUND('typ turnaje'!$G$24+(+$V$3-$Q53)/'typ turnaje'!$H$24,0)>0,ROUND('typ turnaje'!$G$24+(+$V$3-$Q53)/'typ turnaje'!$H$24,0),0)) -> 
B54: 53 | C54: =IF(E54=0,"",VLOOKUP($E54,seznam!$A$2:$F$5009,2,FALSE)) ->  | D54: =IF(E54=0,"",VLOOKUP($E54,seznam!$A$2:$F$5009,3,FALSE)) ->  | F54: =IF(E54=0,"",VLOOKUP($E54,seznam!$A$2:$F$5009,4,FALSE)) ->  | G54: =IF(E54=0,"",VLOOKUP($E54,seznam!$A$2:$F$5009,5,FALSE)) ->  | U54: =IF(E54=0,"",IF(ROUND('typ turnaje'!$G$24+(+$V$3-$Q54)/'typ turnaje'!$H$24,0)>0,ROUND('typ turnaje'!$G$24+(+$V$3-$Q54)/'typ turnaje'!$H$24,0),0)) -> 
B55: 54 | C55: =IF(E55=0,"",VLOOKUP($E55,seznam!$A$2:$F$5009,2,FALSE)) ->  | D55: =IF(E55=0,"",VLOOKUP($E55,seznam!$A$2:$F$5009,3,FALSE)) ->  | F55: =IF(E55=0,"",VLOOKUP($E55,seznam!$A$2:$F$5009,4,FALSE)) ->  | G55: =IF(E55=0,"",VLOOKUP($E55,seznam!$A$2:$F$5009,5,FALSE)) ->  | U55: =IF(E55=0,"",IF(ROUND('typ turnaje'!$G$24+(+$V$3-$Q55)/'typ turnaje'!$H$24,0)>0,ROUND('typ turnaje'!$G$24+(+$V$3-$Q55)/'typ turnaje'!$H$24,0),0)) -> 
B56: 55 | C56: =IF(E56=0,"",VLOOKUP($E56,seznam!$A$2:$F$5009,2,FALSE)) ->  | D56: =IF(E56=0,"",VLOOKUP($E56,seznam!$A$2:$F$5009,3,FALSE)) ->  | F56: =IF(E56=0,"",VLOOKUP($E56,seznam!$A$2:$F$5009,4,FALSE)) ->  | G56: =IF(E56=0,"",VLOOKUP($E56,seznam!$A$2:$F$5009,5,FALSE)) ->  | U56: =IF(E56=0,"",IF(ROUND('typ turnaje'!$G$24+(+$V$3-$Q56)/'typ turnaje'!$H$24,0)>0,ROUND('typ turnaje'!$G$24+(+$V$3-$Q56)/'typ turnaje'!$H$24,0),0)) -> 
B57: 56 | C57: =IF(E57=0,"",VLOOKUP($E57,seznam!$A$2:$F$5009,2,FALSE)) ->  | D57: =IF(E57=0,"",VLOOKUP($E57,seznam!$A$2:$F$5009,3,FALSE)) ->  | F57: =IF(E57=0,"",VLOOKUP($E57,seznam!$A$2:$F$5009,4,FALSE)) ->  | G57: =IF(E57=0,"",VLOOKUP($E57,seznam!$A$2:$F$5009,5,FALSE)) ->  | U57: =IF(E57=0,"",IF(ROUND('typ turnaje'!$G$24+(+$V$3-$Q57)/'typ turnaje'!$H$24,0)>0,ROUND('typ turnaje'!$G$24+(+$V$3-$Q57)/'typ turnaje'!$H$24,0),0)) -> 
B58: 57 | C58: =IF(E58=0,"",VLOOKUP($E58,seznam!$A$2:$F$5009,2,FALSE)) ->  | D58: =IF(E58=0,"",VLOOKUP($E58,seznam!$A$2:$F$5009,3,FALSE)) ->  | F58: =IF(E58=0,"",VLOOKUP($E58,seznam!$A$2:$F$5009,4,FALSE)) ->  | G58: =IF(E58=0,"",VLOOKUP($E58,seznam!$A$2:$F$5009,5,FALSE)) ->  | U58: =IF(E58=0,"",IF(ROUND('typ turnaje'!$G$24+(+$V$3-$Q58)/'typ turnaje'!$H$24,0)>0,ROUND('typ turnaje'!$G$24+(+$V$3-$Q58)/'typ turnaje'!$H$24,0),0)) -> 
B59: 58 | C59: =IF(E59=0,"",VLOOKUP($E59,seznam!$A$2:$F$5009,2,FALSE)) ->  | D59: =IF(E59=0,"",VLOOKUP($E59,seznam!$A$2:$F$5009,3,FALSE)) ->  | F59: =IF(E59=0,"",VLOOKUP($E59,seznam!$A$2:$F$5009,4,FALSE)) ->  | G59: =IF(E59=0,"",VLOOKUP($E59,seznam!$A$2:$F$5009,5,FALSE)) ->  | U59: =IF(E59=0,"",IF(ROUND('typ turnaje'!$G$24+(+$V$3-$Q59)/'typ turnaje'!$H$24,0)>0,ROUND('typ turnaje'!$G$24+(+$V$3-$Q59)/'typ turnaje'!$H$24,0),0)) -> 
B60: 59 | C60: =IF(E60=0,"",VLOOKUP($E60,seznam!$A$2:$F$5009,2,FALSE)) ->  | D60: =IF(E60=0,"",VLOOKUP($E60,seznam!$A$2:$F$5009,3,FALSE)) ->  | F60: =IF(E60=0,"",VLOOKUP($E60,seznam!$A$2:$F$5009,4,FALSE)) ->  | G60: =IF(E60=0,"",VLOOKUP($E60,seznam!$A$2:$F$5009,5,FALSE)) ->  | U60: =IF(E60=0,"",IF(ROUND('typ turnaje'!$G$24+(+$V$3-$Q60)/'typ turnaje'!$H$24,0)>0,ROUND('typ turnaje'!$G$24+(+$V$3-$Q60)/'typ turnaje'!$H$24,0),0)) -> 
B61: 60 | C61: =IF(E61=0,"",VLOOKUP($E61,seznam!$A$2:$F$5009,2,FALSE)) ->  | D61: =IF(E61=0,"",VLOOKUP($E61,seznam!$A$2:$F$5009,3,FALSE)) ->  | F61: =IF(E61=0,"",VLOOKUP($E61,seznam!$A$2:$F$5009,4,FALSE)) ->  | G61: =IF(E61=0,"",VLOOKUP($E61,seznam!$A$2:$F$5009,5,FALSE)) ->  | U61: =IF(E61=0,"",IF(ROUND('typ turnaje'!$G$24+(+$V$3-$Q61)/'typ turnaje'!$H$24,0)>0,ROUND('typ turnaje'!$G$24+(+$V$3-$Q61)/'typ turnaje'!$H$24,0),0)) -> 
B62: 61 | C62: =IF(E62=0,"",VLOOKUP($E62,seznam!$A$2:$F$5009,2,FALSE)) ->  | D62: =IF(E62=0,"",VLOOKUP($E62,seznam!$A$2:$F$5009,3,FALSE)) ->  | F62: =IF(E62=0,"",VLOOKUP($E62,seznam!$A$2:$F$5009,4,FALSE)) ->  | G62: =IF(E62=0,"",VLOOKUP($E62,seznam!$A$2:$F$5009,5,FALSE)) ->  | U62: =IF(E62=0,"",IF(ROUND('typ turnaje'!$G$24+(+$V$3-$Q62)/'typ turnaje'!$H$24,0)>0,ROUND('typ turnaje'!$G$24+(+$V$3-$Q62)/'typ turnaje'!$H$24,0),0)) -> 
B63: 62 | C63: =IF(E63=0,"",VLOOKUP($E63,seznam!$A$2:$F$5009,2,FALSE)) ->  | D63: =IF(E63=0,"",VLOOKUP($E63,seznam!$A$2:$F$5009,3,FALSE)) ->  | F63: =IF(E63=0,"",VLOOKUP($E63,seznam!$A$2:$F$5009,4,FALSE)) ->  | G63: =IF(E63=0,"",VLOOKUP($E63,seznam!$A$2:$F$5009,5,FALSE)) ->  | U63: =IF(E63=0,"",IF(ROUND('typ turnaje'!$G$24+(+$V$3-$Q63)/'typ turnaje'!$H$24,0)>0,ROUND('typ turnaje'!$G$24+(+$V$3-$Q63)/'typ turnaje'!$H$24,0),0)) -> 
B64: 63 | C64: =IF(E64=0,"",VLOOKUP($E64,seznam!$A$2:$F$5009,2,FALSE)) ->  | D64: =IF(E64=0,"",VLOOKUP($E64,seznam!$A$2:$F$5009,3,FALSE)) ->  | F64: =IF(E64=0,"",VLOOKUP($E64,seznam!$A$2:$F$5009,4,FALSE)) ->  | G64: =IF(E64=0,"",VLOOKUP($E64,seznam!$A$2:$F$5009,5,FALSE)) ->  | U64: =IF(E64=0,"",IF(ROUND('typ turnaje'!$G$24+(+$V$3-$Q64)/'typ turnaje'!$H$24,0)>0,ROUND('typ turnaje'!$G$24+(+$V$3-$Q64)/'typ turnaje'!$H$24,0),0)) -> 
B65: 64 | C65: =IF(E65=0,"",VLOOKUP($E65,seznam!$A$2:$F$5009,2,FALSE)) ->  | D65: =IF(E65=0,"",VLOOKUP($E65,seznam!$A$2:$F$5009,3,FALSE)) ->  | F65: =IF(E65=0,"",VLOOKUP($E65,seznam!$A$2:$F$5009,4,FALSE)) ->  | G65: =IF(E65=0,"",VLOOKUP($E65,seznam!$A$2:$F$5009,5,FALSE)) ->  | U65: =IF(E65=0,"",IF(ROUND('typ turnaje'!$G$24+(+$V$3-$Q65)/'typ turnaje'!$H$24,0)>0,ROUND('typ turnaje'!$G$24+(+$V$3-$Q65)/'typ turnaje'!$H$24,0),0)) -> 
B66: 65 | C66: =IF(E66=0,"",VLOOKUP($E66,seznam!$A$2:$F$5009,2,FALSE)) ->  | D66: =IF(E66=0,"",VLOOKUP($E66,seznam!$A$2:$F$5009,3,FALSE)) ->  | F66: =IF(E66=0,"",VLOOKUP($E66,seznam!$A$2:$F$5009,4,FALSE)) ->  | G66: =IF(E66=0,"",VLOOKUP($E66,seznam!$A$2:$F$5009,5,FALSE)) ->  | P66: =IF(E66=0,"",SUM(H66:O66)) ->  | Q66: =IF(E66=0,"",+P66/COUNT(H66:O66)) ->  | R66: =IF(E66=0,"",MAX($H66:$O66)-MIN($H66:$O66)) ->  | S66: =IF(E66=0,"",LARGE($H66:$O66,2)-SMALL($H66:$O66,2)) ->  | T66: =IF(E66=0,"",+COUNT(H66:O66)) ->  | U66: =IF(E66=0,"",IF(ROUND('typ turnaje'!$G$24+(+$V$3-$Q66)/'typ turnaje'!$H$24,0)>0,ROUND('typ turnaje'!$G$24+(+$V$3-$Q66)/'typ turnaje'!$H$24,0),0)) -> 
A67: =IF(E67=0,"",A66+1) ->  | B67: 66 | C67: =IF(E67=0,"",VLOOKUP($E67,seznam!$A$2:$F$5009,2,FALSE)) ->  | D67: =IF(E67=0,"",VLOOKUP($E67,seznam!$A$2:$F$5009,3,FALSE)) ->  | F67: =IF(E67=0,"",VLOOKUP($E67,seznam!$A$2:$F$5009,4,FALSE)) ->  | G67: =IF(E67=0,"",VLOOKUP($E67,seznam!$A$2:$F$5009,5,FALSE)) ->  | U67: =IF(E67=0,"",IF(ROUND('typ turnaje'!$G$24+(+$V$3-$Q67)/'typ turnaje'!$H$24,0)>0,ROUND('typ turnaje'!$G$24+(+$V$3-$Q67)/'typ turnaje'!$H$24,0),0)) -> 
B68: 67 | C68: =IF(E68=0,"",VLOOKUP($E68,seznam!$A$2:$F$5009,2,FALSE)) ->  | D68: =IF(E68=0,"",VLOOKUP($E68,seznam!$A$2:$F$5009,3,FALSE)) ->  | F68: =IF(E68=0,"",VLOOKUP($E68,seznam!$A$2:$F$5009,4,FALSE)) ->  | G68: =IF(E68=0,"",VLOOKUP($E68,seznam!$A$2:$F$5009,5,FALSE)) ->  | U68: =IF(E68=0,"",IF(ROUND('typ turnaje'!$G$24+(+$V$3-$Q68)/'typ turnaje'!$H$24,0)>0,ROUND('typ turnaje'!$G$24+(+$V$3-$Q68)/'typ turnaje'!$H$24,0),0)) -> 
B69: 68 | C69: =IF(E69=0,"",VLOOKUP($E69,seznam!$A$2:$F$5009,2,FALSE)) ->  | D69: =IF(E69=0,"",VLOOKUP($E69,seznam!$A$2:$F$5009,3,FALSE)) ->  | F69: =IF(E69=0,"",VLOOKUP($E69,seznam!$A$2:$F$5009,4,FALSE)) ->  | G69: =IF(E69=0,"",VLOOKUP($E69,seznam!$A$2:$F$5009,5,FALSE)) ->  | U69: =IF(E69=0,"",IF(ROUND('typ turnaje'!$G$24+(+$V$3-$Q69)/'typ turnaje'!$H$24,0)>0,ROUND('typ turnaje'!$G$24+(+$V$3-$Q69)/'typ turnaje'!$H$24,0),0)) -> 
B70: 69 | C70: =IF(E70=0,"",VLOOKUP($E70,seznam!$A$2:$F$5009,2,FALSE)) ->  | D70: =IF(E70=0,"",VLOOKUP($E70,seznam!$A$2:$F$5009,3,FALSE)) ->  | F70: =IF(E70=0,"",VLOOKUP($E70,seznam!$A$2:$F$5009,4,FALSE)) ->  | G70: =IF(E70=0,"",VLOOKUP($E70,seznam!$A$2:$F$5009,5,FALSE)) ->  | U70: =IF(E70=0,"",IF(ROUND('typ turnaje'!$G$24+(+$V$3-$Q70)/'typ turnaje'!$H$24,0)>0,ROUND('typ turnaje'!$G$24+(+$V$3-$Q70)/'typ turnaje'!$H$24,0),0)) -> 
B71: 70 | C71: =IF(E71=0,"",VLOOKUP($E71,seznam!$A$2:$F$5009,2,FALSE)) ->  | D71: =IF(E71=0,"",VLOOKUP($E71,seznam!$A$2:$F$5009,3,FALSE)) ->  | F71: =IF(E71=0,"",VLOOKUP($E71,seznam!$A$2:$F$5009,4,FALSE)) ->  | G71: =IF(E71=0,"",VLOOKUP($E71,seznam!$A$2:$F$5009,5,FALSE)) ->  | U71: =IF(E71=0,"",IF(ROUND('typ turnaje'!$G$24+(+$V$3-$Q71)/'typ turnaje'!$H$24,0)>0,ROUND('typ turnaje'!$G$24+(+$V$3-$Q71)/'typ turnaje'!$H$24,0),0)) -> 
B72: 71 | C72: =IF(E72=0,"",VLOOKUP($E72,seznam!$A$2:$F$5009,2,FALSE)) ->  | D72: =IF(E72=0,"",VLOOKUP($E72,seznam!$A$2:$F$5009,3,FALSE)) ->  | F72: =IF(E72=0,"",VLOOKUP($E72,seznam!$A$2:$F$5009,4,FALSE)) ->  | G72: =IF(E72=0,"",VLOOKUP($E72,seznam!$A$2:$F$5009,5,FALSE)) ->  | U72: =IF(E72=0,"",IF(ROUND('typ turnaje'!$G$24+(+$V$3-$Q72)/'typ turnaje'!$H$24,0)>0,ROUND('typ turnaje'!$G$24+(+$V$3-$Q72)/'typ turnaje'!$H$24,0),0)) -> 
B73: 72 | C73: =IF(E73=0,"",VLOOKUP($E73,seznam!$A$2:$F$5009,2,FALSE)) ->  | D73: =IF(E73=0,"",VLOOKUP($E73,seznam!$A$2:$F$5009,3,FALSE)) ->  | F73: =IF(E73=0,"",VLOOKUP($E73,seznam!$A$2:$F$5009,4,FALSE)) ->  | G73: =IF(E73=0,"",VLOOKUP($E73,seznam!$A$2:$F$5009,5,FALSE)) ->  | U73: =IF(E73=0,"",IF(ROUND('typ turnaje'!$G$24+(+$V$3-$Q73)/'typ turnaje'!$H$24,0)>0,ROUND('typ turnaje'!$G$24+(+$V$3-$Q73)/'typ turnaje'!$H$24,0),0)) -> 
B74: 73 | C74: =IF(E74=0,"",VLOOKUP($E74,seznam!$A$2:$F$5009,2,FALSE)) ->  | D74: =IF(E74=0,"",VLOOKUP($E74,seznam!$A$2:$F$5009,3,FALSE)) ->  | F74: =IF(E74=0,"",VLOOKUP($E74,seznam!$A$2:$F$5009,4,FALSE)) ->  | G74: =IF(E74=0,"",VLOOKUP($E74,seznam!$A$2:$F$5009,5,FALSE)) ->  | U74: =IF(E74=0,"",IF(ROUND('typ turnaje'!$G$24+(+$V$3-$Q74)/'typ turnaje'!$H$24,0)>0,ROUND('typ turnaje'!$G$24+(+$V$3-$Q74)/'typ turnaje'!$H$24,0),0)) -> 
B75: 74 | C75: =IF(E75=0,"",VLOOKUP($E75,seznam!$A$2:$F$5009,2,FALSE)) ->  | D75: =IF(E75=0,"",VLOOKUP($E75,seznam!$A$2:$F$5009,3,FALSE)) ->  | F75: =IF(E75=0,"",VLOOKUP($E75,seznam!$A$2:$F$5009,4,FALSE)) ->  | G75: =IF(E75=0,"",VLOOKUP($E75,seznam!$A$2:$F$5009,5,FALSE)) ->  | U75: =IF(E75=0,"",IF(ROUND('typ turnaje'!$G$24+(+$V$3-$Q75)/'typ turnaje'!$H$24,0)>0,ROUND('typ turnaje'!$G$24+(+$V$3-$Q75)/'typ turnaje'!$H$24,0),0)) -> 
B76: 75 | C76: =IF(E76=0,"",VLOOKUP($E76,seznam!$A$2:$F$5009,2,FALSE)) ->  | D76: =IF(E76=0,"",VLOOKUP($E76,seznam!$A$2:$F$5009,3,FALSE)) ->  | F76: =IF(E76=0,"",VLOOKUP($E76,seznam!$A$2:$F$5009,4,FALSE)) ->  | G76: =IF(E76=0,"",VLOOKUP($E76,seznam!$A$2:$F$5009,5,FALSE)) ->  | U76: =IF(E76=0,"",IF(ROUND('typ turnaje'!$G$24+(+$V$3-$Q76)/'typ turnaje'!$H$24,0)>0,ROUND('typ turnaje'!$G$24+(+$V$3-$Q76)/'typ turnaje'!$H$24,0),0)) -> 
B77: 76 | C77: =IF(E77=0,"",VLOOKUP($E77,seznam!$A$2:$F$5009,2,FALSE)) ->  | D77: =IF(E77=0,"",VLOOKUP($E77,seznam!$A$2:$F$5009,3,FALSE)) ->  | F77: =IF(E77=0,"",VLOOKUP($E77,seznam!$A$2:$F$5009,4,FALSE)) ->  | G77: =IF(E77=0,"",VLOOKUP($E77,seznam!$A$2:$F$5009,5,FALSE)) ->  | U77: =IF(E77=0,"",IF(ROUND('typ turnaje'!$G$24+(+$V$3-$Q77)/'typ turnaje'!$H$24,0)>0,ROUND('typ turnaje'!$G$24+(+$V$3-$Q77)/'typ turnaje'!$H$24,0),0)) -> 
B78: 77 | C78: =IF(E78=0,"",VLOOKUP($E78,seznam!$A$2:$F$5009,2,FALSE)) ->  | D78: =IF(E78=0,"",VLOOKUP($E78,seznam!$A$2:$F$5009,3,FALSE)) ->  | F78: =IF(E78=0,"",VLOOKUP($E78,seznam!$A$2:$F$5009,4,FALSE)) ->  | G78: =IF(E78=0,"",VLOOKUP($E78,seznam!$A$2:$F$5009,5,FALSE)) ->  | U78: =IF(E78=0,"",IF(ROUND('typ turnaje'!$G$24+(+$V$3-$Q78)/'typ turnaje'!$H$24,0)>0,ROUND('typ turnaje'!$G$24+(+$V$3-$Q78)/'typ turnaje'!$H$24,0),0)) -> 
B79: 78 | C79: =IF(E79=0,"",VLOOKUP($E79,seznam!$A$2:$F$5009,2,FALSE)) ->  | D79: =IF(E79=0,"",VLOOKUP($E79,seznam!$A$2:$F$5009,3,FALSE)) ->  | F79: =IF(E79=0,"",VLOOKUP($E79,seznam!$A$2:$F$5009,4,FALSE)) ->  | G79: =IF(E79=0,"",VLOOKUP($E79,seznam!$A$2:$F$5009,5,FALSE)) ->  | U79: =IF(E79=0,"",IF(ROUND('typ turnaje'!$G$24+(+$V$3-$Q79)/'typ turnaje'!$H$24,0)>0,ROUND('typ turnaje'!$G$24+(+$V$3-$Q79)/'typ turnaje'!$H$24,0),0)) -> 
B80: 79 | C80: =IF(E80=0,"",VLOOKUP($E80,seznam!$A$2:$F$5009,2,FALSE)) ->  | D80: =IF(E80=0,"",VLOOKUP($E80,seznam!$A$2:$F$5009,3,FALSE)) ->  | F80: =IF(E80=0,"",VLOOKUP($E80,seznam!$A$2:$F$5009,4,FALSE)) ->  | G80: =IF(E80=0,"",VLOOKUP($E80,seznam!$A$2:$F$5009,5,FALSE)) ->  | U80: =IF(E80=0,"",IF(ROUND('typ turnaje'!$G$24+(+$V$3-$Q80)/'typ turnaje'!$H$24,0)>0,ROUND('typ turnaje'!$G$24+(+$V$3-$Q80)/'typ turnaje'!$H$24,0),0)) -> 
B81: 80 | C81: =IF(E81=0,"",VLOOKUP($E81,seznam!$A$2:$F$5009,2,FALSE)) ->  | D81: =IF(E81=0,"",VLOOKUP($E81,seznam!$A$2:$F$5009,3,FALSE)) ->  | F81: =IF(E81=0,"",VLOOKUP($E81,seznam!$A$2:$F$5009,4,FALSE)) ->  | G81: =IF(E81=0,"",VLOOKUP($E81,seznam!$A$2:$F$5009,5,FALSE)) ->  | U81: =IF(E81=0,"",IF(ROUND('typ turnaje'!$G$24+(+$V$3-$Q81)/'typ turnaje'!$H$24,0)>0,ROUND('typ turnaje'!$G$24+(+$V$3-$Q81)/'typ turnaje'!$H$24,0),0)) -> 
B82: 81 | C82: =IF(E82=0,"",VLOOKUP($E82,seznam!$A$2:$F$5009,2,FALSE)) ->  | D82: =IF(E82=0,"",VLOOKUP($E82,seznam!$A$2:$F$5009,3,FALSE)) ->  | F82: =IF(E82=0,"",VLOOKUP($E82,seznam!$A$2:$F$5009,4,FALSE)) ->  | G82: =IF(E82=0,"",VLOOKUP($E82,seznam!$A$2:$F$5009,5,FALSE)) ->  | U82: =IF(E82=0,"",IF(ROUND('typ turnaje'!$G$24+(+$V$3-$Q82)/'typ turnaje'!$H$24,0)>0,ROUND('typ turnaje'!$G$24+(+$V$3-$Q82)/'typ turnaje'!$H$24,0),0)) -> 
B83: 82 | C83: =IF(E83=0,"",VLOOKUP($E83,seznam!$A$2:$F$5009,2,FALSE)) ->  | D83: =IF(E83=0,"",VLOOKUP($E83,seznam!$A$2:$F$5009,3,FALSE)) ->  | F83: =IF(E83=0,"",VLOOKUP($E83,seznam!$A$2:$F$5009,4,FALSE)) ->  | G83: =IF(E83=0,"",VLOOKUP($E83,seznam!$A$2:$F$5009,5,FALSE)) ->  | U83: =IF(E83=0,"",IF(ROUND('typ turnaje'!$G$24+(+$V$3-$Q83)/'typ turnaje'!$H$24,0)>0,ROUND('typ turnaje'!$G$24+(+$V$3-$Q83)/'typ turnaje'!$H$24,0),0)) -> 
B84: 83 | C84: =IF(E84=0,"",VLOOKUP($E84,seznam!$A$2:$F$5009,2,FALSE)) ->  | D84: =IF(E84=0,"",VLOOKUP($E84,seznam!$A$2:$F$5009,3,FALSE)) ->  | F84: =IF(E84=0,"",VLOOKUP($E84,seznam!$A$2:$F$5009,4,FALSE)) ->  | G84: =IF(E84=0,"",VLOOKUP($E84,seznam!$A$2:$F$5009,5,FALSE)) ->  | U84: =IF(E84=0,"",IF(ROUND('typ turnaje'!$G$24+(+$V$3-$Q84)/'typ turnaje'!$H$24,0)>0,ROUND('typ turnaje'!$G$24+(+$V$3-$Q84)/'typ turnaje'!$H$24,0),0)) -> 
B85: 84 | C85: =IF(E85=0,"",VLOOKUP($E85,seznam!$A$2:$F$5009,2,FALSE)) ->  | D85: =IF(E85=0,"",VLOOKUP($E85,seznam!$A$2:$F$5009,3,FALSE)) ->  | F85: =IF(E85=0,"",VLOOKUP($E85,seznam!$A$2:$F$5009,4,FALSE)) ->  | G85: =IF(E85=0,"",VLOOKUP($E85,seznam!$A$2:$F$5009,5,FALSE)) ->  | U85: =IF(E85=0,"",IF(ROUND('typ turnaje'!$G$24+(+$V$3-$Q85)/'typ turnaje'!$H$24,0)>0,ROUND('typ turnaje'!$G$24+(+$V$3-$Q85)/'typ turnaje'!$H$24,0),0)) -> 
B86: 85 | C86: =IF(E86=0,"",VLOOKUP($E86,seznam!$A$2:$F$5009,2,FALSE)) ->  | D86: =IF(E86=0,"",VLOOKUP($E86,seznam!$A$2:$F$5009,3,FALSE)) ->  | F86: =IF(E86=0,"",VLOOKUP($E86,seznam!$A$2:$F$5009,4,FALSE)) ->  | G86: =IF(E86=0,"",VLOOKUP($E86,seznam!$A$2:$F$5009,5,FALSE)) ->  | U86: =IF(E86=0,"",IF(ROUND('typ turnaje'!$G$24+(+$V$3-$Q86)/'typ turnaje'!$H$24,0)>0,ROUND('typ turnaje'!$G$24+(+$V$3-$Q86)/'typ turnaje'!$H$24,0),0)) -> 
B87: 86 | C87: =IF(E87=0,"",VLOOKUP($E87,seznam!$A$2:$F$5009,2,FALSE)) ->  | D87: =IF(E87=0,"",VLOOKUP($E87,seznam!$A$2:$F$5009,3,FALSE)) ->  | F87: =IF(E87=0,"",VLOOKUP($E87,seznam!$A$2:$F$5009,4,FALSE)) ->  | G87: =IF(E87=0,"",VLOOKUP($E87,seznam!$A$2:$F$5009,5,FALSE)) ->  | U87: =IF(E87=0,"",IF(ROUND('typ turnaje'!$G$24+(+$V$3-$Q87)/'typ turnaje'!$H$24,0)>0,ROUND('typ turnaje'!$G$24+(+$V$3-$Q87)/'typ turnaje'!$H$24,0),0)) -> 
B88: 87 | C88: =IF(E88=0,"",VLOOKUP($E88,seznam!$A$2:$F$5009,2,FALSE)) ->  | D88: =IF(E88=0,"",VLOOKUP($E88,seznam!$A$2:$F$5009,3,FALSE)) ->  | F88: =IF(E88=0,"",VLOOKUP($E88,seznam!$A$2:$F$5009,4,FALSE)) ->  | G88: =IF(E88=0,"",VLOOKUP($E88,seznam!$A$2:$F$5009,5,FALSE)) ->  | U88: =IF(E88=0,"",IF(ROUND('typ turnaje'!$G$24+(+$V$3-$Q88)/'typ turnaje'!$H$24,0)>0,ROUND('typ turnaje'!$G$24+(+$V$3-$Q88)/'typ turnaje'!$H$24,0),0)) -> 
B89: 88 | C89: =IF(E89=0,"",VLOOKUP($E89,seznam!$A$2:$F$5009,2,FALSE)) ->  | D89: =IF(E89=0,"",VLOOKUP($E89,seznam!$A$2:$F$5009,3,FALSE)) ->  | F89: =IF(E89=0,"",VLOOKUP($E89,seznam!$A$2:$F$5009,4,FALSE)) ->  | G89: =IF(E89=0,"",VLOOKUP($E89,seznam!$A$2:$F$5009,5,FALSE)) ->  | U89: =IF(E89=0,"",IF(ROUND('typ turnaje'!$G$24+(+$V$3-$Q89)/'typ turnaje'!$H$24,0)>0,ROUND('typ turnaje'!$G$24+(+$V$3-$Q89)/'typ turnaje'!$H$24,0),0)) -> 
B90: 89 | C90: =IF(E90=0,"",VLOOKUP($E90,seznam!$A$2:$F$5009,2,FALSE)) ->  | D90: =IF(E90=0,"",VLOOKUP($E90,seznam!$A$2:$F$5009,3,FALSE)) ->  | F90: =IF(E90=0,"",VLOOKUP($E90,seznam!$A$2:$F$5009,4,FALSE)) ->  | G90: =IF(E90=0,"",VLOOKUP($E90,seznam!$A$2:$F$5009,5,FALSE)) ->  | U90: =IF(E90=0,"",IF(ROUND('typ turnaje'!$G$24+(+$V$3-$Q90)/'typ turnaje'!$H$24,0)>0,ROUND('typ turnaje'!$G$24+(+$V$3-$Q90)/'typ turnaje'!$H$24,0),0)) -> 
B91: 90 | C91: =IF(E91=0,"",VLOOKUP($E91,seznam!$A$2:$F$5009,2,FALSE)) ->  | D91: =IF(E91=0,"",VLOOKUP($E91,seznam!$A$2:$F$5009,3,FALSE)) ->  | F91: =IF(E91=0,"",VLOOKUP($E91,seznam!$A$2:$F$5009,4,FALSE)) ->  | G91: =IF(E91=0,"",VLOOKUP($E91,seznam!$A$2:$F$5009,5,FALSE)) ->  | U91: =IF(E91=0,"",IF(ROUND('typ turnaje'!$G$24+(+$V$3-$Q91)/'typ turnaje'!$H$24,0)>0,ROUND('typ turnaje'!$G$24+(+$V$3-$Q91)/'typ turnaje'!$H$24,0),0)) -> 
B92: 91 | C92: =IF(E92=0,"",VLOOKUP($E92,seznam!$A$2:$F$5009,2,FALSE)) ->  | D92: =IF(E92=0,"",VLOOKUP($E92,seznam!$A$2:$F$5009,3,FALSE)) ->  | F92: =IF(E92=0,"",VLOOKUP($E92,seznam!$A$2:$F$5009,4,FALSE)) ->  | G92: =IF(E92=0,"",VLOOKUP($E92,seznam!$A$2:$F$5009,5,FALSE)) ->  | U92: =IF(E92=0,"",IF(ROUND('typ turnaje'!$G$24+(+$V$3-$Q92)/'typ turnaje'!$H$24,0)>0,ROUND('typ turnaje'!$G$24+(+$V$3-$Q92)/'typ turnaje'!$H$24,0),0)) -> 
B93: 92 | C93: =IF(E93=0,"",VLOOKUP($E93,seznam!$A$2:$F$5009,2,FALSE)) ->  | D93: =IF(E93=0,"",VLOOKUP($E93,seznam!$A$2:$F$5009,3,FALSE)) ->  | F93: =IF(E93=0,"",VLOOKUP($E93,seznam!$A$2:$F$5009,4,FALSE)) ->  | G93: =IF(E93=0,"",VLOOKUP($E93,seznam!$A$2:$F$5009,5,FALSE)) ->  | U93: =IF(E93=0,"",IF(ROUND('typ turnaje'!$G$24+(+$V$3-$Q93)/'typ turnaje'!$H$24,0)>0,ROUND('typ turnaje'!$G$24+(+$V$3-$Q93)/'typ turnaje'!$H$24,0),0)) -> 
B94: 93 | C94: =IF(E94=0,"",VLOOKUP($E94,seznam!$A$2:$F$5009,2,FALSE)) ->  | D94: =IF(E94=0,"",VLOOKUP($E94,seznam!$A$2:$F$5009,3,FALSE)) ->  | F94: =IF(E94=0,"",VLOOKUP($E94,seznam!$A$2:$F$5009,4,FALSE)) ->  | G94: =IF(E94=0,"",VLOOKUP($E94,seznam!$A$2:$F$5009,5,FALSE)) ->  | U94: =IF(E94=0,"",IF(ROUND('typ turnaje'!$G$24+(+$V$3-$Q94)/'typ turnaje'!$H$24,0)>0,ROUND('typ turnaje'!$G$24+(+$V$3-$Q94)/'typ turnaje'!$H$24,0),0)) -> 
B95: 94 | C95: =IF(E95=0,"",VLOOKUP($E95,seznam!$A$2:$F$5009,2,FALSE)) ->  | D95: =IF(E95=0,"",VLOOKUP($E95,seznam!$A$2:$F$5009,3,FALSE)) ->  | F95: =IF(E95=0,"",VLOOKUP($E95,seznam!$A$2:$F$5009,4,FALSE)) ->  | G95: =IF(E95=0,"",VLOOKUP($E95,seznam!$A$2:$F$5009,5,FALSE)) ->  | U95: =IF(E95=0,"",IF(ROUND('typ turnaje'!$G$24+(+$V$3-$Q95)/'typ turnaje'!$H$24,0)>0,ROUND('typ turnaje'!$G$24+(+$V$3-$Q95)/'typ turnaje'!$H$24,0),0)) -> 
B96: 95 | C96: =IF(E96=0,"",VLOOKUP($E96,seznam!$A$2:$F$5009,2,FALSE)) ->  | D96: =IF(E96=0,"",VLOOKUP($E96,seznam!$A$2:$F$5009,3,FALSE)) ->  | F96: =IF(E96=0,"",VLOOKUP($E96,seznam!$A$2:$F$5009,4,FALSE)) ->  | G96: =IF(E96=0,"",VLOOKUP($E96,seznam!$A$2:$F$5009,5,FALSE)) ->  | U96: =IF(E96=0,"",IF(ROUND('typ turnaje'!$G$24+(+$V$3-$Q96)/'typ turnaje'!$H$24,0)>0,ROUND('typ turnaje'!$G$24+(+$V$3-$Q96)/'typ turnaje'!$H$24,0),0)) -> 
B97: 96 | C97: =IF(E97=0,"",VLOOKUP($E97,seznam!$A$2:$F$5009,2,FALSE)) ->  | D97: =IF(E97=0,"",VLOOKUP($E97,seznam!$A$2:$F$5009,3,FALSE)) ->  | F97: =IF(E97=0,"",VLOOKUP($E97,seznam!$A$2:$F$5009,4,FALSE)) ->  | G97: =IF(E97=0,"",VLOOKUP($E97,seznam!$A$2:$F$5009,5,FALSE)) ->  | U97: =IF(E97=0,"",IF(ROUND('typ turnaje'!$G$24+(+$V$3-$Q97)/'typ turnaje'!$H$24,0)>0,ROUND('typ turnaje'!$G$24+(+$V$3-$Q97)/'typ turnaje'!$H$24,0),0)) -> 
B98: 97 | C98: =IF(E98=0,"",VLOOKUP($E98,seznam!$A$2:$F$5009,2,FALSE)) ->  | D98: =IF(E98=0,"",VLOOKUP($E98,seznam!$A$2:$F$5009,3,FALSE)) ->  | F98: =IF(E98=0,"",VLOOKUP($E98,seznam!$A$2:$F$5009,4,FALSE)) ->  | G98: =IF(E98=0,"",VLOOKUP($E98,seznam!$A$2:$F$5009,5,FALSE)) ->  | P98: =IF(E98=0,"",SUM(H98:O98)) ->  | Q98: =IF(E98=0,"",+P98/COUNT(H98:O98)) ->  | R98: =IF(E98=0,"",MAX($H98:$O98)-MIN($H98:$O98)) ->  | S98: =IF(E98=0,"",LARGE($H98:$O98,2)-SMALL($H98:$O98,2)) ->  | T98: =IF(E98=0,"",+COUNT(H98:O98)) ->  | U98: =IF(E98=0,"",IF(ROUND('typ turnaje'!$G$24+(+$V$3-$Q98)/'typ turnaje'!$H$24,0)>0,ROUND('typ turnaje'!$G$24+(+$V$3-$Q98)/'typ turnaje'!$H$24,0),0)) -> 
A99: =IF(E99=0,"",A98+1) ->  | B99: 98 | C99: =IF(E99=0,"",VLOOKUP($E99,seznam!$A$2:$F$5009,2,FALSE)) ->  | D99: =IF(E99=0,"",VLOOKUP($E99,seznam!$A$2:$F$5009,3,FALSE)) ->  | F99: =IF(E99=0,"",VLOOKUP($E99,seznam!$A$2:$F$5009,4,FALSE)) ->  | G99: =IF(E99=0,"",VLOOKUP($E99,seznam!$A$2:$F$5009,5,FALSE)) ->  | U99: =IF(E99=0,"",IF(ROUND('typ turnaje'!$G$24+(+$V$3-$Q99)/'typ turnaje'!$H$24,0)>0,ROUND('typ turnaje'!$G$24+(+$V$3-$Q99)/'typ turnaje'!$H$24,0),0)) -> 
B100: 99 | C100: =IF(E100=0,"",VLOOKUP($E100,seznam!$A$2:$F$5009,2,FALSE)) ->  | D100: =IF(E100=0,"",VLOOKUP($E100,seznam!$A$2:$F$5009,3,FALSE)) ->  | F100: =IF(E100=0,"",VLOOKUP($E100,seznam!$A$2:$F$5009,4,FALSE)) ->  | G100: =IF(E100=0,"",VLOOKUP($E100,seznam!$A$2:$F$5009,5,FALSE)) ->  | U100: =IF(E100=0,"",IF(ROUND('typ turnaje'!$G$24+(+$V$3-$Q100)/'typ turnaje'!$H$24,0)>0,ROUND('typ turnaje'!$G$24+(+$V$3-$Q100)/'typ turnaje'!$H$24,0),0)) -> 
B101: 100 | C101: =IF(E101=0,"",VLOOKUP($E101,seznam!$A$2:$F$5009,2,FALSE)) ->  | D101: =IF(E101=0,"",VLOOKUP($E101,seznam!$A$2:$F$5009,3,FALSE)) ->  | F101: =IF(E101=0,"",VLOOKUP($E101,seznam!$A$2:$F$5009,4,FALSE)) ->  | G101: =IF(E101=0,"",VLOOKUP($E101,seznam!$A$2:$F$5009,5,FALSE)) ->  | U101: =IF(E101=0,"",IF(ROUND('typ turnaje'!$G$24+(+$V$3-$Q101)/'typ turnaje'!$H$24,0)>0,ROUND('typ turnaje'!$G$24+(+$V$3-$Q101)/'typ turnaje'!$H$24,0),0)) -> 
B102: 101 | C102: =IF(E102=0,"",VLOOKUP($E102,seznam!$A$2:$F$5009,2,FALSE)) ->  | D102: =IF(E102=0,"",VLOOKUP($E102,seznam!$A$2:$F$5009,3,FALSE)) ->  | F102: =IF(E102=0,"",VLOOKUP($E102,seznam!$A$2:$F$5009,4,FALSE)) ->  | G102: =IF(E102=0,"",VLOOKUP($E102,seznam!$A$2:$F$5009,5,FALSE)) ->  | U102: =IF(E102=0,"",IF(ROUND('typ turnaje'!$G$24+(+$V$3-$Q102)/'typ turnaje'!$H$24,0)>0,ROUND('typ turnaje'!$G$24+(+$V$3-$Q102)/'typ turnaje'!$H$24,0),0)) -> 
B103: 102 | C103: =IF(E103=0,"",VLOOKUP($E103,seznam!$A$2:$F$5009,2,FALSE)) ->  | D103: =IF(E103=0,"",VLOOKUP($E103,seznam!$A$2:$F$5009,3,FALSE)) ->  | F103: =IF(E103=0,"",VLOOKUP($E103,seznam!$A$2:$F$5009,4,FALSE)) ->  | G103: =IF(E103=0,"",VLOOKUP($E103,seznam!$A$2:$F$5009,5,FALSE)) ->  | U103: =IF(E103=0,"",IF(ROUND('typ turnaje'!$G$24+(+$V$3-$Q103)/'typ turnaje'!$H$24,0)>0,ROUND('typ turnaje'!$G$24+(+$V$3-$Q103)/'typ turnaje'!$H$24,0),0)) -> 
B104: 103 | C104: =IF(E104=0,"",VLOOKUP($E104,seznam!$A$2:$F$5009,2,FALSE)) ->  | D104: =IF(E104=0,"",VLOOKUP($E104,seznam!$A$2:$F$5009,3,FALSE)) ->  | F104: =IF(E104=0,"",VLOOKUP($E104,seznam!$A$2:$F$5009,4,FALSE)) ->  | G104: =IF(E104=0,"",VLOOKUP($E104,seznam!$A$2:$F$5009,5,FALSE)) ->  | U104: =IF(E104=0,"",IF(ROUND('typ turnaje'!$G$24+(+$V$3-$Q104)/'typ turnaje'!$H$24,0)>0,ROUND('typ turnaje'!$G$24+(+$V$3-$Q104)/'typ turnaje'!$H$24,0),0)) -> 
B105: 104 | C105: =IF(E105=0,"",VLOOKUP($E105,seznam!$A$2:$F$5009,2,FALSE)) ->  | D105: =IF(E105=0,"",VLOOKUP($E105,seznam!$A$2:$F$5009,3,FALSE)) ->  | F105: =IF(E105=0,"",VLOOKUP($E105,seznam!$A$2:$F$5009,4,FALSE)) ->  | G105: =IF(E105=0,"",VLOOKUP($E105,seznam!$A$2:$F$5009,5,FALSE)) ->  | U105: =IF(E105=0,"",IF(ROUND('typ turnaje'!$G$24+(+$V$3-$Q105)/'typ turnaje'!$H$24,0)>0,ROUND('typ turnaje'!$G$24+(+$V$3-$Q105)/'typ turnaje'!$H$24,0),0)) -> 
B106: 105 | C106: =IF(E106=0,"",VLOOKUP($E106,seznam!$A$2:$F$5009,2,FALSE)) ->  | D106: =IF(E106=0,"",VLOOKUP($E106,seznam!$A$2:$F$5009,3,FALSE)) ->  | F106: =IF(E106=0,"",VLOOKUP($E106,seznam!$A$2:$F$5009,4,FALSE)) ->  | G106: =IF(E106=0,"",VLOOKUP($E106,seznam!$A$2:$F$5009,5,FALSE)) ->  | U106: =IF(E106=0,"",IF(ROUND('typ turnaje'!$G$24+(+$V$3-$Q106)/'typ turnaje'!$H$24,0)>0,ROUND('typ turnaje'!$G$24+(+$V$3-$Q106)/'typ turnaje'!$H$24,0),0)) -> 
B107: 106 | C107: =IF(E107=0,"",VLOOKUP($E107,seznam!$A$2:$F$5009,2,FALSE)) ->  | D107: =IF(E107=0,"",VLOOKUP($E107,seznam!$A$2:$F$5009,3,FALSE)) ->  | F107: =IF(E107=0,"",VLOOKUP($E107,seznam!$A$2:$F$5009,4,FALSE)) ->  | G107: =IF(E107=0,"",VLOOKUP($E107,seznam!$A$2:$F$5009,5,FALSE)) ->  | U107: =IF(E107=0,"",IF(ROUND('typ turnaje'!$G$24+(+$V$3-$Q107)/'typ turnaje'!$H$24,0)>0,ROUND('typ turnaje'!$G$24+(+$V$3-$Q107)/'typ turnaje'!$H$24,0),0)) -> 
B108: 107 | C108: =IF(E108=0,"",VLOOKUP($E108,seznam!$A$2:$F$5009,2,FALSE)) ->  | D108: =IF(E108=0,"",VLOOKUP($E108,seznam!$A$2:$F$5009,3,FALSE)) ->  | F108: =IF(E108=0,"",VLOOKUP($E108,seznam!$A$2:$F$5009,4,FALSE)) ->  | G108: =IF(E108=0,"",VLOOKUP($E108,seznam!$A$2:$F$5009,5,FALSE)) ->  | U108: =IF(E108=0,"",IF(ROUND('typ turnaje'!$G$24+(+$V$3-$Q108)/'typ turnaje'!$H$24,0)>0,ROUND('typ turnaje'!$G$24+(+$V$3-$Q108)/'typ turnaje'!$H$24,0),0)) -> 
B109: 108 | C109: =IF(E109=0,"",VLOOKUP($E109,seznam!$A$2:$F$5009,2,FALSE)) ->  | D109: =IF(E109=0,"",VLOOKUP($E109,seznam!$A$2:$F$5009,3,FALSE)) ->  | F109: =IF(E109=0,"",VLOOKUP($E109,seznam!$A$2:$F$5009,4,FALSE)) ->  | G109: =IF(E109=0,"",VLOOKUP($E109,seznam!$A$2:$F$5009,5,FALSE)) ->  | U109: =IF(E109=0,"",IF(ROUND('typ turnaje'!$G$24+(+$V$3-$Q109)/'typ turnaje'!$H$24,0)>0,ROUND('typ turnaje'!$G$24+(+$V$3-$Q109)/'typ turnaje'!$H$24,0),0)) -> 
B110: 109 | C110: =IF(E110=0,"",VLOOKUP($E110,seznam!$A$2:$F$5009,2,FALSE)) ->  | D110: =IF(E110=0,"",VLOOKUP($E110,seznam!$A$2:$F$5009,3,FALSE)) ->  | F110: =IF(E110=0,"",VLOOKUP($E110,seznam!$A$2:$F$5009,4,FALSE)) ->  | G110: =IF(E110=0,"",VLOOKUP($E110,seznam!$A$2:$F$5009,5,FALSE)) ->  | U110: =IF(E110=0,"",IF(ROUND('typ turnaje'!$G$24+(+$V$3-$Q110)/'typ turnaje'!$H$24,0)>0,ROUND('typ turnaje'!$G$24+(+$V$3-$Q110)/'typ turnaje'!$H$24,0),0)) -> 
B111: 110 | C111: =IF(E111=0,"",VLOOKUP($E111,seznam!$A$2:$F$5009,2,FALSE)) ->  | D111: =IF(E111=0,"",VLOOKUP($E111,seznam!$A$2:$F$5009,3,FALSE)) ->  | F111: =IF(E111=0,"",VLOOKUP($E111,seznam!$A$2:$F$5009,4,FALSE)) ->  | G111: =IF(E111=0,"",VLOOKUP($E111,seznam!$A$2:$F$5009,5,FALSE)) ->  | U111: =IF(E111=0,"",IF(ROUND('typ turnaje'!$G$24+(+$V$3-$Q111)/'typ turnaje'!$H$24,0)>0,ROUND('typ turnaje'!$G$24+(+$V$3-$Q111)/'typ turnaje'!$H$24,0),0)) -> 
B112: 111 | C112: =IF(E112=0,"",VLOOKUP($E112,seznam!$A$2:$F$5009,2,FALSE)) ->  | D112: =IF(E112=0,"",VLOOKUP($E112,seznam!$A$2:$F$5009,3,FALSE)) ->  | F112: =IF(E112=0,"",VLOOKUP($E112,seznam!$A$2:$F$5009,4,FALSE)) ->  | G112: =IF(E112=0,"",VLOOKUP($E112,seznam!$A$2:$F$5009,5,FALSE)) ->  | U112: =IF(E112=0,"",IF(ROUND('typ turnaje'!$G$24+(+$V$3-$Q112)/'typ turnaje'!$H$24,0)>0,ROUND('typ turnaje'!$G$24+(+$V$3-$Q112)/'typ turnaje'!$H$24,0),0)) -> 
B113: 112 | C113: =IF(E113=0,"",VLOOKUP($E113,seznam!$A$2:$F$5009,2,FALSE)) ->  | D113: =IF(E113=0,"",VLOOKUP($E113,seznam!$A$2:$F$5009,3,FALSE)) ->  | F113: =IF(E113=0,"",VLOOKUP($E113,seznam!$A$2:$F$5009,4,FALSE)) ->  | G113: =IF(E113=0,"",VLOOKUP($E113,seznam!$A$2:$F$5009,5,FALSE)) ->  | U113: =IF(E113=0,"",IF(ROUND('typ turnaje'!$G$24+(+$V$3-$Q113)/'typ turnaje'!$H$24,0)>0,ROUND('typ turnaje'!$G$24+(+$V$3-$Q113)/'typ turnaje'!$H$24,0),0)) -> 
B114: 113 | C114: =IF(E114=0,"",VLOOKUP($E114,seznam!$A$2:$F$5009,2,FALSE)) ->  | D114: =IF(E114=0,"",VLOOKUP($E114,seznam!$A$2:$F$5009,3,FALSE)) ->  | F114: =IF(E114=0,"",VLOOKUP($E114,seznam!$A$2:$F$5009,4,FALSE)) ->  | G114: =IF(E114=0,"",VLOOKUP($E114,seznam!$A$2:$F$5009,5,FALSE)) ->  | U114: =IF(E114=0,"",IF(ROUND('typ turnaje'!$G$24+(+$V$3-$Q114)/'typ turnaje'!$H$24,0)>0,ROUND('typ turnaje'!$G$24+(+$V$3-$Q114)/'typ turnaje'!$H$24,0),0)) -> 
B115: 114 | C115: =IF(E115=0,"",VLOOKUP($E115,seznam!$A$2:$F$5009,2,FALSE)) ->  | D115: =IF(E115=0,"",VLOOKUP($E115,seznam!$A$2:$F$5009,3,FALSE)) ->  | F115: =IF(E115=0,"",VLOOKUP($E115,seznam!$A$2:$F$5009,4,FALSE)) ->  | G115: =IF(E115=0,"",VLOOKUP($E115,seznam!$A$2:$F$5009,5,FALSE)) ->  | U115: =IF(E115=0,"",IF(ROUND('typ turnaje'!$G$24+(+$V$3-$Q115)/'typ turnaje'!$H$24,0)>0,ROUND('typ turnaje'!$G$24+(+$V$3-$Q115)/'typ turnaje'!$H$24,0),0)) -> 
B116: 115 | C116: =IF(E116=0,"",VLOOKUP($E116,seznam!$A$2:$F$5009,2,FALSE)) ->  | D116: =IF(E116=0,"",VLOOKUP($E116,seznam!$A$2:$F$5009,3,FALSE)) ->  | F116: =IF(E116=0,"",VLOOKUP($E116,seznam!$A$2:$F$5009,4,FALSE)) ->  | G116: =IF(E116=0,"",VLOOKUP($E116,seznam!$A$2:$F$5009,5,FALSE)) ->  | U116: =IF(E116=0,"",IF(ROUND('typ turnaje'!$G$24+(+$V$3-$Q116)/'typ turnaje'!$H$24,0)>0,ROUND('typ turnaje'!$G$24+(+$V$3-$Q116)/'typ turnaje'!$H$24,0),0)) -> 
B117: 116 | C117: =IF(E117=0,"",VLOOKUP($E117,seznam!$A$2:$F$5009,2,FALSE)) ->  | D117: =IF(E117=0,"",VLOOKUP($E117,seznam!$A$2:$F$5009,3,FALSE)) ->  | F117: =IF(E117=0,"",VLOOKUP($E117,seznam!$A$2:$F$5009,4,FALSE)) ->  | G117: =IF(E117=0,"",VLOOKUP($E117,seznam!$A$2:$F$5009,5,FALSE)) ->  | U117: =IF(E117=0,"",IF(ROUND('typ turnaje'!$G$24+(+$V$3-$Q117)/'typ turnaje'!$H$24,0)>0,ROUND('typ turnaje'!$G$24+(+$V$3-$Q117)/'typ turnaje'!$H$24,0),0)) -> 
B118: 117 | C118: =IF(E118=0,"",VLOOKUP($E118,seznam!$A$2:$F$5009,2,FALSE)) ->  | D118: =IF(E118=0,"",VLOOKUP($E118,seznam!$A$2:$F$5009,3,FALSE)) ->  | F118: =IF(E118=0,"",VLOOKUP($E118,seznam!$A$2:$F$5009,4,FALSE)) ->  | G118: =IF(E118=0,"",VLOOKUP($E118,seznam!$A$2:$F$5009,5,FALSE)) ->  | U118: =IF(E118=0,"",IF(ROUND('typ turnaje'!$G$24+(+$V$3-$Q118)/'typ turnaje'!$H$24,0)>0,ROUND('typ turnaje'!$G$24+(+$V$3-$Q118)/'typ turnaje'!$H$24,0),0)) -> 
B119: 118 | C119: =IF(E119=0,"",VLOOKUP($E119,seznam!$A$2:$F$5009,2,FALSE)) ->  | D119: =IF(E119=0,"",VLOOKUP($E119,seznam!$A$2:$F$5009,3,FALSE)) ->  | F119: =IF(E119=0,"",VLOOKUP($E119,seznam!$A$2:$F$5009,4,FALSE)) ->  | G119: =IF(E119=0,"",VLOOKUP($E119,seznam!$A$2:$F$5009,5,FALSE)) ->  | U119: =IF(E119=0,"",IF(ROUND('typ turnaje'!$G$24+(+$V$3-$Q119)/'typ turnaje'!$H$24,0)>0,ROUND('typ turnaje'!$G$24+(+$V$3-$Q119)/'typ turnaje'!$H$24,0),0)) -> 
B120: 119 | C120: =IF(E120=0,"",VLOOKUP($E120,seznam!$A$2:$F$5009,2,FALSE)) ->  | D120: =IF(E120=0,"",VLOOKUP($E120,seznam!$A$2:$F$5009,3,FALSE)) ->  | F120: =IF(E120=0,"",VLOOKUP($E120,seznam!$A$2:$F$5009,4,FALSE)) ->  | G120: =IF(E120=0,"",VLOOKUP($E120,seznam!$A$2:$F$5009,5,FALSE)) ->  | U120: =IF(E120=0,"",IF(ROUND('typ turnaje'!$G$24+(+$V$3-$Q120)/'typ turnaje'!$H$24,0)>0,ROUND('typ turnaje'!$G$24+(+$V$3-$Q120)/'typ turnaje'!$H$24,0),0)) -> 
B121: 120 | C121: =IF(E121=0,"",VLOOKUP($E121,seznam!$A$2:$F$5009,2,FALSE)) ->  | D121: =IF(E121=0,"",VLOOKUP($E121,seznam!$A$2:$F$5009,3,FALSE)) ->  | F121: =IF(E121=0,"",VLOOKUP($E121,seznam!$A$2:$F$5009,4,FALSE)) ->  | G121: =IF(E121=0,"",VLOOKUP($E121,seznam!$A$2:$F$5009,5,FALSE)) ->  | U121: =IF(E121=0,"",IF(ROUND('typ turnaje'!$G$24+(+$V$3-$Q121)/'typ turnaje'!$H$24,0)>0,ROUND('typ turnaje'!$G$24+(+$V$3-$Q121)/'typ turnaje'!$H$24,0),0)) -> 
B122: 121 | C122: =IF(E122=0,"",VLOOKUP($E122,seznam!$A$2:$F$5009,2,FALSE)) ->  | D122: =IF(E122=0,"",VLOOKUP($E122,seznam!$A$2:$F$5009,3,FALSE)) ->  | F122: =IF(E122=0,"",VLOOKUP($E122,seznam!$A$2:$F$5009,4,FALSE)) ->  | G122: =IF(E122=0,"",VLOOKUP($E122,seznam!$A$2:$F$5009,5,FALSE)) ->  | U122: =IF(E122=0,"",IF(ROUND('typ turnaje'!$G$24+(+$V$3-$Q122)/'typ turnaje'!$H$24,0)>0,ROUND('typ turnaje'!$G$24+(+$V$3-$Q122)/'typ turnaje'!$H$24,0),0)) -> 
B123: 122 | C123: =IF(E123=0,"",VLOOKUP($E123,seznam!$A$2:$F$5009,2,FALSE)) ->  | D123: =IF(E123=0,"",VLOOKUP($E123,seznam!$A$2:$F$5009,3,FALSE)) ->  | F123: =IF(E123=0,"",VLOOKUP($E123,seznam!$A$2:$F$5009,4,FALSE)) ->  | G123: =IF(E123=0,"",VLOOKUP($E123,seznam!$A$2:$F$5009,5,FALSE)) ->  | U123: =IF(E123=0,"",IF(ROUND('typ turnaje'!$G$24+(+$V$3-$Q123)/'typ turnaje'!$H$24,0)>0,ROUND('typ turnaje'!$G$24+(+$V$3-$Q123)/'typ turnaje'!$H$24,0),0)) -> 
B124: 123 | C124: =IF(E124=0,"",VLOOKUP($E124,seznam!$A$2:$F$5009,2,FALSE)) ->  | D124: =IF(E124=0,"",VLOOKUP($E124,seznam!$A$2:$F$5009,3,FALSE)) ->  | F124: =IF(E124=0,"",VLOOKUP($E124,seznam!$A$2:$F$5009,4,FALSE)) ->  | G124: =IF(E124=0,"",VLOOKUP($E124,seznam!$A$2:$F$5009,5,FALSE)) ->  | U124: =IF(E124=0,"",IF(ROUND('typ turnaje'!$G$24+(+$V$3-$Q124)/'typ turnaje'!$H$24,0)>0,ROUND('typ turnaje'!$G$24+(+$V$3-$Q124)/'typ turnaje'!$H$24,0),0)) -> 
B125: 124 | C125: =IF(E125=0,"",VLOOKUP($E125,seznam!$A$2:$F$5009,2,FALSE)) ->  | D125: =IF(E125=0,"",VLOOKUP($E125,seznam!$A$2:$F$5009,3,FALSE)) ->  | F125: =IF(E125=0,"",VLOOKUP($E125,seznam!$A$2:$F$5009,4,FALSE)) ->  | G125: =IF(E125=0,"",VLOOKUP($E125,seznam!$A$2:$F$5009,5,FALSE)) ->  | U125: =IF(E125=0,"",IF(ROUND('typ turnaje'!$G$24+(+$V$3-$Q125)/'typ turnaje'!$H$24,0)>0,ROUND('typ turnaje'!$G$24+(+$V$3-$Q125)/'typ turnaje'!$H$24,0),0)) -> 
B126: 125 | C126: =IF(E126=0,"",VLOOKUP($E126,seznam!$A$2:$F$5009,2,FALSE)) ->  | D126: =IF(E126=0,"",VLOOKUP($E126,seznam!$A$2:$F$5009,3,FALSE)) ->  | F126: =IF(E126=0,"",VLOOKUP($E126,seznam!$A$2:$F$5009,4,FALSE)) ->  | G126: =IF(E126=0,"",VLOOKUP($E126,seznam!$A$2:$F$5009,5,FALSE)) ->  | U126: =IF(E126=0,"",IF(ROUND('typ turnaje'!$G$24+(+$V$3-$Q126)/'typ turnaje'!$H$24,0)>0,ROUND('typ turnaje'!$G$24+(+$V$3-$Q126)/'typ turnaje'!$H$24,0),0)) -> 
B127: 126 | C127: =IF(E127=0,"",VLOOKUP($E127,seznam!$A$2:$F$5009,2,FALSE)) ->  | D127: =IF(E127=0,"",VLOOKUP($E127,seznam!$A$2:$F$5009,3,FALSE)) ->  | F127: =IF(E127=0,"",VLOOKUP($E127,seznam!$A$2:$F$5009,4,FALSE)) ->  | G127: =IF(E127=0,"",VLOOKUP($E127,seznam!$A$2:$F$5009,5,FALSE)) ->  | U127: =IF(E127=0,"",IF(ROUND('typ turnaje'!$G$24+(+$V$3-$Q127)/'typ turnaje'!$H$24,0)>0,ROUND('typ turnaje'!$G$24+(+$V$3-$Q127)/'typ turnaje'!$H$24,0),0)) -> 
B128: 127 | C128: =IF(E128=0,"",VLOOKUP($E128,seznam!$A$2:$F$5009,2,FALSE)) ->  | D128: =IF(E128=0,"",VLOOKUP($E128,seznam!$A$2:$F$5009,3,FALSE)) ->  | F128: =IF(E128=0,"",VLOOKUP($E128,seznam!$A$2:$F$5009,4,FALSE)) ->  | G128: =IF(E128=0,"",VLOOKUP($E128,seznam!$A$2:$F$5009,5,FALSE)) ->  | U128: =IF(E128=0,"",IF(ROUND('typ turnaje'!$G$24+(+$V$3-$Q128)/'typ turnaje'!$H$24,0)>0,ROUND('typ turnaje'!$G$24+(+$V$3-$Q128)/'typ turnaje'!$H$24,0),0)) -> 
B129: 128 | C129: =IF(E129=0,"",VLOOKUP($E129,seznam!$A$2:$F$5009,2,FALSE)) ->  | D129: =IF(E129=0,"",VLOOKUP($E129,seznam!$A$2:$F$5009,3,FALSE)) ->  | F129: =IF(E129=0,"",VLOOKUP($E129,seznam!$A$2:$F$5009,4,FALSE)) ->  | G129: =IF(E129=0,"",VLOOKUP($E129,seznam!$A$2:$F$5009,5,FALSE)) ->  | U129: =IF(E129=0,"",IF(ROUND('typ turnaje'!$G$24+(+$V$3-$Q129)/'typ turnaje'!$H$24,0)>0,ROUND('typ turnaje'!$G$24+(+$V$3-$Q129)/'typ turnaje'!$H$24,0),0)) -> 
B130: 129 | C130: =IF(E130=0,"",VLOOKUP($E130,seznam!$A$2:$F$5009,2,FALSE)) ->  | D130: =IF(E130=0,"",VLOOKUP($E130,seznam!$A$2:$F$5009,3,FALSE)) ->  | F130: =IF(E130=0,"",VLOOKUP($E130,seznam!$A$2:$F$5009,4,FALSE)) ->  | G130: =IF(E130=0,"",VLOOKUP($E130,seznam!$A$2:$F$5009,5,FALSE)) ->  | P130: =IF(E130=0,"",SUM(H130:O130)) ->  | Q130: =IF(E130=0,"",+P130/COUNT(H130:O130)) ->  | R130: =IF(E130=0,"",MAX($H130:$O130)-MIN($H130:$O130)) ->  | S130: =IF(E130=0,"",LARGE($H130:$O130,2)-SMALL($H130:$O130,2)) ->  | T130: =IF(E130=0,"",+COUNT(H130:O130)) ->  | U130: =IF(E130=0,"",IF(ROUND('typ turnaje'!$G$24+(+$V$3-$Q130)/'typ turnaje'!$H$24,0)>0,ROUND('typ turnaje'!$G$24+(+$V$3-$Q130)/'typ turnaje'!$H$24,0),0)) -> 
A131: =IF(E131=0,"",A130+1) ->  | B131: 130 | C131: =IF(E131=0,"",VLOOKUP($E131,seznam!$A$2:$F$5009,2,FALSE)) ->  | D131: =IF(E131=0,"",VLOOKUP($E131,seznam!$A$2:$F$5009,3,FALSE)) ->  | F131: =IF(E131=0,"",VLOOKUP($E131,seznam!$A$2:$F$5009,4,FALSE)) ->  | G131: =IF(E131=0,"",VLOOKUP($E131,seznam!$A$2:$F$5009,5,FALSE)) ->  | U131: =IF(E131=0,"",IF(ROUND('typ turnaje'!$G$24+(+$V$3-$Q131)/'typ turnaje'!$H$24,0)>0,ROUND('typ turnaje'!$G$24+(+$V$3-$Q131)/'typ turnaje'!$H$24,0),0)) -> 
B132: 131 | C132: =IF(E132=0,"",VLOOKUP($E132,seznam!$A$2:$F$5009,2,FALSE)) ->  | D132: =IF(E132=0,"",VLOOKUP($E132,seznam!$A$2:$F$5009,3,FALSE)) ->  | F132: =IF(E132=0,"",VLOOKUP($E132,seznam!$A$2:$F$5009,4,FALSE)) ->  | G132: =IF(E132=0,"",VLOOKUP($E132,seznam!$A$2:$F$5009,5,FALSE)) ->  | U132: =IF(E132=0,"",IF(ROUND('typ turnaje'!$G$24+(+$V$3-$Q132)/'typ turnaje'!$H$24,0)>0,ROUND('typ turnaje'!$G$24+(+$V$3-$Q132)/'typ turnaje'!$H$24,0),0)) -> 
B133: 132 | C133: =IF(E133=0,"",VLOOKUP($E133,seznam!$A$2:$F$5009,2,FALSE)) ->  | D133: =IF(E133=0,"",VLOOKUP($E133,seznam!$A$2:$F$5009,3,FALSE)) ->  | F133: =IF(E133=0,"",VLOOKUP($E133,seznam!$A$2:$F$5009,4,FALSE)) ->  | G133: =IF(E133=0,"",VLOOKUP($E133,seznam!$A$2:$F$5009,5,FALSE)) ->  | U133: =IF(E133=0,"",IF(ROUND('typ turnaje'!$G$24+(+$V$3-$Q133)/'typ turnaje'!$H$24,0)>0,ROUND('typ turnaje'!$G$24+(+$V$3-$Q133)/'typ turnaje'!$H$24,0),0)) -> 
B134: 133 | C134: =IF(E134=0,"",VLOOKUP($E134,seznam!$A$2:$F$5009,2,FALSE)) ->  | D134: =IF(E134=0,"",VLOOKUP($E134,seznam!$A$2:$F$5009,3,FALSE)) ->  | F134: =IF(E134=0,"",VLOOKUP($E134,seznam!$A$2:$F$5009,4,FALSE)) ->  | G134: =IF(E134=0,"",VLOOKUP($E134,seznam!$A$2:$F$5009,5,FALSE)) ->  | U134: =IF(E134=0,"",IF(ROUND('typ turnaje'!$G$24+(+$V$3-$Q134)/'typ turnaje'!$H$24,0)>0,ROUND('typ turnaje'!$G$24+(+$V$3-$Q134)/'typ turnaje'!$H$24,0),0)) -> 
B135: 134 | C135: =IF(E135=0,"",VLOOKUP($E135,seznam!$A$2:$F$5009,2,FALSE)) ->  | D135: =IF(E135=0,"",VLOOKUP($E135,seznam!$A$2:$F$5009,3,FALSE)) ->  | F135: =IF(E135=0,"",VLOOKUP($E135,seznam!$A$2:$F$5009,4,FALSE)) ->  | G135: =IF(E135=0,"",VLOOKUP($E135,seznam!$A$2:$F$5009,5,FALSE)) ->  | U135: =IF(E135=0,"",IF(ROUND('typ turnaje'!$G$24+(+$V$3-$Q135)/'typ turnaje'!$H$24,0)>0,ROUND('typ turnaje'!$G$24+(+$V$3-$Q135)/'typ turnaje'!$H$24,0),0)) -> 
B136: 135 | C136: =IF(E136=0,"",VLOOKUP($E136,seznam!$A$2:$F$5009,2,FALSE)) ->  | D136: =IF(E136=0,"",VLOOKUP($E136,seznam!$A$2:$F$5009,3,FALSE)) ->  | F136: =IF(E136=0,"",VLOOKUP($E136,seznam!$A$2:$F$5009,4,FALSE)) ->  | G136: =IF(E136=0,"",VLOOKUP($E136,seznam!$A$2:$F$5009,5,FALSE)) ->  | U136: =IF(E136=0,"",IF(ROUND('typ turnaje'!$G$24+(+$V$3-$Q136)/'typ turnaje'!$H$24,0)>0,ROUND('typ turnaje'!$G$24+(+$V$3-$Q136)/'typ turnaje'!$H$24,0),0)) -> 
B137: 136 | C137: =IF(E137=0,"",VLOOKUP($E137,seznam!$A$2:$F$5009,2,FALSE)) ->  | D137: =IF(E137=0,"",VLOOKUP($E137,seznam!$A$2:$F$5009,3,FALSE)) ->  | F137: =IF(E137=0,"",VLOOKUP($E137,seznam!$A$2:$F$5009,4,FALSE)) ->  | G137: =IF(E137=0,"",VLOOKUP($E137,seznam!$A$2:$F$5009,5,FALSE)) ->  | U137: =IF(E137=0,"",IF(ROUND('typ turnaje'!$G$24+(+$V$3-$Q137)/'typ turnaje'!$H$24,0)>0,ROUND('typ turnaje'!$G$24+(+$V$3-$Q137)/'typ turnaje'!$H$24,0),0)) -> 
B138: 137 | C138: =IF(E138=0,"",VLOOKUP($E138,seznam!$A$2:$F$5009,2,FALSE)) ->  | D138: =IF(E138=0,"",VLOOKUP($E138,seznam!$A$2:$F$5009,3,FALSE)) ->  | F138: =IF(E138=0,"",VLOOKUP($E138,seznam!$A$2:$F$5009,4,FALSE)) ->  | G138: =IF(E138=0,"",VLOOKUP($E138,seznam!$A$2:$F$5009,5,FALSE)) ->  | U138: =IF(E138=0,"",IF(ROUND('typ turnaje'!$G$24+(+$V$3-$Q138)/'typ turnaje'!$H$24,0)>0,ROUND('typ turnaje'!$G$24+(+$V$3-$Q138)/'typ turnaje'!$H$24,0),0)) -> 
B139: 138 | C139: =IF(E139=0,"",VLOOKUP($E139,seznam!$A$2:$F$5009,2,FALSE)) ->  | D139: =IF(E139=0,"",VLOOKUP($E139,seznam!$A$2:$F$5009,3,FALSE)) ->  | F139: =IF(E139=0,"",VLOOKUP($E139,seznam!$A$2:$F$5009,4,FALSE)) ->  | G139: =IF(E139=0,"",VLOOKUP($E139,seznam!$A$2:$F$5009,5,FALSE)) ->  | U139: =IF(E139=0,"",IF(ROUND('typ turnaje'!$G$24+(+$V$3-$Q139)/'typ turnaje'!$H$24,0)>0,ROUND('typ turnaje'!$G$24+(+$V$3-$Q139)/'typ turnaje'!$H$24,0),0)) -> 
B140: 139 | C140: =IF(E140=0,"",VLOOKUP($E140,seznam!$A$2:$F$5009,2,FALSE)) ->  | D140: =IF(E140=0,"",VLOOKUP($E140,seznam!$A$2:$F$5009,3,FALSE)) ->  | F140: =IF(E140=0,"",VLOOKUP($E140,seznam!$A$2:$F$5009,4,FALSE)) ->  | G140: =IF(E140=0,"",VLOOKUP($E140,seznam!$A$2:$F$5009,5,FALSE)) ->  | U140: =IF(E140=0,"",IF(ROUND('typ turnaje'!$G$24+(+$V$3-$Q140)/'typ turnaje'!$H$24,0)>0,ROUND('typ turnaje'!$G$24+(+$V$3-$Q140)/'typ turnaje'!$H$24,0),0)) -> 
B141: 140 | C141: =IF(E141=0,"",VLOOKUP($E141,seznam!$A$2:$F$5009,2,FALSE)) ->  | D141: =IF(E141=0,"",VLOOKUP($E141,seznam!$A$2:$F$5009,3,FALSE)) ->  | F141: =IF(E141=0,"",VLOOKUP($E141,seznam!$A$2:$F$5009,4,FALSE)) ->  | G141: =IF(E141=0,"",VLOOKUP($E141,seznam!$A$2:$F$5009,5,FALSE)) ->  | U141: =IF(E141=0,"",IF(ROUND('typ turnaje'!$G$24+(+$V$3-$Q141)/'typ turnaje'!$H$24,0)>0,ROUND('typ turnaje'!$G$24+(+$V$3-$Q141)/'typ turnaje'!$H$24,0),0)) -> 
B142: 141 | C142: =IF(E142=0,"",VLOOKUP($E142,seznam!$A$2:$F$5009,2,FALSE)) ->  | D142: =IF(E142=0,"",VLOOKUP($E142,seznam!$A$2:$F$5009,3,FALSE)) ->  | F142: =IF(E142=0,"",VLOOKUP($E142,seznam!$A$2:$F$5009,4,FALSE)) ->  | G142: =IF(E142=0,"",VLOOKUP($E142,seznam!$A$2:$F$5009,5,FALSE)) ->  | U142: =IF(E142=0,"",IF(ROUND('typ turnaje'!$G$24+(+$V$3-$Q142)/'typ turnaje'!$H$24,0)>0,ROUND('typ turnaje'!$G$24+(+$V$3-$Q142)/'typ turnaje'!$H$24,0),0)) -> 
B143: 142 | C143: =IF(E143=0,"",VLOOKUP($E143,seznam!$A$2:$F$5009,2,FALSE)) ->  | D143: =IF(E143=0,"",VLOOKUP($E143,seznam!$A$2:$F$5009,3,FALSE)) ->  | F143: =IF(E143=0,"",VLOOKUP($E143,seznam!$A$2:$F$5009,4,FALSE)) ->  | G143: =IF(E143=0,"",VLOOKUP($E143,seznam!$A$2:$F$5009,5,FALSE)) ->  | U143: =IF(E143=0,"",IF(ROUND('typ turnaje'!$G$24+(+$V$3-$Q143)/'typ turnaje'!$H$24,0)>0,ROUND('typ turnaje'!$G$24+(+$V$3-$Q143)/'typ turnaje'!$H$24,0),0)) -> 
B144: 143 | C144: =IF(E144=0,"",VLOOKUP($E144,seznam!$A$2:$F$5009,2,FALSE)) ->  | D144: =IF(E144=0,"",VLOOKUP($E144,seznam!$A$2:$F$5009,3,FALSE)) ->  | F144: =IF(E144=0,"",VLOOKUP($E144,seznam!$A$2:$F$5009,4,FALSE)) ->  | G144: =IF(E144=0,"",VLOOKUP($E144,seznam!$A$2:$F$5009,5,FALSE)) ->  | U144: =IF(E144=0,"",IF(ROUND('typ turnaje'!$G$24+(+$V$3-$Q144)/'typ turnaje'!$H$24,0)>0,ROUND('typ turnaje'!$G$24+(+$V$3-$Q144)/'typ turnaje'!$H$24,0),0)) -> 
B145: 144 | C145: =IF(E145=0,"",VLOOKUP($E145,seznam!$A$2:$F$5009,2,FALSE)) ->  | D145: =IF(E145=0,"",VLOOKUP($E145,seznam!$A$2:$F$5009,3,FALSE)) ->  | F145: =IF(E145=0,"",VLOOKUP($E145,seznam!$A$2:$F$5009,4,FALSE)) ->  | G145: =IF(E145=0,"",VLOOKUP($E145,seznam!$A$2:$F$5009,5,FALSE)) ->  | U145: =IF(E145=0,"",IF(ROUND('typ turnaje'!$G$24+(+$V$3-$Q145)/'typ turnaje'!$H$24,0)>0,ROUND('typ turnaje'!$G$24+(+$V$3-$Q145)/'typ turnaje'!$H$24,0),0)) -> 
B146: 145 | C146: =IF(E146=0,"",VLOOKUP($E146,seznam!$A$2:$F$5009,2,FALSE)) ->  | D146: =IF(E146=0,"",VLOOKUP($E146,seznam!$A$2:$F$5009,3,FALSE)) ->  | F146: =IF(E146=0,"",VLOOKUP($E146,seznam!$A$2:$F$5009,4,FALSE)) ->  | G146: =IF(E146=0,"",VLOOKUP($E146,seznam!$A$2:$F$5009,5,FALSE)) ->  | U146: =IF(E146=0,"",IF(ROUND('typ turnaje'!$G$24+(+$V$3-$Q146)/'typ turnaje'!$H$24,0)>0,ROUND('typ turnaje'!$G$24+(+$V$3-$Q146)/'typ turnaje'!$H$24,0),0)) -> 
B147: 146 | C147: =IF(E147=0,"",VLOOKUP($E147,seznam!$A$2:$F$5009,2,FALSE)) ->  | D147: =IF(E147=0,"",VLOOKUP($E147,seznam!$A$2:$F$5009,3,FALSE)) ->  | F147: =IF(E147=0,"",VLOOKUP($E147,seznam!$A$2:$F$5009,4,FALSE)) ->  | G147: =IF(E147=0,"",VLOOKUP($E147,seznam!$A$2:$F$5009,5,FALSE)) ->  | U147: =IF(E147=0,"",IF(ROUND('typ turnaje'!$G$24+(+$V$3-$Q147)/'typ turnaje'!$H$24,0)>0,ROUND('typ turnaje'!$G$24+(+$V$3-$Q147)/'typ turnaje'!$H$24,0),0)) -> 
B148: 147 | C148: =IF(E148=0,"",VLOOKUP($E148,seznam!$A$2:$F$5009,2,FALSE)) ->  | D148: =IF(E148=0,"",VLOOKUP($E148,seznam!$A$2:$F$5009,3,FALSE)) ->  | F148: =IF(E148=0,"",VLOOKUP($E148,seznam!$A$2:$F$5009,4,FALSE)) ->  | G148: =IF(E148=0,"",VLOOKUP($E148,seznam!$A$2:$F$5009,5,FALSE)) ->  | U148: =IF(E148=0,"",IF(ROUND('typ turnaje'!$G$24+(+$V$3-$Q148)/'typ turnaje'!$H$24,0)>0,ROUND('typ turnaje'!$G$24+(+$V$3-$Q148)/'typ turnaje'!$H$24,0),0)) -> 
B149: 148 | C149: =IF(E149=0,"",VLOOKUP($E149,seznam!$A$2:$F$5009,2,FALSE)) ->  | D149: =IF(E149=0,"",VLOOKUP($E149,seznam!$A$2:$F$5009,3,FALSE)) ->  | F149: =IF(E149=0,"",VLOOKUP($E149,seznam!$A$2:$F$5009,4,FALSE)) ->  | G149: =IF(E149=0,"",VLOOKUP($E149,seznam!$A$2:$F$5009,5,FALSE)) ->  | U149: =IF(E149=0,"",IF(ROUND('typ turnaje'!$G$24+(+$V$3-$Q149)/'typ turnaje'!$H$24,0)>0,ROUND('typ turnaje'!$G$24+(+$V$3-$Q149)/'typ turnaje'!$H$24,0),0)) -> 
B150: 149 | C150: =IF(E150=0,"",VLOOKUP($E150,seznam!$A$2:$F$5009,2,FALSE)) ->  | D150: =IF(E150=0,"",VLOOKUP($E150,seznam!$A$2:$F$5009,3,FALSE)) ->  | F150: =IF(E150=0,"",VLOOKUP($E150,seznam!$A$2:$F$5009,4,FALSE)) ->  | G150: =IF(E150=0,"",VLOOKUP($E150,seznam!$A$2:$F$5009,5,FALSE)) ->  | U150: =IF(E150=0,"",IF(ROUND('typ turnaje'!$G$24+(+$V$3-$Q150)/'typ turnaje'!$H$24,0)>0,ROUND('typ turnaje'!$G$24+(+$V$3-$Q150)/'typ turnaje'!$H$24,0),0)) -> 
B151: 150 | C151: =IF(E151=0,"",VLOOKUP($E151,seznam!$A$2:$F$5009,2,FALSE)) ->  | D151: =IF(E151=0,"",VLOOKUP($E151,seznam!$A$2:$F$5009,3,FALSE)) ->  | F151: =IF(E151=0,"",VLOOKUP($E151,seznam!$A$2:$F$5009,4,FALSE)) ->  | G151: =IF(E151=0,"",VLOOKUP($E151,seznam!$A$2:$F$5009,5,FALSE)) ->  | U151: =IF(E151=0,"",IF(ROUND('typ turnaje'!$G$24+(+$V$3-$Q151)/'typ turnaje'!$H$24,0)>0,ROUND('typ turnaje'!$G$24+(+$V$3-$Q151)/'typ turnaje'!$H$24,0),0)) -> 
B152: 151 | C152: =IF(E152=0,"",VLOOKUP($E152,seznam!$A$2:$F$5009,2,FALSE)) ->  | D152: =IF(E152=0,"",VLOOKUP($E152,seznam!$A$2:$F$5009,3,FALSE)) ->  | F152: =IF(E152=0,"",VLOOKUP($E152,seznam!$A$2:$F$5009,4,FALSE)) ->  | G152: =IF(E152=0,"",VLOOKUP($E152,seznam!$A$2:$F$5009,5,FALSE)) ->  | U152: =IF(E152=0,"",IF(ROUND('typ turnaje'!$G$24+(+$V$3-$Q152)/'typ turnaje'!$H$24,0)>0,ROUND('typ turnaje'!$G$24+(+$V$3-$Q152)/'typ turnaje'!$H$24,0),0)) -> 
B153: 152 | C153: =IF(E153=0,"",VLOOKUP($E153,seznam!$A$2:$F$5009,2,FALSE)) ->  | D153: =IF(E153=0,"",VLOOKUP($E153,seznam!$A$2:$F$5009,3,FALSE)) ->  | F153: =IF(E153=0,"",VLOOKUP($E153,seznam!$A$2:$F$5009,4,FALSE)) ->  | G153: =IF(E153=0,"",VLOOKUP($E153,seznam!$A$2:$F$5009,5,FALSE)) ->  | U153: =IF(E153=0,"",IF(ROUND('typ turnaje'!$G$24+(+$V$3-$Q153)/'typ turnaje'!$H$24,0)>0,ROUND('typ turnaje'!$G$24+(+$V$3-$Q153)/'typ turnaje'!$H$24,0),0)) -> 
B154: 153 | C154: =IF(E154=0,"",VLOOKUP($E154,seznam!$A$2:$F$5009,2,FALSE)) ->  | D154: =IF(E154=0,"",VLOOKUP($E154,seznam!$A$2:$F$5009,3,FALSE)) ->  | F154: =IF(E154=0,"",VLOOKUP($E154,seznam!$A$2:$F$5009,4,FALSE)) ->  | G154: =IF(E154=0,"",VLOOKUP($E154,seznam!$A$2:$F$5009,5,FALSE)) ->  | U154: =IF(E154=0,"",IF(ROUND('typ turnaje'!$G$24+(+$V$3-$Q154)/'typ turnaje'!$H$24,0)>0,ROUND('typ turnaje'!$G$24+(+$V$3-$Q154)/'typ turnaje'!$H$24,0),0)) -> 
B155: 154 | C155: =IF(E155=0,"",VLOOKUP($E155,seznam!$A$2:$F$5009,2,FALSE)) ->  | D155: =IF(E155=0,"",VLOOKUP($E155,seznam!$A$2:$F$5009,3,FALSE)) ->  | F155: =IF(E155=0,"",VLOOKUP($E155,seznam!$A$2:$F$5009,4,FALSE)) ->  | G155: =IF(E155=0,"",VLOOKUP($E155,seznam!$A$2:$F$5009,5,FALSE)) ->  | U155: =IF(E155=0,"",IF(ROUND('typ turnaje'!$G$24+(+$V$3-$Q155)/'typ turnaje'!$H$24,0)>0,ROUND('typ turnaje'!$G$24+(+$V$3-$Q155)/'typ turnaje'!$H$24,0),0)) -> 
B156: 155 | C156: =IF(E156=0,"",VLOOKUP($E156,seznam!$A$2:$F$5009,2,FALSE)) ->  | D156: =IF(E156=0,"",VLOOKUP($E156,seznam!$A$2:$F$5009,3,FALSE)) ->  | F156: =IF(E156=0,"",VLOOKUP($E156,seznam!$A$2:$F$5009,4,FALSE)) ->  | G156: =IF(E156=0,"",VLOOKUP($E156,seznam!$A$2:$F$5009,5,FALSE)) ->  | U156: =IF(E156=0,"",IF(ROUND('typ turnaje'!$G$24+(+$V$3-$Q156)/'typ turnaje'!$H$24,0)>0,ROUND('typ turnaje'!$G$24+(+$V$3-$Q156)/'typ turnaje'!$H$24,0),0)) -> 
B157: 156 | C157: =IF(E157=0,"",VLOOKUP($E157,seznam!$A$2:$F$5009,2,FALSE)) ->  | D157: =IF(E157=0,"",VLOOKUP($E157,seznam!$A$2:$F$5009,3,FALSE)) ->  | F157: =IF(E157=0,"",VLOOKUP($E157,seznam!$A$2:$F$5009,4,FALSE)) ->  | G157: =IF(E157=0,"",VLOOKUP($E157,seznam!$A$2:$F$5009,5,FALSE)) ->  | U157: =IF(E157=0,"",IF(ROUND('typ turnaje'!$G$24+(+$V$3-$Q157)/'typ turnaje'!$H$24,0)>0,ROUND('typ turnaje'!$G$24+(+$V$3-$Q157)/'typ turnaje'!$H$24,0),0)) -> 
B158: 157 | C158: =IF(E158=0,"",VLOOKUP($E158,seznam!$A$2:$F$5009,2,FALSE)) ->  | D158: =IF(E158=0,"",VLOOKUP($E158,seznam!$A$2:$F$5009,3,FALSE)) ->  | F158: =IF(E158=0,"",VLOOKUP($E158,seznam!$A$2:$F$5009,4,FALSE)) ->  | G158: =IF(E158=0,"",VLOOKUP($E158,seznam!$A$2:$F$5009,5,FALSE)) ->  | U158: =IF(E158=0,"",IF(ROUND('typ turnaje'!$G$24+(+$V$3-$Q158)/'typ turnaje'!$H$24,0)>0,ROUND('typ turnaje'!$G$24+(+$V$3-$Q158)/'typ turnaje'!$H$24,0),0)) -> 
B159: 158 | C159: =IF(E159=0,"",VLOOKUP($E159,seznam!$A$2:$F$5009,2,FALSE)) ->  | D159: =IF(E159=0,"",VLOOKUP($E159,seznam!$A$2:$F$5009,3,FALSE)) ->  | F159: =IF(E159=0,"",VLOOKUP($E159,seznam!$A$2:$F$5009,4,FALSE)) ->  | G159: =IF(E159=0,"",VLOOKUP($E159,seznam!$A$2:$F$5009,5,FALSE)) ->  | U159: =IF(E159=0,"",IF(ROUND('typ turnaje'!$G$24+(+$V$3-$Q159)/'typ turnaje'!$H$24,0)>0,ROUND('typ turnaje'!$G$24+(+$V$3-$Q159)/'typ turnaje'!$H$24,0),0)) -> 
B160: 159 | C160: =IF(E160=0,"",VLOOKUP($E160,seznam!$A$2:$F$5009,2,FALSE)) ->  | D160: =IF(E160=0,"",VLOOKUP($E160,seznam!$A$2:$F$5009,3,FALSE)) ->  | F160: =IF(E160=0,"",VLOOKUP($E160,seznam!$A$2:$F$5009,4,FALSE)) ->  | G160: =IF(E160=0,"",VLOOKUP($E160,seznam!$A$2:$F$5009,5,FALSE)) ->  | U160: =IF(E160=0,"",IF(ROUND('typ turnaje'!$G$24+(+$V$3-$Q160)/'typ turnaje'!$H$24,0)>0,ROUND('typ turnaje'!$G$24+(+$V$3-$Q160)/'typ turnaje'!$H$24,0),0)) -> 
B161: 160 | C161: =IF(E161=0,"",VLOOKUP($E161,seznam!$A$2:$F$5009,2,FALSE)) ->  | D161: =IF(E161=0,"",VLOOKUP($E161,seznam!$A$2:$F$5009,3,FALSE)) ->  | F161: =IF(E161=0,"",VLOOKUP($E161,seznam!$A$2:$F$5009,4,FALSE)) ->  | G161: =IF(E161=0,"",VLOOKUP($E161,seznam!$A$2:$F$5009,5,FALSE)) ->  | U161: =IF(E161=0,"",IF(ROUND('typ turnaje'!$G$24+(+$V$3-$Q161)/'typ turnaje'!$H$24,0)>0,ROUND('typ turnaje'!$G$24+(+$V$3-$Q161)/'typ turnaje'!$H$24,0),0)) -> 

Sheet Liga-kolo-M
A1: 4 | B1: .kolo | C1: 2 | E1: liga smíšených družstev | N1: 2012 / 2013
B3: 1. místo | N3: 2. místo | Z3: 3. místo
B4: SK GC Frant.Lázně "A" | C4: reg | D4: 1 | E4: 2 | F4: 3 | G4: 4 | H4: 5 | I4: 6 | J4: 7 | K4: 8 | N4: SK GC Frant.Lázně "B" | O4: reg | P4: 1 | Q4: 2 | R4: 3 | S4: 4 | T4: 5 | U4: 6 | V4: 7 | W4: 8 | Z4: MGC Plzeň | AA4: reg | AB4: 1 | AC4: 2 | AD4: 3 | AE4: 4 | AF4: 5 | AG4: 6 | AH4: 7 | AI4: 8
A5: 1 | B5: Dočkalová Jana | C5: 1689 | D5: =IF($C5=0,"",VLOOKUP($C5,'Absolutní-BODY'!$E$2:$O$161,4,FALSE)) -> 25 | E5: =IF($C5=0,"",VLOOKUP($C5,'Absolutní-BODY'!$E$2:$O$161,5,FALSE)) -> 28 | F5: =IF($C5=0,"",VLOOKUP($C5,'Absolutní-BODY'!$E$2:$O$161,6,FALSE)) -> 24 | G5: =IF($C5=0,"",VLOOKUP($C5,'Absolutní-BODY'!$E$2:$O$161,7,FALSE)) -> 23 | H5: =IF($C5=0,"",VLOOKUP($C5,'Absolutní-BODY'!$E$2:$O$161,8,FALSE)) -> 0 | I5: =IF($C5=0,"",VLOOKUP($C5,'Absolutní-BODY'!$E$2:$O$161,9,FALSE)) -> 0 | J5: =IF($C5=0,"",VLOOKUP($C5,'Absolutní-BODY'!$E$2:$O$161,10,FALSE)) -> 0 | K5: =IF($C5=0,"",VLOOKUP($C5,'Absolutní-BODY'!$E$2:$O$161,11,FALSE)) -> 0 | M5: 1 | N5: =IF(O5=0,"",VLOOKUP($O5,seznam!$A$1:$E$5058,2,FALSE)) -> Horáček Vlastislav | O5: 233 | P5: =IF($O5=0,"",VLOOKUP($O5,'Absolutní-BODY'!$E$2:$O$161,4,FALSE)) -> 27 | Q5: =IF($O5=0,"",VLOOKUP($O5,'Absolutní-BODY'!$E$2:$O$161,5,FALSE)) -> 28 | R5: =IF($O5=0,"",VLOOKUP($O5,'Absolutní-BODY'!$E$2:$O$161,6,FALSE)) -> 26 | S5: =IF($O5=0,"",VLOOKUP($O5,'Absolutní-BODY'!$E$2:$O$161,7,FALSE)) -> 27 | T5: =IF($O5=0,"",VLOOKUP($O5,'Absolutní-BODY'!$E$2:$O$161,8,FALSE)) -> 0 | U5: =IF($O5=0,"",VLOOKUP($O5,'Absolutní-BODY'!$E$2:$O$161,9,FALSE)) -> 0 | V5: =IF($O5=0,"",VLOOKUP($O5,'Absolutní-BODY'!$E$2:$O$161,10,FALSE)) -> 0 | W5: =IF($O5=0,"",VLOOKUP($O5,'Absolutní-BODY'!$E$2:$O$161,11,FALSE)) -> 0 | Y5: 1 | Z5: =IF(AA5=0,"",VLOOKUP($AA5,seznam!$A$1:$E$5058,2,FALSE)) -> Míka Jiří | AA5: 2164 | AB5: =IF($AA5=0,"",VLOOKUP($AA5,'Absolutní-BODY'!$E$2:$O$161,4,FALSE)) -> 24 | AC5: =IF($AA5=0,"",VLOOKUP($AA5,'Absolutní-BODY'!$E$2:$O$161,5,FALSE)) -> 26 | AD5: =IF($AA5=0,"",VLOOKUP($AA5,'Absolutní-BODY'!$E$2:$O$161,6,FALSE)) -> 25 | AE5: =IF($AA5=0,"",VLOOKUP($AA5,'Absolutní-BODY'!$E$2:$O$161,7,FALSE)) -> 26 | AF5: =IF($AA5=0,"",VLOOKUP($AA5,'Absolutní-BODY'!$E$2:$O$161,8,FALSE)) -> 0 | AG5: =IF($AA5=0,"",VLOOKUP($AA5,'Absolutní-BODY'!$E$2:$O$161,9,FALSE)) -> 0 | AH5: =IF($AA5=0,"",VLOOKUP($AA5,'Absolutní-BODY'!$E$2:$O$161,10,FALSE)) -> 0 | AI5: =IF($AA5=0,"",VLOOKUP($AA5,'Absolutní-BODY'!$E$2:$O$161,11,FALSE)) -> 0
A6: 2 | B6: Dočkalová Dana | C6: 1388 | D6: =IF($C6=0,"",VLOOKUP($C6,'Absolutní-BODY'!$E$2:$O$161,4,FALSE)) -> 27 | E6: =IF($C6=0,"",VLOOKUP($C6,'Absolutní-BODY'!$E$2:$O$161,5,FALSE)) -> 27 | F6: =IF($C6=0,"",VLOOKUP($C6,'Absolutní-BODY'!$E$2:$O$161,6,FALSE)) -> 26 | G6: =IF($C6=0,"",VLOOKUP($C6,'Absolutní-BODY'!$E$2:$O$161,7,FALSE)) -> 26 | H6: =IF($C6=0,"",VLOOKUP($C6,'Absolutní-BODY'!$E$2:$O$161,8,FALSE)) -> 0 | I6: =IF($C6=0,"",VLOOKUP($C6,'Absolutní-BODY'!$E$2:$O$161,9,FALSE)) -> 0 | J6: =IF($C6=0,"",VLOOKUP($C6,'Absolutní-BODY'!$E$2:$O$161,10,FALSE)) -> 0 | K6: =IF($C6=0,"",VLOOKUP($C6,'Absolutní-BODY'!$E$2:$O$161,11,FALSE)) -> 0 | M6: 2 | N6: =IF(O6=0,"",VLOOKUP($O6,seznam!$A$1:$E$5058,2,FALSE)) -> Beran Robert | O6: 1150 | P6: =IF($O6=0,"",VLOOKUP($O6,'Absolutní-BODY'!$E$2:$O$161,4,FALSE)) -> 31 | Q6: =IF($O6=0,"",VLOOKUP($O6,'Absolutní-BODY'!$E$2:$O$161,5,FALSE)) -> 31 | R6: =IF($O6=0,"",VLOOKUP($O6,'Absolutní-BODY'!$E$2:$O$161,6,FALSE)) -> 24 | S6: =IF($O6=0,"",VLOOKUP($O6,'Absolutní-BODY'!$E$2:$O$161,7,FALSE)) -> 26 | T6: =IF($O6=0,"",VLOOKUP($O6,'Absolutní-BODY'!$E$2:$O$161,8,FALSE)) -> 0 | U6: =IF($O6=0,"",VLOOKUP($O6,'Absolutní-BODY'!$E$2:$O$161,9,FALSE)) -> 0 | V6: =IF($O6=0,"",VLOOKUP($O6,'Absolutní-BODY'!$E$2:$O$161,10,FALSE)) -> 0 | W6: =IF($O6=0,"",VLOOKUP($O6,'Absolutní-BODY'!$E$2:$O$161,11,FALSE)) -> 0 | Y6: 2 | Z6: =IF(AA6=0,"",VLOOKUP($AA6,seznam!$A$1:$E$5058,2,FALSE)) -> Moutvička Jaroslav | AA6: 2502 | AB6: =IF($AA6=0,"",VLOOKUP($AA6,'Absolutní-BODY'!$E$2:$O$161,4,FALSE)) -> 28 | AC6: =IF($AA6=0,"",VLOOKUP($AA6,'Absolutní-BODY'!$E$2:$O$161,5,FALSE)) -> 32 | AD6: =IF($AA6=0,"",VLOOKUP($AA6,'Absolutní-BODY'!$E$2:$O$161,6,FALSE)) -> 30 | AE6: =IF($AA6=0,"",VLOOKUP($AA6,'Absolutní-BODY'!$E$2:$O$161,7,FALSE)) -> 27 | AF6: =IF($AA6=0,"",VLOOKUP($AA6,'Absolutní-BODY'!$E$2:$O$161,8,FALSE)) -> 0 | AG6: =IF($AA6=0,"",VLOOKUP($AA6,'Absolutní-BODY'!$E$2:$O$161,9,FALSE)) -> 0 | AH6: =IF($AA6=0,"",VLOOKUP($AA6,'Absolutní-BODY'!$E$2:$O$161,10,FALSE)) -> 0 | AI6: =IF($AA6=0,"",VLOOKUP($AA6,'Absolutní-BODY'!$E$2:$O$161,11,FALSE)) -> 0
A7: 3 | B7: Hála Jan | C7: 230 | D7: =IF($C7=0,"",VLOOKUP($C7,'Absolutní-BODY'!$E$2:$O$161,4,FALSE)) -> 25 | E7: =IF($C7=0,"",VLOOKUP($C7,'Absolutní-BODY'!$E$2:$O$161,5,FALSE)) -> 23 | F7: =IF($C7=0,"",VLOOKUP($C7,'Absolutní-BODY'!$E$2:$O$161,6,FALSE)) -> 27 | G7: =IF($C7=0,"",VLOOKUP($C7,'Absolutní-BODY'!$E$2:$O$161,7,FALSE)) -> 24 | H7: =IF($C7=0,"",VLOOKUP($C7,'Absolutní-BODY'!$E$2:$O$161,8,FALSE)) -> 0 | I7: =IF($C7=0,"",VLOOKUP($C7,'Absolutní-BODY'!$E$2:$O$161,9,FALSE)) -> 0 | J7: =IF($C7=0,"",VLOOKUP($C7,'Absolutní-BODY'!$E$2:$O$161,10,FALSE)) -> 0 | K7: =IF($C7=0,"",VLOOKUP($C7,'Absolutní-BODY'!$E$2:$O$161,11,FALSE)) -> 0 | M7: 3 | N7: =IF(O7=0,"",VLOOKUP($O7,seznam!$A$1:$E$5058,2,FALSE)) -> Malárik Michal | O7: 3475 | P7: =IF($O7=0,"",VLOOKUP($O7,'Absolutní-BODY'!$E$2:$O$161,4,FALSE)) -> 26 | Q7: =IF($O7=0,"",VLOOKUP($O7,'Absolutní-BODY'!$E$2:$O$161,5,FALSE)) -> 28 | R7: =IF($O7=0,"",VLOOKUP($O7,'Absolutní-BODY'!$E$2:$O$161,6,FALSE)) -> 20 | S7: =IF($O7=0,"",VLOOKUP($O7,'Absolutní-BODY'!$E$2:$O$161,7,FALSE)) -> 24 | T7: =IF($O7=0,"",VLOOKUP($O7,'Absolutní-BODY'!$E$2:$O$161,8,FALSE)) -> 0 | U7: =IF($O7=0,"",VLOOKUP($O7,'Absolutní-BODY'!$E$2:$O$161,9,FALSE)) -> 0 | V7: =IF($O7=0,"",VLOOKUP($O7,'Absolutní-BODY'!$E$2:$O$161,10,FALSE)) -> 0 | W7: =IF($O7=0,"",VLOOKUP($O7,'Absolutní-BODY'!$E$2:$O$161,11,FALSE)) -> 0 | Y7: 3 | Z7: =IF(AA7=0,"",VLOOKUP($AA7,seznam!$A$1:$E$5058,2,FALSE)) -> Moutvička Ondřej | AA7: 2503 | AB7: =IF($AA7=0,"",VLOOKUP($AA7,'Absolutní-BODY'!$E$2:$O$161,4,FALSE)) -> 23 | AC7: =IF($AA7=0,"",VLOOKUP($AA7,'Absolutní-BODY'!$E$2:$O$161,5,FALSE)) -> 23 | AD7: =IF($AA7=0,"",VLOOKUP($AA7,'Absolutní-BODY'!$E$2:$O$161,6,FALSE)) -> 23 | AE7: =IF($AA7=0,"",VLOOKUP($AA7,'Absolutní-BODY'!$E$2:$O$161,7,FALSE)) -> 28 | AF7: =IF($AA7=0,"",VLOOKUP($AA7,'Absolutní-BODY'!$E$2:$O$161,8,FALSE)) -> 0 | AG7: =IF($AA7=0,"",VLOOKUP($AA7,'Absolutní-BODY'!$E$2:$O$161,9,FALSE)) -> 0 | AH7: =IF($AA7=0,"",VLOOKUP($AA7,'Absolutní-BODY'!$E$2:$O$161,10,FALSE)) -> 0 | AI7: =IF($AA7=0,"",VLOOKUP($AA7,'Absolutní-BODY'!$E$2:$O$161,11,FALSE)) -> 0
A8: 4 | B8: Bireš Jan | C8: 652 | D8: =IF($C8=0,"",VLOOKUP($C8,'Absolutní-BODY'!$E$2:$O$161,4,FALSE)) -> 28 | E8: =IF($C8=0,"",VLOOKUP($C8,'Absolutní-BODY'!$E$2:$O$161,5,FALSE)) -> 27 | F8: =IF($C8=0,"",VLOOKUP($C8,'Absolutní-BODY'!$E$2:$O$161,6,FALSE)) -> 24 | G8: =IF($C8=0,"",VLOOKUP($C8,'Absolutní-BODY'!$E$2:$O$161,7,FALSE)) -> 27 | H8: =IF($C8=0,"",VLOOKUP($C8,'Absolutní-BODY'!$E$2:$O$161,8,FALSE)) -> 0 | I8: =IF($C8=0,"",VLOOKUP($C8,'Absolutní-BODY'!$E$2:$O$161,9,FALSE)) -> 0 | J8: =IF($C8=0,"",VLOOKUP($C8,'Absolutní-BODY'!$E$2:$O$161,10,FALSE)) -> 0 | K8: =IF($C8=0,"",VLOOKUP($C8,'Absolutní-BODY'!$E$2:$O$161,11,FALSE)) -> 0 | M8: 4 | N8: =IF(O8=0,"",VLOOKUP($O8,seznam!$A$1:$E$5058,2,FALSE)) -> Dočkal Lubomír ml. | O8: 1791 | P8: =IF($O8=0,"",VLOOKUP($O8,'Absolutní-BODY'!$E$2:$O$161,4,FALSE)) -> 27 | Q8: =IF($O8=0,"",VLOOKUP($O8,'Absolutní-BODY'!$E$2:$O$161,5,FALSE)) -> 22 | R8: =IF($O8=0,"",VLOOKUP($O8,'Absolutní-BODY'!$E$2:$O$161,6,FALSE)) -> 24 | S8: =IF($O8=0,"",VLOOKUP($O8,'Absolutní-BODY'!$E$2:$O$161,7,FALSE)) -> 24 | T8: =IF($O8=0,"",VLOOKUP($O8,'Absolutní-BODY'!$E$2:$O$161,8,FALSE)) -> 0 | U8: =IF($O8=0,"",VLOOKUP($O8,'Absolutní-BODY'!$E$2:$O$161,9,FALSE)) -> 0 | V8: =IF($O8=0,"",VLOOKUP($O8,'Absolutní-BODY'!$E$2:$O$161,10,FALSE)) -> 0 | W8: =IF($O8=0,"",VLOOKUP($O8,'Absolutní-BODY'!$E$2:$O$161,11,FALSE)) -> 0 | Y8: 4 | Z8: =IF(AA8=0,"",VLOOKUP($AA8,seznam!$A$1:$E$5058,2,FALSE)) -> Benda Lumír | AA8: 746 | AB8: =IF($AA8=0,"",VLOOKUP($AA8,'Absolutní-BODY'!$E$2:$O$161,4,FALSE)) -> 27 | AC8: =IF($AA8=0,"",VLOOKUP($AA8,'Absolutní-BODY'!$E$2:$O$161,5,FALSE)) -> 22 | AD8: =IF($AA8=0,"",VLOOKUP($AA8,'Absolutní-BODY'!$E$2:$O$161,6,FALSE)) -> 28 | AE8: =IF($AA8=0,"",VLOOKUP($AA8,'Absolutní-BODY'!$E$2:$O$161,7,FALSE)) -> 28 | AF8: =IF($AA8=0,"",VLOOKUP($AA8,'Absolutní-BODY'!$E$2:$O$161,8,FALSE)) -> 0 | AG8: =IF($AA8=0,"",VLOOKUP($AA8,'Absolutní-BODY'!$E$2:$O$161,9,FALSE)) -> 0 | AH8: =IF($AA8=0,"",VLOOKUP($AA8,'Absolutní-BODY'!$E$2:$O$161,10,FALSE)) -> 0 | AI8: =IF($AA8=0,"",VLOOKUP($AA8,'Absolutní-BODY'!$E$2:$O$161,11,FALSE)) -> 0
A9: N | B9: Fiedlerová Jaroslava | C9: 1478 | D9: 0 | E9: 0 | F9: 0 | G9: 0 | H9: =IF($C9=0,"",VLOOKUP($C9,'Absolutní-BODY'!$E$2:$O$161,8,FALSE)) -> 0 | I9: =IF($C9=0,"",VLOOKUP($C9,'Absolutní-BODY'!$E$2:$O$161,9,FALSE)) -> 0 | J9: =IF($C9=0,"",VLOOKUP($C9,'Absolutní-BODY'!$E$2:$O$161,10,FALSE)) -> 0 | K9: =IF($C9=0,"",VLOOKUP($C9,'Absolutní-BODY'!$E$2:$O$161,11,FALSE)) -> 0 | M9: N | N9: =IF(O9=0,"",VLOOKUP($O9,seznam!$A$1:$E$5058,2,FALSE)) -> Birešová Vlasta | O9: 526 | P9: 0 | Q9: 0 | R9: 0 | S9: 0 | T9: =IF($O9=0,"",VLOOKUP($O9,'Absolutní-BODY'!$E$2:$O$161,8,FALSE)) -> 0 | U9: =IF($O9=0,"",VLOOKUP($O9,'Absolutní-BODY'!$E$2:$O$161,9,FALSE)) -> 0 | V9: =IF($O9=0,"",VLOOKUP($O9,'Absolutní-BODY'!$E$2:$O$161,10,FALSE)) -> 0 | W9: =IF($O9=0,"",VLOOKUP($O9,'Absolutní-BODY'!$E$2:$O$161,11,FALSE)) -> 0 | Z9: =IF(AA9=0,"",VLOOKUP($AA9,seznam!$A$1:$E$5058,2,FALSE)) ->  | AB9: =IF($AA9=0,"",VLOOKUP($AA9,'Absolutní-BODY'!$E$2:$O$161,4,FALSE)) ->  | AC9: =IF($AA9=0,"",VLOOKUP($AA9,'Absolutní-BODY'!$E$2:$O$161,5,FALSE)) ->  | AD9: =IF($AA9=0,"",VLOOKUP($AA9,'Absolutní-BODY'!$E$2:$O$161,6,FALSE)) ->  | AE9: =IF($AA9=0,"",VLOOKUP($AA9,'Absolutní-BODY'!$E$2:$O$161,7,FALSE)) ->  | AF9: =IF($AA9=0,"",VLOOKUP($AA9,'Absolutní-BODY'!$E$2:$O$161,8,FALSE)) ->  | AG9: =IF($AA9=0,"",VLOOKUP($AA9,'Absolutní-BODY'!$E$2:$O$161,9,FALSE)) ->  | AH9: =IF($AA9=0,"",VLOOKUP($AA9,'Absolutní-BODY'!$E$2:$O$161,10,FALSE)) ->  | AI9: =IF($AA9=0,"",VLOOKUP($AA9,'Absolutní-BODY'!$E$2:$O$161,11,FALSE)) -> 
D10: =SUM(D5:D9) -> 105 | E10: 105 | F10: 101 | G10: 100 | H10: 0 | I10: 0 | J10: 0 | K10: 0 | P10: =SUM(P5:P9) -> 111 | Q10: 109 | R10: 94 | S10: 101 | T10: 0 | U10: 0 | V10: 0 | W10: 0 | AB10: =SUM(AB5:AB9) -> 102 | AC10: 103 | AD10: 106 | AE10: 109 | AF10: 0 | AG10: 0 | AH10: 0 | AI10: 0
B11: 6 | C11: bodů | H11: celkem | J11: =SUM(D10:K10) -> 411 | N11: 4 | O11: bodů | T11: celkem | V11: =SUM(P10:W10) -> 415 | Z11: 3 | AA11: bodů | AF11: celkem | AH11: =SUM(AB10:AI10) -> 420
B13: 4. místo | N13: 5. místo
B14: SKDG Chomutov | C14: reg | D14: 1 | E14: 2 | F14: 3 | G14: 4 | H14: 5 | I14: 6 | J14: 7 | K14: 8 | N14: Variete Jesenice | O14: reg | P14: 1 | Q14: 2 | R14: 3 | S14: 4 | T14: 5 | U14: 6 | V14: 7 | W14: 8
A15: 1 | B15: Mráz Josef | C15: 408 | D15: =IF($C15=0,"",VLOOKUP($C15,'Absolutní-BODY'!$E$2:$O$161,4,FALSE)) -> 26 | E15: =IF($C15=0,"",VLOOKUP($C15,'Absolutní-BODY'!$E$2:$O$161,5,FALSE)) -> 24 | F15: =IF($C15=0,"",VLOOKUP($C15,'Absolutní-BODY'!$E$2:$O$161,6,FALSE)) -> 28 | G15: =IF($C15=0,"",VLOOKUP($C15,'Absolutní-BODY'!$E$2:$O$161,7,FALSE)) -> 24 | H15: =IF($C15=0,"",VLOOKUP($C15,'Absolutní-BODY'!$E$2:$O$161,8,FALSE)) -> 0 | I15: =IF($C15=0,"",VLOOKUP($C15,'Absolutní-BODY'!$E$2:$O$161,9,FALSE)) -> 0 | J15: =IF($C15=0,"",VLOOKUP($C15,'Absolutní-BODY'!$E$2:$O$161,10,FALSE)) -> 0 | K15: =IF($C15=0,"",VLOOKUP($C15,'Absolutní-BODY'!$E$2:$O$161,11,FALSE)) -> 0 | M15: 1 | N15: =IF(O15=0,"",VLOOKUP($O15,seznam!$A$1:$E$5058,2,FALSE)) -> Gruncl Josef | O15: 1278 | P15: =IF($O15=0,"",VLOOKUP($O15,'Absolutní-BODY'!$E$2:$O$161,4,FALSE)) -> 29 | Q15: =IF($O15=0,"",VLOOKUP($O15,'Absolutní-BODY'!$E$2:$O$161,5,FALSE)) -> 30 | R15: =IF($O15=0,"",VLOOKUP($O15,'Absolutní-BODY'!$E$2:$O$161,6,FALSE)) -> 32 | S15: =IF($O15=0,"",VLOOKUP($O15,'Absolutní-BODY'!$E$2:$O$161,7,FALSE)) -> 31 | T15: =IF($O15=0,"",VLOOKUP($O15,'Absolutní-BODY'!$E$2:$O$161,8,FALSE)) -> 0 | U15: =IF($O15=0,"",VLOOKUP($O15,'Absolutní-BODY'!$E$2:$O$161,9,FALSE)) -> 0 | V15: =IF($O15=0,"",VLOOKUP($O15,'Absolutní-BODY'!$E$2:$O$161,10,FALSE)) -> 0 | W15: =IF($O15=0,"",VLOOKUP($O15,'Absolutní-BODY'!$E$2:$O$161,11,FALSE)) -> 0
A16: 2 | B16: Drozda Zdeněk | C16: 1324 | D16: =IF($C16=0,"",VLOOKUP($C16,'Absolutní-BODY'!$E$2:$O$161,4,FALSE)) -> 25 | E16: =IF($C16=0,"",VLOOKUP($C16,'Absolutní-BODY'!$E$2:$O$161,5,FALSE)) -> 26 | F16: =IF($C16=0,"",VLOOKUP($C16,'Absolutní-BODY'!$E$2:$O$161,6,FALSE)) -> 30 | G16: =IF($C16=0,"",VLOOKUP($C16,'Absolutní-BODY'!$E$2:$O$161,7,FALSE)) -> 28 | H16: =IF($C16=0,"",VLOOKUP($C16,'Absolutní-BODY'!$E$2:$O$161,8,FALSE)) -> 0 | I16: =IF($C16=0,"",VLOOKUP($C16,'Absolutní-BODY'!$E$2:$O$161,9,FALSE)) -> 0 | J16: =IF($C16=0,"",VLOOKUP($C16,'Absolutní-BODY'!$E$2:$O$161,10,FALSE)) -> 0 | K16: =IF($C16=0,"",VLOOKUP($C16,'Absolutní-BODY'!$E$2:$O$161,11,FALSE)) -> 0 | M16: 2 | N16: =IF(O16=0,"",VLOOKUP($O16,seznam!$A$1:$E$5058,2,FALSE)) -> Wenzl Daniel | O16: 712 | P16: =IF($O16=0,"",VLOOKUP($O16,'Absolutní-BODY'!$E$2:$O$161,4,FALSE)) -> 28 | Q16: =IF($O16=0,"",VLOOKUP($O16,'Absolutní-BODY'!$E$2:$O$161,5,FALSE)) -> 33 | R16: =IF($O16=0,"",VLOOKUP($O16,'Absolutní-BODY'!$E$2:$O$161,6,FALSE)) -> 34 | S16: =IF($O16=0,"",VLOOKUP($O16,'Absolutní-BODY'!$E$2:$O$161,7,FALSE)) -> 29 | T16: =IF($O16=0,"",VLOOKUP($O16,'Absolutní-BODY'!$E$2:$O$161,8,FALSE)) -> 0 | U16: =IF($O16=0,"",VLOOKUP($O16,'Absolutní-BODY'!$E$2:$O$161,9,FALSE)) -> 0 | V16: =IF($O16=0,"",VLOOKUP($O16,'Absolutní-BODY'!$E$2:$O$161,10,FALSE)) -> 0 | W16: =IF($O16=0,"",VLOOKUP($O16,'Absolutní-BODY'!$E$2:$O$161,11,FALSE)) -> 0
A17: 3 | B17: Pajkov Mitko | C17: 2318 | D17: =IF($C17=0,"",VLOOKUP($C17,'Absolutní-BODY'!$E$2:$O$161,4,FALSE)) -> 30 | E17: =IF($C17=0,"",VLOOKUP($C17,'Absolutní-BODY'!$E$2:$O$161,5,FALSE)) -> 26 | F17: =IF($C17=0,"",VLOOKUP($C17,'Absolutní-BODY'!$E$2:$O$161,6,FALSE)) -> 27 | G17: =IF($C17=0,"",VLOOKUP($C17,'Absolutní-BODY'!$E$2:$O$161,7,FALSE)) -> 32 | H17: =IF($C17=0,"",VLOOKUP($C17,'Absolutní-BODY'!$E$2:$O$161,8,FALSE)) -> 0 | I17: =IF($C17=0,"",VLOOKUP($C17,'Absolutní-BODY'!$E$2:$O$161,9,FALSE)) -> 0 | J17: =IF($C17=0,"",VLOOKUP($C17,'Absolutní-BODY'!$E$2:$O$161,10,FALSE)) -> 0 | K17: =IF($C17=0,"",VLOOKUP($C17,'Absolutní-BODY'!$E$2:$O$161,11,FALSE)) -> 0 | M17: 3 | N17: =IF(O17=0,"",VLOOKUP($O17,seznam!$A$1:$E$5058,2,FALSE)) -> Brettlová Jana | O17: 2570 | P17: =IF($O17=0,"",VLOOKUP($O17,'Absolutní-BODY'!$E$2:$O$161,4,FALSE)) -> 30 | Q17: =IF($O17=0,"",VLOOKUP($O17,'Absolutní-BODY'!$E$2:$O$161,5,FALSE)) -> 26 | R17: =IF($O17=0,"",VLOOKUP($O17,'Absolutní-BODY'!$E$2:$O$161,6,FALSE)) -> 29 | S17: =IF($O17=0,"",VLOOKUP($O17,'Absolutní-BODY'!$E$2:$O$161,7,FALSE)) -> 26 | T17: =IF($O17=0,"",VLOOKUP($O17,'Absolutní-BODY'!$E$2:$O$161,8,FALSE)) -> 0 | U17: =IF($O17=0,"",VLOOKUP($O17,'Absolutní-BODY'!$E$2:$O$161,9,FALSE)) -> 0 | V17: =IF($O17=0,"",VLOOKUP($O17,'Absolutní-BODY'!$E$2:$O$161,10,FALSE)) -> 0 | W17: =IF($O17=0,"",VLOOKUP($O17,'Absolutní-BODY'!$E$2:$O$161,11,FALSE)) -> 0
A18: 4 | B18: Mandák Josef | C18: 809 | D18: =IF($C18=0,"",VLOOKUP($C18,'Absolutní-BODY'!$E$2:$O$161,4,FALSE)) -> 24 | E18: =IF($C18=0,"",VLOOKUP($C18,'Absolutní-BODY'!$E$2:$O$161,5,FALSE)) -> 28 | F18: =IF($C18=0,"",VLOOKUP($C18,'Absolutní-BODY'!$E$2:$O$161,6,FALSE)) -> 26 | G18: =IF($C18=0,"",VLOOKUP($C18,'Absolutní-BODY'!$E$2:$O$161,7,FALSE)) -> 26 | H18: =IF($C18=0,"",VLOOKUP($C18,'Absolutní-BODY'!$E$2:$O$161,8,FALSE)) -> 0 | I18: =IF($C18=0,"",VLOOKUP($C18,'Absolutní-BODY'!$E$2:$O$161,9,FALSE)) -> 0 | J18: =IF($C18=0,"",VLOOKUP($C18,'Absolutní-BODY'!$E$2:$O$161,10,FALSE)) -> 0 | K18: =IF($C18=0,"",VLOOKUP($C18,'Absolutní-BODY'!$E$2:$O$161,11,FALSE)) -> 0 | M18: 4 | N18: =IF(O18=0,"",VLOOKUP($O18,seznam!$A$1:$E$5058,2,FALSE)) -> Lisa Miroslav st. | O18: 433 | P18: =IF($O18=0,"",VLOOKUP($O18,'Absolutní-BODY'!$E$2:$O$161,4,FALSE)) -> 27 | Q18: =IF($O18=0,"",VLOOKUP($O18,'Absolutní-BODY'!$E$2:$O$161,5,FALSE)) -> 28 | R18: =IF($O18=0,"",VLOOKUP($O18,'Absolutní-BODY'!$E$2:$O$161,6,FALSE)) -> 27 | S18: =IF($O18=0,"",VLOOKUP($O18,'Absolutní-BODY'!$E$2:$O$161,7,FALSE)) -> 26 | T18: =IF($O18=0,"",VLOOKUP($O18,'Absolutní-BODY'!$E$2:$O$161,8,FALSE)) -> 0 | U18: =IF($O18=0,"",VLOOKUP($O18,'Absolutní-BODY'!$E$2:$O$161,9,FALSE)) -> 0 | V18: =IF($O18=0,"",VLOOKUP($O18,'Absolutní-BODY'!$E$2:$O$161,10,FALSE)) -> 0 | W18: =IF($O18=0,"",VLOOKUP($O18,'Absolutní-BODY'!$E$2:$O$161,11,FALSE)) -> 0
A19: N | B19: Kubantová Lucie | C19: 3011 | D19: 0 | E19: 0 | F19: 0 | G19: 0 | H19: =IF($C19=0,"",VLOOKUP($C19,'Absolutní-BODY'!$E$2:$O$161,8,FALSE)) -> 0 | I19: =IF($C19=0,"",VLOOKUP($C19,'Absolutní-BODY'!$E$2:$O$161,9,FALSE)) -> 0 | J19: =IF($C19=0,"",VLOOKUP($C19,'Absolutní-BODY'!$E$2:$O$161,10,FALSE)) -> 0 | K19: =IF($C19=0,"",VLOOKUP($C19,'Absolutní-BODY'!$E$2:$O$161,11,FALSE)) -> 0 | M19: N | N19: =IF(O19=0,"",VLOOKUP($O19,seznam!$A$1:$E$5058,2,FALSE)) -> Cimerman Jan | O19: 2396 | P19: 0 | Q19: 0 | R19: 0 | S19: 0 | T19: 0 | U19: 0 | V19: 0 | W19: 0
D20: =SUM(D15:D19) -> 105 | E20: 104 | F20: 111 | G20: 110 | H20: 0 | I20: 0 | J20: 0 | K20: 0 | P20: =SUM(P15:P19) -> 114 | Q20: 117 | R20: 122 | S20: 112 | T20: 0 | U20: 0 | V20: 0 | W20: 0
B21: 2 | C21: bodů | H21: celkem | J21: =SUM(D20:K20) -> 430 | N21: 1 | O21: bodů | T21: celkem | V21: =SUM(P20:W20) -> 465

Sheet Liga-kolo-Z (hidden)
A1: ? | B1: .kolo | C1: ? | E1: liga ženských družstev | N1: 2012 / 2013
B3: 1. místo | N3: 2. místo | Z3: 3. místo
C4: reg | D4: 1 | E4: 2 | F4: 3 | G4: 4 | H4: 5 | I4: 6 | J4: 7 | K4: 8 | O4: reg | P4: 1 | Q4: 2 | R4: 3 | S4: 4 | T4: 5 | U4: 6 | V4: 7 | W4: 8 | AA4: reg | AB4: 1 | AC4: 2 | AD4: 3 | AE4: 4 | AF4: 5 | AG4: 6 | AH4: 7 | AI4: 8
A5: 1 | B5: =IF(C5=0,"",VLOOKUP($C5,seznam!$A$1:$E$5058,2,FALSE)) ->  | D5: =IF($C5=0,"",VLOOKUP($C5,'Absolutní-BODY'!$E$2:$O$161,4,FALSE)) ->  | E5: =IF($C5=0,"",VLOOKUP($C5,'Absolutní-BODY'!$E$2:$O$161,5,FALSE)) ->  | F5: =IF($C5=0,"",VLOOKUP($C5,'Absolutní-BODY'!$E$2:$O$161,6,FALSE)) ->  | G5: =IF($C5=0,"",VLOOKUP($C5,'Absolutní-BODY'!$E$2:$O$161,7,FALSE)) ->  | H5: =IF($C5=0,"",VLOOKUP($C5,'Absolutní-BODY'!$E$2:$O$161,8,FALSE)) ->  | I5: =IF($C5=0,"",VLOOKUP($C5,'Absolutní-BODY'!$E$2:$O$161,9,FALSE)) ->  | J5: =IF($C5=0,"",VLOOKUP($C5,'Absolutní-BODY'!$E$2:$O$161,10,FALSE)) ->  | K5: =IF($C5=0,"",VLOOKUP($C5,'Absolutní-BODY'!$E$2:$O$161,11,FALSE)) ->  | M5: 1 | N5: =IF(O5=0,"",VLOOKUP($O5,seznam!$A$1:$E$5058,2,FALSE)) ->  | P5: =IF($O5=0,"",VLOOKUP($O5,'Absolutní-BODY'!$E$2:$O$161,4,FALSE)) ->  | Q5: =IF($O5=0,"",VLOOKUP($O5,'Absolutní-BODY'!$E$2:$O$161,5,FALSE)) ->  | R5: =IF($O5=0,"",VLOOKUP($O5,'Absolutní-BODY'!$E$2:$O$161,6,FALSE)) ->  | S5: =IF($O5=0,"",VLOOKUP($O5,'Absolutní-BODY'!$E$2:$O$161,7,FALSE)) ->  | T5: =IF($O5=0,"",VLOOKUP($O5,'Absolutní-BODY'!$E$2:$O$161,8,FALSE)) ->  | U5: =IF($O5=0,"",VLOOKUP($O5,'Absolutní-BODY'!$E$2:$O$161,9,FALSE)) ->  | V5: =IF($O5=0,"",VLOOKUP($O5,'Absolutní-BODY'!$E$2:$O$161,10,FALSE)) ->  | W5: =IF($O5=0,"",VLOOKUP($O5,'Absolutní-BODY'!$E$2:$O$161,11,FALSE)) ->  | Y5: 1 | Z5: =IF(AA5=0,"",VLOOKUP($AA5,seznam!$A$1:$E$5058,2,FALSE)) ->  | AB5: =IF($AA5=0,"",VLOOKUP($AA5,'Absolutní-BODY'!$E$2:$O$161,4,FALSE)) ->  | AC5: =IF($AA5=0,"",VLOOKUP($AA5,'Absolutní-BODY'!$E$2:$O$161,5,FALSE)) ->  | AD5: =IF($AA5=0,"",VLOOKUP($AA5,'Absolutní-BODY'!$E$2:$O$161,6,FALSE)) ->  | AE5: =IF($AA5=0,"",VLOOKUP($AA5,'Absolutní-BODY'!$E$2:$O$161,7,FALSE)) ->  | AF5: =IF($AA5=0,"",VLOOKUP($AA5,'Absolutní-BODY'!$E$2:$O$161,8,FALSE)) ->  | AG5: =IF($AA5=0,"",VLOOKUP($AA5,'Absolutní-BODY'!$E$2:$O$161,9,FALSE)) ->  | AH5: =IF($AA5=0,"",VLOOKUP($AA5,'Absolutní-BODY'!$E$2:$O$161,10,FALSE)) ->  | AI5: =IF($AA5=0,"",VLOOKUP($AA5,'Absolutní-BODY'!$E$2:$O$161,11,FALSE)) -> 
A6: 2 | B6: =IF(C6=0,"",VLOOKUP($C6,seznam!$A$1:$E$5058,2,FALSE)) ->  | D6: =IF($C6=0,"",VLOOKUP($C6,'Absolutní-BODY'!$E$2:$O$161,4,FALSE)) ->  | E6: =IF($C6=0,"",VLOOKUP($C6,'Absolutní-BODY'!$E$2:$O$161,5,FALSE)) ->  | F6: =IF($C6=0,"",VLOOKUP($C6,'Absolutní-BODY'!$E$2:$O$161,6,FALSE)) ->  | G6: =IF($C6=0,"",VLOOKUP($C6,'Absolutní-BODY'!$E$2:$O$161,7,FALSE)) ->  | H6: =IF($C6=0,"",VLOOKUP($C6,'Absolutní-BODY'!$E$2:$O$161,8,FALSE)) ->  | I6: =IF($C6=0,"",VLOOKUP($C6,'Absolutní-BODY'!$E$2:$O$161,9,FALSE)) ->  | J6: =IF($C6=0,"",VLOOKUP($C6,'Absolutní-BODY'!$E$2:$O$161,10,FALSE)) ->  | K6: =IF($C6=0,"",VLOOKUP($C6,'Absolutní-BODY'!$E$2:$O$161,11,FALSE)) ->  | M6: 2 | N6: =IF(O6=0,"",VLOOKUP($O6,seznam!$A$1:$E$5058,2,FALSE)) ->  | P6: =IF($O6=0,"",VLOOKUP($O6,'Absolutní-BODY'!$E$2:$O$161,4,FALSE)) ->  | Q6: =IF($O6=0,"",VLOOKUP($O6,'Absolutní-BODY'!$E$2:$O$161,5,FALSE)) ->  | R6: =IF($O6=0,"",VLOOKUP($O6,'Absolutní-BODY'!$E$2:$O$161,6,FALSE)) ->  | S6: =IF($O6=0,"",VLOOKUP($O6,'Absolutní-BODY'!$E$2:$O$161,7,FALSE)) ->  | T6: =IF($O6=0,"",VLOOKUP($O6,'Absolutní-BODY'!$E$2:$O$161,8,FALSE)) ->  | U6: =IF($O6=0,"",VLOOKUP($O6,'Absolutní-BODY'!$E$2:$O$161,9,FALSE)) ->  | V6: =IF($O6=0,"",VLOOKUP($O6,'Absolutní-BODY'!$E$2:$O$161,10,FALSE)) ->  | W6: =IF($O6=0,"",VLOOKUP($O6,'Absolutní-BODY'!$E$2:$O$161,11,FALSE)) ->  | Y6: 2 | Z6: =IF(AA6=0,"",VLOOKUP($AA6,seznam!$A$1:$E$5058,2,FALSE)) ->  | AB6: =IF($AA6=0,"",VLOOKUP($AA6,'Absolutní-BODY'!$E$2:$O$161,4,FALSE)) ->  | AC6: =IF($AA6=0,"",VLOOKUP($AA6,'Absolutní-BODY'!$E$2:$O$161,5,FALSE)) ->  | AD6: =IF($AA6=0,"",VLOOKUP($AA6,'Absolutní-BODY'!$E$2:$O$161,6,FALSE)) ->  | AE6: =IF($AA6=0,"",VLOOKUP($AA6,'Absolutní-BODY'!$E$2:$O$161,7,FALSE)) ->  | AF6: =IF($AA6=0,"",VLOOKUP($AA6,'Absolutní-BODY'!$E$2:$O$161,8,FALSE)) ->  | AG6: =IF($AA6=0,"",VLOOKUP($AA6,'Absolutní-BODY'!$E$2:$O$161,9,FALSE)) ->  | AH6: =IF($AA6=0,"",VLOOKUP($AA6,'Absolutní-BODY'!$E$2:$O$161,10,FALSE)) ->  | AI6: =IF($AA6=0,"",VLOOKUP($AA6,'Absolutní-BODY'!$E$2:$O$161,11,FALSE)) -> 
A7: 3 | B7: =IF(C7=0,"",VLOOKUP($C7,seznam!$A$1:$E$5058,2,FALSE)) ->  | D7: =IF($C7=0,"",VLOOKUP($C7,'Absolutní-BODY'!$E$2:$O$161,4,FALSE)) ->  | E7: =IF($C7=0,"",VLOOKUP($C7,'Absolutní-BODY'!$E$2:$O$161,5,FALSE)) ->  | F7: =IF($C7=0,"",VLOOKUP($C7,'Absolutní-BODY'!$E$2:$O$161,6,FALSE)) ->  | G7: =IF($C7=0,"",VLOOKUP($C7,'Absolutní-BODY'!$E$2:$O$161,7,FALSE)) ->  | H7: =IF($C7=0,"",VLOOKUP($C7,'Absolutní-BODY'!$E$2:$O$161,8,FALSE)) ->  | I7: =IF($C7=0,"",VLOOKUP($C7,'Absolutní-BODY'!$E$2:$O$161,9,FALSE)) ->  | J7: =IF($C7=0,"",VLOOKUP($C7,'Absolutní-BODY'!$E$2:$O$161,10,FALSE)) ->  | K7: =IF($C7=0,"",VLOOKUP($C7,'Absolutní-BODY'!$E$2:$O$161,11,FALSE)) ->  | M7: 3 | N7: =IF(O7=0,"",VLOOKUP($O7,seznam!$A$1:$E$5058,2,FALSE)) ->  | P7: =IF($O7=0,"",VLOOKUP($O7,'Absolutní-BODY'!$E$2:$O$161,4,FALSE)) ->  | Q7: =IF($O7=0,"",VLOOKUP($O7,'Absolutní-BODY'!$E$2:$O$161,5,FALSE)) ->  | R7: =IF($O7=0,"",VLOOKUP($O7,'Absolutní-BODY'!$E$2:$O$161,6,FALSE)) ->  | S7: =IF($O7=0,"",VLOOKUP($O7,'Absolutní-BODY'!$E$2:$O$161,7,FALSE)) ->  | T7: =IF($O7=0,"",VLOOKUP($O7,'Absolutní-BODY'!$E$2:$O$161,8,FALSE)) ->  | U7: =IF($O7=0,"",VLOOKUP($O7,'Absolutní-BODY'!$E$2:$O$161,9,FALSE)) ->  | V7: =IF($O7=0,"",VLOOKUP($O7,'Absolutní-BODY'!$E$2:$O$161,10,FALSE)) ->  | W7: =IF($O7=0,"",VLOOKUP($O7,'Absolutní-BODY'!$E$2:$O$161,11,FALSE)) ->  | Y7: 3 | Z7: =IF(AA7=0,"",VLOOKUP($AA7,seznam!$A$1:$E$5058,2,FALSE)) ->  | AB7: =IF($AA7=0,"",VLOOKUP($AA7,'Absolutní-BODY'!$E$2:$O$161,4,FALSE)) ->  | AC7: =IF($AA7=0,"",VLOOKUP($AA7,'Absolutní-BODY'!$E$2:$O$161,5,FALSE)) ->  | AD7: =IF($AA7=0,"",VLOOKUP($AA7,'Absolutní-BODY'!$E$2:$O$161,6,FALSE)) ->  | AE7: =IF($AA7=0,"",VLOOKUP($AA7,'Absolutní-BODY'!$E$2:$O$161,7,FALSE)) ->  | AF7: =IF($AA7=0,"",VLOOKUP($AA7,'Absolutní-BODY'!$E$2:$O$161,8,FALSE)) ->  | AG7: =IF($AA7=0,"",VLOOKUP($AA7,'Absolutní-BODY'!$E$2:$O$161,9,FALSE)) ->  | AH7: =IF($AA7=0,"",VLOOKUP($AA7,'Absolutní-BODY'!$E$2:$O$161,10,FALSE)) ->  | AI7: =IF($AA7=0,"",VLOOKUP($AA7,'Absolutní-BODY'!$E$2:$O$161,11,FALSE)) -> 
A8: N | B8: =IF(C8=0,"",VLOOKUP($C8,seznam!$A$1:$E$5058,2,FALSE)) ->  | D8: =IF($C8=0,"",VLOOKUP($C8,'Absolutní-BODY'!$E$2:$O$161,4,FALSE)) ->  | E8: =IF($C8=0,"",VLOOKUP($C8,'Absolutní-BODY'!$E$2:$O$161,5,FALSE)) ->  | F8: =IF($C8=0,"",VLOOKUP($C8,'Absolutní-BODY'!$E$2:$O$161,6,FALSE)) ->  | G8: =IF($C8=0,"",VLOOKUP($C8,'Absolutní-BODY'!$E$2:$O$161,7,FALSE)) ->  | H8: =IF($C8=0,"",VLOOKUP($C8,'Absolutní-BODY'!$E$2:$O$161,8,FALSE)) ->  | I8: =IF($C8=0,"",VLOOKUP($C8,'Absolutní-BODY'!$E$2:$O$161,9,FALSE)) ->  | J8: =IF($C8=0,"",VLOOKUP($C8,'Absolutní-BODY'!$E$2:$O$161,10,FALSE)) ->  | K8: =IF($C8=0,"",VLOOKUP($C8,'Absolutní-BODY'!$E$2:$O$161,11,FALSE)) ->  | M8: N | N8: =IF(O8=0,"",VLOOKUP($O8,seznam!$A$1:$E$5058,2,FALSE)) ->  | P8: =IF($O8=0,"",VLOOKUP($O8,'Absolutní-BODY'!$E$2:$O$161,4,FALSE)) ->  | Q8: =IF($O8=0,"",VLOOKUP($O8,'Absolutní-BODY'!$E$2:$O$161,5,FALSE)) ->  | R8: =IF($O8=0,"",VLOOKUP($O8,'Absolutní-BODY'!$E$2:$O$161,6,FALSE)) ->  | S8: =IF($O8=0,"",VLOOKUP($O8,'Absolutní-BODY'!$E$2:$O$161,7,FALSE)) ->  | T8: =IF($O8=0,"",VLOOKUP($O8,'Absolutní-BODY'!$E$2:$O$161,8,FALSE)) ->  | U8: =IF($O8=0,"",VLOOKUP($O8,'Absolutní-BODY'!$E$2:$O$161,9,FALSE)) ->  | V8: =IF($O8=0,"",VLOOKUP($O8,'Absolutní-BODY'!$E$2:$O$161,10,FALSE)) ->  | W8: =IF($O8=0,"",VLOOKUP($O8,'Absolutní-BODY'!$E$2:$O$161,11,FALSE)) ->  | Y8: N | Z8: =IF(AA8=0,"",VLOOKUP($AA8,seznam!$A$1:$E$5058,2,FALSE)) ->  | AB8: =IF($AA8=0,"",VLOOKUP($AA8,'Absolutní-BODY'!$E$2:$O$161,4,FALSE)) ->  | AC8: =IF($AA8=0,"",VLOOKUP($AA8,'Absolutní-BODY'!$E$2:$O$161,5,FALSE)) ->  | AD8: =IF($AA8=0,"",VLOOKUP($AA8,'Absolutní-BODY'!$E$2:$O$161,6,FALSE)) ->  | AE8: =IF($AA8=0,"",VLOOKUP($AA8,'Absolutní-BODY'!$E$2:$O$161,7,FALSE)) ->  | AF8: =IF($AA8=0,"",VLOOKUP($AA8,'Absolutní-BODY'!$E$2:$O$161,8,FALSE)) ->  | AG8: =IF($AA8=0,"",VLOOKUP($AA8,'Absolutní-BODY'!$E$2:$O$161,9,FALSE)) ->  | AH8: =IF($AA8=0,"",VLOOKUP($AA8,'Absolutní-BODY'!$E$2:$O$161,10,FALSE)) ->  | AI8: =IF($AA8=0,"",VLOOKUP($AA8,'Absolutní-BODY'!$E$2:$O$161,11,FALSE)) -> 
D9: =SUM(D5:D8) -> 0 | E9: 0 | F9: 0 | G9: 0 | H9: 0 | I9: 0 | J9: 0 | K9: 0 | P9: =SUM(P5:P8) -> 0 | Q9: 0 | R9: 0 | S9: 0 | T9: 0 | U9: 0 | V9: 0 | W9: 0 | AB9: =SUM(AB5:AB8) -> 0 | AC9: 0 | AD9: 0 | AE9: 0 | AF9: 0 | AG9: 0 | AH9: 0 | AI9: 0
C10: bodů | H10: celkem | J10: =SUM(D9:K9) -> 0 | O10: bodů | T10: celkem | V10: =SUM(P9:W9) -> 0 | AA10: bodů | AF10: celkem | AH10: =SUM(AB9:AI9) -> 0
B12: 4. místo | N12: 5. místo | Z12: 6. místo
C13: reg | D13: 1 | E13: 2 | F13: 3 | G13: 4 | H13: 5 | I13: 6 | J13: 7 | K13: 8 | O13: reg | P13: 1 | Q13: 2 | R13: 3 | S13: 4 | T13: 5 | U13: 6 | V13: 7 | W13: 8 | AA13: reg | AB13: 1 | AC13: 2 | AD13: 3 | AE13: 4 | AF13: 5 | AG13: 6 | AH13: 7 | AI13: 8
A14: 1 | B14: =IF(C14=0,"",VLOOKUP($C14,seznam!$A$1:$E$5058,2,FALSE)) ->  | D14: =IF($C14=0,"",VLOOKUP($C14,'Absolutní-BODY'!$E$2:$O$161,4,FALSE)) ->  | E14: =IF($C14=0,"",VLOOKUP($C14,'Absolutní-BODY'!$E$2:$O$161,5,FALSE)) ->  | F14: =IF($C14=0,"",VLOOKUP($C14,'Absolutní-BODY'!$E$2:$O$161,6,FALSE)) ->  | G14: =IF($C14=0,"",VLOOKUP($C14,'Absolutní-BODY'!$E$2:$O$161,7,FALSE)) ->  | H14: =IF($C14=0,"",VLOOKUP($C14,'Absolutní-BODY'!$E$2:$O$161,8,FALSE)) ->  | I14: =IF($C14=0,"",VLOOKUP($C14,'Absolutní-BODY'!$E$2:$O$161,9,FALSE)) ->  | J14: =IF($C14=0,"",VLOOKUP($C14,'Absolutní-BODY'!$E$2:$O$161,10,FALSE)) ->  | K14: =IF($C14=0,"",VLOOKUP($C14,'Absolutní-BODY'!$E$2:$O$161,11,FALSE)) ->  | M14: 1 | N14: =IF(O14=0,"",VLOOKUP($O14,seznam!$A$1:$E$5058,2,FALSE)) ->  | P14: =IF($O14=0,"",VLOOKUP($O14,'Absolutní-BODY'!$E$2:$O$161,4,FALSE)) ->  | Q14: =IF($O14=0,"",VLOOKUP($O14,'Absolutní-BODY'!$E$2:$O$161,5,FALSE)) ->  | R14: =IF($O14=0,"",VLOOKUP($O14,'Absolutní-BODY'!$E$2:$O$161,6,FALSE)) ->  | S14: =IF($O14=0,"",VLOOKUP($O14,'Absolutní-BODY'!$E$2:$O$161,7,FALSE)) ->  | T14: =IF($O14=0,"",VLOOKUP($O14,'Absolutní-BODY'!$E$2:$O$161,8,FALSE)) ->  | U14: =IF($O14=0,"",VLOOKUP($O14,'Absolutní-BODY'!$E$2:$O$161,9,FALSE)) ->  | V14: =IF($O14=0,"",VLOOKUP($O14,'Absolutní-BODY'!$E$2:$O$161,10,FALSE)) ->  | W14: =IF($O14=0,"",VLOOKUP($O14,'Absolutní-BODY'!$E$2:$O$161,11,FALSE)) ->  | Y14: 1 | Z14: =IF(AA14=0,"",VLOOKUP($AA14,seznam!$A$1:$E$5058,2,FALSE)) ->  | AB14: =IF($AA14=0,"",VLOOKUP($AA14,'Absolutní-BODY'!$E$2:$O$161,4,FALSE)) ->  | AC14: =IF($AA14=0,"",VLOOKUP($AA14,'Absolutní-BODY'!$E$2:$O$161,5,FALSE)) ->  | AD14: =IF($AA14=0,"",VLOOKUP($AA14,'Absolutní-BODY'!$E$2:$O$161,6,FALSE)) ->  | AE14: =IF($AA14=0,"",VLOOKUP($AA14,'Absolutní-BODY'!$E$2:$O$161,7,FALSE)) ->  | AF14: =IF($AA14=0,"",VLOOKUP($AA14,'Absolutní-BODY'!$E$2:$O$161,8,FALSE)) ->  | AG14: =IF($AA14=0,"",VLOOKUP($AA14,'Absolutní-BODY'!$E$2:$O$161,9,FALSE)) ->  | AH14: =IF($AA14=0,"",VLOOKUP($AA14,'Absolutní-BODY'!$E$2:$O$161,10,FALSE)) ->  | AI14: =IF($AA14=0,"",VLOOKUP($AA14,'Absolutní-BODY'!$E$2:$O$161,11,FALSE)) -> 
A15: 2 | B15: =IF(C15=0,"",VLOOKUP($C15,seznam!$A$1:$E$5058,2,FALSE)) ->  | D15: =IF($C15=0,"",VLOOKUP($C15,'Absolutní-BODY'!$E$2:$O$161,4,FALSE)) ->  | E15: =IF($C15=0,"",VLOOKUP($C15,'Absolutní-BODY'!$E$2:$O$161,5,FALSE)) ->  | F15: =IF($C15=0,"",VLOOKUP($C15,'Absolutní-BODY'!$E$2:$O$161,6,FALSE)) ->  | G15: =IF($C15=0,"",VLOOKUP($C15,'Absolutní-BODY'!$E$2:$O$161,7,FALSE)) ->  | H15: =IF($C15=0,"",VLOOKUP($C15,'Absolutní-BODY'!$E$2:$O$161,8,FALSE)) ->  | I15: =IF($C15=0,"",VLOOKUP($C15,'Absolutní-BODY'!$E$2:$O$161,9,FALSE)) ->  | J15: =IF($C15=0,"",VLOOKUP($C15,'Absolutní-BODY'!$E$2:$O$161,10,FALSE)) ->  | K15: =IF($C15=0,"",VLOOKUP($C15,'Absolutní-BODY'!$E$2:$O$161,11,FALSE)) ->  | M15: 2 | N15: =IF(O15=0,"",VLOOKUP($O15,seznam!$A$1:$E$5058,2,FALSE)) ->  | P15: =IF($O15=0,"",VLOOKUP($O15,'Absolutní-BODY'!$E$2:$O$161,4,FALSE)) ->  | Q15: =IF($O15=0,"",VLOOKUP($O15,'Absolutní-BODY'!$E$2:$O$161,5,FALSE)) ->  | R15: =IF($O15=0,"",VLOOKUP($O15,'Absolutní-BODY'!$E$2:$O$161,6,FALSE)) ->  | S15: =IF($O15=0,"",VLOOKUP($O15,'Absolutní-BODY'!$E$2:$O$161,7,FALSE)) ->  | T15: =IF($O15=0,"",VLOOKUP($O15,'Absolutní-BODY'!$E$2:$O$161,8,FALSE)) ->  | U15: =IF($O15=0,"",VLOOKUP($O15,'Absolutní-BODY'!$E$2:$O$161,9,FALSE)) ->  | V15: =IF($O15=0,"",VLOOKUP($O15,'Absolutní-BODY'!$E$2:$O$161,10,FALSE)) ->  | W15: =IF($O15=0,"",VLOOKUP($O15,'Absolutní-BODY'!$E$2:$O$161,11,FALSE)) ->  | Y15: 2 | Z15: =IF(AA15=0,"",VLOOKUP($AA15,seznam!$A$1:$E$5058,2,FALSE)) ->  | AB15: =IF($AA15=0,"",VLOOKUP($AA15,'Absolutní-BODY'!$E$2:$O$161,4,FALSE)) ->  | AC15: =IF($AA15=0,"",VLOOKUP($AA15,'Absolutní-BODY'!$E$2:$O$161,5,FALSE)) ->  | AD15: =IF($AA15=0,"",VLOOKUP($AA15,'Absolutní-BODY'!$E$2:$O$161,6,FALSE)) ->  | AE15: =IF($AA15=0,"",VLOOKUP($AA15,'Absolutní-BODY'!$E$2:$O$161,7,FALSE)) ->  | AF15: =IF($AA15=0,"",VLOOKUP($AA15,'Absolutní-BODY'!$E$2:$O$161,8,FALSE)) ->  | AG15: =IF($AA15=0,"",VLOOKUP($AA15,'Absolutní-BODY'!$E$2:$O$161,9,FALSE)) ->  | AH15: =IF($AA15=0,"",VLOOKUP($AA15,'Absolutní-BODY'!$E$2:$O$161,10,FALSE)) ->  | AI15: =IF($AA15=0,"",VLOOKUP($AA15,'Absolutní-BODY'!$E$2:$O$161,11,FALSE)) -> 
A16: 3 | B16: =IF(C16=0,"",VLOOKUP($C16,seznam!$A$1:$E$5058,2,FALSE)) ->  | D16: =IF($C16=0,"",VLOOKUP($C16,'Absolutní-BODY'!$E$2:$O$161,4,FALSE)) ->  | E16: =IF($C16=0,"",VLOOKUP($C16,'Absolutní-BODY'!$E$2:$O$161,5,FALSE)) ->  | F16: =IF($C16=0,"",VLOOKUP($C16,'Absolutní-BODY'!$E$2:$O$161,6,FALSE)) ->  | G16: =IF($C16=0,"",VLOOKUP($C16,'Absolutní-BODY'!$E$2:$O$161,7,FALSE)) ->  | H16: =IF($C16=0,"",VLOOKUP($C16,'Absolutní-BODY'!$E$2:$O$161,8,FALSE)) ->  | I16: =IF($C16=0,"",VLOOKUP($C16,'Absolutní-BODY'!$E$2:$O$161,9,FALSE)) ->  | J16: =IF($C16=0,"",VLOOKUP($C16,'Absolutní-BODY'!$E$2:$O$161,10,FALSE)) ->  | K16: =IF($C16=0,"",VLOOKUP($C16,'Absolutní-BODY'!$E$2:$O$161,11,FALSE)) ->  | M16: 3 | N16: =IF(O16=0,"",VLOOKUP($O16,seznam!$A$1:$E$5058,2,FALSE)) ->  | P16: =IF($O16=0,"",VLOOKUP($O16,'Absolutní-BODY'!$E$2:$O$161,4,FALSE)) ->  | Q16: =IF($O16=0,"",VLOOKUP($O16,'Absolutní-BODY'!$E$2:$O$161,5,FALSE)) ->  | R16: =IF($O16=0,"",VLOOKUP($O16,'Absolutní-BODY'!$E$2:$O$161,6,FALSE)) ->  | S16: =IF($O16=0,"",VLOOKUP($O16,'Absolutní-BODY'!$E$2:$O$161,7,FALSE)) ->  | T16: =IF($O16=0,"",VLOOKUP($O16,'Absolutní-BODY'!$E$2:$O$161,8,FALSE)) ->  | U16: =IF($O16=0,"",VLOOKUP($O16,'Absolutní-BODY'!$E$2:$O$161,9,FALSE)) ->  | V16: =IF($O16=0,"",VLOOKUP($O16,'Absolutní-BODY'!$E$2:$O$161,10,FALSE)) ->  | W16: =IF($O16=0,"",VLOOKUP($O16,'Absolutní-BODY'!$E$2:$O$161,11,FALSE)) ->  | Y16: 3 | Z16: =IF(AA16=0,"",VLOOKUP($AA16,seznam!$A$1:$E$5058,2,FALSE)) ->  | AB16: =IF($AA16=0,"",VLOOKUP($AA16,'Absolutní-BODY'!$E$2:$O$161,4,FALSE)) ->  | AC16: =IF($AA16=0,"",VLOOKUP($AA16,'Absolutní-BODY'!$E$2:$O$161,5,FALSE)) ->  | AD16: =IF($AA16=0,"",VLOOKUP($AA16,'Absolutní-BODY'!$E$2:$O$161,6,FALSE)) ->  | AE16: =IF($AA16=0,"",VLOOKUP($AA16,'Absolutní-BODY'!$E$2:$O$161,7,FALSE)) ->  | AF16: =IF($AA16=0,"",VLOOKUP($AA16,'Absolutní-BODY'!$E$2:$O$161,8,FALSE)) ->  | AG16: =IF($AA16=0,"",VLOOKUP($AA16,'Absolutní-BODY'!$E$2:$O$161,9,FALSE)) ->  | AH16: =IF($AA16=0,"",VLOOKUP($AA16,'Absolutní-BODY'!$E$2:$O$161,10,FALSE)) ->  | AI16: =IF($AA16=0,"",VLOOKUP($AA16,'Absolutní-BODY'!$E$2:$O$161,11,FALSE)) -> 
A17: N | B17: =IF(C17=0,"",VLOOKUP($C17,seznam!$A$1:$E$5058,2,FALSE)) ->  | D17: =IF($C17=0,"",VLOOKUP($C17,'Absolutní-BODY'!$E$2:$O$161,4,FALSE)) ->  | E17: =IF($C17=0,"",VLOOKUP($C17,'Absolutní-BODY'!$E$2:$O$161,5,FALSE)) ->  | F17: =IF($C17=0,"",VLOOKUP($C17,'Absolutní-BODY'!$E$2:$O$161,6,FALSE)) ->  | G17: =IF($C17=0,"",VLOOKUP($C17,'Absolutní-BODY'!$E$2:$O$161,7,FALSE)) ->  | H17: =IF($C17=0,"",VLOOKUP($C17,'Absolutní-BODY'!$E$2:$O$161,8,FALSE)) ->  | I17: =IF($C17=0,"",VLOOKUP($C17,'Absolutní-BODY'!$E$2:$O$161,9,FALSE)) ->  | J17: =IF($C17=0,"",VLOOKUP($C17,'Absolutní-BODY'!$E$2:$O$161,10,FALSE)) ->  | K17: =IF($C17=0,"",VLOOKUP($C17,'Absolutní-BODY'!$E$2:$O$161,11,FALSE)) ->  | M17: N | N17: =IF(O17=0,"",VLOOKUP($O17,seznam!$A$1:$E$5058,2,FALSE)) ->  | P17: =IF($O17=0,"",VLOOKUP($O17,'Absolutní-BODY'!$E$2:$O$161,4,FALSE)) ->  | Q17: =IF($O17=0,"",VLOOKUP($O17,'Absolutní-BODY'!$E$2:$O$161,5,FALSE)) ->  | R17: =IF($O17=0,"",VLOOKUP($O17,'Absolutní-BODY'!$E$2:$O$161,6,FALSE)) ->  | S17: =IF($O17=0,"",VLOOKUP($O17,'Absolutní-BODY'!$E$2:$O$161,7,FALSE)) ->  | T17: =IF($O17=0,"",VLOOKUP($O17,'Absolutní-BODY'!$E$2:$O$161,8,FALSE)) ->  | U17: =IF($O17=0,"",VLOOKUP($O17,'Absolutní-BODY'!$E$2:$O$161,9,FALSE)) ->  | V17: =IF($O17=0,"",VLOOKUP($O17,'Absolutní-BODY'!$E$2:$O$161,10,FALSE)) ->  | W17: =IF($O17=0,"",VLOOKUP($O17,'Absolutní-BODY'!$E$2:$O$161,11,FALSE)) ->  | Y17: N | Z17: =IF(AA17=0,"",VLOOKUP($AA17,seznam!$A$1:$E$5058,2,FALSE)) ->  | AB17: =IF($AA17=0,"",VLOOKUP($AA17,'Absolutní-BODY'!$E$2:$O$161,4,FALSE)) ->  | AC17: =IF($AA17=0,"",VLOOKUP($AA17,'Absolutní-BODY'!$E$2:$O$161,5,FALSE)) ->  | AD17: =IF($AA17=0,"",VLOOKUP($AA17,'Absolutní-BODY'!$E$2:$O$161,6,FALSE)) ->  | AE17: =IF($AA17=0,"",VLOOKUP($AA17,'Absolutní-BODY'!$E$2:$O$161,7,FALSE)) ->  | AF17: =IF($AA17=0,"",VLOOKUP($AA17,'Absolutní-BODY'!$E$2:$O$161,8,FALSE)) ->  | AG17: =IF($AA17=0,"",VLOOKUP($AA17,'Absolutní-BODY'!$E$2:$O$161,9,FALSE)) ->  | AH17: =IF($AA17=0,"",VLOOKUP($AA17,'Absolutní-BODY'!$E$2:$O$161,10,FALSE)) ->  | AI17: =IF($AA17=0,"",VLOOKUP($AA17,'Absolutní-BODY'!$E$2:$O$161,11,FALSE)) -> 
D18: =SUM(D14:D17) -> 0 | E18: 0 | F18: 0 | G18: 0 | H18: 0 | I18: 0 | J18: 0 | K18: 0 | P18: =SUM(P14:P17) -> 0 | Q18: 0 | R18: 0 | S18: 0 | T18: 0 | U18: 0 | V18: 0 | W18: 0 | AB18: =SUM(AB14:AB17) -> 0 | AC18: 0 | AD18: 0 | AE18: 0 | AF18: 0 | AG18: 0 | AH18: 0 | AI18: 0
C19: bodů | H19: celkem | J19: =SUM(D18:K18) -> 0 | O19: bodů | T19: celkem | V19: =SUM(P18:W18) -> 0 | AA19: bodů | AF19: celkem | AH19: =SUM(AB18:AI18) -> 0
B21: 7. místo | N21: 8. místo
C22: reg | D22: 1 | E22: 2 | F22: 3 | G22: 4 | H22: 5 | I22: 6 | J22: 7 | K22: 8 | O22: reg | P22: 1 | Q22: 2 | R22: 3 | S22: 4 | T22: 5 | U22: 6 | V22: 7 | W22: 8
A23: 1 | B23: =IF(C23=0,"",VLOOKUP($C23,seznam!$A$1:$E$5058,2,FALSE)) ->  | D23: =IF($C23=0,"",VLOOKUP($C23,'Absolutní-BODY'!$E$2:$O$161,4,FALSE)) ->  | E23: =IF($C23=0,"",VLOOKUP($C23,'Absolutní-BODY'!$E$2:$O$161,5,FALSE)) ->  | F23: =IF($C23=0,"",VLOOKUP($C23,'Absolutní-BODY'!$E$2:$O$161,6,FALSE)) ->  | G23: =IF($C23=0,"",VLOOKUP($C23,'Absolutní-BODY'!$E$2:$O$161,7,FALSE)) ->  | H23: =IF($C23=0,"",VLOOKUP($C23,'Absolutní-BODY'!$E$2:$O$161,8,FALSE)) ->  | I23: =IF($C23=0,"",VLOOKUP($C23,'Absolutní-BODY'!$E$2:$O$161,9,FALSE)) ->  | J23: =IF($C23=0,"",VLOOKUP($C23,'Absolutní-BODY'!$E$2:$O$161,10,FALSE)) ->  | K23: =IF($C23=0,"",VLOOKUP($C23,'Absolutní-BODY'!$E$2:$O$161,11,FALSE)) ->  | M23: 1 | N23: =IF(O23=0,"",VLOOKUP($O23,seznam!$A$1:$E$5058,2,FALSE)) ->  | P23: =IF($O23=0,"",VLOOKUP($O23,'Absolutní-BODY'!$E$2:$O$161,4,FALSE)) ->  | Q23: =IF($O23=0,"",VLOOKUP($O23,'Absolutní-BODY'!$E$2:$O$161,5,FALSE)) ->  | R23: =IF($O23=0,"",VLOOKUP($O23,'Absolutní-BODY'!$E$2:$O$161,6,FALSE)) ->  | S23: =IF($O23=0,"",VLOOKUP($O23,'Absolutní-BODY'!$E$2:$O$161,7,FALSE)) ->  | T23: =IF($O23=0,"",VLOOKUP($O23,'Absolutní-BODY'!$E$2:$O$161,8,FALSE)) ->  | U23: =IF($O23=0,"",VLOOKUP($O23,'Absolutní-BODY'!$E$2:$O$161,9,FALSE)) ->  | V23: =IF($O23=0,"",VLOOKUP($O23,'Absolutní-BODY'!$E$2:$O$161,10,FALSE)) ->  | W23: =IF($O23=0,"",VLOOKUP($O23,'Absolutní-BODY'!$E$2:$O$161,11,FALSE)) -> 
A24: 2 | B24: =IF(C24=0,"",VLOOKUP($C24,seznam!$A$1:$E$5058,2,FALSE)) ->  | D24: =IF($C24=0,"",VLOOKUP($C24,'Absolutní-BODY'!$E$2:$O$161,4,FALSE)) ->  | E24: =IF($C24=0,"",VLOOKUP($C24,'Absolutní-BODY'!$E$2:$O$161,5,FALSE)) ->  | F24: =IF($C24=0,"",VLOOKUP($C24,'Absolutní-BODY'!$E$2:$O$161,6,FALSE)) ->  | G24: =IF($C24=0,"",VLOOKUP($C24,'Absolutní-BODY'!$E$2:$O$161,7,FALSE)) ->  | H24: =IF($C24=0,"",VLOOKUP($C24,'Absolutní-BODY'!$E$2:$O$161,8,FALSE)) ->  | I24: =IF($C24=0,"",VLOOKUP($C24,'Absolutní-BODY'!$E$2:$O$161,9,FALSE)) ->  | J24: =IF($C24=0,"",VLOOKUP($C24,'Absolutní-BODY'!$E$2:$O$161,10,FALSE)) ->  | K24: =IF($C24=0,"",VLOOKUP($C24,'Absolutní-BODY'!$E$2:$O$161,11,FALSE)) ->  | M24: 2 | N24: =IF(O24=0,"",VLOOKUP($O24,seznam!$A$1:$E$5058,2,FALSE)) ->  | P24: =IF($O24=0,"",VLOOKUP($O24,'Absolutní-BODY'!$E$2:$O$161,4,FALSE)) ->  | Q24: =IF($O24=0,"",VLOOKUP($O24,'Absolutní-BODY'!$E$2:$O$161,5,FALSE)) ->  | R24: =IF($O24=0,"",VLOOKUP($O24,'Absolutní-BODY'!$E$2:$O$161,6,FALSE)) ->  | S24: =IF($O24=0,"",VLOOKUP($O24,'Absolutní-BODY'!$E$2:$O$161,7,FALSE)) ->  | T24: =IF($O24=0,"",VLOOKUP($O24,'Absolutní-BODY'!$E$2:$O$161,8,FALSE)) ->  | U24: =IF($O24=0,"",VLOOKUP($O24,'Absolutní-BODY'!$E$2:$O$161,9,FALSE)) ->  | V24: =IF($O24=0,"",VLOOKUP($O24,'Absolutní-BODY'!$E$2:$O$161,10,FALSE)) ->  | W24: =IF($O24=0,"",VLOOKUP($O24,'Absolutní-BODY'!$E$2:$O$161,11,FALSE)) -> 
A25: 3 | B25: =IF(C25=0,"",VLOOKUP($C25,seznam!$A$1:$E$5058,2,FALSE)) ->  | D25: =IF($C25=0,"",VLOOKUP($C25,'Absolutní-BODY'!$E$2:$O$161,4,FALSE)) ->  | E25: =IF($C25=0,"",VLOOKUP($C25,'Absolutní-BODY'!$E$2:$O$161,5,FALSE)) ->  | F25: =IF($C25=0,"",VLOOKUP($C25,'Absolutní-BODY'!$E$2:$O$161,6,FALSE)) ->  | G25: =IF($C25=0,"",VLOOKUP($C25,'Absolutní-BODY'!$E$2:$O$161,7,FALSE)) ->  | H25: =IF($C25=0,"",VLOOKUP($C25,'Absolutní-BODY'!$E$2:$O$161,8,FALSE)) ->  | I25: =IF($C25=0,"",VLOOKUP($C25,'Absolutní-BODY'!$E$2:$O$161,9,FALSE)) ->  | J25: =IF($C25=0,"",VLOOKUP($C25,'Absolutní-BODY'!$E$2:$O$161,10,FALSE)) ->  | K25: =IF($C25=0,"",VLOOKUP($C25,'Absolutní-BODY'!$E$2:$O$161,11,FALSE)) ->  | M25: 3 | N25: =IF(O25=0,"",VLOOKUP($O25,seznam!$A$1:$E$5058,2,FALSE)) ->  | P25: =IF($O25=0,"",VLOOKUP($O25,'Absolutní-BODY'!$E$2:$O$161,4,FALSE)) ->  | Q25: =IF($O25=0,"",VLOOKUP($O25,'Absolutní-BODY'!$E$2:$O$161,5,FALSE)) ->  | R25: =IF($O25=0,"",VLOOKUP($O25,'Absolutní-BODY'!$E$2:$O$161,6,FALSE)) ->  | S25: =IF($O25=0,"",VLOOKUP($O25,'Absolutní-BODY'!$E$2:$O$161,7,FALSE)) ->  | T25: =IF($O25=0,"",VLOOKUP($O25,'Absolutní-BODY'!$E$2:$O$161,8,FALSE)) ->  | U25: =IF($O25=0,"",VLOOKUP($O25,'Absolutní-BODY'!$E$2:$O$161,9,FALSE)) ->  | V25: =IF($O25=0,"",VLOOKUP($O25,'Absolutní-BODY'!$E$2:$O$161,10,FALSE)) ->  | W25: =IF($O25=0,"",VLOOKUP($O25,'Absolutní-BODY'!$E$2:$O$161,11,FALSE)) -> 
A26: N | B26: =IF(C26=0,"",VLOOKUP($C26,seznam!$A$1:$E$5058,2,FALSE)) ->  | D26: =IF($C26=0,"",VLOOKUP($C26,'Absolutní-BODY'!$E$2:$O$161,4,FALSE)) ->  | E26: =IF($C26=0,"",VLOOKUP($C26,'Absolutní-BODY'!$E$2:$O$161,5,FALSE)) ->  | F26: =IF($C26=0,"",VLOOKUP($C26,'Absolutní-BODY'!$E$2:$O$161,6,FALSE)) ->  | G26: =IF($C26=0,"",VLOOKUP($C26,'Absolutní-BODY'!$E$2:$O$161,7,FALSE)) ->  | H26: =IF($C26=0,"",VLOOKUP($C26,'Absolutní-BODY'!$E$2:$O$161,8,FALSE)) ->  | I26: =IF($C26=0,"",VLOOKUP($C26,'Absolutní-BODY'!$E$2:$O$161,9,FALSE)) ->  | J26: =IF($C26=0,"",VLOOKUP($C26,'Absolutní-BODY'!$E$2:$O$161,10,FALSE)) ->  | K26: =IF($C26=0,"",VLOOKUP($C26,'Absolutní-BODY'!$E$2:$O$161,11,FALSE)) ->  | M26: N | N26: =IF(O26=0,"",VLOOKUP($O26,seznam!$A$1:$E$5058,2,FALSE)) ->  | P26: =IF($O26=0,"",VLOOKUP($O26,'Absolutní-BODY'!$E$2:$O$161,4,FALSE)) ->  | Q26: =IF($O26=0,"",VLOOKUP($O26,'Absolutní-BODY'!$E$2:$O$161,5,FALSE)) ->  | R26: =IF($O26=0,"",VLOOKUP($O26,'Absolutní-BODY'!$E$2:$O$161,6,FALSE)) ->  | S26: =IF($O26=0,"",VLOOKUP($O26,'Absolutní-BODY'!$E$2:$O$161,7,FALSE)) ->  | T26: =IF($O26=0,"",VLOOKUP($O26,'Absolutní-BODY'!$E$2:$O$161,8,FALSE)) ->  | U26: =IF($O26=0,"",VLOOKUP($O26,'Absolutní-BODY'!$E$2:$O$161,9,FALSE)) ->  | V26: =IF($O26=0,"",VLOOKUP($O26,'Absolutní-BODY'!$E$2:$O$161,10,FALSE)) ->  | W26: =IF($O26=0,"",VLOOKUP($O26,'Absolutní-BODY'!$E$2:$O$161,11,FALSE)) -> 
D27: =SUM(D23:D26) -> 0 | E27: 0 | F27: 0 | G27: 0 | H27: 0 | I27: 0 | J27: 0 | K27: 0 | P27: =SUM(P23:P26) -> 0 | Q27: 0 | R27: 0 | S27: 0 | T27: 0 | U27: 0 | V27: 0 | W27: 0
C28: bodů | H28: celkem | J28: =SUM(D27:K27) -> 0 | O28: bodů | T28: celkem | V28: =SUM(P27:W27) -> 0

Sheet Liga-kolo-S (hidden)
A1: ? | B1: .kolo | C1: ? | E1: liga seniorských družstev | N1: 2012 / 2013
B3: 1. místo | N3: 2. místo | Z3: 3. místo
C4: reg | D4: 1 | E4: 2 | F4: 3 | G4: 4 | H4: 5 | I4: 6 | J4: 7 | K4: 8 | O4: reg | P4: 1 | Q4: 2 | R4: 3 | S4: 4 | T4: 5 | U4: 6 | V4: 7 | W4: 8 | AA4: reg | AB4: 1 | AC4: 2 | AD4: 3 | AE4: 4 | AF4: 5 | AG4: 6 | AH4: 7 | AI4: 8
A5: 1 | B5: =IF(C5=0,"",VLOOKUP($C5,seznam!$A$1:$E$5058,2,FALSE)) ->  | D5: =IF($C5=0,"",VLOOKUP($C5,'Absolutní-BODY'!$E$2:$O$161,4,FALSE)) ->  | E5: =IF($C5=0,"",VLOOKUP($C5,'Absolutní-BODY'!$E$2:$O$161,5,FALSE)) ->  | F5: =IF($C5=0,"",VLOOKUP($C5,'Absolutní-BODY'!$E$2:$O$161,6,FALSE)) ->  | G5: =IF($C5=0,"",VLOOKUP($C5,'Absolutní-BODY'!$E$2:$O$161,7,FALSE)) ->  | H5: =IF($C5=0,"",VLOOKUP($C5,'Absolutní-BODY'!$E$2:$O$161,8,FALSE)) ->  | I5: =IF($C5=0,"",VLOOKUP($C5,'Absolutní-BODY'!$E$2:$O$161,9,FALSE)) ->  | J5: =IF($C5=0,"",VLOOKUP($C5,'Absolutní-BODY'!$E$2:$O$161,10,FALSE)) ->  | K5: =IF($C5=0,"",VLOOKUP($C5,'Absolutní-BODY'!$E$2:$O$161,11,FALSE)) ->  | M5: 1 | N5: =IF(O5=0,"",VLOOKUP($O5,seznam!$A$1:$E$5058,2,FALSE)) ->  | P5: =IF($O5=0,"",VLOOKUP($O5,'Absolutní-BODY'!$E$2:$O$161,4,FALSE)) ->  | Q5: =IF($O5=0,"",VLOOKUP($O5,'Absolutní-BODY'!$E$2:$O$161,5,FALSE)) ->  | R5: =IF($O5=0,"",VLOOKUP($O5,'Absolutní-BODY'!$E$2:$O$161,6,FALSE)) ->  | S5: =IF($O5=0,"",VLOOKUP($O5,'Absolutní-BODY'!$E$2:$O$161,7,FALSE)) ->  | T5: =IF($O5=0,"",VLOOKUP($O5,'Absolutní-BODY'!$E$2:$O$161,8,FALSE)) ->  | U5: =IF($O5=0,"",VLOOKUP($O5,'Absolutní-BODY'!$E$2:$O$161,9,FALSE)) ->  | V5: =IF($O5=0,"",VLOOKUP($O5,'Absolutní-BODY'!$E$2:$O$161,10,FALSE)) ->  | W5: =IF($O5=0,"",VLOOKUP($O5,'Absolutní-BODY'!$E$2:$O$161,11,FALSE)) ->  | Y5: 1 | Z5: =IF(AA5=0,"",VLOOKUP($AA5,seznam!$A$1:$E$5058,2,FALSE)) ->  | AB5: =IF($AA5=0,"",VLOOKUP($AA5,'Absolutní-BODY'!$E$2:$O$161,4,FALSE)) ->  | AC5: =IF($AA5=0,"",VLOOKUP($AA5,'Absolutní-BODY'!$E$2:$O$161,5,FALSE)) ->  | AD5: =IF($AA5=0,"",VLOOKUP($AA5,'Absolutní-BODY'!$E$2:$O$161,6,FALSE)) ->  | AE5: =IF($AA5=0,"",VLOOKUP($AA5,'Absolutní-BODY'!$E$2:$O$161,7,FALSE)) ->  | AF5: =IF($AA5=0,"",VLOOKUP($AA5,'Absolutní-BODY'!$E$2:$O$161,8,FALSE)) ->  | AG5: =IF($AA5=0,"",VLOOKUP($AA5,'Absolutní-BODY'!$E$2:$O$161,9,FALSE)) ->  | AH5: =IF($AA5=0,"",VLOOKUP($AA5,'Absolutní-BODY'!$E$2:$O$161,10,FALSE)) ->  | AI5: =IF($AA5=0,"",VLOOKUP($AA5,'Absolutní-BODY'!$E$2:$O$161,11,FALSE)) -> 
A6: 2 | B6: =IF(C6=0,"",VLOOKUP($C6,seznam!$A$1:$E$5058,2,FALSE)) ->  | D6: =IF($C6=0,"",VLOOKUP($C6,'Absolutní-BODY'!$E$2:$O$161,4,FALSE)) ->  | E6: =IF($C6=0,"",VLOOKUP($C6,'Absolutní-BODY'!$E$2:$O$161,5,FALSE)) ->  | F6: =IF($C6=0,"",VLOOKUP($C6,'Absolutní-BODY'!$E$2:$O$161,6,FALSE)) ->  | G6: =IF($C6=0,"",VLOOKUP($C6,'Absolutní-BODY'!$E$2:$O$161,7,FALSE)) ->  | H6: =IF($C6=0,"",VLOOKUP($C6,'Absolutní-BODY'!$E$2:$O$161,8,FALSE)) ->  | I6: =IF($C6=0,"",VLOOKUP($C6,'Absolutní-BODY'!$E$2:$O$161,9,FALSE)) ->  | J6: =IF($C6=0,"",VLOOKUP($C6,'Absolutní-BODY'!$E$2:$O$161,10,FALSE)) ->  | K6: =IF($C6=0,"",VLOOKUP($C6,'Absolutní-BODY'!$E$2:$O$161,11,FALSE)) ->  | M6: 2 | N6: =IF(O6=0,"",VLOOKUP($O6,seznam!$A$1:$E$5058,2,FALSE)) ->  | P6: =IF($O6=0,"",VLOOKUP($O6,'Absolutní-BODY'!$E$2:$O$161,4,FALSE)) ->  | Q6: =IF($O6=0,"",VLOOKUP($O6,'Absolutní-BODY'!$E$2:$O$161,5,FALSE)) ->  | R6: =IF($O6=0,"",VLOOKUP($O6,'Absolutní-BODY'!$E$2:$O$161,6,FALSE)) ->  | S6: =IF($O6=0,"",VLOOKUP($O6,'Absolutní-BODY'!$E$2:$O$161,7,FALSE)) ->  | T6: =IF($O6=0,"",VLOOKUP($O6,'Absolutní-BODY'!$E$2:$O$161,8,FALSE)) ->  | U6: =IF($O6=0,"",VLOOKUP($O6,'Absolutní-BODY'!$E$2:$O$161,9,FALSE)) ->  | V6: =IF($O6=0,"",VLOOKUP($O6,'Absolutní-BODY'!$E$2:$O$161,10,FALSE)) ->  | W6: =IF($O6=0,"",VLOOKUP($O6,'Absolutní-BODY'!$E$2:$O$161,11,FALSE)) ->  | Y6: 2 | Z6: =IF(AA6=0,"",VLOOKUP($AA6,seznam!$A$1:$E$5058,2,FALSE)) ->  | AB6: =IF($AA6=0,"",VLOOKUP($AA6,'Absolutní-BODY'!$E$2:$O$161,4,FALSE)) ->  | AC6: =IF($AA6=0,"",VLOOKUP($AA6,'Absolutní-BODY'!$E$2:$O$161,5,FALSE)) ->  | AD6: =IF($AA6=0,"",VLOOKUP($AA6,'Absolutní-BODY'!$E$2:$O$161,6,FALSE)) ->  | AE6: =IF($AA6=0,"",VLOOKUP($AA6,'Absolutní-BODY'!$E$2:$O$161,7,FALSE)) ->  | AF6: =IF($AA6=0,"",VLOOKUP($AA6,'Absolutní-BODY'!$E$2:$O$161,8,FALSE)) ->  | AG6: =IF($AA6=0,"",VLOOKUP($AA6,'Absolutní-BODY'!$E$2:$O$161,9,FALSE)) ->  | AH6: =IF($AA6=0,"",VLOOKUP($AA6,'Absolutní-BODY'!$E$2:$O$161,10,FALSE)) ->  | AI6: =IF($AA6=0,"",VLOOKUP($AA6,'Absolutní-BODY'!$E$2:$O$161,11,FALSE)) -> 
A7: 3 | B7: =IF(C7=0,"",VLOOKUP($C7,seznam!$A$1:$E$5058,2,FALSE)) ->  | D7: =IF($C7=0,"",VLOOKUP($C7,'Absolutní-BODY'!$E$2:$O$161,4,FALSE)) ->  | E7: =IF($C7=0,"",VLOOKUP($C7,'Absolutní-BODY'!$E$2:$O$161,5,FALSE)) ->  | F7: =IF($C7=0,"",VLOOKUP($C7,'Absolutní-BODY'!$E$2:$O$161,6,FALSE)) ->  | G7: =IF($C7=0,"",VLOOKUP($C7,'Absolutní-BODY'!$E$2:$O$161,7,FALSE)) ->  | H7: =IF($C7=0,"",VLOOKUP($C7,'Absolutní-BODY'!$E$2:$O$161,8,FALSE)) ->  | I7: =IF($C7=0,"",VLOOKUP($C7,'Absolutní-BODY'!$E$2:$O$161,9,FALSE)) ->  | J7: =IF($C7=0,"",VLOOKUP($C7,'Absolutní-BODY'!$E$2:$O$161,10,FALSE)) ->  | K7: =IF($C7=0,"",VLOOKUP($C7,'Absolutní-BODY'!$E$2:$O$161,11,FALSE)) ->  | M7: 3 | N7: =IF(O7=0,"",VLOOKUP($O7,seznam!$A$1:$E$5058,2,FALSE)) ->  | P7: =IF($O7=0,"",VLOOKUP($O7,'Absolutní-BODY'!$E$2:$O$161,4,FALSE)) ->  | Q7: =IF($O7=0,"",VLOOKUP($O7,'Absolutní-BODY'!$E$2:$O$161,5,FALSE)) ->  | R7: =IF($O7=0,"",VLOOKUP($O7,'Absolutní-BODY'!$E$2:$O$161,6,FALSE)) ->  | S7: =IF($O7=0,"",VLOOKUP($O7,'Absolutní-BODY'!$E$2:$O$161,7,FALSE)) ->  | T7: =IF($O7=0,"",VLOOKUP($O7,'Absolutní-BODY'!$E$2:$O$161,8,FALSE)) ->  | U7: =IF($O7=0,"",VLOOKUP($O7,'Absolutní-BODY'!$E$2:$O$161,9,FALSE)) ->  | V7: =IF($O7=0,"",VLOOKUP($O7,'Absolutní-BODY'!$E$2:$O$161,10,FALSE)) ->  | W7: =IF($O7=0,"",VLOOKUP($O7,'Absolutní-BODY'!$E$2:$O$161,11,FALSE)) ->  | Y7: 3 | Z7: =IF(AA7=0,"",VLOOKUP($AA7,seznam!$A$1:$E$5058,2,FALSE)) ->  | AB7: =IF($AA7=0,"",VLOOKUP($AA7,'Absolutní-BODY'!$E$2:$O$161,4,FALSE)) ->  | AC7: =IF($AA7=0,"",VLOOKUP($AA7,'Absolutní-BODY'!$E$2:$O$161,5,FALSE)) ->  | AD7: =IF($AA7=0,"",VLOOKUP($AA7,'Absolutní-BODY'!$E$2:$O$161,6,FALSE)) ->  | AE7: =IF($AA7=0,"",VLOOKUP($AA7,'Absolutní-BODY'!$E$2:$O$161,7,FALSE)) ->  | AF7: =IF($AA7=0,"",VLOOKUP($AA7,'Absolutní-BODY'!$E$2:$O$161,8,FALSE)) ->  | AG7: =IF($AA7=0,"",VLOOKUP($AA7,'Absolutní-BODY'!$E$2:$O$161,9,FALSE)) ->  | AH7: =IF($AA7=0,"",VLOOKUP($AA7,'Absolutní-BODY'!$E$2:$O$161,10,FALSE)) ->  | AI7: =IF($AA7=0,"",VLOOKUP($AA7,'Absolutní-BODY'!$E$2:$O$161,11,FALSE)) -> 
A8: N | B8: =IF(C8=0,"",VLOOKUP($C8,seznam!$A$1:$E$5058,2,FALSE)) ->  | D8: =IF($C8=0,"",VLOOKUP($C8,'Absolutní-BODY'!$E$2:$O$161,4,FALSE)) ->  | E8: =IF($C8=0,"",VLOOKUP($C8,'Absolutní-BODY'!$E$2:$O$161,5,FALSE)) ->  | F8: =IF($C8=0,"",VLOOKUP($C8,'Absolutní-BODY'!$E$2:$O$161,6,FALSE)) ->  | G8: =IF($C8=0,"",VLOOKUP($C8,'Absolutní-BODY'!$E$2:$O$161,7,FALSE)) ->  | H8: =IF($C8=0,"",VLOOKUP($C8,'Absolutní-BODY'!$E$2:$O$161,8,FALSE)) ->  | I8: =IF($C8=0,"",VLOOKUP($C8,'Absolutní-BODY'!$E$2:$O$161,9,FALSE)) ->  | J8: =IF($C8=0,"",VLOOKUP($C8,'Absolutní-BODY'!$E$2:$O$161,10,FALSE)) ->  | K8: =IF($C8=0,"",VLOOKUP($C8,'Absolutní-BODY'!$E$2:$O$161,11,FALSE)) ->  | M8: N | N8: =IF(O8=0,"",VLOOKUP($O8,seznam!$A$1:$E$5058,2,FALSE)) ->  | P8: =IF($O8=0,"",VLOOKUP($O8,'Absolutní-BODY'!$E$2:$O$161,4,FALSE)) ->  | Q8: =IF($O8=0,"",VLOOKUP($O8,'Absolutní-BODY'!$E$2:$O$161,5,FALSE)) ->  | R8: =IF($O8=0,"",VLOOKUP($O8,'Absolutní-BODY'!$E$2:$O$161,6,FALSE)) ->  | S8: =IF($O8=0,"",VLOOKUP($O8,'Absolutní-BODY'!$E$2:$O$161,7,FALSE)) ->  | T8: =IF($O8=0,"",VLOOKUP($O8,'Absolutní-BODY'!$E$2:$O$161,8,FALSE)) ->  | U8: =IF($O8=0,"",VLOOKUP($O8,'Absolutní-BODY'!$E$2:$O$161,9,FALSE)) ->  | V8: =IF($O8=0,"",VLOOKUP($O8,'Absolutní-BODY'!$E$2:$O$161,10,FALSE)) ->  | W8: =IF($O8=0,"",VLOOKUP($O8,'Absolutní-BODY'!$E$2:$O$161,11,FALSE)) ->  | Y8: N | Z8: =IF(AA8=0,"",VLOOKUP($AA8,seznam!$A$1:$E$5058,2,FALSE)) ->  | AB8: =IF($AA8=0,"",VLOOKUP($AA8,'Absolutní-BODY'!$E$2:$O$161,4,FALSE)) ->  | AC8: =IF($AA8=0,"",VLOOKUP($AA8,'Absolutní-BODY'!$E$2:$O$161,5,FALSE)) ->  | AD8: =IF($AA8=0,"",VLOOKUP($AA8,'Absolutní-BODY'!$E$2:$O$161,6,FALSE)) ->  | AE8: =IF($AA8=0,"",VLOOKUP($AA8,'Absolutní-BODY'!$E$2:$O$161,7,FALSE)) ->  | AF8: =IF($AA8=0,"",VLOOKUP($AA8,'Absolutní-BODY'!$E$2:$O$161,8,FALSE)) ->  | AG8: =IF($AA8=0,"",VLOOKUP($AA8,'Absolutní-BODY'!$E$2:$O$161,9,FALSE)) ->  | AH8: =IF($AA8=0,"",VLOOKUP($AA8,'Absolutní-BODY'!$E$2:$O$161,10,FALSE)) ->  | AI8: =IF($AA8=0,"",VLOOKUP($AA8,'Absolutní-BODY'!$E$2:$O$161,11,FALSE)) -> 
D9: =SUM(D5:D8) -> 0 | E9: 0 | F9: 0 | G9: 0 | H9: 0 | I9: 0 | J9: 0 | K9: 0 | P9: =SUM(P5:P8) -> 0 | Q9: 0 | R9: 0 | S9: 0 | T9: 0 | U9: 0 | V9: 0 | W9: 0 | AB9: =SUM(AB5:AB8) -> 0 | AC9: 0 | AD9: 0 | AE9: 0 | AF9: 0 | AG9: 0 | AH9: 0 | AI9: 0
C10: bodů | H10: celkem | J10: =SUM(D9:K9) -> 0 | O10: bodů | T10: celkem | V10: =SUM(P9:W9) -> 0 | AA10: bodů | AF10: celkem | AH10: =SUM(AB9:AI9) -> 0
B12: 4. místo | N12: 5. místo | Z12: 6. místo
C13: reg | D13: 1 | E13: 2 | F13: 3 | G13: 4 | H13: 5 | I13: 6 | J13: 7 | K13: 8 | O13: reg | P13: 1 | Q13: 2 | R13: 3 | S13: 4 | T13: 5 | U13: 6 | V13: 7 | W13: 8 | AA13: reg | AB13: 1 | AC13: 2 | AD13: 3 | AE13: 4 | AF13: 5 | AG13: 6 | AH13: 7 | AI13: 8
A14: 1 | B14: =IF(C14=0,"",VLOOKUP($C14,seznam!$A$1:$E$5058,2,FALSE)) ->  | D14: =IF($C14=0,"",VLOOKUP($C14,'Absolutní-BODY'!$E$2:$O$161,4,FALSE)) ->  | E14: =IF($C14=0,"",VLOOKUP($C14,'Absolutní-BODY'!$E$2:$O$161,5,FALSE)) ->  | F14: =IF($C14=0,"",VLOOKUP($C14,'Absolutní-BODY'!$E$2:$O$161,6,FALSE)) ->  | G14: =IF($C14=0,"",VLOOKUP($C14,'Absolutní-BODY'!$E$2:$O$161,7,FALSE)) ->  | H14: =IF($C14=0,"",VLOOKUP($C14,'Absolutní-BODY'!$E$2:$O$161,8,FALSE)) ->  | I14: =IF($C14=0,"",VLOOKUP($C14,'Absolutní-BODY'!$E$2:$O$161,9,FALSE)) ->  | J14: =IF($C14=0,"",VLOOKUP($C14,'Absolutní-BODY'!$E$2:$O$161,10,FALSE)) ->  | K14: =IF($C14=0,"",VLOOKUP($C14,'Absolutní-BODY'!$E$2:$O$161,11,FALSE)) ->  | M14: 1 | N14: =IF(O14=0,"",VLOOKUP($O14,seznam!$A$1:$E$5058,2,FALSE)) ->  | P14: =IF($O14=0,"",VLOOKUP($O14,'Absolutní-BODY'!$E$2:$O$161,4,FALSE)) ->  | Q14: =IF($O14=0,"",VLOOKUP($O14,'Absolutní-BODY'!$E$2:$O$161,5,FALSE)) ->  | R14: =IF($O14=0,"",VLOOKUP($O14,'Absolutní-BODY'!$E$2:$O$161,6,FALSE)) ->  | S14: =IF($O14=0,"",VLOOKUP($O14,'Absolutní-BODY'!$E$2:$O$161,7,FALSE)) ->  | T14: =IF($O14=0,"",VLOOKUP($O14,'Absolutní-BODY'!$E$2:$O$161,8,FALSE)) ->  | U14: =IF($O14=0,"",VLOOKUP($O14,'Absolutní-BODY'!$E$2:$O$161,9,FALSE)) ->  | V14: =IF($O14=0,"",VLOOKUP($O14,'Absolutní-BODY'!$E$2:$O$161,10,FALSE)) ->  | W14: =IF($O14=0,"",VLOOKUP($O14,'Absolutní-BODY'!$E$2:$O$161,11,FALSE)) ->  | Y14: 1 | Z14: =IF(AA14=0,"",VLOOKUP($AA14,seznam!$A$1:$E$5058,2,FALSE)) ->  | AB14: =IF($AA14=0,"",VLOOKUP($AA14,'Absolutní-BODY'!$E$2:$O$161,4,FALSE)) ->  | AC14: =IF($AA14=0,"",VLOOKUP($AA14,'Absolutní-BODY'!$E$2:$O$161,5,FALSE)) ->  | AD14: =IF($AA14=0,"",VLOOKUP($AA14,'Absolutní-BODY'!$E$2:$O$161,6,FALSE)) ->  | AE14: =IF($AA14=0,"",VLOOKUP($AA14,'Absolutní-BODY'!$E$2:$O$161,7,FALSE)) ->  | AF14: =IF($AA14=0,"",VLOOKUP($AA14,'Absolutní-BODY'!$E$2:$O$161,8,FALSE)) ->  | AG14: =IF($AA14=0,"",VLOOKUP($AA14,'Absolutní-BODY'!$E$2:$O$161,9,FALSE)) ->  | AH14: =IF($AA14=0,"",VLOOKUP($AA14,'Absolutní-BODY'!$E$2:$O$161,10,FALSE)) ->  | AI14: =IF($AA14=0,"",VLOOKUP($AA14,'Absolutní-BODY'!$E$2:$O$161,11,FALSE)) -> 
A15: 2 | B15: =IF(C15=0,"",VLOOKUP($C15,seznam!$A$1:$E$5058,2,FALSE)) ->  | D15: =IF($C15=0,"",VLOOKUP($C15,'Absolutní-BODY'!$E$2:$O$161,4,FALSE)) ->  | E15: =IF($C15=0,"",VLOOKUP($C15,'Absolutní-BODY'!$E$2:$O$161,5,FALSE)) ->  | F15: =IF($C15=0,"",VLOOKUP($C15,'Absolutní-BODY'!$E$2:$O$161,6,FALSE)) ->  | G15: =IF($C15=0,"",VLOOKUP($C15,'Absolutní-BODY'!$E$2:$O$161,7,FALSE)) ->  | H15: =IF($C15=0,"",VLOOKUP($C15,'Absolutní-BODY'!$E$2:$O$161,8,FALSE)) ->  | I15: =IF($C15=0,"",VLOOKUP($C15,'Absolutní-BODY'!$E$2:$O$161,9,FALSE)) ->  | J15: =IF($C15=0,"",VLOOKUP($C15,'Absolutní-BODY'!$E$2:$O$161,10,FALSE)) ->  | K15: =IF($C15=0,"",VLOOKUP($C15,'Absolutní-BODY'!$E$2:$O$161,11,FALSE)) ->  | M15: 2 | N15: =IF(O15=0,"",VLOOKUP($O15,seznam!$A$1:$E$5058,2,FALSE)) ->  | P15: =IF($O15=0,"",VLOOKUP($O15,'Absolutní-BODY'!$E$2:$O$161,4,FALSE)) ->  | Q15: =IF($O15=0,"",VLOOKUP($O15,'Absolutní-BODY'!$E$2:$O$161,5,FALSE)) ->  | R15: =IF($O15=0,"",VLOOKUP($O15,'Absolutní-BODY'!$E$2:$O$161,6,FALSE)) ->  | S15: =IF($O15=0,"",VLOOKUP($O15,'Absolutní-BODY'!$E$2:$O$161,7,FALSE)) ->  | T15: =IF($O15=0,"",VLOOKUP($O15,'Absolutní-BODY'!$E$2:$O$161,8,FALSE)) ->  | U15: =IF($O15=0,"",VLOOKUP($O15,'Absolutní-BODY'!$E$2:$O$161,9,FALSE)) ->  | V15: =IF($O15=0,"",VLOOKUP($O15,'Absolutní-BODY'!$E$2:$O$161,10,FALSE)) ->  | W15: =IF($O15=0,"",VLOOKUP($O15,'Absolutní-BODY'!$E$2:$O$161,11,FALSE)) ->  | Y15: 2 | Z15: =IF(AA15=0,"",VLOOKUP($AA15,seznam!$A$1:$E$5058,2,FALSE)) ->  | AB15: =IF($AA15=0,"",VLOOKUP($AA15,'Absolutní-BODY'!$E$2:$O$161,4,FALSE)) ->  | AC15: =IF($AA15=0,"",VLOOKUP($AA15,'Absolutní-BODY'!$E$2:$O$161,5,FALSE)) ->  | AD15: =IF($AA15=0,"",VLOOKUP($AA15,'Absolutní-BODY'!$E$2:$O$161,6,FALSE)) ->  | AE15: =IF($AA15=0,"",VLOOKUP($AA15,'Absolutní-BODY'!$E$2:$O$161,7,FALSE)) ->  | AF15: =IF($AA15=0,"",VLOOKUP($AA15,'Absolutní-BODY'!$E$2:$O$161,8,FALSE)) ->  | AG15: =IF($AA15=0,"",VLOOKUP($AA15,'Absolutní-BODY'!$E$2:$O$161,9,FALSE)) ->  | AH15: =IF($AA15=0,"",VLOOKUP($AA15,'Absolutní-BODY'!$E$2:$O$161,10,FALSE)) ->  | AI15: =IF($AA15=0,"",VLOOKUP($AA15,'Absolutní-BODY'!$E$2:$O$161,11,FALSE)) -> 
A16: 3 | B16: =IF(C16=0,"",VLOOKUP($C16,seznam!$A$1:$E$5058,2,FALSE)) ->  | D16: =IF($C16=0,"",VLOOKUP($C16,'Absolutní-BODY'!$E$2:$O$161,4,FALSE)) ->  | E16: =IF($C16=0,"",VLOOKUP($C16,'Absolutní-BODY'!$E$2:$O$161,5,FALSE)) ->  | F16: =IF($C16=0,"",VLOOKUP($C16,'Absolutní-BODY'!$E$2:$O$161,6,FALSE)) ->  | G16: =IF($C16=0,"",VLOOKUP($C16,'Absolutní-BODY'!$E$2:$O$161,7,FALSE)) ->  | H16: =IF($C16=0,"",VLOOKUP($C16,'Absolutní-BODY'!$E$2:$O$161,8,FALSE)) ->  | I16: =IF($C16=0,"",VLOOKUP($C16,'Absolutní-BODY'!$E$2:$O$161,9,FALSE)) ->  | J16: =IF($C16=0,"",VLOOKUP($C16,'Absolutní-BODY'!$E$2:$O$161,10,FALSE)) ->  | K16: =IF($C16=0,"",VLOOKUP($C16,'Absolutní-BODY'!$E$2:$O$161,11,FALSE)) ->  | M16: 3 | N16: =IF(O16=0,"",VLOOKUP($O16,seznam!$A$1:$E$5058,2,FALSE)) ->  | P16: =IF($O16=0,"",VLOOKUP($O16,'Absolutní-BODY'!$E$2:$O$161,4,FALSE)) ->  | Q16: =IF($O16=0,"",VLOOKUP($O16,'Absolutní-BODY'!$E$2:$O$161,5,FALSE)) ->  | R16: =IF($O16=0,"",VLOOKUP($O16,'Absolutní-BODY'!$E$2:$O$161,6,FALSE)) ->  | S16: =IF($O16=0,"",VLOOKUP($O16,'Absolutní-BODY'!$E$2:$O$161,7,FALSE)) ->  | T16: =IF($O16=0,"",VLOOKUP($O16,'Absolutní-BODY'!$E$2:$O$161,8,FALSE)) ->  | U16: =IF($O16=0,"",VLOOKUP($O16,'Absolutní-BODY'!$E$2:$O$161,9,FALSE)) ->  | V16: =IF($O16=0,"",VLOOKUP($O16,'Absolutní-BODY'!$E$2:$O$161,10,FALSE)) ->  | W16: =IF($O16=0,"",VLOOKUP($O16,'Absolutní-BODY'!$E$2:$O$161,11,FALSE)) ->  | Y16: 3 | Z16: =IF(AA16=0,"",VLOOKUP($AA16,seznam!$A$1:$E$5058,2,FALSE)) ->  | AB16: =IF($AA16=0,"",VLOOKUP($AA16,'Absolutní-BODY'!$E$2:$O$161,4,FALSE)) ->  | AC16: =IF($AA16=0,"",VLOOKUP($AA16,'Absolutní-BODY'!$E$2:$O$161,5,FALSE)) ->  | AD16: =IF($AA16=0,"",VLOOKUP($AA16,'Absolutní-BODY'!$E$2:$O$161,6,FALSE)) ->  | AE16: =IF($AA16=0,"",VLOOKUP($AA16,'Absolutní-BODY'!$E$2:$O$161,7,FALSE)) ->  | AF16: =IF($AA16=0,"",VLOOKUP($AA16,'Absolutní-BODY'!$E$2:$O$161,8,FALSE)) ->  | AG16: =IF($AA16=0,"",VLOOKUP($AA16,'Absolutní-BODY'!$E$2:$O$161,9,FALSE)) ->  | AH16: =IF($AA16=0,"",VLOOKUP($AA16,'Absolutní-BODY'!$E$2:$O$161,10,FALSE)) ->  | AI16: =IF($AA16=0,"",VLOOKUP($AA16,'Absolutní-BODY'!$E$2:$O$161,11,FALSE)) -> 
A17: N | B17: =IF(C17=0,"",VLOOKUP($C17,seznam!$A$1:$E$5058,2,FALSE)) ->  | D17: =IF($C17=0,"",VLOOKUP($C17,'Absolutní-BODY'!$E$2:$O$161,4,FALSE)) ->  | E17: =IF($C17=0,"",VLOOKUP($C17,'Absolutní-BODY'!$E$2:$O$161,5,FALSE)) ->  | F17: =IF($C17=0,"",VLOOKUP($C17,'Absolutní-BODY'!$E$2:$O$161,6,FALSE)) ->  | G17: =IF($C17=0,"",VLOOKUP($C17,'Absolutní-BODY'!$E$2:$O$161,7,FALSE)) ->  | H17: =IF($C17=0,"",VLOOKUP($C17,'Absolutní-BODY'!$E$2:$O$161,8,FALSE)) ->  | I17: =IF($C17=0,"",VLOOKUP($C17,'Absolutní-BODY'!$E$2:$O$161,9,FALSE)) ->  | J17: =IF($C17=0,"",VLOOKUP($C17,'Absolutní-BODY'!$E$2:$O$161,10,FALSE)) ->  | K17: =IF($C17=0,"",VLOOKUP($C17,'Absolutní-BODY'!$E$2:$O$161,11,FALSE)) ->  | M17: N | N17: =IF(O17=0,"",VLOOKUP($O17,seznam!$A$1:$E$5058,2,FALSE)) ->  | P17: =IF($O17=0,"",VLOOKUP($O17,'Absolutní-BODY'!$E$2:$O$161,4,FALSE)) ->  | Q17: =IF($O17=0,"",VLOOKUP($O17,'Absolutní-BODY'!$E$2:$O$161,5,FALSE)) ->  | R17: =IF($O17=0,"",VLOOKUP($O17,'Absolutní-BODY'!$E$2:$O$161,6,FALSE)) ->  | S17: =IF($O17=0,"",VLOOKUP($O17,'Absolutní-BODY'!$E$2:$O$161,7,FALSE)) ->  | T17: =IF($O17=0,"",VLOOKUP($O17,'Absolutní-BODY'!$E$2:$O$161,8,FALSE)) ->  | U17: =IF($O17=0,"",VLOOKUP($O17,'Absolutní-BODY'!$E$2:$O$161,9,FALSE)) ->  | V17: =IF($O17=0,"",VLOOKUP($O17,'Absolutní-BODY'!$E$2:$O$161,10,FALSE)) ->  | W17: =IF($O17=0,"",VLOOKUP($O17,'Absolutní-BODY'!$E$2:$O$161,11,FALSE)) ->  | Y17: N | Z17: =IF(AA17=0,"",VLOOKUP($AA17,seznam!$A$1:$E$5058,2,FALSE)) ->  | AB17: =IF($AA17=0,"",VLOOKUP($AA17,'Absolutní-BODY'!$E$2:$O$161,4,FALSE)) ->  | AC17: =IF($AA17=0,"",VLOOKUP($AA17,'Absolutní-BODY'!$E$2:$O$161,5,FALSE)) ->  | AD17: =IF($AA17=0,"",VLOOKUP($AA17,'Absolutní-BODY'!$E$2:$O$161,6,FALSE)) ->  | AE17: =IF($AA17=0,"",VLOOKUP($AA17,'Absolutní-BODY'!$E$2:$O$161,7,FALSE)) ->  | AF17: =IF($AA17=0,"",VLOOKUP($AA17,'Absolutní-BODY'!$E$2:$O$161,8,FALSE)) ->  | AG17: =IF($AA17=0,"",VLOOKUP($AA17,'Absolutní-BODY'!$E$2:$O$161,9,FALSE)) ->  | AH17: =IF($AA17=0,"",VLOOKUP($AA17,'Absolutní-BODY'!$E$2:$O$161,10,FALSE)) ->  | AI17: =IF($AA17=0,"",VLOOKUP($AA17,'Absolutní-BODY'!$E$2:$O$161,11,FALSE)) -> 
D18: =SUM(D14:D17) -> 0 | E18: 0 | F18: 0 | G18: 0 | H18: 0 | I18: 0 | J18: 0 | K18: 0 | P18: =SUM(P14:P17) -> 0 | Q18: 0 | R18: 0 | S18: 0 | T18: 0 | U18: 0 | V18: 0 | W18: 0 | AB18: =SUM(AB14:AB17) -> 0 | AC18: 0 | AD18: 0 | AE18: 0 | AF18: 0 | AG18: 0 | AH18: 0 | AI18: 0
C19: bodů | H19: celkem | J19: =SUM(D18:K18) -> 0 | O19: bodů | T19: celkem | V19: =SUM(P18:W18) -> 0 | AA19: bodů | AF19: celkem | AH19: =SUM(AB18:AI18) -> 0
B21: 7. místo | N21: 8. místo | Z21: 9. místo
C22: reg | D22: 1 | E22: 2 | F22: 3 | G22: 4 | H22: 5 | I22: 6 | J22: 7 | K22: 8 | O22: reg | P22: 1 | Q22: 2 | R22: 3 | S22: 4 | T22: 5 | U22: 6 | V22: 7 | W22: 8 | AA22: reg | AB22: 1 | AC22: 2 | AD22: 3 | AE22: 4 | AF22: 5 | AG22: 6 | AH22: 7 | AI22: 8
A23: 1 | B23: =IF(C23=0,"",VLOOKUP($C23,seznam!$A$1:$E$5058,2,FALSE)) ->  | D23: =IF($C23=0,"",VLOOKUP($C23,'Absolutní-BODY'!$E$2:$O$161,4,FALSE)) ->  | E23: =IF($C23=0,"",VLOOKUP($C23,'Absolutní-BODY'!$E$2:$O$161,5,FALSE)) ->  | F23: =IF($C23=0,"",VLOOKUP($C23,'Absolutní-BODY'!$E$2:$O$161,6,FALSE)) ->  | G23: =IF($C23=0,"",VLOOKUP($C23,'Absolutní-BODY'!$E$2:$O$161,7,FALSE)) ->  | H23: =IF($C23=0,"",VLOOKUP($C23,'Absolutní-BODY'!$E$2:$O$161,8,FALSE)) ->  | I23: =IF($C23=0,"",VLOOKUP($C23,'Absolutní-BODY'!$E$2:$O$161,9,FALSE)) ->  | J23: =IF($C23=0,"",VLOOKUP($C23,'Absolutní-BODY'!$E$2:$O$161,10,FALSE)) ->  | K23: =IF($C23=0,"",VLOOKUP($C23,'Absolutní-BODY'!$E$2:$O$161,11,FALSE)) ->  | M23: 1 | N23: =IF(O23=0,"",VLOOKUP($O23,seznam!$A$1:$E$5058,2,FALSE)) ->  | P23: =IF($O23=0,"",VLOOKUP($O23,'Absolutní-BODY'!$E$2:$O$161,4,FALSE)) ->  | Q23: =IF($O23=0,"",VLOOKUP($O23,'Absolutní-BODY'!$E$2:$O$161,5,FALSE)) ->  | R23: =IF($O23=0,"",VLOOKUP($O23,'Absolutní-BODY'!$E$2:$O$161,6,FALSE)) ->  | S23: =IF($O23=0,"",VLOOKUP($O23,'Absolutní-BODY'!$E$2:$O$161,7,FALSE)) ->  | T23: =IF($O23=0,"",VLOOKUP($O23,'Absolutní-BODY'!$E$2:$O$161,8,FALSE)) ->  | U23: =IF($O23=0,"",VLOOKUP($O23,'Absolutní-BODY'!$E$2:$O$161,9,FALSE)) ->  | V23: =IF($O23=0,"",VLOOKUP($O23,'Absolutní-BODY'!$E$2:$O$161,10,FALSE)) ->  | W23: =IF($O23=0,"",VLOOKUP($O23,'Absolutní-BODY'!$E$2:$O$161,11,FALSE)) ->  | Y23: 1 | Z23: =IF(AA23=0,"",VLOOKUP($AA23,seznam!$A$1:$E$5058,2,FALSE)) ->  | AB23: =IF($AA23=0,"",VLOOKUP($AA23,'Absolutní-BODY'!$E$2:$O$161,4,FALSE)) ->  | AC23: =IF($AA23=0,"",VLOOKUP($AA23,'Absolutní-BODY'!$E$2:$O$161,5,FALSE)) ->  | AD23: =IF($AA23=0,"",VLOOKUP($AA23,'Absolutní-BODY'!$E$2:$O$161,6,FALSE)) ->  | AE23: =IF($AA23=0,"",VLOOKUP($AA23,'Absolutní-BODY'!$E$2:$O$161,7,FALSE)) ->  | AF23: =IF($AA23=0,"",VLOOKUP($AA23,'Absolutní-BODY'!$E$2:$O$161,8,FALSE)) ->  | AG23: =IF($AA23=0,"",VLOOKUP($AA23,'Absolutní-BODY'!$E$2:$O$161,9,FALSE)) ->  | AH23: =IF($AA23=0,"",VLOOKUP($AA23,'Absolutní-BODY'!$E$2:$O$161,10,FALSE)) ->  | AI23: =IF($AA23=0,"",VLOOKUP($AA23,'Absolutní-BODY'!$E$2:$O$161,11,FALSE)) -> 
A24: 2 | B24: =IF(C24=0,"",VLOOKUP($C24,seznam!$A$1:$E$5058,2,FALSE)) ->  | D24: =IF($C24=0,"",VLOOKUP($C24,'Absolutní-BODY'!$E$2:$O$161,4,FALSE)) ->  | E24: =IF($C24=0,"",VLOOKUP($C24,'Absolutní-BODY'!$E$2:$O$161,5,FALSE)) ->  | F24: =IF($C24=0,"",VLOOKUP($C24,'Absolutní-BODY'!$E$2:$O$161,6,FALSE)) ->  | G24: =IF($C24=0,"",VLOOKUP($C24,'Absolutní-BODY'!$E$2:$O$161,7,FALSE)) ->  | H24: =IF($C24=0,"",VLOOKUP($C24,'Absolutní-BODY'!$E$2:$O$161,8,FALSE)) ->  | I24: =IF($C24=0,"",VLOOKUP($C24,'Absolutní-BODY'!$E$2:$O$161,9,FALSE)) ->  | J24: =IF($C24=0,"",VLOOKUP($C24,'Absolutní-BODY'!$E$2:$O$161,10,FALSE)) ->  | K24: =IF($C24=0,"",VLOOKUP($C24,'Absolutní-BODY'!$E$2:$O$161,11,FALSE)) ->  | M24: 2 | N24: =IF(O24=0,"",VLOOKUP($O24,seznam!$A$1:$E$5058,2,FALSE)) ->  | P24: =IF($O24=0,"",VLOOKUP($O24,'Absolutní-BODY'!$E$2:$O$161,4,FALSE)) ->  | Q24: =IF($O24=0,"",VLOOKUP($O24,'Absolutní-BODY'!$E$2:$O$161,5,FALSE)) ->  | R24: =IF($O24=0,"",VLOOKUP($O24,'Absolutní-BODY'!$E$2:$O$161,6,FALSE)) ->  | S24: =IF($O24=0,"",VLOOKUP($O24,'Absolutní-BODY'!$E$2:$O$161,7,FALSE)) ->  | T24: =IF($O24=0,"",VLOOKUP($O24,'Absolutní-BODY'!$E$2:$O$161,8,FALSE)) ->  | U24: =IF($O24=0,"",VLOOKUP($O24,'Absolutní-BODY'!$E$2:$O$161,9,FALSE)) ->  | V24: =IF($O24=0,"",VLOOKUP($O24,'Absolutní-BODY'!$E$2:$O$161,10,FALSE)) ->  | W24: =IF($O24=0,"",VLOOKUP($O24,'Absolutní-BODY'!$E$2:$O$161,11,FALSE)) ->  | Y24: 2 | Z24: =IF(AA24=0,"",VLOOKUP($AA24,seznam!$A$1:$E$5058,2,FALSE)) ->  | AB24: =IF($AA24=0,"",VLOOKUP($AA24,'Absolutní-BODY'!$E$2:$O$161,4,FALSE)) ->  | AC24: =IF($AA24=0,"",VLOOKUP($AA24,'Absolutní-BODY'!$E$2:$O$161,5,FALSE)) ->  | AD24: =IF($AA24=0,"",VLOOKUP($AA24,'Absolutní-BODY'!$E$2:$O$161,6,FALSE)) ->  | AE24: =IF($AA24=0,"",VLOOKUP($AA24,'Absolutní-BODY'!$E$2:$O$161,7,FALSE)) ->  | AF24: =IF($AA24=0,"",VLOOKUP($AA24,'Absolutní-BODY'!$E$2:$O$161,8,FALSE)) ->  | AG24: =IF($AA24=0,"",VLOOKUP($AA24,'Absolutní-BODY'!$E$2:$O$161,9,FALSE)) ->  | AH24: =IF($AA24=0,"",VLOOKUP($AA24,'Absolutní-BODY'!$E$2:$O$161,10,FALSE)) ->  | AI24: =IF($AA24=0,"",VLOOKUP($AA24,'Absolutní-BODY'!$E$2:$O$161,11,FALSE)) -> 
A25: 3 | B25: =IF(C25=0,"",VLOOKUP($C25,seznam!$A$1:$E$5058,2,FALSE)) ->  | D25: =IF($C25=0,"",VLOOKUP($C25,'Absolutní-BODY'!$E$2:$O$161,4,FALSE)) ->  | E25: =IF($C25=0,"",VLOOKUP($C25,'Absolutní-BODY'!$E$2:$O$161,5,FALSE)) ->  | F25: =IF($C25=0,"",VLOOKUP($C25,'Absolutní-BODY'!$E$2:$O$161,6,FALSE)) ->  | G25: =IF($C25=0,"",VLOOKUP($C25,'Absolutní-BODY'!$E$2:$O$161,7,FALSE)) ->  | H25: =IF($C25=0,"",VLOOKUP($C25,'Absolutní-BODY'!$E$2:$O$161,8,FALSE)) ->  | I25: =IF($C25=0,"",VLOOKUP($C25,'Absolutní-BODY'!$E$2:$O$161,9,FALSE)) ->  | J25: =IF($C25=0,"",VLOOKUP($C25,'Absolutní-BODY'!$E$2:$O$161,10,FALSE)) ->  | K25: =IF($C25=0,"",VLOOKUP($C25,'Absolutní-BODY'!$E$2:$O$161,11,FALSE)) ->  | M25: 3 | N25: =IF(O25=0,"",VLOOKUP($O25,seznam!$A$1:$E$5058,2,FALSE)) ->  | P25: =IF($O25=0,"",VLOOKUP($O25,'Absolutní-BODY'!$E$2:$O$161,4,FALSE)) ->  | Q25: =IF($O25=0,"",VLOOKUP($O25,'Absolutní-BODY'!$E$2:$O$161,5,FALSE)) ->  | R25: =IF($O25=0,"",VLOOKUP($O25,'Absolutní-BODY'!$E$2:$O$161,6,FALSE)) ->  | S25: =IF($O25=0,"",VLOOKUP($O25,'Absolutní-BODY'!$E$2:$O$161,7,FALSE)) ->  | T25: =IF($O25=0,"",VLOOKUP($O25,'Absolutní-BODY'!$E$2:$O$161,8,FALSE)) ->  | U25: =IF($O25=0,"",VLOOKUP($O25,'Absolutní-BODY'!$E$2:$O$161,9,FALSE)) ->  | V25: =IF($O25=0,"",VLOOKUP($O25,'Absolutní-BODY'!$E$2:$O$161,10,FALSE)) ->  | W25: =IF($O25=0,"",VLOOKUP($O25,'Absolutní-BODY'!$E$2:$O$161,11,FALSE)) ->  | Y25: 3 | Z25: =IF(AA25=0,"",VLOOKUP($AA25,seznam!$A$1:$E$5058,2,FALSE)) ->  | AB25: =IF($AA25=0,"",VLOOKUP($AA25,'Absolutní-BODY'!$E$2:$O$161,4,FALSE)) ->  | AC25: =IF($AA25=0,"",VLOOKUP($AA25,'Absolutní-BODY'!$E$2:$O$161,5,FALSE)) ->  | AD25: =IF($AA25=0,"",VLOOKUP($AA25,'Absolutní-BODY'!$E$2:$O$161,6,FALSE)) ->  | AE25: =IF($AA25=0,"",VLOOKUP($AA25,'Absolutní-BODY'!$E$2:$O$161,7,FALSE)) ->  | AF25: =IF($AA25=0,"",VLOOKUP($AA25,'Absolutní-BODY'!$E$2:$O$161,8,FALSE)) ->  | AG25: =IF($AA25=0,"",VLOOKUP($AA25,'Absolutní-BODY'!$E$2:$O$161,9,FALSE)) ->  | AH25: =IF($AA25=0,"",VLOOKUP($AA25,'Absolutní-BODY'!$E$2:$O$161,10,FALSE)) ->  | AI25: =IF($AA25=0,"",VLOOKUP($AA25,'Absolutní-BODY'!$E$2:$O$161,11,FALSE)) -> 
A26: N | B26: =IF(C26=0,"",VLOOKUP($C26,seznam!$A$1:$E$5058,2,FALSE)) ->  | D26: =IF($C26=0,"",VLOOKUP($C26,'Absolutní-BODY'!$E$2:$O$161,4,FALSE)) ->  | E26: =IF($C26=0,"",VLOOKUP($C26,'Absolutní-BODY'!$E$2:$O$161,5,FALSE)) ->  | F26: =IF($C26=0,"",VLOOKUP($C26,'Absolutní-BODY'!$E$2:$O$161,6,FALSE)) ->  | G26: =IF($C26=0,"",VLOOKUP($C26,'Absolutní-BODY'!$E$2:$O$161,7,FALSE)) ->  | H26: =IF($C26=0,"",VLOOKUP($C26,'Absolutní-BODY'!$E$2:$O$161,8,FALSE)) ->  | I26: =IF($C26=0,"",VLOOKUP($C26,'Absolutní-BODY'!$E$2:$O$161,9,FALSE)) ->  | J26: =IF($C26=0,"",VLOOKUP($C26,'Absolutní-BODY'!$E$2:$O$161,10,FALSE)) ->  | K26: =IF($C26=0,"",VLOOKUP($C26,'Absolutní-BODY'!$E$2:$O$161,11,FALSE)) ->  | M26: N | N26: =IF(O26=0,"",VLOOKUP($O26,seznam!$A$1:$E$5058,2,FALSE)) ->  | P26: =IF($O26=0,"",VLOOKUP($O26,'Absolutní-BODY'!$E$2:$O$161,4,FALSE)) ->  | Q26: =IF($O26=0,"",VLOOKUP($O26,'Absolutní-BODY'!$E$2:$O$161,5,FALSE)) ->  | R26: =IF($O26=0,"",VLOOKUP($O26,'Absolutní-BODY'!$E$2:$O$161,6,FALSE)) ->  | S26: =IF($O26=0,"",VLOOKUP($O26,'Absolutní-BODY'!$E$2:$O$161,7,FALSE)) ->  | T26: =IF($O26=0,"",VLOOKUP($O26,'Absolutní-BODY'!$E$2:$O$161,8,FALSE)) ->  | U26: =IF($O26=0,"",VLOOKUP($O26,'Absolutní-BODY'!$E$2:$O$161,9,FALSE)) ->  | V26: =IF($O26=0,"",VLOOKUP($O26,'Absolutní-BODY'!$E$2:$O$161,10,FALSE)) ->  | W26: =IF($O26=0,"",VLOOKUP($O26,'Absolutní-BODY'!$E$2:$O$161,11,FALSE)) ->  | Y26: N | Z26: =IF(AA26=0,"",VLOOKUP($AA26,seznam!$A$1:$E$5058,2,FALSE)) ->  | AB26: =IF($AA26=0,"",VLOOKUP($AA26,'Absolutní-BODY'!$E$2:$O$161,4,FALSE)) ->  | AC26: =IF($AA26=0,"",VLOOKUP($AA26,'Absolutní-BODY'!$E$2:$O$161,5,FALSE)) ->  | AD26: =IF($AA26=0,"",VLOOKUP($AA26,'Absolutní-BODY'!$E$2:$O$161,6,FALSE)) ->  | AE26: =IF($AA26=0,"",VLOOKUP($AA26,'Absolutní-BODY'!$E$2:$O$161,7,FALSE)) ->  | AF26: =IF($AA26=0,"",VLOOKUP($AA26,'Absolutní-BODY'!$E$2:$O$161,8,FALSE)) ->  | AG26: =IF($AA26=0,"",VLOOKUP($AA26,'Absolutní-BODY'!$E$2:$O$161,9,FALSE)) ->  | AH26: =IF($AA26=0,"",VLOOKUP($AA26,'Absolutní-BODY'!$E$2:$O$161,10,FALSE)) ->  | AI26: =IF($AA26=0,"",VLOOKUP($AA26,'Absolutní-BODY'!$E$2:$O$161,11,FALSE)) -> 
D27: =SUM(D23:D26) -> 0 | E27: 0 | F27: 0 | G27: 0 | H27: 0 | I27: 0 | J27: 0 | K27: 0 | P27: =SUM(P23:P26) -> 0 | Q27: 0 | R27: 0 | S27: 0 | T27: 0 | U27: 0 | V27: 0 | W27: 0 | AB27: =SUM(AB23:AB26) -> 0 | AC27: 0 | AD27: 0 | AE27: 0 | AF27: 0 | AG27: 0 | AH27: 0 | AI27: 0
C28: bodů | H28: celkem | J28: =SUM(D27:K27) -> 0 | O28: bodů | T28: celkem | V28: =SUM(P27:W27) -> 0 | AA28: bodů | AF28: celkem | AH28: =SUM(AB27:AI27) -> 0
B30: 10. místo
C31: reg | D31: 1 | E31: 2 | F31: 3 | G31: 4 | H31: 5 | I31: 6 | J31: 7 | K31: 8
A32: 1 | B32: =IF(C32=0,"",VLOOKUP($C32,seznam!$A$1:$E$5058,2,FALSE)) ->  | D32: =IF($C32=0,"",VLOOKUP($C32,'Absolutní-BODY'!$E$2:$O$161,4,FALSE)) ->  | E32: =IF($C32=0,"",VLOOKUP($C32,'Absolutní-BODY'!$E$2:$O$161,5,FALSE)) ->  | F32: =IF($C32=0,"",VLOOKUP($C32,'Absolutní-BODY'!$E$2:$O$161,6,FALSE)) ->  | G32: =IF($C32=0,"",VLOOKUP($C32,'Absolutní-BODY'!$E$2:$O$161,7,FALSE)) ->  | H32: =IF($C32=0,"",VLOOKUP($C32,'Absolutní-BODY'!$E$2:$O$161,8,FALSE)) ->  | I32: =IF($C32=0,"",VLOOKUP($C32,'Absolutní-BODY'!$E$2:$O$161,9,FALSE)) ->  | J32: =IF($C32=0,"",VLOOKUP($C32,'Absolutní-BODY'!$E$2:$O$161,10,FALSE)) ->  | K32: =IF($C32=0,"",VLOOKUP($C32,'Absolutní-BODY'!$E$2:$O$161,11,FALSE)) -> 
A33: 2 | B33: =IF(C33=0,"",VLOOKUP($C33,seznam!$A$1:$E$5058,2,FALSE)) ->  | D33: =IF($C33=0,"",VLOOKUP($C33,'Absolutní-BODY'!$E$2:$O$161,4,FALSE)) ->  | E33: =IF($C33=0,"",VLOOKUP($C33,'Absolutní-BODY'!$E$2:$O$161,5,FALSE)) ->  | F33: =IF($C33=0,"",VLOOKUP($C33,'Absolutní-BODY'!$E$2:$O$161,6,FALSE)) ->  | G33: =IF($C33=0,"",VLOOKUP($C33,'Absolutní-BODY'!$E$2:$O$161,7,FALSE)) ->  | H33: =IF($C33=0,"",VLOOKUP($C33,'Absolutní-BODY'!$E$2:$O$161,8,FALSE)) ->  | I33: =IF($C33=0,"",VLOOKUP($C33,'Absolutní-BODY'!$E$2:$O$161,9,FALSE)) ->  | J33: =IF($C33=0,"",VLOOKUP($C33,'Absolutní-BODY'!$E$2:$O$161,10,FALSE)) ->  | K33: =IF($C33=0,"",VLOOKUP($C33,'Absolutní-BODY'!$E$2:$O$161,11,FALSE)) -> 
A34: 3 | B34: =IF(C34=0,"",VLOOKUP($C34,seznam!$A$1:$E$5058,2,FALSE)) ->  | D34: =IF($C34=0,"",VLOOKUP($C34,'Absolutní-BODY'!$E$2:$O$161,4,FALSE)) ->  | E34: =IF($C34=0,"",VLOOKUP($C34,'Absolutní-BODY'!$E$2:$O$161,5,FALSE)) ->  | F34: =IF($C34=0,"",VLOOKUP($C34,'Absolutní-BODY'!$E$2:$O$161,6,FALSE)) ->  | G34: =IF($C34=0,"",VLOOKUP($C34,'Absolutní-BODY'!$E$2:$O$161,7,FALSE)) ->  | H34: =IF($C34=0,"",VLOOKUP($C34,'Absolutní-BODY'!$E$2:$O$161,8,FALSE)) ->  | I34: =IF($C34=0,"",VLOOKUP($C34,'Absolutní-BODY'!$E$2:$O$161,9,FALSE)) ->  | J34: =IF($C34=0,"",VLOOKUP($C34,'Absolutní-BODY'!$E$2:$O$161,10,FALSE)) ->  | K34: =IF($C34=0,"",VLOOKUP($C34,'Absolutní-BODY'!$E$2:$O$161,11,FALSE)) -> 
A35: N | B35: =IF(C35=0,"",VLOOKUP($C35,seznam!$A$1:$E$5058,2,FALSE)) ->  | D35: =IF($C35=0,"",VLOOKUP($C35,'Absolutní-BODY'!$E$2:$O$161,4,FALSE)) ->  | E35: =IF($C35=0,"",VLOOKUP($C35,'Absolutní-BODY'!$E$2:$O$161,5,FALSE)) ->  | F35: =IF($C35=0,"",VLOOKUP($C35,'Absolutní-BODY'!$E$2:$O$161,6,FALSE)) ->  | G35: =IF($C35=0,"",VLOOKUP($C35,'Absolutní-BODY'!$E$2:$O$161,7,FALSE)) ->  | H35: =IF($C35=0,"",VLOOKUP($C35,'Absolutní-BODY'!$E$2:$O$161,8,FALSE)) ->  | I35: =IF($C35=0,"",VLOOKUP($C35,'Absolutní-BODY'!$E$2:$O$161,9,FALSE)) ->  | J35: =IF($C35=0,"",VLOOKUP($C35,'Absolutní-BODY'!$E$2:$O$161,10,FALSE)) ->  | K35: =IF($C35=0,"",VLOOKUP($C35,'Absolutní-BODY'!$E$2:$O$161,11,FALSE)) -> 
D36: =SUM(D32:D35) -> 0 | E36: 0 | F36: 0 | G36: 0 | H36: 0 | I36: 0 | J36: 0 | K36: 0
C37: bodů | H37: celkem | J37: =SUM(D36:K36) -> 0

Sheet Liga-kolo-J (hidden)
A1: ? | B1: .kolo | C1: ? | E1: liga juniorských družstev | N1: 2012 / 2013
B3: 1. místo | N3: 2. místo | Z3: 3. místo
C4: reg | D4: 1 | E4: 2 | F4: 3 | G4: 4 | H4: 5 | I4: 6 | J4: 7 | K4: 8 | O4: reg | P4: 1 | Q4: 2 | R4: 3 | S4: 4 | T4: 5 | U4: 6 | V4: 7 | W4: 8 | AA4: reg | AB4: 1 | AC4: 2 | AD4: 3 | AE4: 4 | AF4: 5 | AG4: 6 | AH4: 7 | AI4: 8
A5: 1 | B5: =IF(C5=0,"",VLOOKUP($C5,seznam!$A$1:$E$5058,2,FALSE)) ->  | D5: =IF($C5=0,"",VLOOKUP($C5,'Absolutní-BODY'!$E$2:$O$161,4,FALSE)) ->  | E5: =IF($C5=0,"",VLOOKUP($C5,'Absolutní-BODY'!$E$2:$O$161,5,FALSE)) ->  | F5: =IF($C5=0,"",VLOOKUP($C5,'Absolutní-BODY'!$E$2:$O$161,6,FALSE)) ->  | G5: =IF($C5=0,"",VLOOKUP($C5,'Absolutní-BODY'!$E$2:$O$161,7,FALSE)) ->  | H5: =IF($C5=0,"",VLOOKUP($C5,'Absolutní-BODY'!$E$2:$O$161,8,FALSE)) ->  | I5: =IF($C5=0,"",VLOOKUP($C5,'Absolutní-BODY'!$E$2:$O$161,9,FALSE)) ->  | J5: =IF($C5=0,"",VLOOKUP($C5,'Absolutní-BODY'!$E$2:$O$161,10,FALSE)) ->  | K5: =IF($C5=0,"",VLOOKUP($C5,'Absolutní-BODY'!$E$2:$O$161,11,FALSE)) ->  | M5: 1 | N5: =IF(O5=0,"",VLOOKUP($O5,seznam!$A$1:$E$5058,2,FALSE)) ->  | P5: =IF($O5=0,"",VLOOKUP($O5,'Absolutní-BODY'!$E$2:$O$161,4,FALSE)) ->  | Q5: =IF($O5=0,"",VLOOKUP($O5,'Absolutní-BODY'!$E$2:$O$161,5,FALSE)) ->  | R5: =IF($O5=0,"",VLOOKUP($O5,'Absolutní-BODY'!$E$2:$O$161,6,FALSE)) ->  | S5: =IF($O5=0,"",VLOOKUP($O5,'Absolutní-BODY'!$E$2:$O$161,7,FALSE)) ->  | T5: =IF($O5=0,"",VLOOKUP($O5,'Absolutní-BODY'!$E$2:$O$161,8,FALSE)) ->  | U5: =IF($O5=0,"",VLOOKUP($O5,'Absolutní-BODY'!$E$2:$O$161,9,FALSE)) ->  | V5: =IF($O5=0,"",VLOOKUP($O5,'Absolutní-BODY'!$E$2:$O$161,10,FALSE)) ->  | W5: =IF($O5=0,"",VLOOKUP($O5,'Absolutní-BODY'!$E$2:$O$161,11,FALSE)) ->  | Y5: 1 | Z5: =IF(AA5=0,"",VLOOKUP($AA5,seznam!$A$1:$E$5058,2,FALSE)) ->  | AB5: =IF($AA5=0,"",VLOOKUP($AA5,'Absolutní-BODY'!$E$2:$O$161,4,FALSE)) ->  | AC5: =IF($AA5=0,"",VLOOKUP($AA5,'Absolutní-BODY'!$E$2:$O$161,5,FALSE)) ->  | AD5: =IF($AA5=0,"",VLOOKUP($AA5,'Absolutní-BODY'!$E$2:$O$161,6,FALSE)) ->  | AE5: =IF($AA5=0,"",VLOOKUP($AA5,'Absolutní-BODY'!$E$2:$O$161,7,FALSE)) ->  | AF5: =IF($AA5=0,"",VLOOKUP($AA5,'Absolutní-BODY'!$E$2:$O$161,8,FALSE)) ->  | AG5: =IF($AA5=0,"",VLOOKUP($AA5,'Absolutní-BODY'!$E$2:$O$161,9,FALSE)) ->  | AH5: =IF($AA5=0,"",VLOOKUP($AA5,'Absolutní-BODY'!$E$2:$O$161,10,FALSE)) ->  | AI5: =IF($AA5=0,"",VLOOKUP($AA5,'Absolutní-BODY'!$E$2:$O$161,11,FALSE)) -> 
A6: 2 | B6: =IF(C6=0,"",VLOOKUP($C6,seznam!$A$1:$E$5058,2,FALSE)) ->  | D6: =IF($C6=0,"",VLOOKUP($C6,'Absolutní-BODY'!$E$2:$O$161,4,FALSE)) ->  | E6: =IF($C6=0,"",VLOOKUP($C6,'Absolutní-BODY'!$E$2:$O$161,5,FALSE)) ->  | F6: =IF($C6=0,"",VLOOKUP($C6,'Absolutní-BODY'!$E$2:$O$161,6,FALSE)) ->  | G6: =IF($C6=0,"",VLOOKUP($C6,'Absolutní-BODY'!$E$2:$O$161,7,FALSE)) ->  | H6: =IF($C6=0,"",VLOOKUP($C6,'Absolutní-BODY'!$E$2:$O$161,8,FALSE)) ->  | I6: =IF($C6=0,"",VLOOKUP($C6,'Absolutní-BODY'!$E$2:$O$161,9,FALSE)) ->  | J6: =IF($C6=0,"",VLOOKUP($C6,'Absolutní-BODY'!$E$2:$O$161,10,FALSE)) ->  | K6: =IF($C6=0,"",VLOOKUP($C6,'Absolutní-BODY'!$E$2:$O$161,11,FALSE)) ->  | M6: 2 | N6: =IF(O6=0,"",VLOOKUP($O6,seznam!$A$1:$E$5058,2,FALSE)) ->  | P6: =IF($O6=0,"",VLOOKUP($O6,'Absolutní-BODY'!$E$2:$O$161,4,FALSE)) ->  | Q6: =IF($O6=0,"",VLOOKUP($O6,'Absolutní-BODY'!$E$2:$O$161,5,FALSE)) ->  | R6: =IF($O6=0,"",VLOOKUP($O6,'Absolutní-BODY'!$E$2:$O$161,6,FALSE)) ->  | S6: =IF($O6=0,"",VLOOKUP($O6,'Absolutní-BODY'!$E$2:$O$161,7,FALSE)) ->  | T6: =IF($O6=0,"",VLOOKUP($O6,'Absolutní-BODY'!$E$2:$O$161,8,FALSE)) ->  | U6: =IF($O6=0,"",VLOOKUP($O6,'Absolutní-BODY'!$E$2:$O$161,9,FALSE)) ->  | V6: =IF($O6=0,"",VLOOKUP($O6,'Absolutní-BODY'!$E$2:$O$161,10,FALSE)) ->  | W6: =IF($O6=0,"",VLOOKUP($O6,'Absolutní-BODY'!$E$2:$O$161,11,FALSE)) ->  | Y6: 2 | Z6: =IF(AA6=0,"",VLOOKUP($AA6,seznam!$A$1:$E$5058,2,FALSE)) ->  | AB6: =IF($AA6=0,"",VLOOKUP($AA6,'Absolutní-BODY'!$E$2:$O$161,4,FALSE)) ->  | AC6: =IF($AA6=0,"",VLOOKUP($AA6,'Absolutní-BODY'!$E$2:$O$161,5,FALSE)) ->  | AD6: =IF($AA6=0,"",VLOOKUP($AA6,'Absolutní-BODY'!$E$2:$O$161,6,FALSE)) ->  | AE6: =IF($AA6=0,"",VLOOKUP($AA6,'Absolutní-BODY'!$E$2:$O$161,7,FALSE)) ->  | AF6: =IF($AA6=0,"",VLOOKUP($AA6,'Absolutní-BODY'!$E$2:$O$161,8,FALSE)) ->  | AG6: =IF($AA6=0,"",VLOOKUP($AA6,'Absolutní-BODY'!$E$2:$O$161,9,FALSE)) ->  | AH6: =IF($AA6=0,"",VLOOKUP($AA6,'Absolutní-BODY'!$E$2:$O$161,10,FALSE)) ->  | AI6: =IF($AA6=0,"",VLOOKUP($AA6,'Absolutní-BODY'!$E$2:$O$161,11,FALSE)) -> 
A7: 3 | B7: =IF(C7=0,"",VLOOKUP($C7,seznam!$A$1:$E$5058,2,FALSE)) ->  | D7: =IF($C7=0,"",VLOOKUP($C7,'Absolutní-BODY'!$E$2:$O$161,4,FALSE)) ->  | E7: =IF($C7=0,"",VLOOKUP($C7,'Absolutní-BODY'!$E$2:$O$161,5,FALSE)) ->  | F7: =IF($C7=0,"",VLOOKUP($C7,'Absolutní-BODY'!$E$2:$O$161,6,FALSE)) ->  | G7: =IF($C7=0,"",VLOOKUP($C7,'Absolutní-BODY'!$E$2:$O$161,7,FALSE)) ->  | H7: =IF($C7=0,"",VLOOKUP($C7,'Absolutní-BODY'!$E$2:$O$161,8,FALSE)) ->  | I7: =IF($C7=0,"",VLOOKUP($C7,'Absolutní-BODY'!$E$2:$O$161,9,FALSE)) ->  | J7: =IF($C7=0,"",VLOOKUP($C7,'Absolutní-BODY'!$E$2:$O$161,10,FALSE)) ->  | K7: =IF($C7=0,"",VLOOKUP($C7,'Absolutní-BODY'!$E$2:$O$161,11,FALSE)) ->  | M7: 3 | N7: =IF(O7=0,"",VLOOKUP($O7,seznam!$A$1:$E$5058,2,FALSE)) ->  | P7: =IF($O7=0,"",VLOOKUP($O7,'Absolutní-BODY'!$E$2:$O$161,4,FALSE)) ->  | Q7: =IF($O7=0,"",VLOOKUP($O7,'Absolutní-BODY'!$E$2:$O$161,5,FALSE)) ->  | R7: =IF($O7=0,"",VLOOKUP($O7,'Absolutní-BODY'!$E$2:$O$161,6,FALSE)) ->  | S7: =IF($O7=0,"",VLOOKUP($O7,'Absolutní-BODY'!$E$2:$O$161,7,FALSE)) ->  | T7: =IF($O7=0,"",VLOOKUP($O7,'Absolutní-BODY'!$E$2:$O$161,8,FALSE)) ->  | U7: =IF($O7=0,"",VLOOKUP($O7,'Absolutní-BODY'!$E$2:$O$161,9,FALSE)) ->  | V7: =IF($O7=0,"",VLOOKUP($O7,'Absolutní-BODY'!$E$2:$O$161,10,FALSE)) ->  | W7: =IF($O7=0,"",VLOOKUP($O7,'Absolutní-BODY'!$E$2:$O$161,11,FALSE)) ->  | Y7: 3 | Z7: =IF(AA7=0,"",VLOOKUP($AA7,seznam!$A$1:$E$5058,2,FALSE)) ->  | AB7: =IF($AA7=0,"",VLOOKUP($AA7,'Absolutní-BODY'!$E$2:$O$161,4,FALSE)) ->  | AC7: =IF($AA7=0,"",VLOOKUP($AA7,'Absolutní-BODY'!$E$2:$O$161,5,FALSE)) ->  | AD7: =IF($AA7=0,"",VLOOKUP($AA7,'Absolutní-BODY'!$E$2:$O$161,6,FALSE)) ->  | AE7: =IF($AA7=0,"",VLOOKUP($AA7,'Absolutní-BODY'!$E$2:$O$161,7,FALSE)) ->  | AF7: =IF($AA7=0,"",VLOOKUP($AA7,'Absolutní-BODY'!$E$2:$O$161,8,FALSE)) ->  | AG7: =IF($AA7=0,"",VLOOKUP($AA7,'Absolutní-BODY'!$E$2:$O$161,9,FALSE)) ->  | AH7: =IF($AA7=0,"",VLOOKUP($AA7,'Absolutní-BODY'!$E$2:$O$161,10,FALSE)) ->  | AI7: =IF($AA7=0,"",VLOOKUP($AA7,'Absolutní-BODY'!$E$2:$O$161,11,FALSE)) -> 
A8: N | B8: =IF(C8=0,"",VLOOKUP($C8,seznam!$A$1:$E$5058,2,FALSE)) ->  | D8: =IF($C8=0,"",VLOOKUP($C8,'Absolutní-BODY'!$E$2:$O$161,4,FALSE)) ->  | E8: =IF($C8=0,"",VLOOKUP($C8,'Absolutní-BODY'!$E$2:$O$161,5,FALSE)) ->  | F8: =IF($C8=0,"",VLOOKUP($C8,'Absolutní-BODY'!$E$2:$O$161,6,FALSE)) ->  | G8: =IF($C8=0,"",VLOOKUP($C8,'Absolutní-BODY'!$E$2:$O$161,7,FALSE)) ->  | H8: =IF($C8=0,"",VLOOKUP($C8,'Absolutní-BODY'!$E$2:$O$161,8,FALSE)) ->  | I8: =IF($C8=0,"",VLOOKUP($C8,'Absolutní-BODY'!$E$2:$O$161,9,FALSE)) ->  | J8: =IF($C8=0,"",VLOOKUP($C8,'Absolutní-BODY'!$E$2:$O$161,10,FALSE)) ->  | K8: =IF($C8=0,"",VLOOKUP($C8,'Absolutní-BODY'!$E$2:$O$161,11,FALSE)) ->  | M8: N | N8: =IF(O8=0,"",VLOOKUP($O8,seznam!$A$1:$E$5058,2,FALSE)) ->  | P8: =IF($O8=0,"",VLOOKUP($O8,'Absolutní-BODY'!$E$2:$O$161,4,FALSE)) ->  | Q8: =IF($O8=0,"",VLOOKUP($O8,'Absolutní-BODY'!$E$2:$O$161,5,FALSE)) ->  | R8: =IF($O8=0,"",VLOOKUP($O8,'Absolutní-BODY'!$E$2:$O$161,6,FALSE)) ->  | S8: =IF($O8=0,"",VLOOKUP($O8,'Absolutní-BODY'!$E$2:$O$161,7,FALSE)) ->  | T8: =IF($O8=0,"",VLOOKUP($O8,'Absolutní-BODY'!$E$2:$O$161,8,FALSE)) ->  | U8: =IF($O8=0,"",VLOOKUP($O8,'Absolutní-BODY'!$E$2:$O$161,9,FALSE)) ->  | V8: =IF($O8=0,"",VLOOKUP($O8,'Absolutní-BODY'!$E$2:$O$161,10,FALSE)) ->  | W8: =IF($O8=0,"",VLOOKUP($O8,'Absolutní-BODY'!$E$2:$O$161,11,FALSE)) ->  | Y8: N | Z8: =IF(AA8=0,"",VLOOKUP($AA8,seznam!$A$1:$E$5058,2,FALSE)) ->  | AB8: =IF($AA8=0,"",VLOOKUP($AA8,'Absolutní-BODY'!$E$2:$O$161,4,FALSE)) ->  | AC8: =IF($AA8=0,"",VLOOKUP($AA8,'Absolutní-BODY'!$E$2:$O$161,5,FALSE)) ->  | AD8: =IF($AA8=0,"",VLOOKUP($AA8,'Absolutní-BODY'!$E$2:$O$161,6,FALSE)) ->  | AE8: =IF($AA8=0,"",VLOOKUP($AA8,'Absolutní-BODY'!$E$2:$O$161,7,FALSE)) ->  | AF8: =IF($AA8=0,"",VLOOKUP($AA8,'Absolutní-BODY'!$E$2:$O$161,8,FALSE)) ->  | AG8: =IF($AA8=0,"",VLOOKUP($AA8,'Absolutní-BODY'!$E$2:$O$161,9,FALSE)) ->  | AH8: =IF($AA8=0,"",VLOOKUP($AA8,'Absolutní-BODY'!$E$2:$O$161,10,FALSE)) ->  | AI8: =IF($AA8=0,"",VLOOKUP($AA8,'Absolutní-BODY'!$E$2:$O$161,11,FALSE)) -> 
D9: =SUM(D5:D8) -> 0 | E9: 0 | F9: 0 | G9: 0 | H9: 0 | I9: 0 | J9: 0 | K9: 0 | P9: =SUM(P5:P8) -> 0 | Q9: 0 | R9: 0 | S9: 0 | T9: 0 | U9: 0 | V9: 0 | W9: 0 | AB9: =SUM(AB5:AB8) -> 0 | AC9: 0 | AD9: 0 | AE9: 0 | AF9: 0 | AG9: 0 | AH9: 0 | AI9: 0
C10: bodů | H10: celkem | J10: =SUM(D9:K9) -> 0 | O10: bodů | T10: celkem | V10: =SUM(P9:W9) -> 0 | AA10: bodů | AF10: celkem | AH10: =SUM(AB9:AI9) -> 0
B12: 4. místo | N12: 5. místo | Z12: 6. místo
C13: reg | D13: 1 | E13: 2 | F13: 3 | G13: 4 | H13: 5 | I13: 6 | J13: 7 | K13: 8 | O13: reg | P13: 1 | Q13: 2 | R13: 3 | S13: 4 | T13: 5 | U13: 6 | V13: 7 | W13: 8 | AA13: reg | AB13: 1 | AC13: 2 | AD13: 3 | AE13: 4 | AF13: 5 | AG13: 6 | AH13: 7 | AI13: 8
A14: 1 | B14: =IF(C14=0,"",VLOOKUP($C14,seznam!$A$1:$E$5058,2,FALSE)) ->  | D14: =IF($C14=0,"",VLOOKUP($C14,'Absolutní-BODY'!$E$2:$O$161,4,FALSE)) ->  | E14: =IF($C14=0,"",VLOOKUP($C14,'Absolutní-BODY'!$E$2:$O$161,5,FALSE)) ->  | F14: =IF($C14=0,"",VLOOKUP($C14,'Absolutní-BODY'!$E$2:$O$161,6,FALSE)) ->  | G14: =IF($C14=0,"",VLOOKUP($C14,'Absolutní-BODY'!$E$2:$O$161,7,FALSE)) ->  | H14: =IF($C14=0,"",VLOOKUP($C14,'Absolutní-BODY'!$E$2:$O$161,8,FALSE)) ->  | I14: =IF($C14=0,"",VLOOKUP($C14,'Absolutní-BODY'!$E$2:$O$161,9,FALSE)) ->  | J14: =IF($C14=0,"",VLOOKUP($C14,'Absolutní-BODY'!$E$2:$O$161,10,FALSE)) ->  | K14: =IF($C14=0,"",VLOOKUP($C14,'Absolutní-BODY'!$E$2:$O$161,11,FALSE)) ->  | M14: 1 | N14: =IF(O14=0,"",VLOOKUP($O14,seznam!$A$1:$E$5058,2,FALSE)) ->  | P14: =IF($O14=0,"",VLOOKUP($O14,'Absolutní-BODY'!$E$2:$O$161,4,FALSE)) ->  | Q14: =IF($O14=0,"",VLOOKUP($O14,'Absolutní-BODY'!$E$2:$O$161,5,FALSE)) ->  | R14: =IF($O14=0,"",VLOOKUP($O14,'Absolutní-BODY'!$E$2:$O$161,6,FALSE)) ->  | S14: =IF($O14=0,"",VLOOKUP($O14,'Absolutní-BODY'!$E$2:$O$161,7,FALSE)) ->  | T14: =IF($O14=0,"",VLOOKUP($O14,'Absolutní-BODY'!$E$2:$O$161,8,FALSE)) ->  | U14: =IF($O14=0,"",VLOOKUP($O14,'Absolutní-BODY'!$E$2:$O$161,9,FALSE)) ->  | V14: =IF($O14=0,"",VLOOKUP($O14,'Absolutní-BODY'!$E$2:$O$161,10,FALSE)) ->  | W14: =IF($O14=0,"",VLOOKUP($O14,'Absolutní-BODY'!$E$2:$O$161,11,FALSE)) ->  | Y14: 1 | Z14: =IF(AA14=0,"",VLOOKUP($AA14,seznam!$A$1:$E$5058,2,FALSE)) ->  | AB14: =IF($AA14=0,"",VLOOKUP($AA14,'Absolutní-BODY'!$E$2:$O$161,4,FALSE)) ->  | AC14: =IF($AA14=0,"",VLOOKUP($AA14,'Absolutní-BODY'!$E$2:$O$161,5,FALSE)) ->  | AD14: =IF($AA14=0,"",VLOOKUP($AA14,'Absolutní-BODY'!$E$2:$O$161,6,FALSE)) ->  | AE14: =IF($AA14=0,"",VLOOKUP($AA14,'Absolutní-BODY'!$E$2:$O$161,7,FALSE)) ->  | AF14: =IF($AA14=0,"",VLOOKUP($AA14,'Absolutní-BODY'!$E$2:$O$161,8,FALSE)) ->  | AG14: =IF($AA14=0,"",VLOOKUP($AA14,'Absolutní-BODY'!$E$2:$O$161,9,FALSE)) ->  | AH14: =IF($AA14=0,"",VLOOKUP($AA14,'Absolutní-BODY'!$E$2:$O$161,10,FALSE)) ->  | AI14: =IF($AA14=0,"",VLOOKUP($AA14,'Absolutní-BODY'!$E$2:$O$161,11,FALSE)) -> 
A15: 2 | B15: =IF(C15=0,"",VLOOKUP($C15,seznam!$A$1:$E$5058,2,FALSE)) ->  | D15: =IF($C15=0,"",VLOOKUP($C15,'Absolutní-BODY'!$E$2:$O$161,4,FALSE)) ->  | E15: =IF($C15=0,"",VLOOKUP($C15,'Absolutní-BODY'!$E$2:$O$161,5,FALSE)) ->  | F15: =IF($C15=0,"",VLOOKUP($C15,'Absolutní-BODY'!$E$2:$O$161,6,FALSE)) ->  | G15: =IF($C15=0,"",VLOOKUP($C15,'Absolutní-BODY'!$E$2:$O$161,7,FALSE)) ->  | H15: =IF($C15=0,"",VLOOKUP($C15,'Absolutní-BODY'!$E$2:$O$161,8,FALSE)) ->  | I15: =IF($C15=0,"",VLOOKUP($C15,'Absolutní-BODY'!$E$2:$O$161,9,FALSE)) ->  | J15: =IF($C15=0,"",VLOOKUP($C15,'Absolutní-BODY'!$E$2:$O$161,10,FALSE)) ->  | K15: =IF($C15=0,"",VLOOKUP($C15,'Absolutní-BODY'!$E$2:$O$161,11,FALSE)) ->  | M15: 2 | N15: =IF(O15=0,"",VLOOKUP($O15,seznam!$A$1:$E$5058,2,FALSE)) ->  | P15: =IF($O15=0,"",VLOOKUP($O15,'Absolutní-BODY'!$E$2:$O$161,4,FALSE)) ->  | Q15: =IF($O15=0,"",VLOOKUP($O15,'Absolutní-BODY'!$E$2:$O$161,5,FALSE)) ->  | R15: =IF($O15=0,"",VLOOKUP($O15,'Absolutní-BODY'!$E$2:$O$161,6,FALSE)) ->  | S15: =IF($O15=0,"",VLOOKUP($O15,'Absolutní-BODY'!$E$2:$O$161,7,FALSE)) ->  | T15: =IF($O15=0,"",VLOOKUP($O15,'Absolutní-BODY'!$E$2:$O$161,8,FALSE)) ->  | U15: =IF($O15=0,"",VLOOKUP($O15,'Absolutní-BODY'!$E$2:$O$161,9,FALSE)) ->  | V15: =IF($O15=0,"",VLOOKUP($O15,'Absolutní-BODY'!$E$2:$O$161,10,FALSE)) ->  | W15: =IF($O15=0,"",VLOOKUP($O15,'Absolutní-BODY'!$E$2:$O$161,11,FALSE)) ->  | Y15: 2 | Z15: =IF(AA15=0,"",VLOOKUP($AA15,seznam!$A$1:$E$5058,2,FALSE)) ->  | AB15: =IF($AA15=0,"",VLOOKUP($AA15,'Absolutní-BODY'!$E$2:$O$161,4,FALSE)) ->  | AC15: =IF($AA15=0,"",VLOOKUP($AA15,'Absolutní-BODY'!$E$2:$O$161,5,FALSE)) ->  | AD15: =IF($AA15=0,"",VLOOKUP($AA15,'Absolutní-BODY'!$E$2:$O$161,6,FALSE)) ->  | AE15: =IF($AA15=0,"",VLOOKUP($AA15,'Absolutní-BODY'!$E$2:$O$161,7,FALSE)) ->  | AF15: =IF($AA15=0,"",VLOOKUP($AA15,'Absolutní-BODY'!$E$2:$O$161,8,FALSE)) ->  | AG15: =IF($AA15=0,"",VLOOKUP($AA15,'Absolutní-BODY'!$E$2:$O$161,9,FALSE)) ->  | AH15: =IF($AA15=0,"",VLOOKUP($AA15,'Absolutní-BODY'!$E$2:$O$161,10,FALSE)) ->  | AI15: =IF($AA15=0,"",VLOOKUP($AA15,'Absolutní-BODY'!$E$2:$O$161,11,FALSE)) -> 
A16: 3 | B16: =IF(C16=0,"",VLOOKUP($C16,seznam!$A$1:$E$5058,2,FALSE)) ->  | D16: =IF($C16=0,"",VLOOKUP($C16,'Absolutní-BODY'!$E$2:$O$161,4,FALSE)) ->  | E16: =IF($C16=0,"",VLOOKUP($C16,'Absolutní-BODY'!$E$2:$O$161,5,FALSE)) ->  | F16: =IF($C16=0,"",VLOOKUP($C16,'Absolutní-BODY'!$E$2:$O$161,6,FALSE)) ->  | G16: =IF($C16=0,"",VLOOKUP($C16,'Absolutní-BODY'!$E$2:$O$161,7,FALSE)) ->  | H16: =IF($C16=0,"",VLOOKUP($C16,'Absolutní-BODY'!$E$2:$O$161,8,FALSE)) ->  | I16: =IF($C16=0,"",VLOOKUP($C16,'Absolutní-BODY'!$E$2:$O$161,9,FALSE)) ->  | J16: =IF($C16=0,"",VLOOKUP($C16,'Absolutní-BODY'!$E$2:$O$161,10,FALSE)) ->  | K16: =IF($C16=0,"",VLOOKUP($C16,'Absolutní-BODY'!$E$2:$O$161,11,FALSE)) ->  | M16: 3 | N16: =IF(O16=0,"",VLOOKUP($O16,seznam!$A$1:$E$5058,2,FALSE)) ->  | P16: =IF($O16=0,"",VLOOKUP($O16,'Absolutní-BODY'!$E$2:$O$161,4,FALSE)) ->  | Q16: =IF($O16=0,"",VLOOKUP($O16,'Absolutní-BODY'!$E$2:$O$161,5,FALSE)) ->  | R16: =IF($O16=0,"",VLOOKUP($O16,'Absolutní-BODY'!$E$2:$O$161,6,FALSE)) ->  | S16: =IF($O16=0,"",VLOOKUP($O16,'Absolutní-BODY'!$E$2:$O$161,7,FALSE)) ->  | T16: =IF($O16=0,"",VLOOKUP($O16,'Absolutní-BODY'!$E$2:$O$161,8,FALSE)) ->  | U16: =IF($O16=0,"",VLOOKUP($O16,'Absolutní-BODY'!$E$2:$O$161,9,FALSE)) ->  | V16: =IF($O16=0,"",VLOOKUP($O16,'Absolutní-BODY'!$E$2:$O$161,10,FALSE)) ->  | W16: =IF($O16=0,"",VLOOKUP($O16,'Absolutní-BODY'!$E$2:$O$161,11,FALSE)) ->  | Y16: 3 | Z16: =IF(AA16=0,"",VLOOKUP($AA16,seznam!$A$1:$E$5058,2,FALSE)) ->  | AB16: =IF($AA16=0,"",VLOOKUP($AA16,'Absolutní-BODY'!$E$2:$O$161,4,FALSE)) ->  | AC16: =IF($AA16=0,"",VLOOKUP($AA16,'Absolutní-BODY'!$E$2:$O$161,5,FALSE)) ->  | AD16: =IF($AA16=0,"",VLOOKUP($AA16,'Absolutní-BODY'!$E$2:$O$161,6,FALSE)) ->  | AE16: =IF($AA16=0,"",VLOOKUP($AA16,'Absolutní-BODY'!$E$2:$O$161,7,FALSE)) ->  | AF16: =IF($AA16=0,"",VLOOKUP($AA16,'Absolutní-BODY'!$E$2:$O$161,8,FALSE)) ->  | AG16: =IF($AA16=0,"",VLOOKUP($AA16,'Absolutní-BODY'!$E$2:$O$161,9,FALSE)) ->  | AH16: =IF($AA16=0,"",VLOOKUP($AA16,'Absolutní-BODY'!$E$2:$O$161,10,FALSE)) ->  | AI16: =IF($AA16=0,"",VLOOKUP($AA16,'Absolutní-BODY'!$E$2:$O$161,11,FALSE)) -> 
A17: N | B17: =IF(C17=0,"",VLOOKUP($C17,seznam!$A$1:$E$5058,2,FALSE)) ->  | D17: =IF($C17=0,"",VLOOKUP($C17,'Absolutní-BODY'!$E$2:$O$161,4,FALSE)) ->  | E17: =IF($C17=0,"",VLOOKUP($C17,'Absolutní-BODY'!$E$2:$O$161,5,FALSE)) ->  | F17: =IF($C17=0,"",VLOOKUP($C17,'Absolutní-BODY'!$E$2:$O$161,6,FALSE)) ->  | G17: =IF($C17=0,"",VLOOKUP($C17,'Absolutní-BODY'!$E$2:$O$161,7,FALSE)) ->  | H17: =IF($C17=0,"",VLOOKUP($C17,'Absolutní-BODY'!$E$2:$O$161,8,FALSE)) ->  | I17: =IF($C17=0,"",VLOOKUP($C17,'Absolutní-BODY'!$E$2:$O$161,9,FALSE)) ->  | J17: =IF($C17=0,"",VLOOKUP($C17,'Absolutní-BODY'!$E$2:$O$161,10,FALSE)) ->  | K17: =IF($C17=0,"",VLOOKUP($C17,'Absolutní-BODY'!$E$2:$O$161,11,FALSE)) ->  | M17: N | N17: =IF(O17=0,"",VLOOKUP($O17,seznam!$A$1:$E$5058,2,FALSE)) ->  | P17: =IF($O17=0,"",VLOOKUP($O17,'Absolutní-BODY'!$E$2:$O$161,4,FALSE)) ->  | Q17: =IF($O17=0,"",VLOOKUP($O17,'Absolutní-BODY'!$E$2:$O$161,5,FALSE)) ->  | R17: =IF($O17=0,"",VLOOKUP($O17,'Absolutní-BODY'!$E$2:$O$161,6,FALSE)) ->  | S17: =IF($O17=0,"",VLOOKUP($O17,'Absolutní-BODY'!$E$2:$O$161,7,FALSE)) ->  | T17: =IF($O17=0,"",VLOOKUP($O17,'Absolutní-BODY'!$E$2:$O$161,8,FALSE)) ->  | U17: =IF($O17=0,"",VLOOKUP($O17,'Absolutní-BODY'!$E$2:$O$161,9,FALSE)) ->  | V17: =IF($O17=0,"",VLOOKUP($O17,'Absolutní-BODY'!$E$2:$O$161,10,FALSE)) ->  | W17: =IF($O17=0,"",VLOOKUP($O17,'Absolutní-BODY'!$E$2:$O$161,11,FALSE)) ->  | Y17: N | Z17: =IF(AA17=0,"",VLOOKUP($AA17,seznam!$A$1:$E$5058,2,FALSE)) ->  | AB17: =IF($AA17=0,"",VLOOKUP($AA17,'Absolutní-BODY'!$E$2:$O$161,4,FALSE)) ->  | AC17: =IF($AA17=0,"",VLOOKUP($AA17,'Absolutní-BODY'!$E$2:$O$161,5,FALSE)) ->  | AD17: =IF($AA17=0,"",VLOOKUP($AA17,'Absolutní-BODY'!$E$2:$O$161,6,FALSE)) ->  | AE17: =IF($AA17=0,"",VLOOKUP($AA17,'Absolutní-BODY'!$E$2:$O$161,7,FALSE)) ->  | AF17: =IF($AA17=0,"",VLOOKUP($AA17,'Absolutní-BODY'!$E$2:$O$161,8,FALSE)) ->  | AG17: =IF($AA17=0,"",VLOOKUP($AA17,'Absolutní-BODY'!$E$2:$O$161,9,FALSE)) ->  | AH17: =IF($AA17=0,"",VLOOKUP($AA17,'Absolutní-BODY'!$E$2:$O$161,10,FALSE)) ->  | AI17: =IF($AA17=0,"",VLOOKUP($AA17,'Absolutní-BODY'!$E$2:$O$161,11,FALSE)) -> 
D18: =SUM(D14:D17) -> 0 | E18: 0 | F18: 0 | G18: 0 | H18: 0 | I18: 0 | J18: 0 | K18: 0 | P18: =SUM(P14:P17) -> 0 | Q18: 0 | R18: 0 | S18: 0 | T18: 0 | U18: 0 | V18: 0 | W18: 0 | AB18: =SUM(AB14:AB17) -> 0 | AC18: 0 | AD18: 0 | AE18: 0 | AF18: 0 | AG18: 0 | AH18: 0 | AI18: 0
C19: bodů | H19: celkem | J19: =SUM(D18:K18) -> 0 | O19: bodů | T19: celkem | V19: =SUM(P18:W18) -> 0 | AA19: bodů | AF19: celkem | AH19: =SUM(AB18:AI18) -> 0
B21: 7. místo | N21: 8. místo
C22: reg | D22: 1 | E22: 2 | F22: 3 | G22: 4 | H22: 5 | I22: 6 | J22: 7 | K22: 8 | O22: reg | P22: 1 | Q22: 2 | R22: 3 | S22: 4 | T22: 5 | U22: 6 | V22: 7 | W22: 8
A23: 1 | B23: =IF(C23=0,"",VLOOKUP($C23,seznam!$A$1:$E$5058,2,FALSE)) ->  | D23: =IF($C23=0,"",VLOOKUP($C23,'Absolutní-BODY'!$E$2:$O$161,4,FALSE)) ->  | E23: =IF($C23=0,"",VLOOKUP($C23,'Absolutní-BODY'!$E$2:$O$161,5,FALSE)) ->  | F23: =IF($C23=0,"",VLOOKUP($C23,'Absolutní-BODY'!$E$2:$O$161,6,FALSE)) ->  | G23: =IF($C23=0,"",VLOOKUP($C23,'Absolutní-BODY'!$E$2:$O$161,7,FALSE)) ->  | H23: =IF($C23=0,"",VLOOKUP($C23,'Absolutní-BODY'!$E$2:$O$161,8,FALSE)) ->  | I23: =IF($C23=0,"",VLOOKUP($C23,'Absolutní-BODY'!$E$2:$O$161,9,FALSE)) ->  | J23: =IF($C23=0,"",VLOOKUP($C23,'Absolutní-BODY'!$E$2:$O$161,10,FALSE)) ->  | K23: =IF($C23=0,"",VLOOKUP($C23,'Absolutní-BODY'!$E$2:$O$161,11,FALSE)) ->  | M23: 1 | N23: =IF(O23=0,"",VLOOKUP($O23,seznam!$A$1:$E$5058,2,FALSE)) ->  | P23: =IF($O23=0,"",VLOOKUP($O23,'Absolutní-BODY'!$E$2:$O$161,4,FALSE)) ->  | Q23: =IF($O23=0,"",VLOOKUP($O23,'Absolutní-BODY'!$E$2:$O$161,5,FALSE)) ->  | R23: =IF($O23=0,"",VLOOKUP($O23,'Absolutní-BODY'!$E$2:$O$161,6,FALSE)) ->  | S23: =IF($O23=0,"",VLOOKUP($O23,'Absolutní-BODY'!$E$2:$O$161,7,FALSE)) ->  | T23: =IF($O23=0,"",VLOOKUP($O23,'Absolutní-BODY'!$E$2:$O$161,8,FALSE)) ->  | U23: =IF($O23=0,"",VLOOKUP($O23,'Absolutní-BODY'!$E$2:$O$161,9,FALSE)) ->  | V23: =IF($O23=0,"",VLOOKUP($O23,'Absolutní-BODY'!$E$2:$O$161,10,FALSE)) ->  | W23: =IF($O23=0,"",VLOOKUP($O23,'Absolutní-BODY'!$E$2:$O$161,11,FALSE)) -> 
A24: 2 | B24: =IF(C24=0,"",VLOOKUP($C24,seznam!$A$1:$E$5058,2,FALSE)) ->  | D24: =IF($C24=0,"",VLOOKUP($C24,'Absolutní-BODY'!$E$2:$O$161,4,FALSE)) ->  | E24: =IF($C24=0,"",VLOOKUP($C24,'Absolutní-BODY'!$E$2:$O$161,5,FALSE)) ->  | F24: =IF($C24=0,"",VLOOKUP($C24,'Absolutní-BODY'!$E$2:$O$161,6,FALSE)) ->  | G24: =IF($C24=0,"",VLOOKUP($C24,'Absolutní-BODY'!$E$2:$O$161,7,FALSE)) ->  | H24: =IF($C24=0,"",VLOOKUP($C24,'Absolutní-BODY'!$E$2:$O$161,8,FALSE)) ->  | I24: =IF($C24=0,"",VLOOKUP($C24,'Absolutní-BODY'!$E$2:$O$161,9,FALSE)) ->  | J24: =IF($C24=0,"",VLOOKUP($C24,'Absolutní-BODY'!$E$2:$O$161,10,FALSE)) ->  | K24: =IF($C24=0,"",VLOOKUP($C24,'Absolutní-BODY'!$E$2:$O$161,11,FALSE)) ->  | M24: 2 | N24: =IF(O24=0,"",VLOOKUP($O24,seznam!$A$1:$E$5058,2,FALSE)) ->  | P24: =IF($O24=0,"",VLOOKUP($O24,'Absolutní-BODY'!$E$2:$O$161,4,FALSE)) ->  | Q24: =IF($O24=0,"",VLOOKUP($O24,'Absolutní-BODY'!$E$2:$O$161,5,FALSE)) ->  | R24: =IF($O24=0,"",VLOOKUP($O24,'Absolutní-BODY'!$E$2:$O$161,6,FALSE)) ->  | S24: =IF($O24=0,"",VLOOKUP($O24,'Absolutní-BODY'!$E$2:$O$161,7,FALSE)) ->  | T24: =IF($O24=0,"",VLOOKUP($O24,'Absolutní-BODY'!$E$2:$O$161,8,FALSE)) ->  | U24: =IF($O24=0,"",VLOOKUP($O24,'Absolutní-BODY'!$E$2:$O$161,9,FALSE)) ->  | V24: =IF($O24=0,"",VLOOKUP($O24,'Absolutní-BODY'!$E$2:$O$161,10,FALSE)) ->  | W24: =IF($O24=0,"",VLOOKUP($O24,'Absolutní-BODY'!$E$2:$O$161,11,FALSE)) -> 
A25: 3 | B25: =IF(C25=0,"",VLOOKUP($C25,seznam!$A$1:$E$5058,2,FALSE)) ->  | D25: =IF($C25=0,"",VLOOKUP($C25,'Absolutní-BODY'!$E$2:$O$161,4,FALSE)) ->  | E25: =IF($C25=0,"",VLOOKUP($C25,'Absolutní-BODY'!$E$2:$O$161,5,FALSE)) ->  | F25: =IF($C25=0,"",VLOOKUP($C25,'Absolutní-BODY'!$E$2:$O$161,6,FALSE)) ->  | G25: =IF($C25=0,"",VLOOKUP($C25,'Absolutní-BODY'!$E$2:$O$161,7,FALSE)) ->  | H25: =IF($C25=0,"",VLOOKUP($C25,'Absolutní-BODY'!$E$2:$O$161,8,FALSE)) ->  | I25: =IF($C25=0,"",VLOOKUP($C25,'Absolutní-BODY'!$E$2:$O$161,9,FALSE)) ->  | J25: =IF($C25=0,"",VLOOKUP($C25,'Absolutní-BODY'!$E$2:$O$161,10,FALSE)) ->  | K25: =IF($C25=0,"",VLOOKUP($C25,'Absolutní-BODY'!$E$2:$O$161,11,FALSE)) ->  | M25: 3 | N25: =IF(O25=0,"",VLOOKUP($O25,seznam!$A$1:$E$5058,2,FALSE)) ->  | P25: =IF($O25=0,"",VLOOKUP($O25,'Absolutní-BODY'!$E$2:$O$161,4,FALSE)) ->  | Q25: =IF($O25=0,"",VLOOKUP($O25,'Absolutní-BODY'!$E$2:$O$161,5,FALSE)) ->  | R25: =IF($O25=0,"",VLOOKUP($O25,'Absolutní-BODY'!$E$2:$O$161,6,FALSE)) ->  | S25: =IF($O25=0,"",VLOOKUP($O25,'Absolutní-BODY'!$E$2:$O$161,7,FALSE)) ->  | T25: =IF($O25=0,"",VLOOKUP($O25,'Absolutní-BODY'!$E$2:$O$161,8,FALSE)) ->  | U25: =IF($O25=0,"",VLOOKUP($O25,'Absolutní-BODY'!$E$2:$O$161,9,FALSE)) ->  | V25: =IF($O25=0,"",VLOOKUP($O25,'Absolutní-BODY'!$E$2:$O$161,10,FALSE)) ->  | W25: =IF($O25=0,"",VLOOKUP($O25,'Absolutní-BODY'!$E$2:$O$161,11,FALSE)) -> 
A26: N | B26: =IF(C26=0,"",VLOOKUP($C26,seznam!$A$1:$E$5058,2,FALSE)) ->  | D26: =IF($C26=0,"",VLOOKUP($C26,'Absolutní-BODY'!$E$2:$O$161,4,FALSE)) ->  | E26: =IF($C26=0,"",VLOOKUP($C26,'Absolutní-BODY'!$E$2:$O$161,5,FALSE)) ->  | F26: =IF($C26=0,"",VLOOKUP($C26,'Absolutní-BODY'!$E$2:$O$161,6,FALSE)) ->  | G26: =IF($C26=0,"",VLOOKUP($C26,'Absolutní-BODY'!$E$2:$O$161,7,FALSE)) ->  | H26: =IF($C26=0,"",VLOOKUP($C26,'Absolutní-BODY'!$E$2:$O$161,8,FALSE)) ->  | I26: =IF($C26=0,"",VLOOKUP($C26,'Absolutní-BODY'!$E$2:$O$161,9,FALSE)) ->  | J26: =IF($C26=0,"",VLOOKUP($C26,'Absolutní-BODY'!$E$2:$O$161,10,FALSE)) ->  | K26: =IF($C26=0,"",VLOOKUP($C26,'Absolutní-BODY'!$E$2:$O$161,11,FALSE)) ->  | M26: N | N26: =IF(O26=0,"",VLOOKUP($O26,seznam!$A$1:$E$5058,2,FALSE)) ->  | P26: =IF($O26=0,"",VLOOKUP($O26,'Absolutní-BODY'!$E$2:$O$161,4,FALSE)) ->  | Q26: =IF($O26=0,"",VLOOKUP($O26,'Absolutní-BODY'!$E$2:$O$161,5,FALSE)) ->  | R26: =IF($O26=0,"",VLOOKUP($O26,'Absolutní-BODY'!$E$2:$O$161,6,FALSE)) ->  | S26: =IF($O26=0,"",VLOOKUP($O26,'Absolutní-BODY'!$E$2:$O$161,7,FALSE)) ->  | T26: =IF($O26=0,"",VLOOKUP($O26,'Absolutní-BODY'!$E$2:$O$161,8,FALSE)) ->  | U26: =IF($O26=0,"",VLOOKUP($O26,'Absolutní-BODY'!$E$2:$O$161,9,FALSE)) ->  | V26: =IF($O26=0,"",VLOOKUP($O26,'Absolutní-BODY'!$E$2:$O$161,10,FALSE)) ->  | W26: =IF($O26=0,"",VLOOKUP($O26,'Absolutní-BODY'!$E$2:$O$161,11,FALSE)) -> 
D27: =SUM(D23:D26) -> 0 | E27: 0 | F27: 0 | G27: 0 | H27: 0 | I27: 0 | J27: 0 | K27: 0 | P27: =SUM(P23:P26) -> 0 | Q27: 0 | R27: 0 | S27: 0 | T27: 0 | U27: 0 | V27: 0 | W27: 0
C28: bodů | H28: celkem | J28: =SUM(D27:K27) -> 0 | O28: bodů | T28: celkem | V28: =SUM(P27:W27) -> 0

Sheet Liga-kolo-Jz (hidden)
A1: ? | B1: .kolo | C1: ? | E1: liga žákovských družstev | N1: 2012 / 2013
B3: 1. místo | N3: 2. místo | Z3: 3. místo
C4: reg | D4: 1 | E4: 2 | F4: 3 | G4: 4 | H4: 5 | I4: 6 | J4: 7 | K4: 8 | O4: reg | P4: 1 | Q4: 2 | R4: 3 | S4: 4 | T4: 5 | U4: 6 | V4: 7 | W4: 8 | AA4: reg | AB4: 1 | AC4: 2 | AD4: 3 | AE4: 4 | AF4: 5 | AG4: 6 | AH4: 7 | AI4: 8
A5: 1 | B5: =IF(C5=0,"",VLOOKUP($C5,seznam!$A$1:$E$5058,2,FALSE)) ->  | D5: =IF($C5=0,"",VLOOKUP($C5,'Absolutní-BODY'!$E$2:$O$161,4,FALSE)) ->  | E5: =IF($C5=0,"",VLOOKUP($C5,'Absolutní-BODY'!$E$2:$O$161,5,FALSE)) ->  | F5: =IF($C5=0,"",VLOOKUP($C5,'Absolutní-BODY'!$E$2:$O$161,6,FALSE)) ->  | G5: =IF($C5=0,"",VLOOKUP($C5,'Absolutní-BODY'!$E$2:$O$161,7,FALSE)) ->  | H5: =IF($C5=0,"",VLOOKUP($C5,'Absolutní-BODY'!$E$2:$O$161,8,FALSE)) ->  | I5: =IF($C5=0,"",VLOOKUP($C5,'Absolutní-BODY'!$E$2:$O$161,9,FALSE)) ->  | J5: =IF($C5=0,"",VLOOKUP($C5,'Absolutní-BODY'!$E$2:$O$161,10,FALSE)) ->  | K5: =IF($C5=0,"",VLOOKUP($C5,'Absolutní-BODY'!$E$2:$O$161,11,FALSE)) ->  | M5: 1 | N5: =IF(O5=0,"",VLOOKUP($O5,seznam!$A$1:$E$5058,2,FALSE)) ->  | P5: =IF($O5=0,"",VLOOKUP($O5,'Absolutní-BODY'!$E$2:$O$161,4,FALSE)) ->  | Q5: =IF($O5=0,"",VLOOKUP($O5,'Absolutní-BODY'!$E$2:$O$161,5,FALSE)) ->  | R5: =IF($O5=0,"",VLOOKUP($O5,'Absolutní-BODY'!$E$2:$O$161,6,FALSE)) ->  | S5: =IF($O5=0,"",VLOOKUP($O5,'Absolutní-BODY'!$E$2:$O$161,7,FALSE)) ->  | T5: =IF($O5=0,"",VLOOKUP($O5,'Absolutní-BODY'!$E$2:$O$161,8,FALSE)) ->  | U5: =IF($O5=0,"",VLOOKUP($O5,'Absolutní-BODY'!$E$2:$O$161,9,FALSE)) ->  | V5: =IF($O5=0,"",VLOOKUP($O5,'Absolutní-BODY'!$E$2:$O$161,10,FALSE)) ->  | W5: =IF($O5=0,"",VLOOKUP($O5,'Absolutní-BODY'!$E$2:$O$161,11,FALSE)) ->  | Y5: 1 | Z5: =IF(AA5=0,"",VLOOKUP($AA5,seznam!$A$1:$E$5058,2,FALSE)) ->  | AB5: =IF($AA5=0,"",VLOOKUP($AA5,'Absolutní-BODY'!$E$2:$O$161,4,FALSE)) ->  | AC5: =IF($AA5=0,"",VLOOKUP($AA5,'Absolutní-BODY'!$E$2:$O$161,5,FALSE)) ->  | AD5: =IF($AA5=0,"",VLOOKUP($AA5,'Absolutní-BODY'!$E$2:$O$161,6,FALSE)) ->  | AE5: =IF($AA5=0,"",VLOOKUP($AA5,'Absolutní-BODY'!$E$2:$O$161,7,FALSE)) ->  | AF5: =IF($AA5=0,"",VLOOKUP($AA5,'Absolutní-BODY'!$E$2:$O$161,8,FALSE)) ->  | AG5: =IF($AA5=0,"",VLOOKUP($AA5,'Absolutní-BODY'!$E$2:$O$161,9,FALSE)) ->  | AH5: =IF($AA5=0,"",VLOOKUP($AA5,'Absolutní-BODY'!$E$2:$O$161,10,FALSE)) ->  | AI5: =IF($AA5=0,"",VLOOKUP($AA5,'Absolutní-BODY'!$E$2:$O$161,11,FALSE)) -> 
A6: 2 | B6: =IF(C6=0,"",VLOOKUP($C6,seznam!$A$1:$E$5058,2,FALSE)) ->  | D6: =IF($C6=0,"",VLOOKUP($C6,'Absolutní-BODY'!$E$2:$O$161,4,FALSE)) ->  | E6: =IF($C6=0,"",VLOOKUP($C6,'Absolutní-BODY'!$E$2:$O$161,5,FALSE)) ->  | F6: =IF($C6=0,"",VLOOKUP($C6,'Absolutní-BODY'!$E$2:$O$161,6,FALSE)) ->  | G6: =IF($C6=0,"",VLOOKUP($C6,'Absolutní-BODY'!$E$2:$O$161,7,FALSE)) ->  | H6: =IF($C6=0,"",VLOOKUP($C6,'Absolutní-BODY'!$E$2:$O$161,8,FALSE)) ->  | I6: =IF($C6=0,"",VLOOKUP($C6,'Absolutní-BODY'!$E$2:$O$161,9,FALSE)) ->  | J6: =IF($C6=0,"",VLOOKUP($C6,'Absolutní-BODY'!$E$2:$O$161,10,FALSE)) ->  | K6: =IF($C6=0,"",VLOOKUP($C6,'Absolutní-BODY'!$E$2:$O$161,11,FALSE)) ->  | M6: 2 | N6: =IF(O6=0,"",VLOOKUP($O6,seznam!$A$1:$E$5058,2,FALSE)) ->  | P6: =IF($O6=0,"",VLOOKUP($O6,'Absolutní-BODY'!$E$2:$O$161,4,FALSE)) ->  | Q6: =IF($O6=0,"",VLOOKUP($O6,'Absolutní-BODY'!$E$2:$O$161,5,FALSE)) ->  | R6: =IF($O6=0,"",VLOOKUP($O6,'Absolutní-BODY'!$E$2:$O$161,6,FALSE)) ->  | S6: =IF($O6=0,"",VLOOKUP($O6,'Absolutní-BODY'!$E$2:$O$161,7,FALSE)) ->  | T6: =IF($O6=0,"",VLOOKUP($O6,'Absolutní-BODY'!$E$2:$O$161,8,FALSE)) ->  | U6: =IF($O6=0,"",VLOOKUP($O6,'Absolutní-BODY'!$E$2:$O$161,9,FALSE)) ->  | V6: =IF($O6=0,"",VLOOKUP($O6,'Absolutní-BODY'!$E$2:$O$161,10,FALSE)) ->  | W6: =IF($O6=0,"",VLOOKUP($O6,'Absolutní-BODY'!$E$2:$O$161,11,FALSE)) ->  | Y6: 2 | Z6: =IF(AA6=0,"",VLOOKUP($AA6,seznam!$A$1:$E$5058,2,FALSE)) ->  | AB6: =IF($AA6=0,"",VLOOKUP($AA6,'Absolutní-BODY'!$E$2:$O$161,4,FALSE)) ->  | AC6: =IF($AA6=0,"",VLOOKUP($AA6,'Absolutní-BODY'!$E$2:$O$161,5,FALSE)) ->  | AD6: =IF($AA6=0,"",VLOOKUP($AA6,'Absolutní-BODY'!$E$2:$O$161,6,FALSE)) ->  | AE6: =IF($AA6=0,"",VLOOKUP($AA6,'Absolutní-BODY'!$E$2:$O$161,7,FALSE)) ->  | AF6: =IF($AA6=0,"",VLOOKUP($AA6,'Absolutní-BODY'!$E$2:$O$161,8,FALSE)) ->  | AG6: =IF($AA6=0,"",VLOOKUP($AA6,'Absolutní-BODY'!$E$2:$O$161,9,FALSE)) ->  | AH6: =IF($AA6=0,"",VLOOKUP($AA6,'Absolutní-BODY'!$E$2:$O$161,10,FALSE)) ->  | AI6: =IF($AA6=0,"",VLOOKUP($AA6,'Absolutní-BODY'!$E$2:$O$161,11,FALSE)) -> 
A7: 3 | B7: =IF(C7=0,"",VLOOKUP($C7,seznam!$A$1:$E$5058,2,FALSE)) ->  | D7: =IF($C7=0,"",VLOOKUP($C7,'Absolutní-BODY'!$E$2:$O$161,4,FALSE)) ->  | E7: =IF($C7=0,"",VLOOKUP($C7,'Absolutní-BODY'!$E$2:$O$161,5,FALSE)) ->  | F7: =IF($C7=0,"",VLOOKUP($C7,'Absolutní-BODY'!$E$2:$O$161,6,FALSE)) ->  | G7: =IF($C7=0,"",VLOOKUP($C7,'Absolutní-BODY'!$E$2:$O$161,7,FALSE)) ->  | H7: =IF($C7=0,"",VLOOKUP($C7,'Absolutní-BODY'!$E$2:$O$161,8,FALSE)) ->  | I7: =IF($C7=0,"",VLOOKUP($C7,'Absolutní-BODY'!$E$2:$O$161,9,FALSE)) ->  | J7: =IF($C7=0,"",VLOOKUP($C7,'Absolutní-BODY'!$E$2:$O$161,10,FALSE)) ->  | K7: =IF($C7=0,"",VLOOKUP($C7,'Absolutní-BODY'!$E$2:$O$161,11,FALSE)) ->  | M7: 3 | N7: =IF(O7=0,"",VLOOKUP($O7,seznam!$A$1:$E$5058,2,FALSE)) ->  | P7: =IF($O7=0,"",VLOOKUP($O7,'Absolutní-BODY'!$E$2:$O$161,4,FALSE)) ->  | Q7: =IF($O7=0,"",VLOOKUP($O7,'Absolutní-BODY'!$E$2:$O$161,5,FALSE)) ->  | R7: =IF($O7=0,"",VLOOKUP($O7,'Absolutní-BODY'!$E$2:$O$161,6,FALSE)) ->  | S7: =IF($O7=0,"",VLOOKUP($O7,'Absolutní-BODY'!$E$2:$O$161,7,FALSE)) ->  | T7: =IF($O7=0,"",VLOOKUP($O7,'Absolutní-BODY'!$E$2:$O$161,8,FALSE)) ->  | U7: =IF($O7=0,"",VLOOKUP($O7,'Absolutní-BODY'!$E$2:$O$161,9,FALSE)) ->  | V7: =IF($O7=0,"",VLOOKUP($O7,'Absolutní-BODY'!$E$2:$O$161,10,FALSE)) ->  | W7: =IF($O7=0,"",VLOOKUP($O7,'Absolutní-BODY'!$E$2:$O$161,11,FALSE)) ->  | Y7: 3 | Z7: =IF(AA7=0,"",VLOOKUP($AA7,seznam!$A$1:$E$5058,2,FALSE)) ->  | AB7: =IF($AA7=0,"",VLOOKUP($AA7,'Absolutní-BODY'!$E$2:$O$161,4,FALSE)) ->  | AC7: =IF($AA7=0,"",VLOOKUP($AA7,'Absolutní-BODY'!$E$2:$O$161,5,FALSE)) ->  | AD7: =IF($AA7=0,"",VLOOKUP($AA7,'Absolutní-BODY'!$E$2:$O$161,6,FALSE)) ->  | AE7: =IF($AA7=0,"",VLOOKUP($AA7,'Absolutní-BODY'!$E$2:$O$161,7,FALSE)) ->  | AF7: =IF($AA7=0,"",VLOOKUP($AA7,'Absolutní-BODY'!$E$2:$O$161,8,FALSE)) ->  | AG7: =IF($AA7=0,"",VLOOKUP($AA7,'Absolutní-BODY'!$E$2:$O$161,9,FALSE)) ->  | AH7: =IF($AA7=0,"",VLOOKUP($AA7,'Absolutní-BODY'!$E$2:$O$161,10,FALSE)) ->  | AI7: =IF($AA7=0,"",VLOOKUP($AA7,'Absolutní-BODY'!$E$2:$O$161,11,FALSE)) -> 
A8: N | B8: =IF(C8=0,"",VLOOKUP($C8,seznam!$A$1:$E$5058,2,FALSE)) ->  | D8: =IF($C8=0,"",VLOOKUP($C8,'Absolutní-BODY'!$E$2:$O$161,4,FALSE)) ->  | E8: =IF($C8=0,"",VLOOKUP($C8,'Absolutní-BODY'!$E$2:$O$161,5,FALSE)) ->  | F8: =IF($C8=0,"",VLOOKUP($C8,'Absolutní-BODY'!$E$2:$O$161,6,FALSE)) ->  | G8: =IF($C8=0,"",VLOOKUP($C8,'Absolutní-BODY'!$E$2:$O$161,7,FALSE)) ->  | H8: =IF($C8=0,"",VLOOKUP($C8,'Absolutní-BODY'!$E$2:$O$161,8,FALSE)) ->  | I8: =IF($C8=0,"",VLOOKUP($C8,'Absolutní-BODY'!$E$2:$O$161,9,FALSE)) ->  | J8: =IF($C8=0,"",VLOOKUP($C8,'Absolutní-BODY'!$E$2:$O$161,10,FALSE)) ->  | K8: =IF($C8=0,"",VLOOKUP($C8,'Absolutní-BODY'!$E$2:$O$161,11,FALSE)) ->  | M8: N | N8: =IF(O8=0,"",VLOOKUP($O8,seznam!$A$1:$E$5058,2,FALSE)) ->  | P8: =IF($O8=0,"",VLOOKUP($O8,'Absolutní-BODY'!$E$2:$O$161,4,FALSE)) ->  | Q8: =IF($O8=0,"",VLOOKUP($O8,'Absolutní-BODY'!$E$2:$O$161,5,FALSE)) ->  | R8: =IF($O8=0,"",VLOOKUP($O8,'Absolutní-BODY'!$E$2:$O$161,6,FALSE)) ->  | S8: =IF($O8=0,"",VLOOKUP($O8,'Absolutní-BODY'!$E$2:$O$161,7,FALSE)) ->  | T8: =IF($O8=0,"",VLOOKUP($O8,'Absolutní-BODY'!$E$2:$O$161,8,FALSE)) ->  | U8: =IF($O8=0,"",VLOOKUP($O8,'Absolutní-BODY'!$E$2:$O$161,9,FALSE)) ->  | V8: =IF($O8=0,"",VLOOKUP($O8,'Absolutní-BODY'!$E$2:$O$161,10,FALSE)) ->  | W8: =IF($O8=0,"",VLOOKUP($O8,'Absolutní-BODY'!$E$2:$O$161,11,FALSE)) ->  | Y8: N | Z8: =IF(AA8=0,"",VLOOKUP($AA8,seznam!$A$1:$E$5058,2,FALSE)) ->  | AB8: =IF($AA8=0,"",VLOOKUP($AA8,'Absolutní-BODY'!$E$2:$O$161,4,FALSE)) ->  | AC8: =IF($AA8=0,"",VLOOKUP($AA8,'Absolutní-BODY'!$E$2:$O$161,5,FALSE)) ->  | AD8: =IF($AA8=0,"",VLOOKUP($AA8,'Absolutní-BODY'!$E$2:$O$161,6,FALSE)) ->  | AE8: =IF($AA8=0,"",VLOOKUP($AA8,'Absolutní-BODY'!$E$2:$O$161,7,FALSE)) ->  | AF8: =IF($AA8=0,"",VLOOKUP($AA8,'Absolutní-BODY'!$E$2:$O$161,8,FALSE)) ->  | AG8: =IF($AA8=0,"",VLOOKUP($AA8,'Absolutní-BODY'!$E$2:$O$161,9,FALSE)) ->  | AH8: =IF($AA8=0,"",VLOOKUP($AA8,'Absolutní-BODY'!$E$2:$O$161,10,FALSE)) ->  | AI8: =IF($AA8=0,"",VLOOKUP($AA8,'Absolutní-BODY'!$E$2:$O$161,11,FALSE)) -> 
D9: =SUM(D5:D8) -> 0 | E9: 0 | F9: 0 | G9: 0 | H9: 0 | I9: 0 | J9: 0 | K9: 0 | P9: =SUM(P5:P8) -> 0 | Q9: 0 | R9: 0 | S9: 0 | T9: 0 | U9: 0 | V9: 0 | W9: 0 | AB9: =SUM(AB5:AB8) -> 0 | AC9: 0 | AD9: 0 | AE9: 0 | AF9: 0 | AG9: 0 | AH9: 0 | AI9: 0
C10: bodů | H10: celkem | J10: =SUM(D9:K9) -> 0 | O10: bodů | T10: celkem | V10: =SUM(P9:W9) -> 0 | AA10: bodů | AF10: celkem | AH10: =SUM(AB9:AI9) -> 0
B12: 4. místo | N12: 5. místo | Z12: 6. místo
C13: reg | D13: 1 | E13: 2 | F13: 3 | G13: 4 | H13: 5 | I13: 6 | J13: 7 | K13: 8 | O13: reg | P13: 1 | Q13: 2 | R13: 3 | S13: 4 | T13: 5 | U13: 6 | V13: 7 | W13: 8 | AA13: reg | AB13: 1 | AC13: 2 | AD13: 3 | AE13: 4 | AF13: 5 | AG13: 6 | AH13: 7 | AI13: 8
A14: 1 | B14: =IF(C14=0,"",VLOOKUP($C14,seznam!$A$1:$E$5058,2,FALSE)) ->  | D14: =IF($C14=0,"",VLOOKUP($C14,'Absolutní-BODY'!$E$2:$O$161,4,FALSE)) ->  | E14: =IF($C14=0,"",VLOOKUP($C14,'Absolutní-BODY'!$E$2:$O$161,5,FALSE)) ->  | F14: =IF($C14=0,"",VLOOKUP($C14,'Absolutní-BODY'!$E$2:$O$161,6,FALSE)) ->  | G14: =IF($C14=0,"",VLOOKUP($C14,'Absolutní-BODY'!$E$2:$O$161,7,FALSE)) ->  | H14: =IF($C14=0,"",VLOOKUP($C14,'Absolutní-BODY'!$E$2:$O$161,8,FALSE)) ->  | I14: =IF($C14=0,"",VLOOKUP($C14,'Absolutní-BODY'!$E$2:$O$161,9,FALSE)) ->  | J14: =IF($C14=0,"",VLOOKUP($C14,'Absolutní-BODY'!$E$2:$O$161,10,FALSE)) ->  | K14: =IF($C14=0,"",VLOOKUP($C14,'Absolutní-BODY'!$E$2:$O$161,11,FALSE)) ->  | M14: 1 | N14: =IF(O14=0,"",VLOOKUP($O14,seznam!$A$1:$E$5058,2,FALSE)) ->  | P14: =IF($O14=0,"",VLOOKUP($O14,'Absolutní-BODY'!$E$2:$O$161,4,FALSE)) ->  | Q14: =IF($O14=0,"",VLOOKUP($O14,'Absolutní-BODY'!$E$2:$O$161,5,FALSE)) ->  | R14: =IF($O14=0,"",VLOOKUP($O14,'Absolutní-BODY'!$E$2:$O$161,6,FALSE)) ->  | S14: =IF($O14=0,"",VLOOKUP($O14,'Absolutní-BODY'!$E$2:$O$161,7,FALSE)) ->  | T14: =IF($O14=0,"",VLOOKUP($O14,'Absolutní-BODY'!$E$2:$O$161,8,FALSE)) ->  | U14: =IF($O14=0,"",VLOOKUP($O14,'Absolutní-BODY'!$E$2:$O$161,9,FALSE)) ->  | V14: =IF($O14=0,"",VLOOKUP($O14,'Absolutní-BODY'!$E$2:$O$161,10,FALSE)) ->  | W14: =IF($O14=0,"",VLOOKUP($O14,'Absolutní-BODY'!$E$2:$O$161,11,FALSE)) ->  | Y14: 1 | Z14: =IF(AA14=0,"",VLOOKUP($AA14,seznam!$A$1:$E$5058,2,FALSE)) ->  | AB14: =IF($AA14=0,"",VLOOKUP($AA14,'Absolutní-BODY'!$E$2:$O$161,4,FALSE)) ->  | AC14: =IF($AA14=0,"",VLOOKUP($AA14,'Absolutní-BODY'!$E$2:$O$161,5,FALSE)) ->  | AD14: =IF($AA14=0,"",VLOOKUP($AA14,'Absolutní-BODY'!$E$2:$O$161,6,FALSE)) ->  | AE14: =IF($AA14=0,"",VLOOKUP($AA14,'Absolutní-BODY'!$E$2:$O$161,7,FALSE)) ->  | AF14: =IF($AA14=0,"",VLOOKUP($AA14,'Absolutní-BODY'!$E$2:$O$161,8,FALSE)) ->  | AG14: =IF($AA14=0,"",VLOOKUP($AA14,'Absolutní-BODY'!$E$2:$O$161,9,FALSE)) ->  | AH14: =IF($AA14=0,"",VLOOKUP($AA14,'Absolutní-BODY'!$E$2:$O$161,10,FALSE)) ->  | AI14: =IF($AA14=0,"",VLOOKUP($AA14,'Absolutní-BODY'!$E$2:$O$161,11,FALSE)) -> 
A15: 2 | B15: =IF(C15=0,"",VLOOKUP($C15,seznam!$A$1:$E$5058,2,FALSE)) ->  | D15: =IF($C15=0,"",VLOOKUP($C15,'Absolutní-BODY'!$E$2:$O$161,4,FALSE)) ->  | E15: =IF($C15=0,"",VLOOKUP($C15,'Absolutní-BODY'!$E$2:$O$161,5,FALSE)) ->  | F15: =IF($C15=0,"",VLOOKUP($C15,'Absolutní-BODY'!$E$2:$O$161,6,FALSE)) ->  | G15: =IF($C15=0,"",VLOOKUP($C15,'Absolutní-BODY'!$E$2:$O$161,7,FALSE)) ->  | H15: =IF($C15=0,"",VLOOKUP($C15,'Absolutní-BODY'!$E$2:$O$161,8,FALSE)) ->  | I15: =IF($C15=0,"",VLOOKUP($C15,'Absolutní-BODY'!$E$2:$O$161,9,FALSE)) ->  | J15: =IF($C15=0,"",VLOOKUP($C15,'Absolutní-BODY'!$E$2:$O$161,10,FALSE)) ->  | K15: =IF($C15=0,"",VLOOKUP($C15,'Absolutní-BODY'!$E$2:$O$161,11,FALSE)) ->  | M15: 2 | N15: =IF(O15=0,"",VLOOKUP($O15,seznam!$A$1:$E$5058,2,FALSE)) ->  | P15: =IF($O15=0,"",VLOOKUP($O15,'Absolutní-BODY'!$E$2:$O$161,4,FALSE)) ->  | Q15: =IF($O15=0,"",VLOOKUP($O15,'Absolutní-BODY'!$E$2:$O$161,5,FALSE)) ->  | R15: =IF($O15=0,"",VLOOKUP($O15,'Absolutní-BODY'!$E$2:$O$161,6,FALSE)) ->  | S15: =IF($O15=0,"",VLOOKUP($O15,'Absolutní-BODY'!$E$2:$O$161,7,FALSE)) ->  | T15: =IF($O15=0,"",VLOOKUP($O15,'Absolutní-BODY'!$E$2:$O$161,8,FALSE)) ->  | U15: =IF($O15=0,"",VLOOKUP($O15,'Absolutní-BODY'!$E$2:$O$161,9,FALSE)) ->  | V15: =IF($O15=0,"",VLOOKUP($O15,'Absolutní-BODY'!$E$2:$O$161,10,FALSE)) ->  | W15: =IF($O15=0,"",VLOOKUP($O15,'Absolutní-BODY'!$E$2:$O$161,11,FALSE)) ->  | Y15: 2 | Z15: =IF(AA15=0,"",VLOOKUP($AA15,seznam!$A$1:$E$5058,2,FALSE)) ->  | AB15: =IF($AA15=0,"",VLOOKUP($AA15,'Absolutní-BODY'!$E$2:$O$161,4,FALSE)) ->  | AC15: =IF($AA15=0,"",VLOOKUP($AA15,'Absolutní-BODY'!$E$2:$O$161,5,FALSE)) ->  | AD15: =IF($AA15=0,"",VLOOKUP($AA15,'Absolutní-BODY'!$E$2:$O$161,6,FALSE)) ->  | AE15: =IF($AA15=0,"",VLOOKUP($AA15,'Absolutní-BODY'!$E$2:$O$161,7,FALSE)) ->  | AF15: =IF($AA15=0,"",VLOOKUP($AA15,'Absolutní-BODY'!$E$2:$O$161,8,FALSE)) ->  | AG15: =IF($AA15=0,"",VLOOKUP($AA15,'Absolutní-BODY'!$E$2:$O$161,9,FALSE)) ->  | AH15: =IF($AA15=0,"",VLOOKUP($AA15,'Absolutní-BODY'!$E$2:$O$161,10,FALSE)) ->  | AI15: =IF($AA15=0,"",VLOOKUP($AA15,'Absolutní-BODY'!$E$2:$O$161,11,FALSE)) -> 
A16: 3 | B16: =IF(C16=0,"",VLOOKUP($C16,seznam!$A$1:$E$5058,2,FALSE)) ->  | D16: =IF($C16=0,"",VLOOKUP($C16,'Absolutní-BODY'!$E$2:$O$161,4,FALSE)) ->  | E16: =IF($C16=0,"",VLOOKUP($C16,'Absolutní-BODY'!$E$2:$O$161,5,FALSE)) ->  | F16: =IF($C16=0,"",VLOOKUP($C16,'Absolutní-BODY'!$E$2:$O$161,6,FALSE)) ->  | G16: =IF($C16=0,"",VLOOKUP($C16,'Absolutní-BODY'!$E$2:$O$161,7,FALSE)) ->  | H16: =IF($C16=0,"",VLOOKUP($C16,'Absolutní-BODY'!$E$2:$O$161,8,FALSE)) ->  | I16: =IF($C16=0,"",VLOOKUP($C16,'Absolutní-BODY'!$E$2:$O$161,9,FALSE)) ->  | J16: =IF($C16=0,"",VLOOKUP($C16,'Absolutní-BODY'!$E$2:$O$161,10,FALSE)) ->  | K16: =IF($C16=0,"",VLOOKUP($C16,'Absolutní-BODY'!$E$2:$O$161,11,FALSE)) ->  | M16: 3 | N16: =IF(O16=0,"",VLOOKUP($O16,seznam!$A$1:$E$5058,2,FALSE)) ->  | P16: =IF($O16=0,"",VLOOKUP($O16,'Absolutní-BODY'!$E$2:$O$161,4,FALSE)) ->  | Q16: =IF($O16=0,"",VLOOKUP($O16,'Absolutní-BODY'!$E$2:$O$161,5,FALSE)) ->  | R16: =IF($O16=0,"",VLOOKUP($O16,'Absolutní-BODY'!$E$2:$O$161,6,FALSE)) ->  | S16: =IF($O16=0,"",VLOOKUP($O16,'Absolutní-BODY'!$E$2:$O$161,7,FALSE)) ->  | T16: =IF($O16=0,"",VLOOKUP($O16,'Absolutní-BODY'!$E$2:$O$161,8,FALSE)) ->  | U16: =IF($O16=0,"",VLOOKUP($O16,'Absolutní-BODY'!$E$2:$O$161,9,FALSE)) ->  | V16: =IF($O16=0,"",VLOOKUP($O16,'Absolutní-BODY'!$E$2:$O$161,10,FALSE)) ->  | W16: =IF($O16=0,"",VLOOKUP($O16,'Absolutní-BODY'!$E$2:$O$161,11,FALSE)) ->  | Y16: 3 | Z16: =IF(AA16=0,"",VLOOKUP($AA16,seznam!$A$1:$E$5058,2,FALSE)) ->  | AB16: =IF($AA16=0,"",VLOOKUP($AA16,'Absolutní-BODY'!$E$2:$O$161,4,FALSE)) ->  | AC16: =IF($AA16=0,"",VLOOKUP($AA16,'Absolutní-BODY'!$E$2:$O$161,5,FALSE)) ->  | AD16: =IF($AA16=0,"",VLOOKUP($AA16,'Absolutní-BODY'!$E$2:$O$161,6,FALSE)) ->  | AE16: =IF($AA16=0,"",VLOOKUP($AA16,'Absolutní-BODY'!$E$2:$O$161,7,FALSE)) ->  | AF16: =IF($AA16=0,"",VLOOKUP($AA16,'Absolutní-BODY'!$E$2:$O$161,8,FALSE)) ->  | AG16: =IF($AA16=0,"",VLOOKUP($AA16,'Absolutní-BODY'!$E$2:$O$161,9,FALSE)) ->  | AH16: =IF($AA16=0,"",VLOOKUP($AA16,'Absolutní-BODY'!$E$2:$O$161,10,FALSE)) ->  | AI16: =IF($AA16=0,"",VLOOKUP($AA16,'Absolutní-BODY'!$E$2:$O$161,11,FALSE)) -> 
A17: N | B17: =IF(C17=0,"",VLOOKUP($C17,seznam!$A$1:$E$5058,2,FALSE)) ->  | D17: =IF($C17=0,"",VLOOKUP($C17,'Absolutní-BODY'!$E$2:$O$161,4,FALSE)) ->  | E17: =IF($C17=0,"",VLOOKUP($C17,'Absolutní-BODY'!$E$2:$O$161,5,FALSE)) ->  | F17: =IF($C17=0,"",VLOOKUP($C17,'Absolutní-BODY'!$E$2:$O$161,6,FALSE)) ->  | G17: =IF($C17=0,"",VLOOKUP($C17,'Absolutní-BODY'!$E$2:$O$161,7,FALSE)) ->  | H17: =IF($C17=0,"",VLOOKUP($C17,'Absolutní-BODY'!$E$2:$O$161,8,FALSE)) ->  | I17: =IF($C17=0,"",VLOOKUP($C17,'Absolutní-BODY'!$E$2:$O$161,9,FALSE)) ->  | J17: =IF($C17=0,"",VLOOKUP($C17,'Absolutní-BODY'!$E$2:$O$161,10,FALSE)) ->  | K17: =IF($C17=0,"",VLOOKUP($C17,'Absolutní-BODY'!$E$2:$O$161,11,FALSE)) ->  | M17: N | N17: =IF(O17=0,"",VLOOKUP($O17,seznam!$A$1:$E$5058,2,FALSE)) ->  | P17: =IF($O17=0,"",VLOOKUP($O17,'Absolutní-BODY'!$E$2:$O$161,4,FALSE)) ->  | Q17: =IF($O17=0,"",VLOOKUP($O17,'Absolutní-BODY'!$E$2:$O$161,5,FALSE)) ->  | R17: =IF($O17=0,"",VLOOKUP($O17,'Absolutní-BODY'!$E$2:$O$161,6,FALSE)) ->  | S17: =IF($O17=0,"",VLOOKUP($O17,'Absolutní-BODY'!$E$2:$O$161,7,FALSE)) ->  | T17: =IF($O17=0,"",VLOOKUP($O17,'Absolutní-BODY'!$E$2:$O$161,8,FALSE)) ->  | U17: =IF($O17=0,"",VLOOKUP($O17,'Absolutní-BODY'!$E$2:$O$161,9,FALSE)) ->  | V17: =IF($O17=0,"",VLOOKUP($O17,'Absolutní-BODY'!$E$2:$O$161,10,FALSE)) ->  | W17: =IF($O17=0,"",VLOOKUP($O17,'Absolutní-BODY'!$E$2:$O$161,11,FALSE)) ->  | Y17: N | Z17: =IF(AA17=0,"",VLOOKUP($AA17,seznam!$A$1:$E$5058,2,FALSE)) ->  | AB17: =IF($AA17=0,"",VLOOKUP($AA17,'Absolutní-BODY'!$E$2:$O$161,4,FALSE)) ->  | AC17: =IF($AA17=0,"",VLOOKUP($AA17,'Absolutní-BODY'!$E$2:$O$161,5,FALSE)) ->  | AD17: =IF($AA17=0,"",VLOOKUP($AA17,'Absolutní-BODY'!$E$2:$O$161,6,FALSE)) ->  | AE17: =IF($AA17=0,"",VLOOKUP($AA17,'Absolutní-BODY'!$E$2:$O$161,7,FALSE)) ->  | AF17: =IF($AA17=0,"",VLOOKUP($AA17,'Absolutní-BODY'!$E$2:$O$161,8,FALSE)) ->  | AG17: =IF($AA17=0,"",VLOOKUP($AA17,'Absolutní-BODY'!$E$2:$O$161,9,FALSE)) ->  | AH17: =IF($AA17=0,"",VLOOKUP($AA17,'Absolutní-BODY'!$E$2:$O$161,10,FALSE)) ->  | AI17: =IF($AA17=0,"",VLOOKUP($AA17,'Absolutní-BODY'!$E$2:$O$161,11,FALSE)) -> 
D18: =SUM(D14:D17) -> 0 | E18: 0 | F18: 0 | G18: 0 | H18: 0 | I18: 0 | J18: 0 | K18: 0 | P18: =SUM(P14:P17) -> 0 | Q18: 0 | R18: 0 | S18: 0 | T18: 0 | U18: 0 | V18: 0 | W18: 0 | AB18: =SUM(AB14:AB17) -> 0 | AC18: 0 | AD18: 0 | AE18: 0 | AF18: 0 | AG18: 0 | AH18: 0 | AI18: 0
C19: bodů | H19: celkem | J19: =SUM(D18:K18) -> 0 | O19: bodů | T19: celkem | V19: =SUM(P18:W18) -> 0 | AA19: bodů | AF19: celkem | AH19: =SUM(AB18:AI18) -> 0
B21: 7. místo | N21: 8. místo
C22: reg | D22: 1 | E22: 2 | F22: 3 | G22: 4 | H22: 5 | I22: 6 | J22: 7 | K22: 8 | O22: reg | P22: 1 | Q22: 2 | R22: 3 | S22: 4 | T22: 5 | U22: 6 | V22: 7 | W22: 8
A23: 1 | B23: =IF(C23=0,"",VLOOKUP($C23,seznam!$A$1:$E$5058,2,FALSE)) ->  | D23: =IF($C23=0,"",VLOOKUP($C23,'Absolutní-BODY'!$E$2:$O$161,4,FALSE)) ->  | E23: =IF($C23=0,"",VLOOKUP($C23,'Absolutní-BODY'!$E$2:$O$161,5,FALSE)) ->  | F23: =IF($C23=0,"",VLOOKUP($C23,'Absolutní-BODY'!$E$2:$O$161,6,FALSE)) ->  | G23: =IF($C23=0,"",VLOOKUP($C23,'Absolutní-BODY'!$E$2:$O$161,7,FALSE)) ->  | H23: =IF($C23=0,"",VLOOKUP($C23,'Absolutní-BODY'!$E$2:$O$161,8,FALSE)) ->  | I23: =IF($C23=0,"",VLOOKUP($C23,'Absolutní-BODY'!$E$2:$O$161,9,FALSE)) ->  | J23: =IF($C23=0,"",VLOOKUP($C23,'Absolutní-BODY'!$E$2:$O$161,10,FALSE)) ->  | K23: =IF($C23=0,"",VLOOKUP($C23,'Absolutní-BODY'!$E$2:$O$161,11,FALSE)) ->  | M23: 1 | N23: =IF(O23=0,"",VLOOKUP($O23,seznam!$A$1:$E$5058,2,FALSE)) ->  | P23: =IF($O23=0,"",VLOOKUP($O23,'Absolutní-BODY'!$E$2:$O$161,4,FALSE)) ->  | Q23: =IF($O23=0,"",VLOOKUP($O23,'Absolutní-BODY'!$E$2:$O$161,5,FALSE)) ->  | R23: =IF($O23=0,"",VLOOKUP($O23,'Absolutní-BODY'!$E$2:$O$161,6,FALSE)) ->  | S23: =IF($O23=0,"",VLOOKUP($O23,'Absolutní-BODY'!$E$2:$O$161,7,FALSE)) ->  | T23: =IF($O23=0,"",VLOOKUP($O23,'Absolutní-BODY'!$E$2:$O$161,8,FALSE)) ->  | U23: =IF($O23=0,"",VLOOKUP($O23,'Absolutní-BODY'!$E$2:$O$161,9,FALSE)) ->  | V23: =IF($O23=0,"",VLOOKUP($O23,'Absolutní-BODY'!$E$2:$O$161,10,FALSE)) ->  | W23: =IF($O23=0,"",VLOOKUP($O23,'Absolutní-BODY'!$E$2:$O$161,11,FALSE)) -> 
A24: 2 | B24: =IF(C24=0,"",VLOOKUP($C24,seznam!$A$1:$E$5058,2,FALSE)) ->  | D24: =IF($C24=0,"",VLOOKUP($C24,'Absolutní-BODY'!$E$2:$O$161,4,FALSE)) ->  | E24: =IF($C24=0,"",VLOOKUP($C24,'Absolutní-BODY'!$E$2:$O$161,5,FALSE)) ->  | F24: =IF($C24=0,"",VLOOKUP($C24,'Absolutní-BODY'!$E$2:$O$161,6,FALSE)) ->  | G24: =IF($C24=0,"",VLOOKUP($C24,'Absolutní-BODY'!$E$2:$O$161,7,FALSE)) ->  | H24: =IF($C24=0,"",VLOOKUP($C24,'Absolutní-BODY'!$E$2:$O$161,8,FALSE)) ->  | I24: =IF($C24=0,"",VLOOKUP($C24,'Absolutní-BODY'!$E$2:$O$161,9,FALSE)) ->  | J24: =IF($C24=0,"",VLOOKUP($C24,'Absolutní-BODY'!$E$2:$O$161,10,FALSE)) ->  | K24: =IF($C24=0,"",VLOOKUP($C24,'Absolutní-BODY'!$E$2:$O$161,11,FALSE)) ->  | M24: 2 | N24: =IF(O24=0,"",VLOOKUP($O24,seznam!$A$1:$E$5058,2,FALSE)) ->  | P24: =IF($O24=0,"",VLOOKUP($O24,'Absolutní-BODY'!$E$2:$O$161,4,FALSE)) ->  | Q24: =IF($O24=0,"",VLOOKUP($O24,'Absolutní-BODY'!$E$2:$O$161,5,FALSE)) ->  | R24: =IF($O24=0,"",VLOOKUP($O24,'Absolutní-BODY'!$E$2:$O$161,6,FALSE)) ->  | S24: =IF($O24=0,"",VLOOKUP($O24,'Absolutní-BODY'!$E$2:$O$161,7,FALSE)) ->  | T24: =IF($O24=0,"",VLOOKUP($O24,'Absolutní-BODY'!$E$2:$O$161,8,FALSE)) ->  | U24: =IF($O24=0,"",VLOOKUP($O24,'Absolutní-BODY'!$E$2:$O$161,9,FALSE)) ->  | V24: =IF($O24=0,"",VLOOKUP($O24,'Absolutní-BODY'!$E$2:$O$161,10,FALSE)) ->  | W24: =IF($O24=0,"",VLOOKUP($O24,'Absolutní-BODY'!$E$2:$O$161,11,FALSE)) -> 
A25: 3 | B25: =IF(C25=0,"",VLOOKUP($C25,seznam!$A$1:$E$5058,2,FALSE)) ->  | D25: =IF($C25=0,"",VLOOKUP($C25,'Absolutní-BODY'!$E$2:$O$161,4,FALSE)) ->  | E25: =IF($C25=0,"",VLOOKUP($C25,'Absolutní-BODY'!$E$2:$O$161,5,FALSE)) ->  | F25: =IF($C25=0,"",VLOOKUP($C25,'Absolutní-BODY'!$E$2:$O$161,6,FALSE)) ->  | G25: =IF($C25=0,"",VLOOKUP($C25,'Absolutní-BODY'!$E$2:$O$161,7,FALSE)) ->  | H25: =IF($C25=0,"",VLOOKUP($C25,'Absolutní-BODY'!$E$2:$O$161,8,FALSE)) ->  | I25: =IF($C25=0,"",VLOOKUP($C25,'Absolutní-BODY'!$E$2:$O$161,9,FALSE)) ->  | J25: =IF($C25=0,"",VLOOKUP($C25,'Absolutní-BODY'!$E$2:$O$161,10,FALSE)) ->  | K25: =IF($C25=0,"",VLOOKUP($C25,'Absolutní-BODY'!$E$2:$O$161,11,FALSE)) ->  | M25: 3 | N25: =IF(O25=0,"",VLOOKUP($O25,seznam!$A$1:$E$5058,2,FALSE)) ->  | P25: =IF($O25=0,"",VLOOKUP($O25,'Absolutní-BODY'!$E$2:$O$161,4,FALSE)) ->  | Q25: =IF($O25=0,"",VLOOKUP($O25,'Absolutní-BODY'!$E$2:$O$161,5,FALSE)) ->  | R25: =IF($O25=0,"",VLOOKUP($O25,'Absolutní-BODY'!$E$2:$O$161,6,FALSE)) ->  | S25: =IF($O25=0,"",VLOOKUP($O25,'Absolutní-BODY'!$E$2:$O$161,7,FALSE)) ->  | T25: =IF($O25=0,"",VLOOKUP($O25,'Absolutní-BODY'!$E$2:$O$161,8,FALSE)) ->  | U25: =IF($O25=0,"",VLOOKUP($O25,'Absolutní-BODY'!$E$2:$O$161,9,FALSE)) ->  | V25: =IF($O25=0,"",VLOOKUP($O25,'Absolutní-BODY'!$E$2:$O$161,10,FALSE)) ->  | W25: =IF($O25=0,"",VLOOKUP($O25,'Absolutní-BODY'!$E$2:$O$161,11,FALSE)) -> 
A26: N | B26: =IF(C26=0,"",VLOOKUP($C26,seznam!$A$1:$E$5058,2,FALSE)) ->  | D26: =IF($C26=0,"",VLOOKUP($C26,'Absolutní-BODY'!$E$2:$O$161,4,FALSE)) ->  | E26: =IF($C26=0,"",VLOOKUP($C26,'Absolutní-BODY'!$E$2:$O$161,5,FALSE)) ->  | F26: =IF($C26=0,"",VLOOKUP($C26,'Absolutní-BODY'!$E$2:$O$161,6,FALSE)) ->  | G26: =IF($C26=0,"",VLOOKUP($C26,'Absolutní-BODY'!$E$2:$O$161,7,FALSE)) ->  | H26: =IF($C26=0,"",VLOOKUP($C26,'Absolutní-BODY'!$E$2:$O$161,8,FALSE)) ->  | I26: =IF($C26=0,"",VLOOKUP($C26,'Absolutní-BODY'!$E$2:$O$161,9,FALSE)) ->  | J26: =IF($C26=0,"",VLOOKUP($C26,'Absolutní-BODY'!$E$2:$O$161,10,FALSE)) ->  | K26: =IF($C26=0,"",VLOOKUP($C26,'Absolutní-BODY'!$E$2:$O$161,11,FALSE)) ->  | M26: N | N26: =IF(O26=0,"",VLOOKUP($O26,seznam!$A$1:$E$5058,2,FALSE)) ->  | P26: =IF($O26=0,"",VLOOKUP($O26,'Absolutní-BODY'!$E$2:$O$161,4,FALSE)) ->  | Q26: =IF($O26=0,"",VLOOKUP($O26,'Absolutní-BODY'!$E$2:$O$161,5,FALSE)) ->  | R26: =IF($O26=0,"",VLOOKUP($O26,'Absolutní-BODY'!$E$2:$O$161,6,FALSE)) ->  | S26: =IF($O26=0,"",VLOOKUP($O26,'Absolutní-BODY'!$E$2:$O$161,7,FALSE)) ->  | T26: =IF($O26=0,"",VLOOKUP($O26,'Absolutní-BODY'!$E$2:$O$161,8,FALSE)) ->  | U26: =IF($O26=0,"",VLOOKUP($O26,'Absolutní-BODY'!$E$2:$O$161,9,FALSE)) ->  | V26: =IF($O26=0,"",VLOOKUP($O26,'Absolutní-BODY'!$E$2:$O$161,10,FALSE)) ->  | W26: =IF($O26=0,"",VLOOKUP($O26,'Absolutní-BODY'!$E$2:$O$161,11,FALSE)) -> 
D27: =SUM(D23:D26) -> 0 | E27: 0 | F27: 0 | G27: 0 | H27: 0 | I27: 0 | J27: 0 | K27: 0 | P27: =SUM(P23:P26) -> 0 | Q27: 0 | R27: 0 | S27: 0 | T27: 0 | U27: 0 | V27: 0 | W27: 0
C28: bodů | H28: celkem | J28: =SUM(D27:K27) -> 0 | O28: bodů | T28: celkem | V28: =SUM(P27:W27) -> 0

Sheet Liga-celkem
A2: po | B2: 4 | C2: .kole | F2: 2 | H2: liga družstev | N2: 2012/2013
B5: Celková tabulka
D6: 2012 | N6: 2013
B7: 2. liga smíšená družstva | D7: Jesenice 26.8. | F7: Rakovník 2.9. | H7: Rakovník 21.4. | J7: Chomutov 5.5 | T7: Celkem:
D8: údery | E8: body | F8: údery | G8: body | H8: údery | I8: body | J8: údery | K8: body | L8: údery | M8: body | N8: údery | O8: body | P8: údery | Q8: body | R8: údery | S8: body | T8: údery | U8: body
B9: 1. | C9: SKGC Frant.Lázně "A" | D9: 388 | E9: 6 | F9: 408 | G9: 4 | H9: 422 | I9: 6 | J9: 411 | K9: 6 | T9: 1629 | U9: 22
B10: 2. | C10: MGC Plzeň | D10: 398 | E10: 4 | F10: 381 | G10: 6 | H10: 432 | I10: 4 | J10: 420 | K10: 3 | T10: 1631 | U10: 17
B11: 3. | C11: SKDG Chomutov | D11: 453 | E11: 1 | F11: 411 | G11: 3 | H11: 456 | I11: 3 | J11: 430 | K11: 2 | T11: 1750 | U11: 9
B12: 4. | C12: SKGC Frant.Lázně "B" | D12: 437 | E12: 2 | F12: 419 | G12: 2 | H12: 494 | I12: 1 | J12: 415 | K12: 4 | T12: 1765 | U12: 9
B13: 5. | C13: Varieté Jesenice | D13: 422 | E13: 3 | F13: 429 | G13: 1 | H13: 489 | I13: 2 | J13: 465 | K13: 1 | T13: 1805 | U13: 7

Sheet typ turnaje (hidden)
A1: Dotazovací tabulka | K1: Základní limity:
B2: Co je to za turnaj ? | F2: p | G2: B | H2: k | L2: M | M2: 1 | N2: 2 | O2: 3 | P2: 4 | Q2: 5 | R2: -
B3: 1 | C3: Open | D3: mtg | F3: =IF($B3=1,6,0) -> 6 | G3: =IF($B3=1,64,0) -> 64 | H3: =IF($B3=1,0.25,0) -> 0.25 | K3: M | L3: 550 | M3: 450 | N3: 350 | O3: 250 | P3: 150 | Q3: 1 | R3: 0
C4: Open | D4: mg | F4: =IF(B4=1,6,0) -> 0 | G4: 0 | H4: =IF($B4=1,0.3,0) -> 0 | K4: Z | L4: 480 | M4: 380 | N4: 290 | O4: 200 | P4: 100 | Q4: 1 | R4: 0
C5: Open | D5: filc | F5: =IF(B5=1,6,0) -> 0 | G5: 0 | H5: =IF($B5=1,0.33,0) -> 0 | K5: S | L5: 500 | M5: 410 | N5: 320 | O5: 230 | P5: 140 | Q5: 1 | R5: 0
C6: KP | D6: mtg | F6: =IF(B6=1,8,0) -> 0 | G6: 0 | H6: =IF($B6=1,0.25,0) -> 0 | K6: Se | L6: 440 | M6: 360 | N6: 280 | O6: 200 | P6: 100 | Q6: 1 | R6: 0
C7: KP | D7: mg | F7: 0 | G7: 0 | H7: =IF($B7=1,0.3,0) -> 0 | K7: S2 | L7: 440 | M7: 360 | N7: 280 | O7: 200 | P7: 100 | Q7: 1 | R7: 0
C8: KP | D8: filc | F8: 0 | G8: 0 | H8: =IF($B8=1,0.33,0) -> 0 | K8: J | L8: 520 | M8: 420 | N8: 320 | O8: 220 | P8: 120 | Q8: 1 | R8: 0
C9: Tour | D9: mtg | F9: 0 | G9: =IF($B9=1,80,0) -> 0 | H9: =IF($B9=1,0.15,0) -> 0 | K9: Ju | L9: 480 | M9: 380 | N9: 290 | O9: 200 | P9: 100 | Q9: 1 | R9: 0
C10: Tour | D10: mg | F10: 0 | G10: 0 | H10: =IF($B10=1,0.18,0) -> 0 | K10: Jz | L10: 420 | M10: 330 | N10: 240 | O10: 150 | P10: 90 | Q10: 1 | R10: 0
C11: Tour | D11: filc | F11: 0 | G11: 0 | H11: =IF($B11=1,0.2,0) -> 0 | K11: Jza | L11: 360 | M11: 280 | N11: 200 | O11: 130 | P11: 70 | Q11: 1 | R11: 0
C12: PZ | D12: mtg | F12: =IF(B12=1,12,0) -> 0 | G12: 0 | H12: =IF($B12=1,0.15,0) -> 0
C13: PZ | D13: mg | F13: =IF(B13=1,12,0) -> 0 | G13: 0 | H13: =IF($B13=1,0.18,0) -> 0 | K13: Přechod do jiné kategorie :
C14: PZ | D14: filc | F14: =IF(B14=1,12,0) -> 0 | G14: 0 | H14: =IF($B14=1,0.2,0) -> 0 | L14: hráč získá VT podle limitu VT kategorie, do které přechází
C15: CTM | D15: mtg | F15: =IF(B15=1,8,0) -> 0 | G15: =IF($B15=1,90,0) -> 0 | H15: =IF($B15=1,0.16,0) -> 0
C16: CTM | D16: mg | F16: =IF(B16=1,8,0) -> 0 | G16: =IF($B16=1,90,0) -> 0 | H16: =IF($B16=1,0.19,0) -> 0 | K16: Výjimky:
C17: CTM | D17: filc | F17: =IF(B17=1,8,0) -> 0 | G17: =IF($B17=1,90,0) -> 0 | H17: =IF($B17=1,0.21,0) -> 0 | L17: medailista MR, JT který dosáhl limitu 1. VT a nižší, získává VT o jeden stupeň vyšší
C18: GP | D18: mtg | F18: =IF(B18=1,12,0) -> 0 | G18: =IF($B18=1,100,0) -> 0 | H18: =IF($B18=1,0.08,0) -> 0 | L18: medailista PZ který dosáhl limitu 2. VT a nižší, získává VT o jeden stupeň vyšší
C19: GP | D19: mg | F19: =IF(B19=1,12,0) -> 0 | G19: =IF($B19=1,100,0) -> 0 | H19: =IF($B19=1,0.1,0) -> 0 | L19: medailista KP který dosáhl limitu 3. VT a nižší, získává VT o jeden stupeň vyšší
C20: GP | D20: filc | F20: =IF(B20=1,12,0) -> 0 | G20: =IF($B20=1,100,0) -> 0 | H20: =IF($B20=1,0.11,0) -> 0
C21: MR | D21: mtg | F21: =IF(B21=1,16,0) -> 0 | G21: =IF($B21=1,110,0) -> 0 | H21: =IF($B21=1,0.1,0) -> 0
C22: MR | D22: mtg+filc | F22: =IF(B22=1,16,0) -> 0 | G22: =IF($B22=1,110,0) -> 0 | H22: =IF($B22=1,0.12,0) -> 0 | K22: Právě jen do typu turnaje, pro který děláte body,
C23: MR | D23: mtg+mg | F23: =IF(B23=1,16,0) -> 0 | G23: =IF($B23=1,110,0) -> 0 | H23: =IF($B23=1,0.11,0) -> 0 | K23: vepište prosím číslo | P23: 1 | Q23: Jinak to s Vámi nebude hrát.
B24: =SUM(B3:B23) -> 1 | F24: =IF($B$24=1,SUM(F3:F23),0) -> 6 | G24: =IF($B$24=1,SUM(G3:G23),0) -> 64 | H24: =IF($B$24=1,SUM(H3:H23),0) -> 0.25

Sheet seznam (hidden)
A1: reg | B1: jméno | C1: oddíl | D1: VT | E1: kat | G1: aktualizace | H1: 2013-05-08
A2: 1 | B2: Boček Pavel st. | C2: nezadán | D2: bez | E2: S2 | F2: 1941
A3: 2 | B3: Grebeníček Antonín | C3: nezadán | D3: bez | E3: S2 | F3: 1953
A4: 3 | B4: Jiřikovský Miroslav | C4: nezadán | D4: bez | E4: S2 | F4: 1945
A5: 4 | B5: Kalus Jaroslav | C5: nezadán | D5: bez | E5: S2 | F5: 1946
A6: 5 | B6: Krásný Petr | C6: nezadán | D6: bez | E6: S2 | F6: 1947
A7: 6 | B7: Ländler Egon | C7: nezadán | D7: bez | E7: S2 | F7: 1925
A8: 7 | B8: Ländler Petr | C8: nezadán | D8: bez | E8: S2 | F8: 1948
A9: 8 | B9: Pachl Zdeněk | C9: nezadán | D9: bez | E9: S2 | F9: 1921
A10: 9 | B10: Pardus Jiří | C10: nezadán | D10: bez | E10: S2 | F10: 1952
A11: 10 | B11: Pavlík Vladimír | C11: nezadán | D11: bez | E11: S2 | F11: 1951
A12: 11 | B12: Procházka Ladislav | C12: nezadán | D12: bez | E12: S2 | F12: 1934
A13: 12 | B13: Pupík Josef | C13: nezadán | D13: bez | E13: S | F13: 1958
A14: 13 | B14: Vaněk František | C14: nezadán | D14: bez | E14: S2 | F14: 1947
A15: 14 | B15: Vařecha Pavel | C15: nezadán | D15: bez | E15: S2 | F15: 1949
A16: 15 | B16: Vojtek Miroslav | C16: nezadán | D16: bez | E16: S2 | F16: 1948
A17: 16 | B17: Zámečník Miroslav | C17: nezadán | D17: bez | E17: S2 | F17: 1943
A18: 17 | B18: Zelinka Jan | C18: nezadán | D18: bez | E18: S2 | F18: 1920
A19: 18 | B19: Zedek Vlastimil | C19: nezadán | D19: bez | E19: S2 | F19: 1928
A20: 19 | B20: Zedek Jan | C20: nezadán | D20: bez | E20: S | F20: 1955
A21: 20 | B21: Bočková Eliška | C21: nezadán | D21: bez | E21: Se | F21: 1943
A22: 21 | B22: Kočíková Marie | C22: nezadán | D22: bez | E22: Se | F22: 1943
A23: 22 | B23: Kosinková Anna | C23: nezadán | D23: bez | E23: Se | F23: 1936
A24: 23 | B24: Pardusová Běla | C24: nezadán | D24: bez | E24: Se | F24: 1951
A25: 24 | B25: Pachl Miroslav | C25: nezadán | D25: bez | E25: S | F25: 1962
A26: 25 | B26: Tvrdoň Antonín | C26: nezadán | D26: bez | E26: S | F26: 1960
A27: 26 | B27: Vávrů Ivan | C27: nezadán | D27: bez | E27: S | F27: 1960
A28: 27 | B28: Boček Pavel ml. | C28: nezadán | D28: bez | E28: S | F28: 1964
A29: 28 | B29: Balaj Jozef | C29: zahraniční klub | D29: bez | E29: S2 | F29: 1951
A30: 29 | B30: Bránsky Štefan | C30: zahraniční klub | D30: bez | E30: S | F30: 1956
A31: 30 | B31: Dobák Ivan | C31: zahraniční klub | D31: bez | E31: S | F31: 1956
A32: 31 | B32: Drgoň František | C32: MGK Adara Radějov | D32: bez | E32: S | F32: 1960
A33: 32 | B33: Ďuriník Ladislav | C33: zahraniční klub | D33: bez | E33: S2 | F33: 1948
A34: 33 | B34: Gabriš Alojz | C34: zahraniční klub | D34: bez | E34: S | F34: 1959
A35: 34 | B35: Galuščák Bohdan | C35: zahraniční klub | D35: bez | E35: S2 | F35: 1949
A36: 35 | B36: Hanšut Pavol | C36: zahraniční klub | D36: bez | E36: S2 | F36: 1953
A37: 36 | B37: Horný Luboš | C37: zahraniční klub | D37: bez | E37: S2 | F37: 1951
A38: 37 | B38: Janko Miroslav | C38: zahraniční klub | D38: bez | E38: S2 | F38: 1951
A39: 38 | B39: Kadúc Ján | C39: zahraniční klub | D39: bez | E39: S2 | F39: 1952
A40: 39 | B40: Kovačič Rudolf | C40: zahraniční klub | D40: bez | E40: S2 | F40: 1953
A41: 40 | B41: Lachký Ondrej | C41: zahraniční klub | D41: bez | E41: S2 | F41: 1953
A42: 41 | B42: Magdolen Milan | C42: zahraniční klub | D42: bez | E42: S2 | F42: 1951
A43: 42 | B43: Machálek Rudolf | C43: zahraniční klub | D43: bez | E43: S | F43: 1956
A44: 43 | B44: Masaryk František | C44: zahraniční klub | D44: bez | E44: S | F44: 1958
A45: 44 | B45: Novotný Dušan | C45: zahraniční klub | D45: bez | E45: S2 | F45: 1948
A46: 45 | B46: Orlický Peter | C46: zahraniční klub | D46: bez | E46: S | F46: 1959
A47: 46 | B47: Palovič Igor | C47: zahraniční klub | D47: bez | E47: S | F47: 1957
A48: 47 | B48: Petráš Juraj | C48: zahraniční klub | D48: bez | E48: S | F48: 1959
A49: 48 | B49: Pukanec Dušan | C49: zahraniční klub | D49: bez | E49: S | F49: 1956
A50: 49 | B50: Pukanec Peter | C50: zahraniční klub | D50: bez | E50: S | F50: 1959
A51: 50 | B51: Rozič Ján | C51: zahraniční klub | D51: bez | E51: S | F51: 1956
A52: 51 | B52: Tarábek Ján | C52: zahraniční klub | D52: bez | E52: S2 | F52: 1952
A53: 52 | B53: Vávra Jaroslav | C53: zahraniční klub | D53: bez | E53: S2 | F53: 1951
A54: 53 | B54: Drgoňová Jana | C54: zahraniční klub | D54: bez | E54: Se | F54: 1958
A55: 54 | B55: Janková Daniela | C55: zahraniční klub | D55: bez | E55: Se | F55: 1953
A56: 55 | B56: Kadúcová Mária | C56: zahraniční klub | D56: bez | E56: Se | F56: 1956
A57: 56 | B57: Magdolenová Mária | C57: zahraniční klub | D57: bez | E57: Se | F57: 1950
A58: 57 | B58: Varínska Ružena | C58: zahraniční klub | D58: bez | E58: Se | F58: 1957
A59: 58 | B59: Palovičová Oľga | C59: zahraniční klub | D59: bez | E59: Se | F59: 1958
A60: 59 | B60: Bednář Jaromír | C60: KDG Šternberk | D60: bez | E60: S2 | F60: 1931
A61: 60 | B61: Bednář Jiří | C61: KDG Šternberk | D61: bez | E61: S | F61: 1956
A62: 61 | B62: Binder Bohdan | C62: nezadán | D62: bez | E62: S | F62: 1956
A63: 62 | B63: Gerža Ivan | C63: TJ UNEX Uničov | D63: bez | E63: S | F63: 1958
A64: 63 | B64: Heinzl Milan | C64: KDG Šternberk | D64: bez | E64: S2 | F64: 1953
A65: 64 | B65: Hejný Zdeněk | C65: nezadán | D65: bez | E65: S | F65: 1958
A66: 65 | B66: Karásek Otakar | C66: KDG Šternberk | D66: bez | E66: S2 | F66: 1947
A67: 66 | B67: Karásek Jiří | C67: KDG Šternberk | D67: 1 | E67: S2 | F67: 1949 | G67: host. - KDG Tovačov
A68: 67 | B68: Kopeček Petr | C68: nezadán | D68: bez | E68: S | F68: 1955
A69: 68 | B69: Kreuzinger Miroslav | C69: nezadán | D69: bez | E69: S2 | F69: 1946
A70: 69 | B70: Kreuzinger Josef | C70: nezadán | D70: bez | E70: S2 | F70: 1954
A71: 70 | B71: Krč Roman | C71: nezadán | D71: bez | E71: S | F71: 1963
A72: 71 | B72: Muzikant Květoslav | C72: nezadán | D72: bez | E72: S2 | F72: 1953
A73: 72 | B73: Mikudík Zdeněk | C73: nezadán | D73: bez | E73: S | F73: 1958
A74: 73 | B74: Římský Stanislav | C74: TJ UNEX Uničov | D74: 5 | E74: S | F74: 1959
A75: 74 | B75: Šafařík Jaroslav | C75: nezadán | D75: bez | E75: S2 | F75: 1907
A76: 75 | B76: Urbášek Milan | C76: nezadán | D76: bez | E76: S | F76: 1956
A77: 76 | B77: Vach Václav | C77: nezadán | D77: bez | E77: S | F77: 1960
A78: 77 | B78: Vráždil Milan | C78: nezadán | D78: bez | E78: S | F78: 1956
A79: 78 | B79: Martinů Věra | C79: nezadán | D79: bez | E79: Se | F79: 1957
A80: 79 | B80: Rakvicová Jitka | C80: nezadán | D80: bez | E80: Se | F80: 1959
A81: 80 | B81: Doležel Čeněk | C81: nezadán | D81: bez | E81: S2 | F81: 1946
A82: 81 | B82: Ehrlich Jan | C82: nezadán | D82: bez | E82: S2 | F82: 1940
A83: 82 | B83: Ehrlichová Hana | C83: nezadán | D83: bez | E83: Se | F83: 1944
A84: 83 | B84: Konupka Zdeněk | C84: nezadán | D84: bez | E84: S2 | F84: 1943
A85: 84 | B85: Navrátil Jan | C85: nezadán | D85: bez | E85: S2 | F85: 1941
A86: 85 | B86: Novák Jindřich | C86: nezadán | D86: bez | E86: S | F86: 1960
A87: 86 | B87: Pavlík František | C87: nezadán | D87: bez | E87: S | F87: 1958
A88: 87 | B88: Snášel Rudolf | C88: nezadán | D88: bez | E88: S | F88: 1955
A89: 88 | B89: Šenkyřík Miroslav | C89: nezadán | D89: bez | E89: S | F89: 1958
A90: 89 | B90: Štýbnar Vlastimil | C90: nezadán | D90: bez | E90: S2 | F90: 1954
A91: 90 | B91: Vlk Josef | C91: nezadán | D91: bez | E91: S2 | F91: 1942
A92: 91 | B92: Vybíral Vladimir | C92: nezadán | D92: bez | E92: S2 | F92: 1937
A93: 92 | B93: Bauer Václav | C93: nezadán | D93: bez | E93: S | F93: 1955
A94: 93 | B94: Brabec Vladimír | C94: nezadán | D94: bez | E94: S | F94: 1959
A95: 94 | B95: Brada Josef | C95: nezadán | D95: bez | E95: S2 | F95: 1953
A96: 95 | B96: Dlouhý Jiří | C96: nezadán | D96: bez | E96: S2 | F96: 1948
A97: 96 | B97: Kabát Jaroslav | C97: nezadán | D97: bez | E97: S2 | F97: 1950
A98: 97 | B98: Krieger Jaroslav | C98: nezadán | D98: bez | E98: S2 | F98: 1953
A99: 98 | B99: Kroupa Karel | C99: nezadán | D99: bez | E99: S2 | F99: 1951
A100: 99 | B100: Kučera Josef | C100: nezadán | D100: bez | E100: S | F100: 1959
A101: 100 | B101: Květoň Ondřej | C101: nezadán | D101: bez | E101: S2 | F101: 1950
A102: 101 | B102: Naus Jindrich | C102: nezadán | D102: bez | E102: S2 | F102: 1952
A103: 102 | B103: Říha Oldřich | C103: nezadán | D103: bez | E103: S2 | F103: 1954
A104: 103 | B104: Polka Josef | C104: nezadán | D104: bez | E104: S2 | F104: 1953
A105: 104 | B105: Sturma Jaroslav | C105: nezadán | D105: bez | E105: S2 | F105: 1953
A106: 105 | B106: Zavadil Jaroslav | C106: nezadán | D106: bez | E106: S | F106: 1955
A107: 106 | B107: Běhounek Luboš | C107: nezadán | D107: bez
A108: 107 | B108: Cejpek Miroslav | C108: nezadán | D108: bez | E108: S2 | F108: 1945
A109: 108 | B109: Čech Vlastimír | C109: nezadán | D109: bez | E109: S | F109: 1956
A110: 109 | B110: Daniel Otakar | C110: TJ Start Brno | D110: bez | E110: S2 | F110: 1950
A111: 110 | B111: Daniel Petr | C111: nezadán | D111: bez | E111: S2 | F111: 1954
A112: 111 | B112: Drtil Lubos | C112: nezadán | D112: bez | E112: S | F112: 1956
A113: 112 | B113: Frko Pavel | C113: nezadán | D113: bez | E113: S | F113: 1955
A114: 113 | B114: Hájek Pavel | C114: nezadán | D114: bez | E114: S2 | F114: 1945
A115: 114 | B115: Kreppel Rafael | C115: nezadán | D115: bez | E115: S2 | F115: 1949
A116: 115 | B116: Nečas Miloslav | C116: nezadán | D116: bez | E116: S2 | F116: 1952
A117: 116 | B117: Pácha Dalibor | C117: nezadán | D117: bez | E117: S | F117: 1955
A118: 117 | B118: Pardus Erik | C118: nezadán | D118: bez | E118: S | F118: 1957
A119: 118 | B119: Piotrowski Bohuslav | C119: nezadán | D119: bez | E119: S | F119: 1957
A120: 119 | B120: Piotrowski Zdeněk | C120: nezadán | D120: bez | E120: S | F120: 1958
A121: 120 | B121: Přerost Jiří | C121: nezadán | D121: bez | E121: S2 | F121: 1953
A122: 121 | B122: Reda Michal | C122: nezadán | D122: bez | E122: S | F122: 1956
A123: 122 | B123: Cup Pavel | C123: nezadán | D123: bez
A124: 123 | B124: Stegner Jan | C124: nezadán | D124: bez | E124: S | F124: 1955
A125: 124 | B125: Janderová Milada | C125: nezadán | D125: bez | E125: Se | F125: 1956
A126: 125 | B126: Vrbová Jarmila | C126: TJ Start Brno | D126: bez | E126: Se | F126: 1942
A127: 126 | B127: Cagnar Pavol | C127: nezadán | D127: bez | E127: S2 | F127: 1925
A128: 127 | B128: Czeto Oskar | C128: nezadán | D128: bez | E128: S | F128: 1957
A129: 128 | B129: Czeto Vojtěch | C129: nezadán | D129: bez | E129: S2 | F129: 1952
A130: 129 | B130: Czeteová Alena | C130: nezadán | D130: bez | E130: Se | F130: 1953
A131: 130 | B131: Fedak Štefan | C131: nezadán | D131: bez | E131: S2 | F131: 1952
A132: 131 | B132: Filgas Josef | C132: nezadán | D132: bez | E132: S2 | F132: 1931
A133: 132 | B133: Filgasová Irena | C133: nezadán | D133: bez | E133: Se | F133: 1934
A134: 133 | B134: Gaspar Emil | C134: nezadán | D134: bez | E134: S2 | F134: 1925
A135: 134 | B135: Gasparová Magda | C135: nezadán | D135: bez | E135: Se | F135: 1934
A136: 135 | B136: Gonosova Viera | C136: nezadán | D136: bez | E136: Se | F136: 1947
A137: 136 | B137: Grancic Milan | C137: nezadán | D137: bez | E137: S | F137: 1957
A138: 137 | B138: Hagan Pavol | C138: nezadán | D138: bez | E138: S2 | F138: 1953
A139: 138 | B139: Helebrandt Robert | C139: nezadán | D139: bez | E139: S2 | F139: 1940
A140: 139 | B140: Hlavna Boris | C140: nezadán | D140: bez | E140: S | F140: 1957
A141: 140 | B141: Hudak Miroslav | C141: nezadán | D141: bez | E141: S | F141: 1960
A142: 141 | B142: Jelenek Juraj | C142: nezadán | D142: bez | E142: S2 | F142: 1953
A143: 142 | B143: Kabát Ludek | C143: nezadán | D143: bez | E143: S | F143: 1959
A144: 143 | B144: Kabát Milan | C144: nezadán | D144: bez | E144: S2 | F144: 1954
A145: 144 | B145: Kudernac Jozef | C145: nezadán | D145: bez | E145: S2 | F145: 1954
A146: 145 | B146: Lacknerova Maria | C146: nezadán | D146: bez | E146: Se | F146: 1934
A147: 146 | B147: Lopuchovky Peter | C147: nezadán | D147: bez | E147: S | F147: 1962
A148: 147 | B148: Lupanova Kristyna | C148: nezadán | D148: bez | E148: Se | F148: 1953
A149: 148 | B149: Margita Peter | C149: nezadán | D149: bez | E149: S2 | F149: 1953
A150: 149 | B150: Mojzitova Anna | C150: nezadán | D150: bez | E150: Se | F150: 1931
A151: 150 | B151: Murin Peter | C151: nezadán | D151: bez | E151: S | F151: 1957
A152: 151 | B152: Niznik Ondrej | C152: nezadán | D152: bez | E152: S | F152: 1962
A153: 152 | B153: Pihorna Peter | C153: nezadán | D153: bez | E153: S2 | F153: 1953
A154: 153 | B154: Remetei Rudolf | C154: nezadán | D154: bez | E154: S2 | F154: 1953
A155: 154 | B155: Rovinsky Ladislav | C155: nezadán | D155: bez | E155: S2 | F155: 1951
A156: 155 | B156: Seman Karol | C156: nezadán | D156: bez | E156: S2 | F156: 1943
A157: 156 | B157: Semanova Frantiska | C157: nezadán | D157: bez | E157: Se | F157: 1944
A158: 157 | B158: Schultz Juraj | C158: nezadán | D158: bez | E158: S | F158: 1963
A159: 158 | B159: Schultzova Alzbeta | C159: nezadán | D159: bez | E159: Se | F159: 1930
A160: 159 | B160: Skacel Miroslav | C160: nezadán | D160: bez | E160: S2 | F160: 1954
A161: 160 | B161: Slivka Jan | C161: nezadán | D161: bez | E161: S | F161: 1959
A162: 161 | B162: Sopko Roman | C162: nezadán | D162: bez | E162: S2 | F162: 1952
A163: 162 | B163: Sandrejova Libuse | C163: nezadán | D163: bez | E163: Se | F163: 1956
A164: 163 | B164: Sterbinsky Ladislav | C164: nezadán | D164: bez | E164: S2 | F164: 1928
A165: 164 | B165: Sterbinska Olga | C165: nezadán | D165: bez | E165: Se | F165: 1920
A166: 165 | B166: Tichy Radoslav | C166: nezadán | D166: bez | E166: S | F166: 1959
A167: 166 | B167: Toth Ladislav | C167: nezadán | D167: bez | E167: S | F167: 1959
A168: 167 | B168: Vondra Josef | C168: nezadán | D168: bez | E168: S | F168: 1960
A169: 168 | B169: Vrchovinsky Pavel | C169: nezadán | D169: bez | E169: S2 | F169: 1951
A170: 169 | B170: Zavodny Lubomir | C170: nezadán | D170: bez | E170: S | F170: 1959
A171: 170 | B171: Fechtner Jan | C171: SMG 2000 Ústí n. L. | D171: 1 | E171: S2 | F171: 1952 | G171: host. - MG Seba Tanvald
A172: 171 | B172: Fechtner Helmut | C172: SMG 2000 Ústí n. L. | D172: bez | E172: S2 | F172: 1930
A173: 172 | B173: Flugr Václav | C173: nezadán | D173: bez | E173: S2 | F173: 1944
A174: 173 | B174: Fronek Arnost | C174: nezadán | D174: bez | E174: S | F174: 1957
A175: 174 | B175: Fronek Jindrich | C175: nezadán | D175: bez | E175: S2 | F175: 1950
A176: 175 | B176: Hercik Karel | C176: nezadán | D176: bez | E176: S | F176: 1956
A177: 176 | B177: Jenc Jiri | C177: nezadán | D177: bez | E177: S2 | F177: 1944
A178: 177 | B178: Katic Frantisek | C178: nezadán | D178: bez | E178: S2 | F178: 1946
A179: 178 | B179: Krejci Vlastimil st | C179: nezadán | D179: bez | E179: S2 | F179: 1943
A180: 179 | B180: Krysl Miroslav | C180: nezadán | D180: bez | E180: S | F180: 1956
A181: 180 | B181: Kudlacek Jiri | C181: nezadán | D181: bez | E181: S | F181: 1957
A182: 181 | B182: Krivanek Frantisek | C182: nezadán | D182: bez | E182: S2 | F182: 1932
A183: 182 | B183: Kolarik Oldrich | C183: nezadán | D183: bez
A184: 183 | B184: Kocourek Pavel | C184: nezadán | D184: bez | E184: S | F184: 1959
A185: 184 | B185: Niederle Jiří | C185: nezadán | D185: bez | E185: S | F185: 1960
A186: 185 | B186: Pitor Jan | C186: nezadán | D186: bez | E186: S2 | F186: 1952
A187: 186 | B187: Tosner Bretislav | C187: nezadán | D187: bez | E187: S2 | F187: 1950
A188: 187 | B188: Vrany Ladislav | C188: nezadán | D188: bez | E188: S2 | F188: 1946
A189: 188 | B189: Fronkova Ruzena | C189: nezadán | D189: bez | E189: Se | F189: 1951
A190: 189 | B190: Krejcova Bohuslava | C190: nezadán | D190: bez | E190: Se | F190: 1946
A191: 190 | B191: Jencova Marie | C191: nezadán | D191: bez | E191: Se | F191: 1950
A192: 191 | B192: Rehorova Jolana | C192: nezadán | D192: bez | E192: Se | F192: 1956
A193: 192 | B193: Vesela Marcela | C193: nezadán | D193: bez | E193: Se | F193: 1955
A194: 193 | B194: Ambrosy Bohumil | C194: nezadán | D194: bez | E194: S2 | F194: 1947
A195: 194 | B195: Bina Pavel | C195: nezadán | D195: bez | E195: S | F195: 1957
A196: 195 | B196: Bokr Richard | C196: MGK Spartak Příbram | D196: bez | E196: S2 | F196: 1926
A197: 196 | B197: Hajsman Bedrich | C197: nezadán | D197: bez | E197: S2 | F197: 1949
A198: 197 | B198: Holan Vladimír | C198: MGK Spartak Příbram | D198: bez | E198: S2 | F198: 1953
A199: 198 | B199: Jendruscak Jan | C199: nezadán | D199: bez | E199: S2 | F199: 1953
A200: 199 | B200: Kadlec Vladimir | C200: nezadán | D200: bez | E200: S2 | F200: 1948
... 3440 more rows
